Workbook

Sheet Loan Payment Plan
B1: Loan Details | D1: Sort By: | E1: Interest Rate | F1: Sort Order: | G1: Descending | J1: Loan Payment Plan v1.6 written by Alex Laird
B2: Status | C2: Loan Name* | D2: Account Number | E2: Lender | F2: Type | G2: Interest Subsidy | H2: Interest Rate | I2: Minimum Payment | J2: Due Date** | K2: Initial Balance | L2: Current Balance | M2: *This must be unique name **The date payments start on the loan; also the date interest will start accruing on a subsidized loan
B3: Open | C3: Capitol One Classic Platinum | D3: 54321-2333-432 | E3: Capitol One | F3: Credit Card | G3: Unsubsidized | H3: 0.1875 | I3: 20 | J3: 2013-05-05 | K3: -2001.52 | L3: -2001.52
B4: Open | C4: Blue Cash American Express | D4: 1234-324-2554 | E4: American Express | F4: Credit Card | G4: Unsubsidized | H4: 0.145 | I4: 20 | J4: 2012-03-05 | K4: -4365.76 | L4: -3500
B5: Enrolled | C5: Chase Freedom | D5: 43AF-22-3753 | E5: Chase Bank | F5: Credit Card | G5: Unsubsidized | H5: 0.128 | I5: =PRODUCT(-L5,0.01) -> 80 | J5: 2012-06-01 | K5: -8532.55 | L5: -8000
B6: Enrolled | C6: Perkins School Loan | D6: E43929503294 | E6: The Department of Education | F6: Perkins | G6: Subsidized | H6: 0.05 | I6: 50 | J6: =DATE(YEAR($G$9),MONTH($G$9)+9,DAY($G$9)) -> 2012-05-19 | K6: -6000 | L6: -6000
G7: Average: | H7: =AVERAGE(H3:H6) -> 0.127625 | J7: Totals: | K7: =SUM(K3:K6) -> -20899.83 | L7: =SUM(L3:L6) -> -19501.52
B9: Payment Plan | D9: Start Date: | E9: =TODAY() -> 2011-09-01 | F9: Graduation Date: | G9: 2011-08-19 | H9: Monthly Payment: | I9: 500
B10: Payment Date | C10: Loan Name | D10: Starting Balance | E10: Minimum Payments to Other Loans | F10: Interest Paid | G10: Principle Paid | H10: New Balance | I10: Next Loan*** | J10: Accumulated Interest*** | K10: Starting Balance (Plus Accumulated Interest)*** | L10: New Balance*** | M10: ***Only applicable if rollover occurs; in a month where the current loan gets paid off, the remaing monthly payment will go toward the next loan in the series, if one exists
A11: Totals: | F11: =SUM(F12:F1215) -> 1270.747335 | G11: =SUM(G12:G1215) -> 19017.97833 | J11: =IF(H1502<>"",Variables!B3,-SUM(J12:J1215)) -> 2166.458333 | M11: Total Interest: | N11: =IF(H1502<>"",Variables!B3,SUM(F11,J11)) -> 3437.205669
B12: =IF(DAY($E$9)<>1,DATE(YEAR($E$9),MONTH($E$9)+1,1),$E$9) -> 2011-09-01 | C12: =$C$3 -> Capitol One Classic Platinum | D12: =$L$3 -> -2001.52 | E12: =IF(C12<>"",MINPAYMENT(C12,ROW(B12),COLUMN(B12)),"") -> 100 | F12: =IF(C12<>"",IF(OR(VLOOKUP(C12,$C$3:$L$6,5,0)=Variables!$B$5,B12>VLOOKUP(C12,$C$3:$L$6,8,0)),-D12*VLOOKUP(C12,$C$3:$L$6,6,0)/12,0),"") -> 31.27375 | G12: =IF(I12<>Variables!$B$1,IF(C12<>"",$I$9-E12-F12,""),-D12) -> 368.72625 | H12: =IF(C12<>"",IF(D12+G12<0,D12+G12,0),"") -> -1632.79375 | I12: =IF(C12<>"",IF(D12+$I$9-E12-F12>=0,IF(ISERROR(INDEX($C$3:$C$6,MATCH(C12,$C$3:$C$6,0)+1,0)),Variables!$B$1,INDEX($C$3:$C$6,MATCH(C12,$C$3:$C$6,0)+1,0)),""),"") ->  | J12: =IF(ISERROR(VLOOKUP(I12,$C$3:$L$6,5,0)),"",IF(OR(VLOOKUP(I12,$C$3:$L$6,5,0)=Variables!$B$5,B12>VLOOKUP(I12,$C$3:$L$6,8,0)),IF(VLOOKUP(I12,$C$3:$L$6,5,0)=Variables!$B$5,((YEAR(B12)-YEAR($B$12))*12+MONTH(B12)-MONTH($B$12)),((YEAR(B12)-YEAR(VLOOKUP(I12,$C$3:$L$6,8,0)))*12+MONTH(B12)-MONTH(VLOOKUP(I12,$C$3:$L$6,8,0))))*(VLOOKUP(I12,$C$3:$L$6,10,0)*VLOOKUP(I12,$C$3:$L$6,6,0)/12),0)) ->  | K12: =IF(C12<>"",IF(I12<>"",IF(ISERROR(VLOOKUP(I12,$C$3:$L$6,10,0)),"",VLOOKUP(I12,$C$3:$L$6,10,0)+J12+IF(OR(VLOOKUP(I12,$C$3:$L$6,5,0)=Variables!$B$5,B12>VLOOKUP(I12,$C$3:$L$6,8,0)),IF(VLOOKUP(I12,$C$3:$L$6,5,0)=Variables!$B$5,((YEAR(B12)-YEAR($B$12))*12+MONTH(B12)-MONTH($B$12)),((YEAR(B12)-YEAR(VLOOKUP(I12,$C$3:$L$6,8,0)))*12+MONTH(B12)-MONTH(VLOOKUP(I12,$C$3:$L$6,8,0))))*VLOOKUP(I12,$C$3:$L$6,7,0),0)),""),"") ->  | L12: =IF(C12<>"",IF(ISERROR(IF(D12+G12>=0,K12+D12+G12,"")),"",IF(D12+G12>=0,K12+D12+G12,"")),"") -> 
B13: =IF(C13<>"",DATE(YEAR(B12),MONTH(B12)+1,DAY(B12)),"") -> 2011-10-01 | C13: =IF(I12<>Variables!$B$1,IF(H12<>0,C12,I12),"") -> Capitol One Classic Platinum | D13: =IF(C13<>"",IF(H12<>0,H12,L12),"") -> -1632.79375 | E13: =IF(C13<>"",MINPAYMENT(C13,ROW(B13),COLUMN(B13)),"") -> 100 | F13: =IF(C13<>"",IF(OR(VLOOKUP(C13,$C$3:$L$6,5,0)=Variables!$B$5,B13>VLOOKUP(C13,$C$3:$L$6,8,0)),-D13*VLOOKUP(C13,$C$3:$L$6,6,0)/12,0),"") -> 25.51240234 | G13: =IF(I13<>Variables!$B$1,IF(C13<>"",$I$9-E13-F13,""),-D13) -> 374.4875977 | H13: -1258.306152 | I13: =IF(C13<>"",IF(D13+$I$9-E13-F13>=0,IF(ISERROR(INDEX($C$3:$C$6,MATCH(C13,$C$3:$C$6,0)+1,0)),Variables!$B$1,INDEX($C$3:$C$6,MATCH(C13,$C$3:$C$6,0)+1,0)),""),"") ->  | J13: =IF(ISERROR(VLOOKUP(I13,$C$3:$L$6,5,0)),"",IF(OR(VLOOKUP(I13,$C$3:$L$6,5,0)=Variables!$B$5,B13>VLOOKUP(I13,$C$3:$L$6,8,0)),IF(VLOOKUP(I13,$C$3:$L$6,5,0)=Variables!$B$5,((YEAR(B13)-YEAR($B$12))*12+MONTH(B13)-MONTH($B$12)),((YEAR(B13)-YEAR(VLOOKUP(I13,$C$3:$L$6,8,0)))*12+MONTH(B13)-MONTH(VLOOKUP(I13,$C$3:$L$6,8,0))))*(VLOOKUP(I13,$C$3:$L$6,10,0)*VLOOKUP(I13,$C$3:$L$6,6,0)/12),0)) ->  | K13: =IF(C13<>"",IF(I13<>"",IF(ISERROR(VLOOKUP(I13,$C$3:$L$6,10,0)),"",VLOOKUP(I13,$C$3:$L$6,10,0)+J13+IF(OR(VLOOKUP(I13,$C$3:$L$6,5,0)=Variables!$B$5,B13>VLOOKUP(I13,$C$3:$L$6,8,0)),IF(VLOOKUP(I13,$C$3:$L$6,5,0)=Variables!$B$5,((YEAR(B13)-YEAR($B$12))*12+MONTH(B13)-MONTH($B$12)),((YEAR(B13)-YEAR(VLOOKUP(I13,$C$3:$L$6,8,0)))*12+MONTH(B13)-MONTH(VLOOKUP(I13,$C$3:$L$6,8,0))))*VLOOKUP(I13,$C$3:$L$6,7,0),0)),""),"") -> 
B14: =IF(C14<>"",DATE(YEAR(B13),MONTH(B13)+1,DAY(B13)),"") -> 2011-11-01 | C14: =IF(I13<>Variables!$B$1,IF(H13<>0,C13,I13),"") -> Capitol One Classic Platinum | D14: -1258.306152 | E14: 100 | F14: =IF(C14<>"",IF(OR(VLOOKUP(C14,$C$3:$L$6,5,0)=Variables!$B$5,B14>VLOOKUP(C14,$C$3:$L$6,8,0)),-D14*VLOOKUP(C14,$C$3:$L$6,6,0)/12,0),"") -> 19.66103363 | G14: =IF(I14<>Variables!$B$1,IF(C14<>"",$I$9-E14-F14,""),-D14) -> 380.3389664 | H14: =IF(C14<>"",IF(D14+G14<0,D14+G14,0),"") -> -877.967186 | I14: =IF(C14<>"",IF(D14+$I$9-E14-F14>=0,IF(ISERROR(INDEX($C$3:$C$6,MATCH(C14,$C$3:$C$6,0)+1,0)),Variables!$B$1,INDEX($C$3:$C$6,MATCH(C14,$C$3:$C$6,0)+1,0)),""),"") ->  | J14: =IF(ISERROR(VLOOKUP(I14,$C$3:$L$6,5,0)),"",IF(OR(VLOOKUP(I14,$C$3:$L$6,5,0)=Variables!$B$5,B14>VLOOKUP(I14,$C$3:$L$6,8,0)),IF(VLOOKUP(I14,$C$3:$L$6,5,0)=Variables!$B$5,((YEAR(B14)-YEAR($B$12))*12+MONTH(B14)-MONTH($B$12)),((YEAR(B14)-YEAR(VLOOKUP(I14,$C$3:$L$6,8,0)))*12+MONTH(B14)-MONTH(VLOOKUP(I14,$C$3:$L$6,8,0))))*(VLOOKUP(I14,$C$3:$L$6,10,0)*VLOOKUP(I14,$C$3:$L$6,6,0)/12),0)) ->  | K14: =IF(C14<>"",IF(I14<>"",IF(ISERROR(VLOOKUP(I14,$C$3:$L$6,10,0)),"",VLOOKUP(I14,$C$3:$L$6,10,0)+J14+IF(OR(VLOOKUP(I14,$C$3:$L$6,5,0)=Variables!$B$5,B14>VLOOKUP(I14,$C$3:$L$6,8,0)),IF(VLOOKUP(I14,$C$3:$L$6,5,0)=Variables!$B$5,((YEAR(B14)-YEAR($B$12))*12+MONTH(B14)-MONTH($B$12)),((YEAR(B14)-YEAR(VLOOKUP(I14,$C$3:$L$6,8,0)))*12+MONTH(B14)-MONTH(VLOOKUP(I14,$C$3:$L$6,8,0))))*VLOOKUP(I14,$C$3:$L$6,7,0),0)),""),"") -> 
B15: 2011-12-01 | C15: =IF(I14<>Variables!$B$1,IF(H14<>0,C14,I14),"") -> Capitol One Classic Platinum | D15: =IF(C15<>"",IF(H14<>0,H14,L14),"") -> -877.967186 | E15: =IF(C15<>"",MINPAYMENT(C15,ROW(B15),COLUMN(B15)),"") -> 100 | F15: =IF(C15<>"",IF(OR(VLOOKUP(C15,$C$3:$L$6,5,0)=Variables!$B$5,B15>VLOOKUP(C15,$C$3:$L$6,8,0)),-D15*VLOOKUP(C15,$C$3:$L$6,6,0)/12,0),"") -> 13.71823728 | G15: =IF(I15<>Variables!$B$1,IF(C15<>"",$I$9-E15-F15,""),-D15) -> 386.2817627 | H15: -491.6854233 | I15: =IF(C15<>"",IF(D15+$I$9-E15-F15>=0,IF(ISERROR(INDEX($C$3:$C$6,MATCH(C15,$C$3:$C$6,0)+1,0)),Variables!$B$1,INDEX($C$3:$C$6,MATCH(C15,$C$3:$C$6,0)+1,0)),""),"") ->  | J15: =IF(ISERROR(VLOOKUP(I15,$C$3:$L$6,5,0)),"",IF(OR(VLOOKUP(I15,$C$3:$L$6,5,0)=Variables!$B$5,B15>VLOOKUP(I15,$C$3:$L$6,8,0)),IF(VLOOKUP(I15,$C$3:$L$6,5,0)=Variables!$B$5,((YEAR(B15)-YEAR($B$12))*12+MONTH(B15)-MONTH($B$12)),((YEAR(B15)-YEAR(VLOOKUP(I15,$C$3:$L$6,8,0)))*12+MONTH(B15)-MONTH(VLOOKUP(I15,$C$3:$L$6,8,0))))*(VLOOKUP(I15,$C$3:$L$6,10,0)*VLOOKUP(I15,$C$3:$L$6,6,0)/12),0)) ->  | K15: =IF(C15<>"",IF(I15<>"",IF(ISERROR(VLOOKUP(I15,$C$3:$L$6,10,0)),"",VLOOKUP(I15,$C$3:$L$6,10,0)+J15+IF(OR(VLOOKUP(I15,$C$3:$L$6,5,0)=Variables!$B$5,B15>VLOOKUP(I15,$C$3:$L$6,8,0)),IF(VLOOKUP(I15,$C$3:$L$6,5,0)=Variables!$B$5,((YEAR(B15)-YEAR($B$12))*12+MONTH(B15)-MONTH($B$12)),((YEAR(B15)-YEAR(VLOOKUP(I15,$C$3:$L$6,8,0)))*12+MONTH(B15)-MONTH(VLOOKUP(I15,$C$3:$L$6,8,0))))*VLOOKUP(I15,$C$3:$L$6,7,0),0)),""),"") ->  | L15: =IF(C15<>"",IF(ISERROR(IF(D15+G15>=0,K15+D15+G15,"")),"",IF(D15+G15>=0,K15+D15+G15,"")),"") -> 
B16: =IF(C16<>"",DATE(YEAR(B15),MONTH(B15)+1,DAY(B15)),"") -> 2012-01-01 | C16: =IF(I15<>Variables!$B$1,IF(H15<>0,C15,I15),"") -> Capitol One Classic Platinum | D16: -491.6854233 | E16: 100 | F16: =IF(C16<>"",IF(OR(VLOOKUP(C16,$C$3:$L$6,5,0)=Variables!$B$5,B16>VLOOKUP(C16,$C$3:$L$6,8,0)),-D16*VLOOKUP(C16,$C$3:$L$6,6,0)/12,0),"") -> 7.682584738 | G16: =IF(I16<>Variables!$B$1,IF(C16<>"",$I$9-E16-F16,""),-D16) -> 392.3174153 | H16: =IF(C16<>"",IF(D16+G16<0,D16+G16,0),"") -> -99.36800799 | I16: =IF(C16<>"",IF(D16+$I$9-E16-F16>=0,IF(ISERROR(INDEX($C$3:$C$6,MATCH(C16,$C$3:$C$6,0)+1,0)),Variables!$B$1,INDEX($C$3:$C$6,MATCH(C16,$C$3:$C$6,0)+1,0)),""),"") ->  | J16: =IF(ISERROR(VLOOKUP(I16,$C$3:$L$6,5,0)),"",IF(OR(VLOOKUP(I16,$C$3:$L$6,5,0)=Variables!$B$5,B16>VLOOKUP(I16,$C$3:$L$6,8,0)),IF(VLOOKUP(I16,$C$3:$L$6,5,0)=Variables!$B$5,((YEAR(B16)-YEAR($B$12))*12+MONTH(B16)-MONTH($B$12)),((YEAR(B16)-YEAR(VLOOKUP(I16,$C$3:$L$6,8,0)))*12+MONTH(B16)-MONTH(VLOOKUP(I16,$C$3:$L$6,8,0))))*(VLOOKUP(I16,$C$3:$L$6,10,0)*VLOOKUP(I16,$C$3:$L$6,6,0)/12),0)) ->  | K16: =IF(C16<>"",IF(I16<>"",IF(ISERROR(VLOOKUP(I16,$C$3:$L$6,10,0)),"",VLOOKUP(I16,$C$3:$L$6,10,0)+J16+IF(OR(VLOOKUP(I16,$C$3:$L$6,5,0)=Variables!$B$5,B16>VLOOKUP(I16,$C$3:$L$6,8,0)),IF(VLOOKUP(I16,$C$3:$L$6,5,0)=Variables!$B$5,((YEAR(B16)-YEAR($B$12))*12+MONTH(B16)-MONTH($B$12)),((YEAR(B16)-YEAR(VLOOKUP(I16,$C$3:$L$6,8,0)))*12+MONTH(B16)-MONTH(VLOOKUP(I16,$C$3:$L$6,8,0))))*VLOOKUP(I16,$C$3:$L$6,7,0),0)),""),"") -> 
B17: 2012-02-01 | C17: =IF(I16<>Variables!$B$1,IF(H16<>0,C16,I16),"") -> Capitol One Classic Platinum | D17: -99.36800799 | E17: 100 | F17: =IF(C17<>"",IF(OR(VLOOKUP(C17,$C$3:$L$6,5,0)=Variables!$B$5,B17>VLOOKUP(C17,$C$3:$L$6,8,0)),-D17*VLOOKUP(C17,$C$3:$L$6,6,0)/12,0),"") -> 1.552625125 | G17: =IF(I17<>Variables!$B$1,IF(C17<>"",$I$9-E17-F17,""),-D17) -> 398.4473749 | H17: 0 | I17: =IF(C17<>"",IF(D17+$I$9-E17-F17>=0,IF(ISERROR(INDEX($C$3:$C$6,MATCH(C17,$C$3:$C$6,0)+1,0)),Variables!$B$1,INDEX($C$3:$C$6,MATCH(C17,$C$3:$C$6,0)+1,0)),""),"") -> Blue Cash American Express | J17: =IF(ISERROR(VLOOKUP(I17,$C$3:$L$6,5,0)),"",IF(OR(VLOOKUP(I17,$C$3:$L$6,5,0)=Variables!$B$5,B17>VLOOKUP(I17,$C$3:$L$6,8,0)),IF(VLOOKUP(I17,$C$3:$L$6,5,0)=Variables!$B$5,((YEAR(B17)-YEAR($B$12))*12+MONTH(B17)-MONTH($B$12)),((YEAR(B17)-YEAR(VLOOKUP(I17,$C$3:$L$6,8,0)))*12+MONTH(B17)-MONTH(VLOOKUP(I17,$C$3:$L$6,8,0))))*(VLOOKUP(I17,$C$3:$L$6,10,0)*VLOOKUP(I17,$C$3:$L$6,6,0)/12),0)) -> -211.4583333 | K17: =IF(C17<>"",IF(I17<>"",IF(ISERROR(VLOOKUP(I17,$C$3:$L$6,10,0)),"",VLOOKUP(I17,$C$3:$L$6,10,0)+J17+IF(OR(VLOOKUP(I17,$C$3:$L$6,5,0)=Variables!$B$5,B17>VLOOKUP(I17,$C$3:$L$6,8,0)),IF(VLOOKUP(I17,$C$3:$L$6,5,0)=Variables!$B$5,((YEAR(B17)-YEAR($B$12))*12+MONTH(B17)-MONTH($B$12)),((YEAR(B17)-YEAR(VLOOKUP(I17,$C$3:$L$6,8,0)))*12+MONTH(B17)-MONTH(VLOOKUP(I17,$C$3:$L$6,8,0))))*VLOOKUP(I17,$C$3:$L$6,7,0),0)),""),"") -> -3611.458333 | L17: -3312.378966
B18: 2012-03-01 | C18: =IF(I17<>Variables!$B$1,IF(H17<>0,C17,I17),"") -> Blue Cash American Express | D18: -3312.378966 | E18: 80 | F18: =IF(C18<>"",IF(OR(VLOOKUP(C18,$C$3:$L$6,5,0)=Variables!$B$5,B18>VLOOKUP(C18,$C$3:$L$6,8,0)),-D18*VLOOKUP(C18,$C$3:$L$6,6,0)/12,0),"") -> 40.02457918 | G18: =IF(I18<>Variables!$B$1,IF(C18<>"",$I$9-E18-F18,""),-D18) -> 379.9754208 | H18: -2932.403546 | I18: =IF(C18<>"",IF(D18+$I$9-E18-F18>=0,IF(ISERROR(INDEX($C$3:$C$6,MATCH(C18,$C$3:$C$6,0)+1,0)),Variables!$B$1,INDEX($C$3:$C$6,MATCH(C18,$C$3:$C$6,0)+1,0)),""),"") ->  | J18: =IF(ISERROR(VLOOKUP(I18,$C$3:$L$6,5,0)),"",IF(OR(VLOOKUP(I18,$C$3:$L$6,5,0)=Variables!$B$5,B18>VLOOKUP(I18,$C$3:$L$6,8,0)),IF(VLOOKUP(I18,$C$3:$L$6,5,0)=Variables!$B$5,((YEAR(B18)-YEAR($B$12))*12+MONTH(B18)-MONTH($B$12)),((YEAR(B18)-YEAR(VLOOKUP(I18,$C$3:$L$6,8,0)))*12+MONTH(B18)-MONTH(VLOOKUP(I18,$C$3:$L$6,8,0))))*(VLOOKUP(I18,$C$3:$L$6,10,0)*VLOOKUP(I18,$C$3:$L$6,6,0)/12),0)) ->  | K18: =IF(C18<>"",IF(I18<>"",IF(ISERROR(VLOOKUP(I18,$C$3:$L$6,10,0)),"",VLOOKUP(I18,$C$3:$L$6,10,0)+J18+IF(OR(VLOOKUP(I18,$C$3:$L$6,5,0)=Variables!$B$5,B18>VLOOKUP(I18,$C$3:$L$6,8,0)),IF(VLOOKUP(I18,$C$3:$L$6,5,0)=Variables!$B$5,((YEAR(B18)-YEAR($B$12))*12+MONTH(B18)-MONTH($B$12)),((YEAR(B18)-YEAR(VLOOKUP(I18,$C$3:$L$6,8,0)))*12+MONTH(B18)-MONTH(VLOOKUP(I18,$C$3:$L$6,8,0))))*VLOOKUP(I18,$C$3:$L$6,7,0),0)),""),"") -> 
B19: 2012-04-01 | C19: =IF(I18<>Variables!$B$1,IF(H18<>0,C18,I18),"") -> Blue Cash American Express | D19: -2932.403546 | E19: 80 | F19: =IF(C19<>"",IF(OR(VLOOKUP(C19,$C$3:$L$6,5,0)=Variables!$B$5,B19>VLOOKUP(C19,$C$3:$L$6,8,0)),-D19*VLOOKUP(C19,$C$3:$L$6,6,0)/12,0),"") -> 35.43320951 | G19: =IF(I19<>Variables!$B$1,IF(C19<>"",$I$9-E19-F19,""),-D19) -> 384.5667905 | H19: -2547.836755 | I19: =IF(C19<>"",IF(D19+$I$9-E19-F19>=0,IF(ISERROR(INDEX($C$3:$C$6,MATCH(C19,$C$3:$C$6,0)+1,0)),Variables!$B$1,INDEX($C$3:$C$6,MATCH(C19,$C$3:$C$6,0)+1,0)),""),"") ->  | J19: =IF(ISERROR(VLOOKUP(I19,$C$3:$L$6,5,0)),"",IF(OR(VLOOKUP(I19,$C$3:$L$6,5,0)=Variables!$B$5,B19>VLOOKUP(I19,$C$3:$L$6,8,0)),IF(VLOOKUP(I19,$C$3:$L$6,5,0)=Variables!$B$5,((YEAR(B19)-YEAR($B$12))*12+MONTH(B19)-MONTH($B$12)),((YEAR(B19)-YEAR(VLOOKUP(I19,$C$3:$L$6,8,0)))*12+MONTH(B19)-MONTH(VLOOKUP(I19,$C$3:$L$6,8,0))))*(VLOOKUP(I19,$C$3:$L$6,10,0)*VLOOKUP(I19,$C$3:$L$6,6,0)/12),0)) ->  | K19: =IF(C19<>"",IF(I19<>"",IF(ISERROR(VLOOKUP(I19,$C$3:$L$6,10,0)),"",VLOOKUP(I19,$C$3:$L$6,10,0)+J19+IF(OR(VLOOKUP(I19,$C$3:$L$6,5,0)=Variables!$B$5,B19>VLOOKUP(I19,$C$3:$L$6,8,0)),IF(VLOOKUP(I19,$C$3:$L$6,5,0)=Variables!$B$5,((YEAR(B19)-YEAR($B$12))*12+MONTH(B19)-MONTH($B$12)),((YEAR(B19)-YEAR(VLOOKUP(I19,$C$3:$L$6,8,0)))*12+MONTH(B19)-MONTH(VLOOKUP(I19,$C$3:$L$6,8,0))))*VLOOKUP(I19,$C$3:$L$6,7,0),0)),""),"") -> 
B20: 2012-05-01 | C20: =IF(I19<>Variables!$B$1,IF(H19<>0,C19,I19),"") -> Blue Cash American Express | D20: -2547.836755 | E20: 80 | F20: =IF(C20<>"",IF(OR(VLOOKUP(C20,$C$3:$L$6,5,0)=Variables!$B$5,B20>VLOOKUP(C20,$C$3:$L$6,8,0)),-D20*VLOOKUP(C20,$C$3:$L$6,6,0)/12,0),"") -> 30.78636079 | G20: =IF(I20<>Variables!$B$1,IF(C20<>"",$I$9-E20-F20,""),-D20) -> 389.2136392 | H20: -2158.623116 | I20: =IF(C20<>"",IF(D20+$I$9-E20-F20>=0,IF(ISERROR(INDEX($C$3:$C$6,MATCH(C20,$C$3:$C$6,0)+1,0)),Variables!$B$1,INDEX($C$3:$C$6,MATCH(C20,$C$3:$C$6,0)+1,0)),""),"") ->  | J20: =IF(ISERROR(VLOOKUP(I20,$C$3:$L$6,5,0)),"",IF(OR(VLOOKUP(I20,$C$3:$L$6,5,0)=Variables!$B$5,B20>VLOOKUP(I20,$C$3:$L$6,8,0)),IF(VLOOKUP(I20,$C$3:$L$6,5,0)=Variables!$B$5,((YEAR(B20)-YEAR($B$12))*12+MONTH(B20)-MONTH($B$12)),((YEAR(B20)-YEAR(VLOOKUP(I20,$C$3:$L$6,8,0)))*12+MONTH(B20)-MONTH(VLOOKUP(I20,$C$3:$L$6,8,0))))*(VLOOKUP(I20,$C$3:$L$6,10,0)*VLOOKUP(I20,$C$3:$L$6,6,0)/12),0)) ->  | K20: =IF(C20<>"",IF(I20<>"",IF(ISERROR(VLOOKUP(I20,$C$3:$L$6,10,0)),"",VLOOKUP(I20,$C$3:$L$6,10,0)+J20+IF(OR(VLOOKUP(I20,$C$3:$L$6,5,0)=Variables!$B$5,B20>VLOOKUP(I20,$C$3:$L$6,8,0)),IF(VLOOKUP(I20,$C$3:$L$6,5,0)=Variables!$B$5,((YEAR(B20)-YEAR($B$12))*12+MONTH(B20)-MONTH($B$12)),((YEAR(B20)-YEAR(VLOOKUP(I20,$C$3:$L$6,8,0)))*12+MONTH(B20)-MONTH(VLOOKUP(I20,$C$3:$L$6,8,0))))*VLOOKUP(I20,$C$3:$L$6,7,0),0)),""),"") -> 
B21: 2012-06-01 | C21: =IF(I20<>Variables!$B$1,IF(H20<>0,C20,I20),"") -> Blue Cash American Express | D21: -2158.623116 | E21: 130 | F21: =IF(C21<>"",IF(OR(VLOOKUP(C21,$C$3:$L$6,5,0)=Variables!$B$5,B21>VLOOKUP(C21,$C$3:$L$6,8,0)),-D21*VLOOKUP(C21,$C$3:$L$6,6,0)/12,0),"") -> 26.08336265 | G21: =IF(I21<>Variables!$B$1,IF(C21<>"",$I$9-E21-F21,""),-D21) -> 343.9166373 | H21: -1814.706479 | I21: =IF(C21<>"",IF(D21+$I$9-E21-F21>=0,IF(ISERROR(INDEX($C$3:$C$6,MATCH(C21,$C$3:$C$6,0)+1,0)),Variables!$B$1,INDEX($C$3:$C$6,MATCH(C21,$C$3:$C$6,0)+1,0)),""),"") ->  | J21: =IF(ISERROR(VLOOKUP(I21,$C$3:$L$6,5,0)),"",IF(OR(VLOOKUP(I21,$C$3:$L$6,5,0)=Variables!$B$5,B21>VLOOKUP(I21,$C$3:$L$6,8,0)),IF(VLOOKUP(I21,$C$3:$L$6,5,0)=Variables!$B$5,((YEAR(B21)-YEAR($B$12))*12+MONTH(B21)-MONTH($B$12)),((YEAR(B21)-YEAR(VLOOKUP(I21,$C$3:$L$6,8,0)))*12+MONTH(B21)-MONTH(VLOOKUP(I21,$C$3:$L$6,8,0))))*(VLOOKUP(I21,$C$3:$L$6,10,0)*VLOOKUP(I21,$C$3:$L$6,6,0)/12),0)) ->  | K21: =IF(C21<>"",IF(I21<>"",IF(ISERROR(VLOOKUP(I21,$C$3:$L$6,10,0)),"",VLOOKUP(I21,$C$3:$L$6,10,0)+J21+IF(OR(VLOOKUP(I21,$C$3:$L$6,5,0)=Variables!$B$5,B21>VLOOKUP(I21,$C$3:$L$6,8,0)),IF(VLOOKUP(I21,$C$3:$L$6,5,0)=Variables!$B$5,((YEAR(B21)-YEAR($B$12))*12+MONTH(B21)-MONTH($B$12)),((YEAR(B21)-YEAR(VLOOKUP(I21,$C$3:$L$6,8,0)))*12+MONTH(B21)-MONTH(VLOOKUP(I21,$C$3:$L$6,8,0))))*VLOOKUP(I21,$C$3:$L$6,7,0),0)),""),"") -> 
B22: 2012-07-01 | C22: =IF(I21<>Variables!$B$1,IF(H21<>0,C21,I21),"") -> Blue Cash American Express | D22: -1814.706479 | E22: 130 | F22: =IF(C22<>"",IF(OR(VLOOKUP(C22,$C$3:$L$6,5,0)=Variables!$B$5,B22>VLOOKUP(C22,$C$3:$L$6,8,0)),-D22*VLOOKUP(C22,$C$3:$L$6,6,0)/12,0),"") -> 21.92770328 | G22: =IF(I22<>Variables!$B$1,IF(C22<>"",$I$9-E22-F22,""),-D22) -> 348.0722967 | H22: -1466.634182 | I22: =IF(C22<>"",IF(D22+$I$9-E22-F22>=0,IF(ISERROR(INDEX($C$3:$C$6,MATCH(C22,$C$3:$C$6,0)+1,0)),Variables!$B$1,INDEX($C$3:$C$6,MATCH(C22,$C$3:$C$6,0)+1,0)),""),"") ->  | J22: =IF(ISERROR(VLOOKUP(I22,$C$3:$L$6,5,0)),"",IF(OR(VLOOKUP(I22,$C$3:$L$6,5,0)=Variables!$B$5,B22>VLOOKUP(I22,$C$3:$L$6,8,0)),IF(VLOOKUP(I22,$C$3:$L$6,5,0)=Variables!$B$5,((YEAR(B22)-YEAR($B$12))*12+MONTH(B22)-MONTH($B$12)),((YEAR(B22)-YEAR(VLOOKUP(I22,$C$3:$L$6,8,0)))*12+MONTH(B22)-MONTH(VLOOKUP(I22,$C$3:$L$6,8,0))))*(VLOOKUP(I22,$C$3:$L$6,10,0)*VLOOKUP(I22,$C$3:$L$6,6,0)/12),0)) ->  | K22: =IF(C22<>"",IF(I22<>"",IF(ISERROR(VLOOKUP(I22,$C$3:$L$6,10,0)),"",VLOOKUP(I22,$C$3:$L$6,10,0)+J22+IF(OR(VLOOKUP(I22,$C$3:$L$6,5,0)=Variables!$B$5,B22>VLOOKUP(I22,$C$3:$L$6,8,0)),IF(VLOOKUP(I22,$C$3:$L$6,5,0)=Variables!$B$5,((YEAR(B22)-YEAR($B$12))*12+MONTH(B22)-MONTH($B$12)),((YEAR(B22)-YEAR(VLOOKUP(I22,$C$3:$L$6,8,0)))*12+MONTH(B22)-MONTH(VLOOKUP(I22,$C$3:$L$6,8,0))))*VLOOKUP(I22,$C$3:$L$6,7,0),0)),""),"") -> 
B23: 2012-08-01 | C23: =IF(I22<>Variables!$B$1,IF(H22<>0,C22,I22),"") -> Blue Cash American Express | D23: -1466.634182 | E23: 130 | F23: =IF(C23<>"",IF(OR(VLOOKUP(C23,$C$3:$L$6,5,0)=Variables!$B$5,B23>VLOOKUP(C23,$C$3:$L$6,8,0)),-D23*VLOOKUP(C23,$C$3:$L$6,6,0)/12,0),"") -> 17.7218297 | G23: =IF(I23<>Variables!$B$1,IF(C23<>"",$I$9-E23-F23,""),-D23) -> 352.2781703 | H23: -1114.356012 | I23: =IF(C23<>"",IF(D23+$I$9-E23-F23>=0,IF(ISERROR(INDEX($C$3:$C$6,MATCH(C23,$C$3:$C$6,0)+1,0)),Variables!$B$1,INDEX($C$3:$C$6,MATCH(C23,$C$3:$C$6,0)+1,0)),""),"") ->  | J23: =IF(ISERROR(VLOOKUP(I23,$C$3:$L$6,5,0)),"",IF(OR(VLOOKUP(I23,$C$3:$L$6,5,0)=Variables!$B$5,B23>VLOOKUP(I23,$C$3:$L$6,8,0)),IF(VLOOKUP(I23,$C$3:$L$6,5,0)=Variables!$B$5,((YEAR(B23)-YEAR($B$12))*12+MONTH(B23)-MONTH($B$12)),((YEAR(B23)-YEAR(VLOOKUP(I23,$C$3:$L$6,8,0)))*12+MONTH(B23)-MONTH(VLOOKUP(I23,$C$3:$L$6,8,0))))*(VLOOKUP(I23,$C$3:$L$6,10,0)*VLOOKUP(I23,$C$3:$L$6,6,0)/12),0)) ->  | K23: =IF(C23<>"",IF(I23<>"",IF(ISERROR(VLOOKUP(I23,$C$3:$L$6,10,0)),"",VLOOKUP(I23,$C$3:$L$6,10,0)+J23+IF(OR(VLOOKUP(I23,$C$3:$L$6,5,0)=Variables!$B$5,B23>VLOOKUP(I23,$C$3:$L$6,8,0)),IF(VLOOKUP(I23,$C$3:$L$6,5,0)=Variables!$B$5,((YEAR(B23)-YEAR($B$12))*12+MONTH(B23)-MONTH($B$12)),((YEAR(B23)-YEAR(VLOOKUP(I23,$C$3:$L$6,8,0)))*12+MONTH(B23)-MONTH(VLOOKUP(I23,$C$3:$L$6,8,0))))*VLOOKUP(I23,$C$3:$L$6,7,0),0)),""),"") -> 
B24: 2012-09-01 | C24: =IF(I23<>Variables!$B$1,IF(H23<>0,C23,I23),"") -> Blue Cash American Express | D24: -1114.356012 | E24: 130 | F24: =IF(C24<>"",IF(OR(VLOOKUP(C24,$C$3:$L$6,5,0)=Variables!$B$5,B24>VLOOKUP(C24,$C$3:$L$6,8,0)),-D24*VLOOKUP(C24,$C$3:$L$6,6,0)/12,0),"") -> 13.46513514 | G24: =IF(I24<>Variables!$B$1,IF(C24<>"",$I$9-E24-F24,""),-D24) -> 356.5348649 | H24: -757.8211467 | I24: =IF(C24<>"",IF(D24+$I$9-E24-F24>=0,IF(ISERROR(INDEX($C$3:$C$6,MATCH(C24,$C$3:$C$6,0)+1,0)),Variables!$B$1,INDEX($C$3:$C$6,MATCH(C24,$C$3:$C$6,0)+1,0)),""),"") ->  | J24: =IF(ISERROR(VLOOKUP(I24,$C$3:$L$6,5,0)),"",IF(OR(VLOOKUP(I24,$C$3:$L$6,5,0)=Variables!$B$5,B24>VLOOKUP(I24,$C$3:$L$6,8,0)),IF(VLOOKUP(I24,$C$3:$L$6,5,0)=Variables!$B$5,((YEAR(B24)-YEAR($B$12))*12+MONTH(B24)-MONTH($B$12)),((YEAR(B24)-YEAR(VLOOKUP(I24,$C$3:$L$6,8,0)))*12+MONTH(B24)-MONTH(VLOOKUP(I24,$C$3:$L$6,8,0))))*(VLOOKUP(I24,$C$3:$L$6,10,0)*VLOOKUP(I24,$C$3:$L$6,6,0)/12),0)) ->  | K24: =IF(C24<>"",IF(I24<>"",IF(ISERROR(VLOOKUP(I24,$C$3:$L$6,10,0)),"",VLOOKUP(I24,$C$3:$L$6,10,0)+J24+IF(OR(VLOOKUP(I24,$C$3:$L$6,5,0)=Variables!$B$5,B24>VLOOKUP(I24,$C$3:$L$6,8,0)),IF(VLOOKUP(I24,$C$3:$L$6,5,0)=Variables!$B$5,((YEAR(B24)-YEAR($B$12))*12+MONTH(B24)-MONTH($B$12)),((YEAR(B24)-YEAR(VLOOKUP(I24,$C$3:$L$6,8,0)))*12+MONTH(B24)-MONTH(VLOOKUP(I24,$C$3:$L$6,8,0))))*VLOOKUP(I24,$C$3:$L$6,7,0),0)),""),"") -> 
B25: 2012-10-01 | C25: =IF(I24<>Variables!$B$1,IF(H24<>0,C24,I24),"") -> Blue Cash American Express | D25: -757.8211467 | E25: 130 | F25: =IF(C25<>"",IF(OR(VLOOKUP(C25,$C$3:$L$6,5,0)=Variables!$B$5,B25>VLOOKUP(C25,$C$3:$L$6,8,0)),-D25*VLOOKUP(C25,$C$3:$L$6,6,0)/12,0),"") -> 9.157005523 | G25: =IF(I25<>Variables!$B$1,IF(C25<>"",$I$9-E25-F25,""),-D25) -> 360.8429945 | H25: -396.9781522 | I25: =IF(C25<>"",IF(D25+$I$9-E25-F25>=0,IF(ISERROR(INDEX($C$3:$C$6,MATCH(C25,$C$3:$C$6,0)+1,0)),Variables!$B$1,INDEX($C$3:$C$6,MATCH(C25,$C$3:$C$6,0)+1,0)),""),"") ->  | J25: =IF(ISERROR(VLOOKUP(I25,$C$3:$L$6,5,0)),"",IF(OR(VLOOKUP(I25,$C$3:$L$6,5,0)=Variables!$B$5,B25>VLOOKUP(I25,$C$3:$L$6,8,0)),IF(VLOOKUP(I25,$C$3:$L$6,5,0)=Variables!$B$5,((YEAR(B25)-YEAR($B$12))*12+MONTH(B25)-MONTH($B$12)),((YEAR(B25)-YEAR(VLOOKUP(I25,$C$3:$L$6,8,0)))*12+MONTH(B25)-MONTH(VLOOKUP(I25,$C$3:$L$6,8,0))))*(VLOOKUP(I25,$C$3:$L$6,10,0)*VLOOKUP(I25,$C$3:$L$6,6,0)/12),0)) ->  | K25: =IF(C25<>"",IF(I25<>"",IF(ISERROR(VLOOKUP(I25,$C$3:$L$6,10,0)),"",VLOOKUP(I25,$C$3:$L$6,10,0)+J25+IF(OR(VLOOKUP(I25,$C$3:$L$6,5,0)=Variables!$B$5,B25>VLOOKUP(I25,$C$3:$L$6,8,0)),IF(VLOOKUP(I25,$C$3:$L$6,5,0)=Variables!$B$5,((YEAR(B25)-YEAR($B$12))*12+MONTH(B25)-MONTH($B$12)),((YEAR(B25)-YEAR(VLOOKUP(I25,$C$3:$L$6,8,0)))*12+MONTH(B25)-MONTH(VLOOKUP(I25,$C$3:$L$6,8,0))))*VLOOKUP(I25,$C$3:$L$6,7,0),0)),""),"") -> 
B26: 2012-11-01 | C26: =IF(I25<>Variables!$B$1,IF(H25<>0,C25,I25),"") -> Blue Cash American Express | D26: -396.9781522 | E26: 130 | F26: =IF(C26<>"",IF(OR(VLOOKUP(C26,$C$3:$L$6,5,0)=Variables!$B$5,B26>VLOOKUP(C26,$C$3:$L$6,8,0)),-D26*VLOOKUP(C26,$C$3:$L$6,6,0)/12,0),"") -> 4.796819339 | G26: =IF(I26<>Variables!$B$1,IF(C26<>"",$I$9-E26-F26,""),-D26) -> 365.2031807 | H26: -31.77497156 | I26: =IF(C26<>"",IF(D26+$I$9-E26-F26>=0,IF(ISERROR(INDEX($C$3:$C$6,MATCH(C26,$C$3:$C$6,0)+1,0)),Variables!$B$1,INDEX($C$3:$C$6,MATCH(C26,$C$3:$C$6,0)+1,0)),""),"") ->  | J26: =IF(ISERROR(VLOOKUP(I26,$C$3:$L$6,5,0)),"",IF(OR(VLOOKUP(I26,$C$3:$L$6,5,0)=Variables!$B$5,B26>VLOOKUP(I26,$C$3:$L$6,8,0)),IF(VLOOKUP(I26,$C$3:$L$6,5,0)=Variables!$B$5,((YEAR(B26)-YEAR($B$12))*12+MONTH(B26)-MONTH($B$12)),((YEAR(B26)-YEAR(VLOOKUP(I26,$C$3:$L$6,8,0)))*12+MONTH(B26)-MONTH(VLOOKUP(I26,$C$3:$L$6,8,0))))*(VLOOKUP(I26,$C$3:$L$6,10,0)*VLOOKUP(I26,$C$3:$L$6,6,0)/12),0)) ->  | K26: =IF(C26<>"",IF(I26<>"",IF(ISERROR(VLOOKUP(I26,$C$3:$L$6,10,0)),"",VLOOKUP(I26,$C$3:$L$6,10,0)+J26+IF(OR(VLOOKUP(I26,$C$3:$L$6,5,0)=Variables!$B$5,B26>VLOOKUP(I26,$C$3:$L$6,8,0)),IF(VLOOKUP(I26,$C$3:$L$6,5,0)=Variables!$B$5,((YEAR(B26)-YEAR($B$12))*12+MONTH(B26)-MONTH($B$12)),((YEAR(B26)-YEAR(VLOOKUP(I26,$C$3:$L$6,8,0)))*12+MONTH(B26)-MONTH(VLOOKUP(I26,$C$3:$L$6,8,0))))*VLOOKUP(I26,$C$3:$L$6,7,0),0)),""),"") -> 
B27: 2012-12-01 | C27: =IF(I26<>Variables!$B$1,IF(H26<>0,C26,I26),"") -> Blue Cash American Express | D27: -31.77497156 | E27: 130 | F27: =IF(C27<>"",IF(OR(VLOOKUP(C27,$C$3:$L$6,5,0)=Variables!$B$5,B27>VLOOKUP(C27,$C$3:$L$6,8,0)),-D27*VLOOKUP(C27,$C$3:$L$6,6,0)/12,0),"") -> 0.3839475731 | G27: =IF(I27<>Variables!$B$1,IF(C27<>"",$I$9-E27-F27,""),-D27) -> 369.6160524 | H27: 0 | I27: =IF(C27<>"",IF(D27+$I$9-E27-F27>=0,IF(ISERROR(INDEX($C$3:$C$6,MATCH(C27,$C$3:$C$6,0)+1,0)),Variables!$B$1,INDEX($C$3:$C$6,MATCH(C27,$C$3:$C$6,0)+1,0)),""),"") -> Chase Freedom | J27: =IF(ISERROR(VLOOKUP(I27,$C$3:$L$6,5,0)),"",IF(OR(VLOOKUP(I27,$C$3:$L$6,5,0)=Variables!$B$5,B27>VLOOKUP(I27,$C$3:$L$6,8,0)),IF(VLOOKUP(I27,$C$3:$L$6,5,0)=Variables!$B$5,((YEAR(B27)-YEAR($B$12))*12+MONTH(B27)-MONTH($B$12)),((YEAR(B27)-YEAR(VLOOKUP(I27,$C$3:$L$6,8,0)))*12+MONTH(B27)-MONTH(VLOOKUP(I27,$C$3:$L$6,8,0))))*(VLOOKUP(I27,$C$3:$L$6,10,0)*VLOOKUP(I27,$C$3:$L$6,6,0)/12),0)) -> -1280 | K27: =IF(C27<>"",IF(I27<>"",IF(ISERROR(VLOOKUP(I27,$C$3:$L$6,10,0)),"",VLOOKUP(I27,$C$3:$L$6,10,0)+J27+IF(OR(VLOOKUP(I27,$C$3:$L$6,5,0)=Variables!$B$5,B27>VLOOKUP(I27,$C$3:$L$6,8,0)),IF(VLOOKUP(I27,$C$3:$L$6,5,0)=Variables!$B$5,((YEAR(B27)-YEAR($B$12))*12+MONTH(B27)-MONTH($B$12)),((YEAR(B27)-YEAR(VLOOKUP(I27,$C$3:$L$6,8,0)))*12+MONTH(B27)-MONTH(VLOOKUP(I27,$C$3:$L$6,8,0))))*VLOOKUP(I27,$C$3:$L$6,7,0),0)),""),"") -> -8080 | L27: -7742.158919
B28: 2013-01-01 | C28: =IF(I27<>Variables!$B$1,IF(H27<>0,C27,I27),"") -> Chase Freedom | D28: =IF(C28<>"",IF(H27<>0,H27,L27),"") -> -7742.158919 | E28: =IF(C28<>"",MINPAYMENT(C28,ROW(B28),COLUMN(B28)),"") -> 50 | F28: =IF(C28<>"",IF(OR(VLOOKUP(C28,$C$3:$L$6,5,0)=Variables!$B$5,B28>VLOOKUP(C28,$C$3:$L$6,8,0)),-D28*VLOOKUP(C28,$C$3:$L$6,6,0)/12,0),"") -> 82.58302847 | G28: =IF(I28<>Variables!$B$1,IF(C28<>"",$I$9-E28-F28,""),-D28) -> 367.4169715 | H28: -7374.741948 | I28: =IF(C28<>"",IF(D28+$I$9-E28-F28>=0,IF(ISERROR(INDEX($C$3:$C$6,MATCH(C28,$C$3:$C$6,0)+1,0)),Variables!$B$1,INDEX($C$3:$C$6,MATCH(C28,$C$3:$C$6,0)+1,0)),""),"") ->  | J28: =IF(ISERROR(VLOOKUP(I28,$C$3:$L$6,5,0)),"",IF(OR(VLOOKUP(I28,$C$3:$L$6,5,0)=Variables!$B$5,B28>VLOOKUP(I28,$C$3:$L$6,8,0)),IF(VLOOKUP(I28,$C$3:$L$6,5,0)=Variables!$B$5,((YEAR(B28)-YEAR($B$12))*12+MONTH(B28)-MONTH($B$12)),((YEAR(B28)-YEAR(VLOOKUP(I28,$C$3:$L$6,8,0)))*12+MONTH(B28)-MONTH(VLOOKUP(I28,$C$3:$L$6,8,0))))*(VLOOKUP(I28,$C$3:$L$6,10,0)*VLOOKUP(I28,$C$3:$L$6,6,0)/12),0)) ->  | K28: =IF(C28<>"",IF(I28<>"",IF(ISERROR(VLOOKUP(I28,$C$3:$L$6,10,0)),"",VLOOKUP(I28,$C$3:$L$6,10,0)+J28+IF(OR(VLOOKUP(I28,$C$3:$L$6,5,0)=Variables!$B$5,B28>VLOOKUP(I28,$C$3:$L$6,8,0)),IF(VLOOKUP(I28,$C$3:$L$6,5,0)=Variables!$B$5,((YEAR(B28)-YEAR($B$12))*12+MONTH(B28)-MONTH($B$12)),((YEAR(B28)-YEAR(VLOOKUP(I28,$C$3:$L$6,8,0)))*12+MONTH(B28)-MONTH(VLOOKUP(I28,$C$3:$L$6,8,0))))*VLOOKUP(I28,$C$3:$L$6,7,0),0)),""),"") ->  | L28: =IF(C28<>"",IF(ISERROR(IF(D28+G28>=0,K28+D28+G28,"")),"",IF(D28+G28>=0,K28+D28+G28,"")),"") -> 
B29: =IF(C29<>"",DATE(YEAR(B28),MONTH(B28)+1,DAY(B28)),"") -> 2013-02-01 | C29: =IF(I28<>Variables!$B$1,IF(H28<>0,C28,I28),"") -> Chase Freedom | D29: -7374.741948 | E29: 50 | F29: =IF(C29<>"",IF(OR(VLOOKUP(C29,$C$3:$L$6,5,0)=Variables!$B$5,B29>VLOOKUP(C29,$C$3:$L$6,8,0)),-D29*VLOOKUP(C29,$C$3:$L$6,6,0)/12,0),"") -> 78.66391411 | G29: =IF(I29<>Variables!$B$1,IF(C29<>"",$I$9-E29-F29,""),-D29) -> 371.3360859 | H29: =IF(C29<>"",IF(D29+G29<0,D29+G29,0),"") -> -7003.405862 | I29: =IF(C29<>"",IF(D29+$I$9-E29-F29>=0,IF(ISERROR(INDEX($C$3:$C$6,MATCH(C29,$C$3:$C$6,0)+1,0)),Variables!$B$1,INDEX($C$3:$C$6,MATCH(C29,$C$3:$C$6,0)+1,0)),""),"") ->  | J29: =IF(ISERROR(VLOOKUP(I29,$C$3:$L$6,5,0)),"",IF(OR(VLOOKUP(I29,$C$3:$L$6,5,0)=Variables!$B$5,B29>VLOOKUP(I29,$C$3:$L$6,8,0)),IF(VLOOKUP(I29,$C$3:$L$6,5,0)=Variables!$B$5,((YEAR(B29)-YEAR($B$12))*12+MONTH(B29)-MONTH($B$12)),((YEAR(B29)-YEAR(VLOOKUP(I29,$C$3:$L$6,8,0)))*12+MONTH(B29)-MONTH(VLOOKUP(I29,$C$3:$L$6,8,0))))*(VLOOKUP(I29,$C$3:$L$6,10,0)*VLOOKUP(I29,$C$3:$L$6,6,0)/12),0)) ->  | K29: =IF(C29<>"",IF(I29<>"",IF(ISERROR(VLOOKUP(I29,$C$3:$L$6,10,0)),"",VLOOKUP(I29,$C$3:$L$6,10,0)+J29+IF(OR(VLOOKUP(I29,$C$3:$L$6,5,0)=Variables!$B$5,B29>VLOOKUP(I29,$C$3:$L$6,8,0)),IF(VLOOKUP(I29,$C$3:$L$6,5,0)=Variables!$B$5,((YEAR(B29)-YEAR($B$12))*12+MONTH(B29)-MONTH($B$12)),((YEAR(B29)-YEAR(VLOOKUP(I29,$C$3:$L$6,8,0)))*12+MONTH(B29)-MONTH(VLOOKUP(I29,$C$3:$L$6,8,0))))*VLOOKUP(I29,$C$3:$L$6,7,0),0)),""),"") -> 
B30: 2013-03-01 | C30: =IF(I29<>Variables!$B$1,IF(H29<>0,C29,I29),"") -> Chase Freedom | D30: -7003.405862 | E30: 50 | F30: =IF(C30<>"",IF(OR(VLOOKUP(C30,$C$3:$L$6,5,0)=Variables!$B$5,B30>VLOOKUP(C30,$C$3:$L$6,8,0)),-D30*VLOOKUP(C30,$C$3:$L$6,6,0)/12,0),"") -> 74.70299586 | G30: =IF(I30<>Variables!$B$1,IF(C30<>"",$I$9-E30-F30,""),-D30) -> 375.2970041 | H30: -6628.108858 | I30: =IF(C30<>"",IF(D30+$I$9-E30-F30>=0,IF(ISERROR(INDEX($C$3:$C$6,MATCH(C30,$C$3:$C$6,0)+1,0)),Variables!$B$1,INDEX($C$3:$C$6,MATCH(C30,$C$3:$C$6,0)+1,0)),""),"") ->  | J30: =IF(ISERROR(VLOOKUP(I30,$C$3:$L$6,5,0)),"",IF(OR(VLOOKUP(I30,$C$3:$L$6,5,0)=Variables!$B$5,B30>VLOOKUP(I30,$C$3:$L$6,8,0)),IF(VLOOKUP(I30,$C$3:$L$6,5,0)=Variables!$B$5,((YEAR(B30)-YEAR($B$12))*12+MONTH(B30)-MONTH($B$12)),((YEAR(B30)-YEAR(VLOOKUP(I30,$C$3:$L$6,8,0)))*12+MONTH(B30)-MONTH(VLOOKUP(I30,$C$3:$L$6,8,0))))*(VLOOKUP(I30,$C$3:$L$6,10,0)*VLOOKUP(I30,$C$3:$L$6,6,0)/12),0)) ->  | K30: =IF(C30<>"",IF(I30<>"",IF(ISERROR(VLOOKUP(I30,$C$3:$L$6,10,0)),"",VLOOKUP(I30,$C$3:$L$6,10,0)+J30+IF(OR(VLOOKUP(I30,$C$3:$L$6,5,0)=Variables!$B$5,B30>VLOOKUP(I30,$C$3:$L$6,8,0)),IF(VLOOKUP(I30,$C$3:$L$6,5,0)=Variables!$B$5,((YEAR(B30)-YEAR($B$12))*12+MONTH(B30)-MONTH($B$12)),((YEAR(B30)-YEAR(VLOOKUP(I30,$C$3:$L$6,8,0)))*12+MONTH(B30)-MONTH(VLOOKUP(I30,$C$3:$L$6,8,0))))*VLOOKUP(I30,$C$3:$L$6,7,0),0)),""),"") -> 
B31: 2013-04-01 | C31: =IF(I30<>Variables!$B$1,IF(H30<>0,C30,I30),"") -> Chase Freedom | D31: -6628.108858 | E31: 50 | F31: =IF(C31<>"",IF(OR(VLOOKUP(C31,$C$3:$L$6,5,0)=Variables!$B$5,B31>VLOOKUP(C31,$C$3:$L$6,8,0)),-D31*VLOOKUP(C31,$C$3:$L$6,6,0)/12,0),"") -> 70.69982781 | G31: =IF(I31<>Variables!$B$1,IF(C31<>"",$I$9-E31-F31,""),-D31) -> 379.3001722 | H31: -6248.808685 | I31: =IF(C31<>"",IF(D31+$I$9-E31-F31>=0,IF(ISERROR(INDEX($C$3:$C$6,MATCH(C31,$C$3:$C$6,0)+1,0)),Variables!$B$1,INDEX($C$3:$C$6,MATCH(C31,$C$3:$C$6,0)+1,0)),""),"") ->  | J31: =IF(ISERROR(VLOOKUP(I31,$C$3:$L$6,5,0)),"",IF(OR(VLOOKUP(I31,$C$3:$L$6,5,0)=Variables!$B$5,B31>VLOOKUP(I31,$C$3:$L$6,8,0)),IF(VLOOKUP(I31,$C$3:$L$6,5,0)=Variables!$B$5,((YEAR(B31)-YEAR($B$12))*12+MONTH(B31)-MONTH($B$12)),((YEAR(B31)-YEAR(VLOOKUP(I31,$C$3:$L$6,8,0)))*12+MONTH(B31)-MONTH(VLOOKUP(I31,$C$3:$L$6,8,0))))*(VLOOKUP(I31,$C$3:$L$6,10,0)*VLOOKUP(I31,$C$3:$L$6,6,0)/12),0)) ->  | K31: =IF(C31<>"",IF(I31<>"",IF(ISERROR(VLOOKUP(I31,$C$3:$L$6,10,0)),"",VLOOKUP(I31,$C$3:$L$6,10,0)+J31+IF(OR(VLOOKUP(I31,$C$3:$L$6,5,0)=Variables!$B$5,B31>VLOOKUP(I31,$C$3:$L$6,8,0)),IF(VLOOKUP(I31,$C$3:$L$6,5,0)=Variables!$B$5,((YEAR(B31)-YEAR($B$12))*12+MONTH(B31)-MONTH($B$12)),((YEAR(B31)-YEAR(VLOOKUP(I31,$C$3:$L$6,8,0)))*12+MONTH(B31)-MONTH(VLOOKUP(I31,$C$3:$L$6,8,0))))*VLOOKUP(I31,$C$3:$L$6,7,0),0)),""),"") -> 
B32: 2013-05-01 | C32: =IF(I31<>Variables!$B$1,IF(H31<>0,C31,I31),"") -> Chase Freedom | D32: -6248.808685 | E32: 50 | F32: =IF(C32<>"",IF(OR(VLOOKUP(C32,$C$3:$L$6,5,0)=Variables!$B$5,B32>VLOOKUP(C32,$C$3:$L$6,8,0)),-D32*VLOOKUP(C32,$C$3:$L$6,6,0)/12,0),"") -> 66.65395931 | G32: =IF(I32<>Variables!$B$1,IF(C32<>"",$I$9-E32-F32,""),-D32) -> 383.3460407 | H32: -5865.462645 | I32: =IF(C32<>"",IF(D32+$I$9-E32-F32>=0,IF(ISERROR(INDEX($C$3:$C$6,MATCH(C32,$C$3:$C$6,0)+1,0)),Variables!$B$1,INDEX($C$3:$C$6,MATCH(C32,$C$3:$C$6,0)+1,0)),""),"") ->  | J32: =IF(ISERROR(VLOOKUP(I32,$C$3:$L$6,5,0)),"",IF(OR(VLOOKUP(I32,$C$3:$L$6,5,0)=Variables!$B$5,B32>VLOOKUP(I32,$C$3:$L$6,8,0)),IF(VLOOKUP(I32,$C$3:$L$6,5,0)=Variables!$B$5,((YEAR(B32)-YEAR($B$12))*12+MONTH(B32)-MONTH($B$12)),((YEAR(B32)-YEAR(VLOOKUP(I32,$C$3:$L$6,8,0)))*12+MONTH(B32)-MONTH(VLOOKUP(I32,$C$3:$L$6,8,0))))*(VLOOKUP(I32,$C$3:$L$6,10,0)*VLOOKUP(I32,$C$3:$L$6,6,0)/12),0)) ->  | K32: =IF(C32<>"",IF(I32<>"",IF(ISERROR(VLOOKUP(I32,$C$3:$L$6,10,0)),"",VLOOKUP(I32,$C$3:$L$6,10,0)+J32+IF(OR(VLOOKUP(I32,$C$3:$L$6,5,0)=Variables!$B$5,B32>VLOOKUP(I32,$C$3:$L$6,8,0)),IF(VLOOKUP(I32,$C$3:$L$6,5,0)=Variables!$B$5,((YEAR(B32)-YEAR($B$12))*12+MONTH(B32)-MONTH($B$12)),((YEAR(B32)-YEAR(VLOOKUP(I32,$C$3:$L$6,8,0)))*12+MONTH(B32)-MONTH(VLOOKUP(I32,$C$3:$L$6,8,0))))*VLOOKUP(I32,$C$3:$L$6,7,0),0)),""),"") -> 
B33: 2013-06-01 | C33: =IF(I32<>Variables!$B$1,IF(H32<>0,C32,I32),"") -> Chase Freedom | D33: -5865.462645 | E33: 50 | F33: =IF(C33<>"",IF(OR(VLOOKUP(C33,$C$3:$L$6,5,0)=Variables!$B$5,B33>VLOOKUP(C33,$C$3:$L$6,8,0)),-D33*VLOOKUP(C33,$C$3:$L$6,6,0)/12,0),"") -> 62.56493488 | G33: =IF(I33<>Variables!$B$1,IF(C33<>"",$I$9-E33-F33,""),-D33) -> 387.4350651 | H33: -5478.02758 | I33: =IF(C33<>"",IF(D33+$I$9-E33-F33>=0,IF(ISERROR(INDEX($C$3:$C$6,MATCH(C33,$C$3:$C$6,0)+1,0)),Variables!$B$1,INDEX($C$3:$C$6,MATCH(C33,$C$3:$C$6,0)+1,0)),""),"") ->  | J33: =IF(ISERROR(VLOOKUP(I33,$C$3:$L$6,5,0)),"",IF(OR(VLOOKUP(I33,$C$3:$L$6,5,0)=Variables!$B$5,B33>VLOOKUP(I33,$C$3:$L$6,8,0)),IF(VLOOKUP(I33,$C$3:$L$6,5,0)=Variables!$B$5,((YEAR(B33)-YEAR($B$12))*12+MONTH(B33)-MONTH($B$12)),((YEAR(B33)-YEAR(VLOOKUP(I33,$C$3:$L$6,8,0)))*12+MONTH(B33)-MONTH(VLOOKUP(I33,$C$3:$L$6,8,0))))*(VLOOKUP(I33,$C$3:$L$6,10,0)*VLOOKUP(I33,$C$3:$L$6,6,0)/12),0)) ->  | K33: =IF(C33<>"",IF(I33<>"",IF(ISERROR(VLOOKUP(I33,$C$3:$L$6,10,0)),"",VLOOKUP(I33,$C$3:$L$6,10,0)+J33+IF(OR(VLOOKUP(I33,$C$3:$L$6,5,0)=Variables!$B$5,B33>VLOOKUP(I33,$C$3:$L$6,8,0)),IF(VLOOKUP(I33,$C$3:$L$6,5,0)=Variables!$B$5,((YEAR(B33)-YEAR($B$12))*12+MONTH(B33)-MONTH($B$12)),((YEAR(B33)-YEAR(VLOOKUP(I33,$C$3:$L$6,8,0)))*12+MONTH(B33)-MONTH(VLOOKUP(I33,$C$3:$L$6,8,0))))*VLOOKUP(I33,$C$3:$L$6,7,0),0)),""),"") -> 
B34: 2013-07-01 | C34: =IF(I33<>Variables!$B$1,IF(H33<>0,C33,I33),"") -> Chase Freedom | D34: -5478.02758 | E34: 50 | F34: =IF(C34<>"",IF(OR(VLOOKUP(C34,$C$3:$L$6,5,0)=Variables!$B$5,B34>VLOOKUP(C34,$C$3:$L$6,8,0)),-D34*VLOOKUP(C34,$C$3:$L$6,6,0)/12,0),"") -> 58.43229418 | G34: =IF(I34<>Variables!$B$1,IF(C34<>"",$I$9-E34-F34,""),-D34) -> 391.5677058 | H34: -5086.459874 | I34: =IF(C34<>"",IF(D34+$I$9-E34-F34>=0,IF(ISERROR(INDEX($C$3:$C$6,MATCH(C34,$C$3:$C$6,0)+1,0)),Variables!$B$1,INDEX($C$3:$C$6,MATCH(C34,$C$3:$C$6,0)+1,0)),""),"") ->  | J34: =IF(ISERROR(VLOOKUP(I34,$C$3:$L$6,5,0)),"",IF(OR(VLOOKUP(I34,$C$3:$L$6,5,0)=Variables!$B$5,B34>VLOOKUP(I34,$C$3:$L$6,8,0)),IF(VLOOKUP(I34,$C$3:$L$6,5,0)=Variables!$B$5,((YEAR(B34)-YEAR($B$12))*12+MONTH(B34)-MONTH($B$12)),((YEAR(B34)-YEAR(VLOOKUP(I34,$C$3:$L$6,8,0)))*12+MONTH(B34)-MONTH(VLOOKUP(I34,$C$3:$L$6,8,0))))*(VLOOKUP(I34,$C$3:$L$6,10,0)*VLOOKUP(I34,$C$3:$L$6,6,0)/12),0)) ->  | K34: =IF(C34<>"",IF(I34<>"",IF(ISERROR(VLOOKUP(I34,$C$3:$L$6,10,0)),"",VLOOKUP(I34,$C$3:$L$6,10,0)+J34+IF(OR(VLOOKUP(I34,$C$3:$L$6,5,0)=Variables!$B$5,B34>VLOOKUP(I34,$C$3:$L$6,8,0)),IF(VLOOKUP(I34,$C$3:$L$6,5,0)=Variables!$B$5,((YEAR(B34)-YEAR($B$12))*12+MONTH(B34)-MONTH($B$12)),((YEAR(B34)-YEAR(VLOOKUP(I34,$C$3:$L$6,8,0)))*12+MONTH(B34)-MONTH(VLOOKUP(I34,$C$3:$L$6,8,0))))*VLOOKUP(I34,$C$3:$L$6,7,0),0)),""),"") -> 
B35: 2013-08-01 | C35: =IF(I34<>Variables!$B$1,IF(H34<>0,C34,I34),"") -> Chase Freedom | D35: -5086.459874 | E35: 50 | F35: =IF(C35<>"",IF(OR(VLOOKUP(C35,$C$3:$L$6,5,0)=Variables!$B$5,B35>VLOOKUP(C35,$C$3:$L$6,8,0)),-D35*VLOOKUP(C35,$C$3:$L$6,6,0)/12,0),"") -> 54.25557199 | G35: =IF(I35<>Variables!$B$1,IF(C35<>"",$I$9-E35-F35,""),-D35) -> 395.744428 | H35: -4690.715446 | I35: =IF(C35<>"",IF(D35+$I$9-E35-F35>=0,IF(ISERROR(INDEX($C$3:$C$6,MATCH(C35,$C$3:$C$6,0)+1,0)),Variables!$B$1,INDEX($C$3:$C$6,MATCH(C35,$C$3:$C$6,0)+1,0)),""),"") ->  | J35: =IF(ISERROR(VLOOKUP(I35,$C$3:$L$6,5,0)),"",IF(OR(VLOOKUP(I35,$C$3:$L$6,5,0)=Variables!$B$5,B35>VLOOKUP(I35,$C$3:$L$6,8,0)),IF(VLOOKUP(I35,$C$3:$L$6,5,0)=Variables!$B$5,((YEAR(B35)-YEAR($B$12))*12+MONTH(B35)-MONTH($B$12)),((YEAR(B35)-YEAR(VLOOKUP(I35,$C$3:$L$6,8,0)))*12+MONTH(B35)-MONTH(VLOOKUP(I35,$C$3:$L$6,8,0))))*(VLOOKUP(I35,$C$3:$L$6,10,0)*VLOOKUP(I35,$C$3:$L$6,6,0)/12),0)) ->  | K35: =IF(C35<>"",IF(I35<>"",IF(ISERROR(VLOOKUP(I35,$C$3:$L$6,10,0)),"",VLOOKUP(I35,$C$3:$L$6,10,0)+J35+IF(OR(VLOOKUP(I35,$C$3:$L$6,5,0)=Variables!$B$5,B35>VLOOKUP(I35,$C$3:$L$6,8,0)),IF(VLOOKUP(I35,$C$3:$L$6,5,0)=Variables!$B$5,((YEAR(B35)-YEAR($B$12))*12+MONTH(B35)-MONTH($B$12)),((YEAR(B35)-YEAR(VLOOKUP(I35,$C$3:$L$6,8,0)))*12+MONTH(B35)-MONTH(VLOOKUP(I35,$C$3:$L$6,8,0))))*VLOOKUP(I35,$C$3:$L$6,7,0),0)),""),"") -> 
B36: 2013-09-01 | C36: =IF(I35<>Variables!$B$1,IF(H35<>0,C35,I35),"") -> Chase Freedom | D36: -4690.715446 | E36: 50 | F36: =IF(C36<>"",IF(OR(VLOOKUP(C36,$C$3:$L$6,5,0)=Variables!$B$5,B36>VLOOKUP(C36,$C$3:$L$6,8,0)),-D36*VLOOKUP(C36,$C$3:$L$6,6,0)/12,0),"") -> 50.03429809 | G36: =IF(I36<>Variables!$B$1,IF(C36<>"",$I$9-E36-F36,""),-D36) -> 399.9657019 | H36: -4290.749744 | I36: =IF(C36<>"",IF(D36+$I$9-E36-F36>=0,IF(ISERROR(INDEX($C$3:$C$6,MATCH(C36,$C$3:$C$6,0)+1,0)),Variables!$B$1,INDEX($C$3:$C$6,MATCH(C36,$C$3:$C$6,0)+1,0)),""),"") ->  | J36: =IF(ISERROR(VLOOKUP(I36,$C$3:$L$6,5,0)),"",IF(OR(VLOOKUP(I36,$C$3:$L$6,5,0)=Variables!$B$5,B36>VLOOKUP(I36,$C$3:$L$6,8,0)),IF(VLOOKUP(I36,$C$3:$L$6,5,0)=Variables!$B$5,((YEAR(B36)-YEAR($B$12))*12+MONTH(B36)-MONTH($B$12)),((YEAR(B36)-YEAR(VLOOKUP(I36,$C$3:$L$6,8,0)))*12+MONTH(B36)-MONTH(VLOOKUP(I36,$C$3:$L$6,8,0))))*(VLOOKUP(I36,$C$3:$L$6,10,0)*VLOOKUP(I36,$C$3:$L$6,6,0)/12),0)) ->  | K36: =IF(C36<>"",IF(I36<>"",IF(ISERROR(VLOOKUP(I36,$C$3:$L$6,10,0)),"",VLOOKUP(I36,$C$3:$L$6,10,0)+J36+IF(OR(VLOOKUP(I36,$C$3:$L$6,5,0)=Variables!$B$5,B36>VLOOKUP(I36,$C$3:$L$6,8,0)),IF(VLOOKUP(I36,$C$3:$L$6,5,0)=Variables!$B$5,((YEAR(B36)-YEAR($B$12))*12+MONTH(B36)-MONTH($B$12)),((YEAR(B36)-YEAR(VLOOKUP(I36,$C$3:$L$6,8,0)))*12+MONTH(B36)-MONTH(VLOOKUP(I36,$C$3:$L$6,8,0))))*VLOOKUP(I36,$C$3:$L$6,7,0),0)),""),"") -> 
B37: 2013-10-01 | C37: =IF(I36<>Variables!$B$1,IF(H36<>0,C36,I36),"") -> Chase Freedom | D37: -4290.749744 | E37: 50 | F37: =IF(C37<>"",IF(OR(VLOOKUP(C37,$C$3:$L$6,5,0)=Variables!$B$5,B37>VLOOKUP(C37,$C$3:$L$6,8,0)),-D37*VLOOKUP(C37,$C$3:$L$6,6,0)/12,0),"") -> 45.76799727 | G37: =IF(I37<>Variables!$B$1,IF(C37<>"",$I$9-E37-F37,""),-D37) -> 404.2320027 | H37: -3886.517741 | I37: =IF(C37<>"",IF(D37+$I$9-E37-F37>=0,IF(ISERROR(INDEX($C$3:$C$6,MATCH(C37,$C$3:$C$6,0)+1,0)),Variables!$B$1,INDEX($C$3:$C$6,MATCH(C37,$C$3:$C$6,0)+1,0)),""),"") ->  | J37: =IF(ISERROR(VLOOKUP(I37,$C$3:$L$6,5,0)),"",IF(OR(VLOOKUP(I37,$C$3:$L$6,5,0)=Variables!$B$5,B37>VLOOKUP(I37,$C$3:$L$6,8,0)),IF(VLOOKUP(I37,$C$3:$L$6,5,0)=Variables!$B$5,((YEAR(B37)-YEAR($B$12))*12+MONTH(B37)-MONTH($B$12)),((YEAR(B37)-YEAR(VLOOKUP(I37,$C$3:$L$6,8,0)))*12+MONTH(B37)-MONTH(VLOOKUP(I37,$C$3:$L$6,8,0))))*(VLOOKUP(I37,$C$3:$L$6,10,0)*VLOOKUP(I37,$C$3:$L$6,6,0)/12),0)) ->  | K37: =IF(C37<>"",IF(I37<>"",IF(ISERROR(VLOOKUP(I37,$C$3:$L$6,10,0)),"",VLOOKUP(I37,$C$3:$L$6,10,0)+J37+IF(OR(VLOOKUP(I37,$C$3:$L$6,5,0)=Variables!$B$5,B37>VLOOKUP(I37,$C$3:$L$6,8,0)),IF(VLOOKUP(I37,$C$3:$L$6,5,0)=Variables!$B$5,((YEAR(B37)-YEAR($B$12))*12+MONTH(B37)-MONTH($B$12)),((YEAR(B37)-YEAR(VLOOKUP(I37,$C$3:$L$6,8,0)))*12+MONTH(B37)-MONTH(VLOOKUP(I37,$C$3:$L$6,8,0))))*VLOOKUP(I37,$C$3:$L$6,7,0),0)),""),"") -> 
B38: 2013-11-01 | C38: =IF(I37<>Variables!$B$1,IF(H37<>0,C37,I37),"") -> Chase Freedom | D38: -3886.517741 | E38: 50 | F38: =IF(C38<>"",IF(OR(VLOOKUP(C38,$C$3:$L$6,5,0)=Variables!$B$5,B38>VLOOKUP(C38,$C$3:$L$6,8,0)),-D38*VLOOKUP(C38,$C$3:$L$6,6,0)/12,0),"") -> 41.45618924 | G38: =IF(I38<>Variables!$B$1,IF(C38<>"",$I$9-E38-F38,""),-D38) -> 408.5438108 | H38: -3477.97393 | I38: =IF(C38<>"",IF(D38+$I$9-E38-F38>=0,IF(ISERROR(INDEX($C$3:$C$6,MATCH(C38,$C$3:$C$6,0)+1,0)),Variables!$B$1,INDEX($C$3:$C$6,MATCH(C38,$C$3:$C$6,0)+1,0)),""),"") ->  | J38: =IF(ISERROR(VLOOKUP(I38,$C$3:$L$6,5,0)),"",IF(OR(VLOOKUP(I38,$C$3:$L$6,5,0)=Variables!$B$5,B38>VLOOKUP(I38,$C$3:$L$6,8,0)),IF(VLOOKUP(I38,$C$3:$L$6,5,0)=Variables!$B$5,((YEAR(B38)-YEAR($B$12))*12+MONTH(B38)-MONTH($B$12)),((YEAR(B38)-YEAR(VLOOKUP(I38,$C$3:$L$6,8,0)))*12+MONTH(B38)-MONTH(VLOOKUP(I38,$C$3:$L$6,8,0))))*(VLOOKUP(I38,$C$3:$L$6,10,0)*VLOOKUP(I38,$C$3:$L$6,6,0)/12),0)) ->  | K38: =IF(C38<>"",IF(I38<>"",IF(ISERROR(VLOOKUP(I38,$C$3:$L$6,10,0)),"",VLOOKUP(I38,$C$3:$L$6,10,0)+J38+IF(OR(VLOOKUP(I38,$C$3:$L$6,5,0)=Variables!$B$5,B38>VLOOKUP(I38,$C$3:$L$6,8,0)),IF(VLOOKUP(I38,$C$3:$L$6,5,0)=Variables!$B$5,((YEAR(B38)-YEAR($B$12))*12+MONTH(B38)-MONTH($B$12)),((YEAR(B38)-YEAR(VLOOKUP(I38,$C$3:$L$6,8,0)))*12+MONTH(B38)-MONTH(VLOOKUP(I38,$C$3:$L$6,8,0))))*VLOOKUP(I38,$C$3:$L$6,7,0),0)),""),"") -> 
B39: 2013-12-01 | C39: =IF(I38<>Variables!$B$1,IF(H38<>0,C38,I38),"") -> Chase Freedom | D39: -3477.97393 | E39: 50 | F39: =IF(C39<>"",IF(OR(VLOOKUP(C39,$C$3:$L$6,5,0)=Variables!$B$5,B39>VLOOKUP(C39,$C$3:$L$6,8,0)),-D39*VLOOKUP(C39,$C$3:$L$6,6,0)/12,0),"") -> 37.09838859 | G39: =IF(I39<>Variables!$B$1,IF(C39<>"",$I$9-E39-F39,""),-D39) -> 412.9016114 | H39: -3065.072319 | I39: =IF(C39<>"",IF(D39+$I$9-E39-F39>=0,IF(ISERROR(INDEX($C$3:$C$6,MATCH(C39,$C$3:$C$6,0)+1,0)),Variables!$B$1,INDEX($C$3:$C$6,MATCH(C39,$C$3:$C$6,0)+1,0)),""),"") ->  | J39: =IF(ISERROR(VLOOKUP(I39,$C$3:$L$6,5,0)),"",IF(OR(VLOOKUP(I39,$C$3:$L$6,5,0)=Variables!$B$5,B39>VLOOKUP(I39,$C$3:$L$6,8,0)),IF(VLOOKUP(I39,$C$3:$L$6,5,0)=Variables!$B$5,((YEAR(B39)-YEAR($B$12))*12+MONTH(B39)-MONTH($B$12)),((YEAR(B39)-YEAR(VLOOKUP(I39,$C$3:$L$6,8,0)))*12+MONTH(B39)-MONTH(VLOOKUP(I39,$C$3:$L$6,8,0))))*(VLOOKUP(I39,$C$3:$L$6,10,0)*VLOOKUP(I39,$C$3:$L$6,6,0)/12),0)) ->  | K39: =IF(C39<>"",IF(I39<>"",IF(ISERROR(VLOOKUP(I39,$C$3:$L$6,10,0)),"",VLOOKUP(I39,$C$3:$L$6,10,0)+J39+IF(OR(VLOOKUP(I39,$C$3:$L$6,5,0)=Variables!$B$5,B39>VLOOKUP(I39,$C$3:$L$6,8,0)),IF(VLOOKUP(I39,$C$3:$L$6,5,0)=Variables!$B$5,((YEAR(B39)-YEAR($B$12))*12+MONTH(B39)-MONTH($B$12)),((YEAR(B39)-YEAR(VLOOKUP(I39,$C$3:$L$6,8,0)))*12+MONTH(B39)-MONTH(VLOOKUP(I39,$C$3:$L$6,8,0))))*VLOOKUP(I39,$C$3:$L$6,7,0),0)),""),"") -> 
B40: 2014-01-01 | C40: =IF(I39<>Variables!$B$1,IF(H39<>0,C39,I39),"") -> Chase Freedom | D40: -3065.072319 | E40: 50 | F40: =IF(C40<>"",IF(OR(VLOOKUP(C40,$C$3:$L$6,5,0)=Variables!$B$5,B40>VLOOKUP(C40,$C$3:$L$6,8,0)),-D40*VLOOKUP(C40,$C$3:$L$6,6,0)/12,0),"") -> 32.69410474 | G40: =IF(I40<>Variables!$B$1,IF(C40<>"",$I$9-E40-F40,""),-D40) -> 417.3058953 | H40: -2647.766424 | I40: =IF(C40<>"",IF(D40+$I$9-E40-F40>=0,IF(ISERROR(INDEX($C$3:$C$6,MATCH(C40,$C$3:$C$6,0)+1,0)),Variables!$B$1,INDEX($C$3:$C$6,MATCH(C40,$C$3:$C$6,0)+1,0)),""),"") ->  | J40: =IF(ISERROR(VLOOKUP(I40,$C$3:$L$6,5,0)),"",IF(OR(VLOOKUP(I40,$C$3:$L$6,5,0)=Variables!$B$5,B40>VLOOKUP(I40,$C$3:$L$6,8,0)),IF(VLOOKUP(I40,$C$3:$L$6,5,0)=Variables!$B$5,((YEAR(B40)-YEAR($B$12))*12+MONTH(B40)-MONTH($B$12)),((YEAR(B40)-YEAR(VLOOKUP(I40,$C$3:$L$6,8,0)))*12+MONTH(B40)-MONTH(VLOOKUP(I40,$C$3:$L$6,8,0))))*(VLOOKUP(I40,$C$3:$L$6,10,0)*VLOOKUP(I40,$C$3:$L$6,6,0)/12),0)) ->  | K40: =IF(C40<>"",IF(I40<>"",IF(ISERROR(VLOOKUP(I40,$C$3:$L$6,10,0)),"",VLOOKUP(I40,$C$3:$L$6,10,0)+J40+IF(OR(VLOOKUP(I40,$C$3:$L$6,5,0)=Variables!$B$5,B40>VLOOKUP(I40,$C$3:$L$6,8,0)),IF(VLOOKUP(I40,$C$3:$L$6,5,0)=Variables!$B$5,((YEAR(B40)-YEAR($B$12))*12+MONTH(B40)-MONTH($B$12)),((YEAR(B40)-YEAR(VLOOKUP(I40,$C$3:$L$6,8,0)))*12+MONTH(B40)-MONTH(VLOOKUP(I40,$C$3:$L$6,8,0))))*VLOOKUP(I40,$C$3:$L$6,7,0),0)),""),"") -> 
B41: 2014-02-01 | C41: =IF(I40<>Variables!$B$1,IF(H40<>0,C40,I40),"") -> Chase Freedom | D41: -2647.766424 | E41: 50 | F41: =IF(C41<>"",IF(OR(VLOOKUP(C41,$C$3:$L$6,5,0)=Variables!$B$5,B41>VLOOKUP(C41,$C$3:$L$6,8,0)),-D41*VLOOKUP(C41,$C$3:$L$6,6,0)/12,0),"") -> 28.24284185 | G41: =IF(I41<>Variables!$B$1,IF(C41<>"",$I$9-E41-F41,""),-D41) -> 421.7571581 | H41: -2226.009266 | I41: =IF(C41<>"",IF(D41+$I$9-E41-F41>=0,IF(ISERROR(INDEX($C$3:$C$6,MATCH(C41,$C$3:$C$6,0)+1,0)),Variables!$B$1,INDEX($C$3:$C$6,MATCH(C41,$C$3:$C$6,0)+1,0)),""),"") ->  | J41: =IF(ISERROR(VLOOKUP(I41,$C$3:$L$6,5,0)),"",IF(OR(VLOOKUP(I41,$C$3:$L$6,5,0)=Variables!$B$5,B41>VLOOKUP(I41,$C$3:$L$6,8,0)),IF(VLOOKUP(I41,$C$3:$L$6,5,0)=Variables!$B$5,((YEAR(B41)-YEAR($B$12))*12+MONTH(B41)-MONTH($B$12)),((YEAR(B41)-YEAR(VLOOKUP(I41,$C$3:$L$6,8,0)))*12+MONTH(B41)-MONTH(VLOOKUP(I41,$C$3:$L$6,8,0))))*(VLOOKUP(I41,$C$3:$L$6,10,0)*VLOOKUP(I41,$C$3:$L$6,6,0)/12),0)) ->  | K41: =IF(C41<>"",IF(I41<>"",IF(ISERROR(VLOOKUP(I41,$C$3:$L$6,10,0)),"",VLOOKUP(I41,$C$3:$L$6,10,0)+J41+IF(OR(VLOOKUP(I41,$C$3:$L$6,5,0)=Variables!$B$5,B41>VLOOKUP(I41,$C$3:$L$6,8,0)),IF(VLOOKUP(I41,$C$3:$L$6,5,0)=Variables!$B$5,((YEAR(B41)-YEAR($B$12))*12+MONTH(B41)-MONTH($B$12)),((YEAR(B41)-YEAR(VLOOKUP(I41,$C$3:$L$6,8,0)))*12+MONTH(B41)-MONTH(VLOOKUP(I41,$C$3:$L$6,8,0))))*VLOOKUP(I41,$C$3:$L$6,7,0),0)),""),"") -> 
B42: 2014-03-01 | C42: =IF(I41<>Variables!$B$1,IF(H41<>0,C41,I41),"") -> Chase Freedom | D42: -2226.009266 | E42: 50 | F42: =IF(C42<>"",IF(OR(VLOOKUP(C42,$C$3:$L$6,5,0)=Variables!$B$5,B42>VLOOKUP(C42,$C$3:$L$6,8,0)),-D42*VLOOKUP(C42,$C$3:$L$6,6,0)/12,0),"") -> 23.74409883 | G42: =IF(I42<>Variables!$B$1,IF(C42<>"",$I$9-E42-F42,""),-D42) -> 426.2559012 | H42: -1799.753364 | I42: =IF(C42<>"",IF(D42+$I$9-E42-F42>=0,IF(ISERROR(INDEX($C$3:$C$6,MATCH(C42,$C$3:$C$6,0)+1,0)),Variables!$B$1,INDEX($C$3:$C$6,MATCH(C42,$C$3:$C$6,0)+1,0)),""),"") ->  | J42: =IF(ISERROR(VLOOKUP(I42,$C$3:$L$6,5,0)),"",IF(OR(VLOOKUP(I42,$C$3:$L$6,5,0)=Variables!$B$5,B42>VLOOKUP(I42,$C$3:$L$6,8,0)),IF(VLOOKUP(I42,$C$3:$L$6,5,0)=Variables!$B$5,((YEAR(B42)-YEAR($B$12))*12+MONTH(B42)-MONTH($B$12)),((YEAR(B42)-YEAR(VLOOKUP(I42,$C$3:$L$6,8,0)))*12+MONTH(B42)-MONTH(VLOOKUP(I42,$C$3:$L$6,8,0))))*(VLOOKUP(I42,$C$3:$L$6,10,0)*VLOOKUP(I42,$C$3:$L$6,6,0)/12),0)) ->  | K42: =IF(C42<>"",IF(I42<>"",IF(ISERROR(VLOOKUP(I42,$C$3:$L$6,10,0)),"",VLOOKUP(I42,$C$3:$L$6,10,0)+J42+IF(OR(VLOOKUP(I42,$C$3:$L$6,5,0)=Variables!$B$5,B42>VLOOKUP(I42,$C$3:$L$6,8,0)),IF(VLOOKUP(I42,$C$3:$L$6,5,0)=Variables!$B$5,((YEAR(B42)-YEAR($B$12))*12+MONTH(B42)-MONTH($B$12)),((YEAR(B42)-YEAR(VLOOKUP(I42,$C$3:$L$6,8,0)))*12+MONTH(B42)-MONTH(VLOOKUP(I42,$C$3:$L$6,8,0))))*VLOOKUP(I42,$C$3:$L$6,7,0),0)),""),"") -> 
B43: 2014-04-01 | C43: =IF(I42<>Variables!$B$1,IF(H42<>0,C42,I42),"") -> Chase Freedom | D43: -1799.753364 | E43: 50 | F43: =IF(C43<>"",IF(OR(VLOOKUP(C43,$C$3:$L$6,5,0)=Variables!$B$5,B43>VLOOKUP(C43,$C$3:$L$6,8,0)),-D43*VLOOKUP(C43,$C$3:$L$6,6,0)/12,0),"") -> 19.19736922 | G43: =IF(I43<>Variables!$B$1,IF(C43<>"",$I$9-E43-F43,""),-D43) -> 430.8026308 | H43: -1368.950734 | I43: =IF(C43<>"",IF(D43+$I$9-E43-F43>=0,IF(ISERROR(INDEX($C$3:$C$6,MATCH(C43,$C$3:$C$6,0)+1,0)),Variables!$B$1,INDEX($C$3:$C$6,MATCH(C43,$C$3:$C$6,0)+1,0)),""),"") ->  | J43: =IF(ISERROR(VLOOKUP(I43,$C$3:$L$6,5,0)),"",IF(OR(VLOOKUP(I43,$C$3:$L$6,5,0)=Variables!$B$5,B43>VLOOKUP(I43,$C$3:$L$6,8,0)),IF(VLOOKUP(I43,$C$3:$L$6,5,0)=Variables!$B$5,((YEAR(B43)-YEAR($B$12))*12+MONTH(B43)-MONTH($B$12)),((YEAR(B43)-YEAR(VLOOKUP(I43,$C$3:$L$6,8,0)))*12+MONTH(B43)-MONTH(VLOOKUP(I43,$C$3:$L$6,8,0))))*(VLOOKUP(I43,$C$3:$L$6,10,0)*VLOOKUP(I43,$C$3:$L$6,6,0)/12),0)) ->  | K43: =IF(C43<>"",IF(I43<>"",IF(ISERROR(VLOOKUP(I43,$C$3:$L$6,10,0)),"",VLOOKUP(I43,$C$3:$L$6,10,0)+J43+IF(OR(VLOOKUP(I43,$C$3:$L$6,5,0)=Variables!$B$5,B43>VLOOKUP(I43,$C$3:$L$6,8,0)),IF(VLOOKUP(I43,$C$3:$L$6,5,0)=Variables!$B$5,((YEAR(B43)-YEAR($B$12))*12+MONTH(B43)-MONTH($B$12)),((YEAR(B43)-YEAR(VLOOKUP(I43,$C$3:$L$6,8,0)))*12+MONTH(B43)-MONTH(VLOOKUP(I43,$C$3:$L$6,8,0))))*VLOOKUP(I43,$C$3:$L$6,7,0),0)),""),"") -> 
B44: 2014-05-01 | C44: =IF(I43<>Variables!$B$1,IF(H43<>0,C43,I43),"") -> Chase Freedom | D44: -1368.950734 | E44: 50 | F44: =IF(C44<>"",IF(OR(VLOOKUP(C44,$C$3:$L$6,5,0)=Variables!$B$5,B44>VLOOKUP(C44,$C$3:$L$6,8,0)),-D44*VLOOKUP(C44,$C$3:$L$6,6,0)/12,0),"") -> 14.60214116 | G44: =IF(I44<>Variables!$B$1,IF(C44<>"",$I$9-E44-F44,""),-D44) -> 435.3978588 | H44: -933.5528747 | I44: =IF(C44<>"",IF(D44+$I$9-E44-F44>=0,IF(ISERROR(INDEX($C$3:$C$6,MATCH(C44,$C$3:$C$6,0)+1,0)),Variables!$B$1,INDEX($C$3:$C$6,MATCH(C44,$C$3:$C$6,0)+1,0)),""),"") ->  | J44: =IF(ISERROR(VLOOKUP(I44,$C$3:$L$6,5,0)),"",IF(OR(VLOOKUP(I44,$C$3:$L$6,5,0)=Variables!$B$5,B44>VLOOKUP(I44,$C$3:$L$6,8,0)),IF(VLOOKUP(I44,$C$3:$L$6,5,0)=Variables!$B$5,((YEAR(B44)-YEAR($B$12))*12+MONTH(B44)-MONTH($B$12)),((YEAR(B44)-YEAR(VLOOKUP(I44,$C$3:$L$6,8,0)))*12+MONTH(B44)-MONTH(VLOOKUP(I44,$C$3:$L$6,8,0))))*(VLOOKUP(I44,$C$3:$L$6,10,0)*VLOOKUP(I44,$C$3:$L$6,6,0)/12),0)) ->  | K44: =IF(C44<>"",IF(I44<>"",IF(ISERROR(VLOOKUP(I44,$C$3:$L$6,10,0)),"",VLOOKUP(I44,$C$3:$L$6,10,0)+J44+IF(OR(VLOOKUP(I44,$C$3:$L$6,5,0)=Variables!$B$5,B44>VLOOKUP(I44,$C$3:$L$6,8,0)),IF(VLOOKUP(I44,$C$3:$L$6,5,0)=Variables!$B$5,((YEAR(B44)-YEAR($B$12))*12+MONTH(B44)-MONTH($B$12)),((YEAR(B44)-YEAR(VLOOKUP(I44,$C$3:$L$6,8,0)))*12+MONTH(B44)-MONTH(VLOOKUP(I44,$C$3:$L$6,8,0))))*VLOOKUP(I44,$C$3:$L$6,7,0),0)),""),"") -> 
B45: 2014-06-01 | C45: =IF(I44<>Variables!$B$1,IF(H44<>0,C44,I44),"") -> Chase Freedom | D45: -933.5528747 | E45: 50 | F45: =IF(C45<>"",IF(OR(VLOOKUP(C45,$C$3:$L$6,5,0)=Variables!$B$5,B45>VLOOKUP(C45,$C$3:$L$6,8,0)),-D45*VLOOKUP(C45,$C$3:$L$6,6,0)/12,0),"") -> 9.95789733 | G45: =IF(I45<>Variables!$B$1,IF(C45<>"",$I$9-E45-F45,""),-D45) -> 440.0421027 | H45: -493.5107721 | I45: =IF(C45<>"",IF(D45+$I$9-E45-F45>=0,IF(ISERROR(INDEX($C$3:$C$6,MATCH(C45,$C$3:$C$6,0)+1,0)),Variables!$B$1,INDEX($C$3:$C$6,MATCH(C45,$C$3:$C$6,0)+1,0)),""),"") ->  | J45: =IF(ISERROR(VLOOKUP(I45,$C$3:$L$6,5,0)),"",IF(OR(VLOOKUP(I45,$C$3:$L$6,5,0)=Variables!$B$5,B45>VLOOKUP(I45,$C$3:$L$6,8,0)),IF(VLOOKUP(I45,$C$3:$L$6,5,0)=Variables!$B$5,((YEAR(B45)-YEAR($B$12))*12+MONTH(B45)-MONTH($B$12)),((YEAR(B45)-YEAR(VLOOKUP(I45,$C$3:$L$6,8,0)))*12+MONTH(B45)-MONTH(VLOOKUP(I45,$C$3:$L$6,8,0))))*(VLOOKUP(I45,$C$3:$L$6,10,0)*VLOOKUP(I45,$C$3:$L$6,6,0)/12),0)) ->  | K45: =IF(C45<>"",IF(I45<>"",IF(ISERROR(VLOOKUP(I45,$C$3:$L$6,10,0)),"",VLOOKUP(I45,$C$3:$L$6,10,0)+J45+IF(OR(VLOOKUP(I45,$C$3:$L$6,5,0)=Variables!$B$5,B45>VLOOKUP(I45,$C$3:$L$6,8,0)),IF(VLOOKUP(I45,$C$3:$L$6,5,0)=Variables!$B$5,((YEAR(B45)-YEAR($B$12))*12+MONTH(B45)-MONTH($B$12)),((YEAR(B45)-YEAR(VLOOKUP(I45,$C$3:$L$6,8,0)))*12+MONTH(B45)-MONTH(VLOOKUP(I45,$C$3:$L$6,8,0))))*VLOOKUP(I45,$C$3:$L$6,7,0),0)),""),"") -> 
B46: 2014-07-01 | C46: =IF(I45<>Variables!$B$1,IF(H45<>0,C45,I45),"") -> Chase Freedom | D46: -493.5107721 | E46: 50 | F46: =IF(C46<>"",IF(OR(VLOOKUP(C46,$C$3:$L$6,5,0)=Variables!$B$5,B46>VLOOKUP(C46,$C$3:$L$6,8,0)),-D46*VLOOKUP(C46,$C$3:$L$6,6,0)/12,0),"") -> 5.264114902 | G46: =IF(I46<>Variables!$B$1,IF(C46<>"",$I$9-E46-F46,""),-D46) -> 444.7358851 | H46: -48.77488696 | I46: =IF(C46<>"",IF(D46+$I$9-E46-F46>=0,IF(ISERROR(INDEX($C$3:$C$6,MATCH(C46,$C$3:$C$6,0)+1,0)),Variables!$B$1,INDEX($C$3:$C$6,MATCH(C46,$C$3:$C$6,0)+1,0)),""),"") ->  | J46: =IF(ISERROR(VLOOKUP(I46,$C$3:$L$6,5,0)),"",IF(OR(VLOOKUP(I46,$C$3:$L$6,5,0)=Variables!$B$5,B46>VLOOKUP(I46,$C$3:$L$6,8,0)),IF(VLOOKUP(I46,$C$3:$L$6,5,0)=Variables!$B$5,((YEAR(B46)-YEAR($B$12))*12+MONTH(B46)-MONTH($B$12)),((YEAR(B46)-YEAR(VLOOKUP(I46,$C$3:$L$6,8,0)))*12+MONTH(B46)-MONTH(VLOOKUP(I46,$C$3:$L$6,8,0))))*(VLOOKUP(I46,$C$3:$L$6,10,0)*VLOOKUP(I46,$C$3:$L$6,6,0)/12),0)) ->  | K46: =IF(C46<>"",IF(I46<>"",IF(ISERROR(VLOOKUP(I46,$C$3:$L$6,10,0)),"",VLOOKUP(I46,$C$3:$L$6,10,0)+J46+IF(OR(VLOOKUP(I46,$C$3:$L$6,5,0)=Variables!$B$5,B46>VLOOKUP(I46,$C$3:$L$6,8,0)),IF(VLOOKUP(I46,$C$3:$L$6,5,0)=Variables!$B$5,((YEAR(B46)-YEAR($B$12))*12+MONTH(B46)-MONTH($B$12)),((YEAR(B46)-YEAR(VLOOKUP(I46,$C$3:$L$6,8,0)))*12+MONTH(B46)-MONTH(VLOOKUP(I46,$C$3:$L$6,8,0))))*VLOOKUP(I46,$C$3:$L$6,7,0),0)),""),"") -> 
B47: 2014-08-01 | C47: =IF(I46<>Variables!$B$1,IF(H46<>0,C46,I46),"") -> Chase Freedom | D47: -48.77488696 | E47: 50 | F47: =IF(C47<>"",IF(OR(VLOOKUP(C47,$C$3:$L$6,5,0)=Variables!$B$5,B47>VLOOKUP(C47,$C$3:$L$6,8,0)),-D47*VLOOKUP(C47,$C$3:$L$6,6,0)/12,0),"") -> 0.5202654609 | G47: =IF(I47<>Variables!$B$1,IF(C47<>"",$I$9-E47-F47,""),-D47) -> 449.4797345 | H47: 0 | I47: =IF(C47<>"",IF(D47+$I$9-E47-F47>=0,IF(ISERROR(INDEX($C$3:$C$6,MATCH(C47,$C$3:$C$6,0)+1,0)),Variables!$B$1,INDEX($C$3:$C$6,MATCH(C47,$C$3:$C$6,0)+1,0)),""),"") -> Perkins School Loan | J47: =IF(ISERROR(VLOOKUP(I47,$C$3:$L$6,5,0)),"",IF(OR(VLOOKUP(I47,$C$3:$L$6,5,0)=Variables!$B$5,B47>VLOOKUP(I47,$C$3:$L$6,8,0)),IF(VLOOKUP(I47,$C$3:$L$6,5,0)=Variables!$B$5,((YEAR(B47)-YEAR($B$12))*12+MONTH(B47)-MONTH($B$12)),((YEAR(B47)-YEAR(VLOOKUP(I47,$C$3:$L$6,8,0)))*12+MONTH(B47)-MONTH(VLOOKUP(I47,$C$3:$L$6,8,0))))*(VLOOKUP(I47,$C$3:$L$6,10,0)*VLOOKUP(I47,$C$3:$L$6,6,0)/12),0)) -> -675 | K47: =IF(C47<>"",IF(I47<>"",IF(ISERROR(VLOOKUP(I47,$C$3:$L$6,10,0)),"",VLOOKUP(I47,$C$3:$L$6,10,0)+J47+IF(OR(VLOOKUP(I47,$C$3:$L$6,5,0)=Variables!$B$5,B47>VLOOKUP(I47,$C$3:$L$6,8,0)),IF(VLOOKUP(I47,$C$3:$L$6,5,0)=Variables!$B$5,((YEAR(B47)-YEAR($B$12))*12+MONTH(B47)-MONTH($B$12)),((YEAR(B47)-YEAR(VLOOKUP(I47,$C$3:$L$6,8,0)))*12+MONTH(B47)-MONTH(VLOOKUP(I47,$C$3:$L$6,8,0))))*VLOOKUP(I47,$C$3:$L$6,7,0),0)),""),"") -> -5325 | L47: -4924.295152
B48: 2014-09-01 | C48: =IF(I47<>Variables!$B$1,IF(H47<>0,C47,I47),"") -> Perkins School Loan | D48: -4924.295152 | E48: 0 | F48: =IF(C48<>"",IF(OR(VLOOKUP(C48,$C$3:$L$6,5,0)=Variables!$B$5,B48>VLOOKUP(C48,$C$3:$L$6,8,0)),-D48*VLOOKUP(C48,$C$3:$L$6,6,0)/12,0),"") -> 20.51789647 | G48: =IF(I48<>Variables!$B$1,IF(C48<>"",$I$9-E48-F48,""),-D48) -> 479.4821035 | H48: -4444.813049 | I48: =IF(C48<>"",IF(D48+$I$9-E48-F48>=0,IF(ISERROR(INDEX($C$3:$C$6,MATCH(C48,$C$3:$C$6,0)+1,0)),Variables!$B$1,INDEX($C$3:$C$6,MATCH(C48,$C$3:$C$6,0)+1,0)),""),"") ->  | J48: =IF(ISERROR(VLOOKUP(I48,$C$3:$L$6,5,0)),"",IF(OR(VLOOKUP(I48,$C$3:$L$6,5,0)=Variables!$B$5,B48>VLOOKUP(I48,$C$3:$L$6,8,0)),IF(VLOOKUP(I48,$C$3:$L$6,5,0)=Variables!$B$5,((YEAR(B48)-YEAR($B$12))*12+MONTH(B48)-MONTH($B$12)),((YEAR(B48)-YEAR(VLOOKUP(I48,$C$3:$L$6,8,0)))*12+MONTH(B48)-MONTH(VLOOKUP(I48,$C$3:$L$6,8,0))))*(VLOOKUP(I48,$C$3:$L$6,10,0)*VLOOKUP(I48,$C$3:$L$6,6,0)/12),0)) ->  | K48: =IF(C48<>"",IF(I48<>"",IF(ISERROR(VLOOKUP(I48,$C$3:$L$6,10,0)),"",VLOOKUP(I48,$C$3:$L$6,10,0)+J48+IF(OR(VLOOKUP(I48,$C$3:$L$6,5,0)=Variables!$B$5,B48>VLOOKUP(I48,$C$3:$L$6,8,0)),IF(VLOOKUP(I48,$C$3:$L$6,5,0)=Variables!$B$5,((YEAR(B48)-YEAR($B$12))*12+MONTH(B48)-MONTH($B$12)),((YEAR(B48)-YEAR(VLOOKUP(I48,$C$3:$L$6,8,0)))*12+MONTH(B48)-MONTH(VLOOKUP(I48,$C$3:$L$6,8,0))))*VLOOKUP(I48,$C$3:$L$6,7,0),0)),""),"") -> 
B49: 2014-10-01 | C49: =IF(I48<>Variables!$B$1,IF(H48<>0,C48,I48),"") -> Perkins School Loan | D49: -4444.813049 | E49: 0 | F49: =IF(C49<>"",IF(OR(VLOOKUP(C49,$C$3:$L$6,5,0)=Variables!$B$5,B49>VLOOKUP(C49,$C$3:$L$6,8,0)),-D49*VLOOKUP(C49,$C$3:$L$6,6,0)/12,0),"") -> 18.52005437 | G49: =IF(I49<>Variables!$B$1,IF(C49<>"",$I$9-E49-F49,""),-D49) -> 481.4799456 | H49: -3963.333103 | I49: =IF(C49<>"",IF(D49+$I$9-E49-F49>=0,IF(ISERROR(INDEX($C$3:$C$6,MATCH(C49,$C$3:$C$6,0)+1,0)),Variables!$B$1,INDEX($C$3:$C$6,MATCH(C49,$C$3:$C$6,0)+1,0)),""),"") ->  | J49: =IF(ISERROR(VLOOKUP(I49,$C$3:$L$6,5,0)),"",IF(OR(VLOOKUP(I49,$C$3:$L$6,5,0)=Variables!$B$5,B49>VLOOKUP(I49,$C$3:$L$6,8,0)),IF(VLOOKUP(I49,$C$3:$L$6,5,0)=Variables!$B$5,((YEAR(B49)-YEAR($B$12))*12+MONTH(B49)-MONTH($B$12)),((YEAR(B49)-YEAR(VLOOKUP(I49,$C$3:$L$6,8,0)))*12+MONTH(B49)-MONTH(VLOOKUP(I49,$C$3:$L$6,8,0))))*(VLOOKUP(I49,$C$3:$L$6,10,0)*VLOOKUP(I49,$C$3:$L$6,6,0)/12),0)) ->  | K49: =IF(C49<>"",IF(I49<>"",IF(ISERROR(VLOOKUP(I49,$C$3:$L$6,10,0)),"",VLOOKUP(I49,$C$3:$L$6,10,0)+J49+IF(OR(VLOOKUP(I49,$C$3:$L$6,5,0)=Variables!$B$5,B49>VLOOKUP(I49,$C$3:$L$6,8,0)),IF(VLOOKUP(I49,$C$3:$L$6,5,0)=Variables!$B$5,((YEAR(B49)-YEAR($B$12))*12+MONTH(B49)-MONTH($B$12)),((YEAR(B49)-YEAR(VLOOKUP(I49,$C$3:$L$6,8,0)))*12+MONTH(B49)-MONTH(VLOOKUP(I49,$C$3:$L$6,8,0))))*VLOOKUP(I49,$C$3:$L$6,7,0),0)),""),"") -> 
B50: 2014-11-01 | C50: =IF(I49<>Variables!$B$1,IF(H49<>0,C49,I49),"") -> Perkins School Loan | D50: -3963.333103 | E50: 0 | F50: =IF(C50<>"",IF(OR(VLOOKUP(C50,$C$3:$L$6,5,0)=Variables!$B$5,B50>VLOOKUP(C50,$C$3:$L$6,8,0)),-D50*VLOOKUP(C50,$C$3:$L$6,6,0)/12,0),"") -> 16.51388793 | G50: =IF(I50<>Variables!$B$1,IF(C50<>"",$I$9-E50-F50,""),-D50) -> 483.4861121 | H50: -3479.846991 | I50: =IF(C50<>"",IF(D50+$I$9-E50-F50>=0,IF(ISERROR(INDEX($C$3:$C$6,MATCH(C50,$C$3:$C$6,0)+1,0)),Variables!$B$1,INDEX($C$3:$C$6,MATCH(C50,$C$3:$C$6,0)+1,0)),""),"") ->  | J50: =IF(ISERROR(VLOOKUP(I50,$C$3:$L$6,5,0)),"",IF(OR(VLOOKUP(I50,$C$3:$L$6,5,0)=Variables!$B$5,B50>VLOOKUP(I50,$C$3:$L$6,8,0)),IF(VLOOKUP(I50,$C$3:$L$6,5,0)=Variables!$B$5,((YEAR(B50)-YEAR($B$12))*12+MONTH(B50)-MONTH($B$12)),((YEAR(B50)-YEAR(VLOOKUP(I50,$C$3:$L$6,8,0)))*12+MONTH(B50)-MONTH(VLOOKUP(I50,$C$3:$L$6,8,0))))*(VLOOKUP(I50,$C$3:$L$6,10,0)*VLOOKUP(I50,$C$3:$L$6,6,0)/12),0)) ->  | K50: =IF(C50<>"",IF(I50<>"",IF(ISERROR(VLOOKUP(I50,$C$3:$L$6,10,0)),"",VLOOKUP(I50,$C$3:$L$6,10,0)+J50+IF(OR(VLOOKUP(I50,$C$3:$L$6,5,0)=Variables!$B$5,B50>VLOOKUP(I50,$C$3:$L$6,8,0)),IF(VLOOKUP(I50,$C$3:$L$6,5,0)=Variables!$B$5,((YEAR(B50)-YEAR($B$12))*12+MONTH(B50)-MONTH($B$12)),((YEAR(B50)-YEAR(VLOOKUP(I50,$C$3:$L$6,8,0)))*12+MONTH(B50)-MONTH(VLOOKUP(I50,$C$3:$L$6,8,0))))*VLOOKUP(I50,$C$3:$L$6,7,0),0)),""),"") -> 
B51: 2014-12-01 | C51: =IF(I50<>Variables!$B$1,IF(H50<>0,C50,I50),"") -> Perkins School Loan | D51: -3479.846991 | E51: 0 | F51: =IF(C51<>"",IF(OR(VLOOKUP(C51,$C$3:$L$6,5,0)=Variables!$B$5,B51>VLOOKUP(C51,$C$3:$L$6,8,0)),-D51*VLOOKUP(C51,$C$3:$L$6,6,0)/12,0),"") -> 14.49936246 | G51: =IF(I51<>Variables!$B$1,IF(C51<>"",$I$9-E51-F51,""),-D51) -> 485.5006375 | H51: -2994.346354 | I51: =IF(C51<>"",IF(D51+$I$9-E51-F51>=0,IF(ISERROR(INDEX($C$3:$C$6,MATCH(C51,$C$3:$C$6,0)+1,0)),Variables!$B$1,INDEX($C$3:$C$6,MATCH(C51,$C$3:$C$6,0)+1,0)),""),"") ->  | J51: =IF(ISERROR(VLOOKUP(I51,$C$3:$L$6,5,0)),"",IF(OR(VLOOKUP(I51,$C$3:$L$6,5,0)=Variables!$B$5,B51>VLOOKUP(I51,$C$3:$L$6,8,0)),IF(VLOOKUP(I51,$C$3:$L$6,5,0)=Variables!$B$5,((YEAR(B51)-YEAR($B$12))*12+MONTH(B51)-MONTH($B$12)),((YEAR(B51)-YEAR(VLOOKUP(I51,$C$3:$L$6,8,0)))*12+MONTH(B51)-MONTH(VLOOKUP(I51,$C$3:$L$6,8,0))))*(VLOOKUP(I51,$C$3:$L$6,10,0)*VLOOKUP(I51,$C$3:$L$6,6,0)/12),0)) ->  | K51: =IF(C51<>"",IF(I51<>"",IF(ISERROR(VLOOKUP(I51,$C$3:$L$6,10,0)),"",VLOOKUP(I51,$C$3:$L$6,10,0)+J51+IF(OR(VLOOKUP(I51,$C$3:$L$6,5,0)=Variables!$B$5,B51>VLOOKUP(I51,$C$3:$L$6,8,0)),IF(VLOOKUP(I51,$C$3:$L$6,5,0)=Variables!$B$5,((YEAR(B51)-YEAR($B$12))*12+MONTH(B51)-MONTH($B$12)),((YEAR(B51)-YEAR(VLOOKUP(I51,$C$3:$L$6,8,0)))*12+MONTH(B51)-MONTH(VLOOKUP(I51,$C$3:$L$6,8,0))))*VLOOKUP(I51,$C$3:$L$6,7,0),0)),""),"") -> 
B52: 2015-01-01 | C52: =IF(I51<>Variables!$B$1,IF(H51<>0,C51,I51),"") -> Perkins School Loan | D52: -2994.346354 | E52: 0 | F52: =IF(C52<>"",IF(OR(VLOOKUP(C52,$C$3:$L$6,5,0)=Variables!$B$5,B52>VLOOKUP(C52,$C$3:$L$6,8,0)),-D52*VLOOKUP(C52,$C$3:$L$6,6,0)/12,0),"") -> 12.47644314 | G52: =IF(I52<>Variables!$B$1,IF(C52<>"",$I$9-E52-F52,""),-D52) -> 487.5235569 | H52: -2506.822797 | I52: =IF(C52<>"",IF(D52+$I$9-E52-F52>=0,IF(ISERROR(INDEX($C$3:$C$6,MATCH(C52,$C$3:$C$6,0)+1,0)),Variables!$B$1,INDEX($C$3:$C$6,MATCH(C52,$C$3:$C$6,0)+1,0)),""),"") ->  | J52: =IF(ISERROR(VLOOKUP(I52,$C$3:$L$6,5,0)),"",IF(OR(VLOOKUP(I52,$C$3:$L$6,5,0)=Variables!$B$5,B52>VLOOKUP(I52,$C$3:$L$6,8,0)),IF(VLOOKUP(I52,$C$3:$L$6,5,0)=Variables!$B$5,((YEAR(B52)-YEAR($B$12))*12+MONTH(B52)-MONTH($B$12)),((YEAR(B52)-YEAR(VLOOKUP(I52,$C$3:$L$6,8,0)))*12+MONTH(B52)-MONTH(VLOOKUP(I52,$C$3:$L$6,8,0))))*(VLOOKUP(I52,$C$3:$L$6,10,0)*VLOOKUP(I52,$C$3:$L$6,6,0)/12),0)) ->  | K52: =IF(C52<>"",IF(I52<>"",IF(ISERROR(VLOOKUP(I52,$C$3:$L$6,10,0)),"",VLOOKUP(I52,$C$3:$L$6,10,0)+J52+IF(OR(VLOOKUP(I52,$C$3:$L$6,5,0)=Variables!$B$5,B52>VLOOKUP(I52,$C$3:$L$6,8,0)),IF(VLOOKUP(I52,$C$3:$L$6,5,0)=Variables!$B$5,((YEAR(B52)-YEAR($B$12))*12+MONTH(B52)-MONTH($B$12)),((YEAR(B52)-YEAR(VLOOKUP(I52,$C$3:$L$6,8,0)))*12+MONTH(B52)-MONTH(VLOOKUP(I52,$C$3:$L$6,8,0))))*VLOOKUP(I52,$C$3:$L$6,7,0),0)),""),"") -> 
B53: 2015-02-01 | C53: =IF(I52<>Variables!$B$1,IF(H52<>0,C52,I52),"") -> Perkins School Loan | D53: -2506.822797 | E53: 0 | F53: =IF(C53<>"",IF(OR(VLOOKUP(C53,$C$3:$L$6,5,0)=Variables!$B$5,B53>VLOOKUP(C53,$C$3:$L$6,8,0)),-D53*VLOOKUP(C53,$C$3:$L$6,6,0)/12,0),"") -> 10.44509499 | G53: =IF(I53<>Variables!$B$1,IF(C53<>"",$I$9-E53-F53,""),-D53) -> 489.554905 | H53: -2017.267892 | I53: =IF(C53<>"",IF(D53+$I$9-E53-F53>=0,IF(ISERROR(INDEX($C$3:$C$6,MATCH(C53,$C$3:$C$6,0)+1,0)),Variables!$B$1,INDEX($C$3:$C$6,MATCH(C53,$C$3:$C$6,0)+1,0)),""),"") ->  | J53: =IF(ISERROR(VLOOKUP(I53,$C$3:$L$6,5,0)),"",IF(OR(VLOOKUP(I53,$C$3:$L$6,5,0)=Variables!$B$5,B53>VLOOKUP(I53,$C$3:$L$6,8,0)),IF(VLOOKUP(I53,$C$3:$L$6,5,0)=Variables!$B$5,((YEAR(B53)-YEAR($B$12))*12+MONTH(B53)-MONTH($B$12)),((YEAR(B53)-YEAR(VLOOKUP(I53,$C$3:$L$6,8,0)))*12+MONTH(B53)-MONTH(VLOOKUP(I53,$C$3:$L$6,8,0))))*(VLOOKUP(I53,$C$3:$L$6,10,0)*VLOOKUP(I53,$C$3:$L$6,6,0)/12),0)) ->  | K53: =IF(C53<>"",IF(I53<>"",IF(ISERROR(VLOOKUP(I53,$C$3:$L$6,10,0)),"",VLOOKUP(I53,$C$3:$L$6,10,0)+J53+IF(OR(VLOOKUP(I53,$C$3:$L$6,5,0)=Variables!$B$5,B53>VLOOKUP(I53,$C$3:$L$6,8,0)),IF(VLOOKUP(I53,$C$3:$L$6,5,0)=Variables!$B$5,((YEAR(B53)-YEAR($B$12))*12+MONTH(B53)-MONTH($B$12)),((YEAR(B53)-YEAR(VLOOKUP(I53,$C$3:$L$6,8,0)))*12+MONTH(B53)-MONTH(VLOOKUP(I53,$C$3:$L$6,8,0))))*VLOOKUP(I53,$C$3:$L$6,7,0),0)),""),"") -> 
B54: 2015-03-01 | C54: =IF(I53<>Variables!$B$1,IF(H53<>0,C53,I53),"") -> Perkins School Loan | D54: -2017.267892 | E54: 0 | F54: =IF(C54<>"",IF(OR(VLOOKUP(C54,$C$3:$L$6,5,0)=Variables!$B$5,B54>VLOOKUP(C54,$C$3:$L$6,8,0)),-D54*VLOOKUP(C54,$C$3:$L$6,6,0)/12,0),"") -> 8.405282882 | G54: =IF(I54<>Variables!$B$1,IF(C54<>"",$I$9-E54-F54,""),-D54) -> 491.5947171 | H54: -1525.673175 | I54: =IF(C54<>"",IF(D54+$I$9-E54-F54>=0,IF(ISERROR(INDEX($C$3:$C$6,MATCH(C54,$C$3:$C$6,0)+1,0)),Variables!$B$1,INDEX($C$3:$C$6,MATCH(C54,$C$3:$C$6,0)+1,0)),""),"") ->  | J54: =IF(ISERROR(VLOOKUP(I54,$C$3:$L$6,5,0)),"",IF(OR(VLOOKUP(I54,$C$3:$L$6,5,0)=Variables!$B$5,B54>VLOOKUP(I54,$C$3:$L$6,8,0)),IF(VLOOKUP(I54,$C$3:$L$6,5,0)=Variables!$B$5,((YEAR(B54)-YEAR($B$12))*12+MONTH(B54)-MONTH($B$12)),((YEAR(B54)-YEAR(VLOOKUP(I54,$C$3:$L$6,8,0)))*12+MONTH(B54)-MONTH(VLOOKUP(I54,$C$3:$L$6,8,0))))*(VLOOKUP(I54,$C$3:$L$6,10,0)*VLOOKUP(I54,$C$3:$L$6,6,0)/12),0)) ->  | K54: =IF(C54<>"",IF(I54<>"",IF(ISERROR(VLOOKUP(I54,$C$3:$L$6,10,0)),"",VLOOKUP(I54,$C$3:$L$6,10,0)+J54+IF(OR(VLOOKUP(I54,$C$3:$L$6,5,0)=Variables!$B$5,B54>VLOOKUP(I54,$C$3:$L$6,8,0)),IF(VLOOKUP(I54,$C$3:$L$6,5,0)=Variables!$B$5,((YEAR(B54)-YEAR($B$12))*12+MONTH(B54)-MONTH($B$12)),((YEAR(B54)-YEAR(VLOOKUP(I54,$C$3:$L$6,8,0)))*12+MONTH(B54)-MONTH(VLOOKUP(I54,$C$3:$L$6,8,0))))*VLOOKUP(I54,$C$3:$L$6,7,0),0)),""),"") -> 
B55: 2015-04-01 | C55: =IF(I54<>Variables!$B$1,IF(H54<>0,C54,I54),"") -> Perkins School Loan | D55: -1525.673175 | E55: 0 | F55: =IF(C55<>"",IF(OR(VLOOKUP(C55,$C$3:$L$6,5,0)=Variables!$B$5,B55>VLOOKUP(C55,$C$3:$L$6,8,0)),-D55*VLOOKUP(C55,$C$3:$L$6,6,0)/12,0),"") -> 6.356971561 | G55: =IF(I55<>Variables!$B$1,IF(C55<>"",$I$9-E55-F55,""),-D55) -> 493.6430284 | H55: -1032.030146 | I55: =IF(C55<>"",IF(D55+$I$9-E55-F55>=0,IF(ISERROR(INDEX($C$3:$C$6,MATCH(C55,$C$3:$C$6,0)+1,0)),Variables!$B$1,INDEX($C$3:$C$6,MATCH(C55,$C$3:$C$6,0)+1,0)),""),"") ->  | J55: =IF(ISERROR(VLOOKUP(I55,$C$3:$L$6,5,0)),"",IF(OR(VLOOKUP(I55,$C$3:$L$6,5,0)=Variables!$B$5,B55>VLOOKUP(I55,$C$3:$L$6,8,0)),IF(VLOOKUP(I55,$C$3:$L$6,5,0)=Variables!$B$5,((YEAR(B55)-YEAR($B$12))*12+MONTH(B55)-MONTH($B$12)),((YEAR(B55)-YEAR(VLOOKUP(I55,$C$3:$L$6,8,0)))*12+MONTH(B55)-MONTH(VLOOKUP(I55,$C$3:$L$6,8,0))))*(VLOOKUP(I55,$C$3:$L$6,10,0)*VLOOKUP(I55,$C$3:$L$6,6,0)/12),0)) ->  | K55: =IF(C55<>"",IF(I55<>"",IF(ISERROR(VLOOKUP(I55,$C$3:$L$6,10,0)),"",VLOOKUP(I55,$C$3:$L$6,10,0)+J55+IF(OR(VLOOKUP(I55,$C$3:$L$6,5,0)=Variables!$B$5,B55>VLOOKUP(I55,$C$3:$L$6,8,0)),IF(VLOOKUP(I55,$C$3:$L$6,5,0)=Variables!$B$5,((YEAR(B55)-YEAR($B$12))*12+MONTH(B55)-MONTH($B$12)),((YEAR(B55)-YEAR(VLOOKUP(I55,$C$3:$L$6,8,0)))*12+MONTH(B55)-MONTH(VLOOKUP(I55,$C$3:$L$6,8,0))))*VLOOKUP(I55,$C$3:$L$6,7,0),0)),""),"") -> 
B56: 2015-05-01 | C56: =IF(I55<>Variables!$B$1,IF(H55<>0,C55,I55),"") -> Perkins School Loan | D56: -1032.030146 | E56: 0 | F56: =IF(C56<>"",IF(OR(VLOOKUP(C56,$C$3:$L$6,5,0)=Variables!$B$5,B56>VLOOKUP(C56,$C$3:$L$6,8,0)),-D56*VLOOKUP(C56,$C$3:$L$6,6,0)/12,0),"") -> 4.300125609 | G56: =IF(I56<>Variables!$B$1,IF(C56<>"",$I$9-E56-F56,""),-D56) -> 495.6998744 | H56: -536.3302718 | I56: =IF(C56<>"",IF(D56+$I$9-E56-F56>=0,IF(ISERROR(INDEX($C$3:$C$6,MATCH(C56,$C$3:$C$6,0)+1,0)),Variables!$B$1,INDEX($C$3:$C$6,MATCH(C56,$C$3:$C$6,0)+1,0)),""),"") ->  | J56: =IF(ISERROR(VLOOKUP(I56,$C$3:$L$6,5,0)),"",IF(OR(VLOOKUP(I56,$C$3:$L$6,5,0)=Variables!$B$5,B56>VLOOKUP(I56,$C$3:$L$6,8,0)),IF(VLOOKUP(I56,$C$3:$L$6,5,0)=Variables!$B$5,((YEAR(B56)-YEAR($B$12))*12+MONTH(B56)-MONTH($B$12)),((YEAR(B56)-YEAR(VLOOKUP(I56,$C$3:$L$6,8,0)))*12+MONTH(B56)-MONTH(VLOOKUP(I56,$C$3:$L$6,8,0))))*(VLOOKUP(I56,$C$3:$L$6,10,0)*VLOOKUP(I56,$C$3:$L$6,6,0)/12),0)) ->  | K56: =IF(C56<>"",IF(I56<>"",IF(ISERROR(VLOOKUP(I56,$C$3:$L$6,10,0)),"",VLOOKUP(I56,$C$3:$L$6,10,0)+J56+IF(OR(VLOOKUP(I56,$C$3:$L$6,5,0)=Variables!$B$5,B56>VLOOKUP(I56,$C$3:$L$6,8,0)),IF(VLOOKUP(I56,$C$3:$L$6,5,0)=Variables!$B$5,((YEAR(B56)-YEAR($B$12))*12+MONTH(B56)-MONTH($B$12)),((YEAR(B56)-YEAR(VLOOKUP(I56,$C$3:$L$6,8,0)))*12+MONTH(B56)-MONTH(VLOOKUP(I56,$C$3:$L$6,8,0))))*VLOOKUP(I56,$C$3:$L$6,7,0),0)),""),"") -> 
B57: 2015-06-01 | C57: =IF(I56<>Variables!$B$1,IF(H56<>0,C56,I56),"") -> Perkins School Loan | D57: -536.3302718 | E57: 0 | F57: =IF(C57<>"",IF(OR(VLOOKUP(C57,$C$3:$L$6,5,0)=Variables!$B$5,B57>VLOOKUP(C57,$C$3:$L$6,8,0)),-D57*VLOOKUP(C57,$C$3:$L$6,6,0)/12,0),"") -> 2.234709466 | G57: =IF(I57<>Variables!$B$1,IF(C57<>"",$I$9-E57-F57,""),-D57) -> 497.7652905 | H57: -38.5649813 | I57: =IF(C57<>"",IF(D57+$I$9-E57-F57>=0,IF(ISERROR(INDEX($C$3:$C$6,MATCH(C57,$C$3:$C$6,0)+1,0)),Variables!$B$1,INDEX($C$3:$C$6,MATCH(C57,$C$3:$C$6,0)+1,0)),""),"") ->  | J57: =IF(ISERROR(VLOOKUP(I57,$C$3:$L$6,5,0)),"",IF(OR(VLOOKUP(I57,$C$3:$L$6,5,0)=Variables!$B$5,B57>VLOOKUP(I57,$C$3:$L$6,8,0)),IF(VLOOKUP(I57,$C$3:$L$6,5,0)=Variables!$B$5,((YEAR(B57)-YEAR($B$12))*12+MONTH(B57)-MONTH($B$12)),((YEAR(B57)-YEAR(VLOOKUP(I57,$C$3:$L$6,8,0)))*12+MONTH(B57)-MONTH(VLOOKUP(I57,$C$3:$L$6,8,0))))*(VLOOKUP(I57,$C$3:$L$6,10,0)*VLOOKUP(I57,$C$3:$L$6,6,0)/12),0)) ->  | K57: =IF(C57<>"",IF(I57<>"",IF(ISERROR(VLOOKUP(I57,$C$3:$L$6,10,0)),"",VLOOKUP(I57,$C$3:$L$6,10,0)+J57+IF(OR(VLOOKUP(I57,$C$3:$L$6,5,0)=Variables!$B$5,B57>VLOOKUP(I57,$C$3:$L$6,8,0)),IF(VLOOKUP(I57,$C$3:$L$6,5,0)=Variables!$B$5,((YEAR(B57)-YEAR($B$12))*12+MONTH(B57)-MONTH($B$12)),((YEAR(B57)-YEAR(VLOOKUP(I57,$C$3:$L$6,8,0)))*12+MONTH(B57)-MONTH(VLOOKUP(I57,$C$3:$L$6,8,0))))*VLOOKUP(I57,$C$3:$L$6,7,0),0)),""),"") -> 
B58: 2015-07-01 | C58: =IF(I57<>Variables!$B$1,IF(H57<>0,C57,I57),"") -> Perkins School Loan | D58: -38.5649813 | E58: 0 | F58: =IF(C58<>"",IF(OR(VLOOKUP(C58,$C$3:$L$6,5,0)=Variables!$B$5,B58>VLOOKUP(C58,$C$3:$L$6,8,0)),-D58*VLOOKUP(C58,$C$3:$L$6,6,0)/12,0),"") -> 0.1606874221 | G58: =IF(I58<>Variables!$B$1,IF(C58<>"",$I$9-E58-F58,""),-D58) -> 38.5649813 | H58: 0 | I58: =IF(C58<>"",IF(D58+$I$9-E58-F58>=0,IF(ISERROR(INDEX($C$3:$C$6,MATCH(C58,$C$3:$C$6,0)+1,0)),Variables!$B$1,INDEX($C$3:$C$6,MATCH(C58,$C$3:$C$6,0)+1,0)),""),"") -> DEBT FREE! | J58: =IF(ISERROR(VLOOKUP(I58,$C$3:$L$6,5,0)),"",IF(OR(VLOOKUP(I58,$C$3:$L$6,5,0)=Variables!$B$5,B58>VLOOKUP(I58,$C$3:$L$6,8,0)),IF(VLOOKUP(I58,$C$3:$L$6,5,0)=Variables!$B$5,((YEAR(B58)-YEAR($B$12))*12+MONTH(B58)-MONTH($B$12)),((YEAR(B58)-YEAR(VLOOKUP(I58,$C$3:$L$6,8,0)))*12+MONTH(B58)-MONTH(VLOOKUP(I58,$C$3:$L$6,8,0))))*(VLOOKUP(I58,$C$3:$L$6,10,0)*VLOOKUP(I58,$C$3:$L$6,6,0)/12),0)) ->  | K58: =IF(C58<>"",IF(I58<>"",IF(ISERROR(VLOOKUP(I58,$C$3:$L$6,10,0)),"",VLOOKUP(I58,$C$3:$L$6,10,0)+J58+IF(OR(VLOOKUP(I58,$C$3:$L$6,5,0)=Variables!$B$5,B58>VLOOKUP(I58,$C$3:$L$6,8,0)),IF(VLOOKUP(I58,$C$3:$L$6,5,0)=Variables!$B$5,((YEAR(B58)-YEAR($B$12))*12+MONTH(B58)-MONTH($B$12)),((YEAR(B58)-YEAR(VLOOKUP(I58,$C$3:$L$6,8,0)))*12+MONTH(B58)-MONTH(VLOOKUP(I58,$C$3:$L$6,8,0))))*VLOOKUP(I58,$C$3:$L$6,7,0),0)),""),"") -> 
C59: =IF(I58<>Variables!$B$1,IF(H58<>0,C58,I58),"") ->  | F59: =IF(C59<>"",IF(OR(VLOOKUP(C59,$C$3:$L$6,5,0)=Variables!$B$5,B59>VLOOKUP(C59,$C$3:$L$6,8,0)),-D59*VLOOKUP(C59,$C$3:$L$6,6,0)/12,0),"") ->  | G59: =IF(I59<>Variables!$B$1,IF(C59<>"",$I$9-E59-F59,""),-D59) ->  | I59: =IF(C59<>"",IF(D59+$I$9-E59-F59>=0,IF(ISERROR(INDEX($C$3:$C$6,MATCH(C59,$C$3:$C$6,0)+1,0)),Variables!$B$1,INDEX($C$3:$C$6,MATCH(C59,$C$3:$C$6,0)+1,0)),""),"") ->  | J59: =IF(ISERROR(VLOOKUP(I59,$C$3:$L$6,5,0)),"",IF(OR(VLOOKUP(I59,$C$3:$L$6,5,0)=Variables!$B$5,B59>VLOOKUP(I59,$C$3:$L$6,8,0)),IF(VLOOKUP(I59,$C$3:$L$6,5,0)=Variables!$B$5,((YEAR(B59)-YEAR($B$12))*12+MONTH(B59)-MONTH($B$12)),((YEAR(B59)-YEAR(VLOOKUP(I59,$C$3:$L$6,8,0)))*12+MONTH(B59)-MONTH(VLOOKUP(I59,$C$3:$L$6,8,0))))*(VLOOKUP(I59,$C$3:$L$6,10,0)*VLOOKUP(I59,$C$3:$L$6,6,0)/12),0)) ->  | K59: =IF(C59<>"",IF(I59<>"",IF(ISERROR(VLOOKUP(I59,$C$3:$L$6,10,0)),"",VLOOKUP(I59,$C$3:$L$6,10,0)+J59+IF(OR(VLOOKUP(I59,$C$3:$L$6,5,0)=Variables!$B$5,B59>VLOOKUP(I59,$C$3:$L$6,8,0)),IF(VLOOKUP(I59,$C$3:$L$6,5,0)=Variables!$B$5,((YEAR(B59)-YEAR($B$12))*12+MONTH(B59)-MONTH($B$12)),((YEAR(B59)-YEAR(VLOOKUP(I59,$C$3:$L$6,8,0)))*12+MONTH(B59)-MONTH(VLOOKUP(I59,$C$3:$L$6,8,0))))*VLOOKUP(I59,$C$3:$L$6,7,0),0)),""),"") -> 
C60: =IF(I59<>Variables!$B$1,IF(H59<>0,C59,I59),"") ->  | F60: =IF(C60<>"",IF(OR(VLOOKUP(C60,$C$3:$L$6,5,0)=Variables!$B$5,B60>VLOOKUP(C60,$C$3:$L$6,8,0)),-D60*VLOOKUP(C60,$C$3:$L$6,6,0)/12,0),"") ->  | G60: =IF(I60<>Variables!$B$1,IF(C60<>"",$I$9-E60-F60,""),-D60) ->  | I60: =IF(C60<>"",IF(D60+$I$9-E60-F60>=0,IF(ISERROR(INDEX($C$3:$C$6,MATCH(C60,$C$3:$C$6,0)+1,0)),Variables!$B$1,INDEX($C$3:$C$6,MATCH(C60,$C$3:$C$6,0)+1,0)),""),"") ->  | J60: =IF(ISERROR(VLOOKUP(I60,$C$3:$L$6,5,0)),"",IF(OR(VLOOKUP(I60,$C$3:$L$6,5,0)=Variables!$B$5,B60>VLOOKUP(I60,$C$3:$L$6,8,0)),IF(VLOOKUP(I60,$C$3:$L$6,5,0)=Variables!$B$5,((YEAR(B60)-YEAR($B$12))*12+MONTH(B60)-MONTH($B$12)),((YEAR(B60)-YEAR(VLOOKUP(I60,$C$3:$L$6,8,0)))*12+MONTH(B60)-MONTH(VLOOKUP(I60,$C$3:$L$6,8,0))))*(VLOOKUP(I60,$C$3:$L$6,10,0)*VLOOKUP(I60,$C$3:$L$6,6,0)/12),0)) ->  | K60: =IF(C60<>"",IF(I60<>"",IF(ISERROR(VLOOKUP(I60,$C$3:$L$6,10,0)),"",VLOOKUP(I60,$C$3:$L$6,10,0)+J60+IF(OR(VLOOKUP(I60,$C$3:$L$6,5,0)=Variables!$B$5,B60>VLOOKUP(I60,$C$3:$L$6,8,0)),IF(VLOOKUP(I60,$C$3:$L$6,5,0)=Variables!$B$5,((YEAR(B60)-YEAR($B$12))*12+MONTH(B60)-MONTH($B$12)),((YEAR(B60)-YEAR(VLOOKUP(I60,$C$3:$L$6,8,0)))*12+MONTH(B60)-MONTH(VLOOKUP(I60,$C$3:$L$6,8,0))))*VLOOKUP(I60,$C$3:$L$6,7,0),0)),""),"") -> 
C61: =IF(I60<>Variables!$B$1,IF(H60<>0,C60,I60),"") ->  | F61: =IF(C61<>"",IF(OR(VLOOKUP(C61,$C$3:$L$6,5,0)=Variables!$B$5,B61>VLOOKUP(C61,$C$3:$L$6,8,0)),-D61*VLOOKUP(C61,$C$3:$L$6,6,0)/12,0),"") ->  | G61: =IF(I61<>Variables!$B$1,IF(C61<>"",$I$9-E61-F61,""),-D61) ->  | I61: =IF(C61<>"",IF(D61+$I$9-E61-F61>=0,IF(ISERROR(INDEX($C$3:$C$6,MATCH(C61,$C$3:$C$6,0)+1,0)),Variables!$B$1,INDEX($C$3:$C$6,MATCH(C61,$C$3:$C$6,0)+1,0)),""),"") ->  | J61: =IF(ISERROR(VLOOKUP(I61,$C$3:$L$6,5,0)),"",IF(OR(VLOOKUP(I61,$C$3:$L$6,5,0)=Variables!$B$5,B61>VLOOKUP(I61,$C$3:$L$6,8,0)),IF(VLOOKUP(I61,$C$3:$L$6,5,0)=Variables!$B$5,((YEAR(B61)-YEAR($B$12))*12+MONTH(B61)-MONTH($B$12)),((YEAR(B61)-YEAR(VLOOKUP(I61,$C$3:$L$6,8,0)))*12+MONTH(B61)-MONTH(VLOOKUP(I61,$C$3:$L$6,8,0))))*(VLOOKUP(I61,$C$3:$L$6,10,0)*VLOOKUP(I61,$C$3:$L$6,6,0)/12),0)) ->  | K61: =IF(C61<>"",IF(I61<>"",IF(ISERROR(VLOOKUP(I61,$C$3:$L$6,10,0)),"",VLOOKUP(I61,$C$3:$L$6,10,0)+J61+IF(OR(VLOOKUP(I61,$C$3:$L$6,5,0)=Variables!$B$5,B61>VLOOKUP(I61,$C$3:$L$6,8,0)),IF(VLOOKUP(I61,$C$3:$L$6,5,0)=Variables!$B$5,((YEAR(B61)-YEAR($B$12))*12+MONTH(B61)-MONTH($B$12)),((YEAR(B61)-YEAR(VLOOKUP(I61,$C$3:$L$6,8,0)))*12+MONTH(B61)-MONTH(VLOOKUP(I61,$C$3:$L$6,8,0))))*VLOOKUP(I61,$C$3:$L$6,7,0),0)),""),"") -> 
C62: =IF(I61<>Variables!$B$1,IF(H61<>0,C61,I61),"") ->  | F62: =IF(C62<>"",IF(OR(VLOOKUP(C62,$C$3:$L$6,5,0)=Variables!$B$5,B62>VLOOKUP(C62,$C$3:$L$6,8,0)),-D62*VLOOKUP(C62,$C$3:$L$6,6,0)/12,0),"") ->  | G62: =IF(I62<>Variables!$B$1,IF(C62<>"",$I$9-E62-F62,""),-D62) ->  | I62: =IF(C62<>"",IF(D62+$I$9-E62-F62>=0,IF(ISERROR(INDEX($C$3:$C$6,MATCH(C62,$C$3:$C$6,0)+1,0)),Variables!$B$1,INDEX($C$3:$C$6,MATCH(C62,$C$3:$C$6,0)+1,0)),""),"") ->  | J62: =IF(ISERROR(VLOOKUP(I62,$C$3:$L$6,5,0)),"",IF(OR(VLOOKUP(I62,$C$3:$L$6,5,0)=Variables!$B$5,B62>VLOOKUP(I62,$C$3:$L$6,8,0)),IF(VLOOKUP(I62,$C$3:$L$6,5,0)=Variables!$B$5,((YEAR(B62)-YEAR($B$12))*12+MONTH(B62)-MONTH($B$12)),((YEAR(B62)-YEAR(VLOOKUP(I62,$C$3:$L$6,8,0)))*12+MONTH(B62)-MONTH(VLOOKUP(I62,$C$3:$L$6,8,0))))*(VLOOKUP(I62,$C$3:$L$6,10,0)*VLOOKUP(I62,$C$3:$L$6,6,0)/12),0)) ->  | K62: =IF(C62<>"",IF(I62<>"",IF(ISERROR(VLOOKUP(I62,$C$3:$L$6,10,0)),"",VLOOKUP(I62,$C$3:$L$6,10,0)+J62+IF(OR(VLOOKUP(I62,$C$3:$L$6,5,0)=Variables!$B$5,B62>VLOOKUP(I62,$C$3:$L$6,8,0)),IF(VLOOKUP(I62,$C$3:$L$6,5,0)=Variables!$B$5,((YEAR(B62)-YEAR($B$12))*12+MONTH(B62)-MONTH($B$12)),((YEAR(B62)-YEAR(VLOOKUP(I62,$C$3:$L$6,8,0)))*12+MONTH(B62)-MONTH(VLOOKUP(I62,$C$3:$L$6,8,0))))*VLOOKUP(I62,$C$3:$L$6,7,0),0)),""),"") -> 
C63: =IF(I62<>Variables!$B$1,IF(H62<>0,C62,I62),"") ->  | F63: =IF(C63<>"",IF(OR(VLOOKUP(C63,$C$3:$L$6,5,0)=Variables!$B$5,B63>VLOOKUP(C63,$C$3:$L$6,8,0)),-D63*VLOOKUP(C63,$C$3:$L$6,6,0)/12,0),"") ->  | G63: =IF(I63<>Variables!$B$1,IF(C63<>"",$I$9-E63-F63,""),-D63) ->  | I63: =IF(C63<>"",IF(D63+$I$9-E63-F63>=0,IF(ISERROR(INDEX($C$3:$C$6,MATCH(C63,$C$3:$C$6,0)+1,0)),Variables!$B$1,INDEX($C$3:$C$6,MATCH(C63,$C$3:$C$6,0)+1,0)),""),"") ->  | J63: =IF(ISERROR(VLOOKUP(I63,$C$3:$L$6,5,0)),"",IF(OR(VLOOKUP(I63,$C$3:$L$6,5,0)=Variables!$B$5,B63>VLOOKUP(I63,$C$3:$L$6,8,0)),IF(VLOOKUP(I63,$C$3:$L$6,5,0)=Variables!$B$5,((YEAR(B63)-YEAR($B$12))*12+MONTH(B63)-MONTH($B$12)),((YEAR(B63)-YEAR(VLOOKUP(I63,$C$3:$L$6,8,0)))*12+MONTH(B63)-MONTH(VLOOKUP(I63,$C$3:$L$6,8,0))))*(VLOOKUP(I63,$C$3:$L$6,10,0)*VLOOKUP(I63,$C$3:$L$6,6,0)/12),0)) ->  | K63: =IF(C63<>"",IF(I63<>"",IF(ISERROR(VLOOKUP(I63,$C$3:$L$6,10,0)),"",VLOOKUP(I63,$C$3:$L$6,10,0)+J63+IF(OR(VLOOKUP(I63,$C$3:$L$6,5,0)=Variables!$B$5,B63>VLOOKUP(I63,$C$3:$L$6,8,0)),IF(VLOOKUP(I63,$C$3:$L$6,5,0)=Variables!$B$5,((YEAR(B63)-YEAR($B$12))*12+MONTH(B63)-MONTH($B$12)),((YEAR(B63)-YEAR(VLOOKUP(I63,$C$3:$L$6,8,0)))*12+MONTH(B63)-MONTH(VLOOKUP(I63,$C$3:$L$6,8,0))))*VLOOKUP(I63,$C$3:$L$6,7,0),0)),""),"") -> 
C64: =IF(I63<>Variables!$B$1,IF(H63<>0,C63,I63),"") ->  | F64: =IF(C64<>"",IF(OR(VLOOKUP(C64,$C$3:$L$6,5,0)=Variables!$B$5,B64>VLOOKUP(C64,$C$3:$L$6,8,0)),-D64*VLOOKUP(C64,$C$3:$L$6,6,0)/12,0),"") ->  | G64: =IF(I64<>Variables!$B$1,IF(C64<>"",$I$9-E64-F64,""),-D64) ->  | I64: =IF(C64<>"",IF(D64+$I$9-E64-F64>=0,IF(ISERROR(INDEX($C$3:$C$6,MATCH(C64,$C$3:$C$6,0)+1,0)),Variables!$B$1,INDEX($C$3:$C$6,MATCH(C64,$C$3:$C$6,0)+1,0)),""),"") ->  | J64: =IF(ISERROR(VLOOKUP(I64,$C$3:$L$6,5,0)),"",IF(OR(VLOOKUP(I64,$C$3:$L$6,5,0)=Variables!$B$5,B64>VLOOKUP(I64,$C$3:$L$6,8,0)),IF(VLOOKUP(I64,$C$3:$L$6,5,0)=Variables!$B$5,((YEAR(B64)-YEAR($B$12))*12+MONTH(B64)-MONTH($B$12)),((YEAR(B64)-YEAR(VLOOKUP(I64,$C$3:$L$6,8,0)))*12+MONTH(B64)-MONTH(VLOOKUP(I64,$C$3:$L$6,8,0))))*(VLOOKUP(I64,$C$3:$L$6,10,0)*VLOOKUP(I64,$C$3:$L$6,6,0)/12),0)) ->  | K64: =IF(C64<>"",IF(I64<>"",IF(ISERROR(VLOOKUP(I64,$C$3:$L$6,10,0)),"",VLOOKUP(I64,$C$3:$L$6,10,0)+J64+IF(OR(VLOOKUP(I64,$C$3:$L$6,5,0)=Variables!$B$5,B64>VLOOKUP(I64,$C$3:$L$6,8,0)),IF(VLOOKUP(I64,$C$3:$L$6,5,0)=Variables!$B$5,((YEAR(B64)-YEAR($B$12))*12+MONTH(B64)-MONTH($B$12)),((YEAR(B64)-YEAR(VLOOKUP(I64,$C$3:$L$6,8,0)))*12+MONTH(B64)-MONTH(VLOOKUP(I64,$C$3:$L$6,8,0))))*VLOOKUP(I64,$C$3:$L$6,7,0),0)),""),"") -> 
C65: =IF(I64<>Variables!$B$1,IF(H64<>0,C64,I64),"") ->  | F65: =IF(C65<>"",IF(OR(VLOOKUP(C65,$C$3:$L$6,5,0)=Variables!$B$5,B65>VLOOKUP(C65,$C$3:$L$6,8,0)),-D65*VLOOKUP(C65,$C$3:$L$6,6,0)/12,0),"") ->  | G65: =IF(I65<>Variables!$B$1,IF(C65<>"",$I$9-E65-F65,""),-D65) ->  | I65: =IF(C65<>"",IF(D65+$I$9-E65-F65>=0,IF(ISERROR(INDEX($C$3:$C$6,MATCH(C65,$C$3:$C$6,0)+1,0)),Variables!$B$1,INDEX($C$3:$C$6,MATCH(C65,$C$3:$C$6,0)+1,0)),""),"") ->  | J65: =IF(ISERROR(VLOOKUP(I65,$C$3:$L$6,5,0)),"",IF(OR(VLOOKUP(I65,$C$3:$L$6,5,0)=Variables!$B$5,B65>VLOOKUP(I65,$C$3:$L$6,8,0)),IF(VLOOKUP(I65,$C$3:$L$6,5,0)=Variables!$B$5,((YEAR(B65)-YEAR($B$12))*12+MONTH(B65)-MONTH($B$12)),((YEAR(B65)-YEAR(VLOOKUP(I65,$C$3:$L$6,8,0)))*12+MONTH(B65)-MONTH(VLOOKUP(I65,$C$3:$L$6,8,0))))*(VLOOKUP(I65,$C$3:$L$6,10,0)*VLOOKUP(I65,$C$3:$L$6,6,0)/12),0)) ->  | K65: =IF(C65<>"",IF(I65<>"",IF(ISERROR(VLOOKUP(I65,$C$3:$L$6,10,0)),"",VLOOKUP(I65,$C$3:$L$6,10,0)+J65+IF(OR(VLOOKUP(I65,$C$3:$L$6,5,0)=Variables!$B$5,B65>VLOOKUP(I65,$C$3:$L$6,8,0)),IF(VLOOKUP(I65,$C$3:$L$6,5,0)=Variables!$B$5,((YEAR(B65)-YEAR($B$12))*12+MONTH(B65)-MONTH($B$12)),((YEAR(B65)-YEAR(VLOOKUP(I65,$C$3:$L$6,8,0)))*12+MONTH(B65)-MONTH(VLOOKUP(I65,$C$3:$L$6,8,0))))*VLOOKUP(I65,$C$3:$L$6,7,0),0)),""),"") -> 
C66: =IF(I65<>Variables!$B$1,IF(H65<>0,C65,I65),"") ->  | F66: =IF(C66<>"",IF(OR(VLOOKUP(C66,$C$3:$L$6,5,0)=Variables!$B$5,B66>VLOOKUP(C66,$C$3:$L$6,8,0)),-D66*VLOOKUP(C66,$C$3:$L$6,6,0)/12,0),"") ->  | G66: =IF(I66<>Variables!$B$1,IF(C66<>"",$I$9-E66-F66,""),-D66) ->  | I66: =IF(C66<>"",IF(D66+$I$9-E66-F66>=0,IF(ISERROR(INDEX($C$3:$C$6,MATCH(C66,$C$3:$C$6,0)+1,0)),Variables!$B$1,INDEX($C$3:$C$6,MATCH(C66,$C$3:$C$6,0)+1,0)),""),"") ->  | J66: =IF(ISERROR(VLOOKUP(I66,$C$3:$L$6,5,0)),"",IF(OR(VLOOKUP(I66,$C$3:$L$6,5,0)=Variables!$B$5,B66>VLOOKUP(I66,$C$3:$L$6,8,0)),IF(VLOOKUP(I66,$C$3:$L$6,5,0)=Variables!$B$5,((YEAR(B66)-YEAR($B$12))*12+MONTH(B66)-MONTH($B$12)),((YEAR(B66)-YEAR(VLOOKUP(I66,$C$3:$L$6,8,0)))*12+MONTH(B66)-MONTH(VLOOKUP(I66,$C$3:$L$6,8,0))))*(VLOOKUP(I66,$C$3:$L$6,10,0)*VLOOKUP(I66,$C$3:$L$6,6,0)/12),0)) ->  | K66: =IF(C66<>"",IF(I66<>"",IF(ISERROR(VLOOKUP(I66,$C$3:$L$6,10,0)),"",VLOOKUP(I66,$C$3:$L$6,10,0)+J66+IF(OR(VLOOKUP(I66,$C$3:$L$6,5,0)=Variables!$B$5,B66>VLOOKUP(I66,$C$3:$L$6,8,0)),IF(VLOOKUP(I66,$C$3:$L$6,5,0)=Variables!$B$5,((YEAR(B66)-YEAR($B$12))*12+MONTH(B66)-MONTH($B$12)),((YEAR(B66)-YEAR(VLOOKUP(I66,$C$3:$L$6,8,0)))*12+MONTH(B66)-MONTH(VLOOKUP(I66,$C$3:$L$6,8,0))))*VLOOKUP(I66,$C$3:$L$6,7,0),0)),""),"") -> 
C67: =IF(I66<>Variables!$B$1,IF(H66<>0,C66,I66),"") ->  | F67: =IF(C67<>"",IF(OR(VLOOKUP(C67,$C$3:$L$6,5,0)=Variables!$B$5,B67>VLOOKUP(C67,$C$3:$L$6,8,0)),-D67*VLOOKUP(C67,$C$3:$L$6,6,0)/12,0),"") ->  | G67: =IF(I67<>Variables!$B$1,IF(C67<>"",$I$9-E67-F67,""),-D67) ->  | I67: =IF(C67<>"",IF(D67+$I$9-E67-F67>=0,IF(ISERROR(INDEX($C$3:$C$6,MATCH(C67,$C$3:$C$6,0)+1,0)),Variables!$B$1,INDEX($C$3:$C$6,MATCH(C67,$C$3:$C$6,0)+1,0)),""),"") ->  | J67: =IF(ISERROR(VLOOKUP(I67,$C$3:$L$6,5,0)),"",IF(OR(VLOOKUP(I67,$C$3:$L$6,5,0)=Variables!$B$5,B67>VLOOKUP(I67,$C$3:$L$6,8,0)),IF(VLOOKUP(I67,$C$3:$L$6,5,0)=Variables!$B$5,((YEAR(B67)-YEAR($B$12))*12+MONTH(B67)-MONTH($B$12)),((YEAR(B67)-YEAR(VLOOKUP(I67,$C$3:$L$6,8,0)))*12+MONTH(B67)-MONTH(VLOOKUP(I67,$C$3:$L$6,8,0))))*(VLOOKUP(I67,$C$3:$L$6,10,0)*VLOOKUP(I67,$C$3:$L$6,6,0)/12),0)) ->  | K67: =IF(C67<>"",IF(I67<>"",IF(ISERROR(VLOOKUP(I67,$C$3:$L$6,10,0)),"",VLOOKUP(I67,$C$3:$L$6,10,0)+J67+IF(OR(VLOOKUP(I67,$C$3:$L$6,5,0)=Variables!$B$5,B67>VLOOKUP(I67,$C$3:$L$6,8,0)),IF(VLOOKUP(I67,$C$3:$L$6,5,0)=Variables!$B$5,((YEAR(B67)-YEAR($B$12))*12+MONTH(B67)-MONTH($B$12)),((YEAR(B67)-YEAR(VLOOKUP(I67,$C$3:$L$6,8,0)))*12+MONTH(B67)-MONTH(VLOOKUP(I67,$C$3:$L$6,8,0))))*VLOOKUP(I67,$C$3:$L$6,7,0),0)),""),"") -> 
C68: =IF(I67<>Variables!$B$1,IF(H67<>0,C67,I67),"") ->  | F68: =IF(C68<>"",IF(OR(VLOOKUP(C68,$C$3:$L$6,5,0)=Variables!$B$5,B68>VLOOKUP(C68,$C$3:$L$6,8,0)),-D68*VLOOKUP(C68,$C$3:$L$6,6,0)/12,0),"") ->  | G68: =IF(I68<>Variables!$B$1,IF(C68<>"",$I$9-E68-F68,""),-D68) ->  | I68: =IF(C68<>"",IF(D68+$I$9-E68-F68>=0,IF(ISERROR(INDEX($C$3:$C$6,MATCH(C68,$C$3:$C$6,0)+1,0)),Variables!$B$1,INDEX($C$3:$C$6,MATCH(C68,$C$3:$C$6,0)+1,0)),""),"") ->  | J68: =IF(ISERROR(VLOOKUP(I68,$C$3:$L$6,5,0)),"",IF(OR(VLOOKUP(I68,$C$3:$L$6,5,0)=Variables!$B$5,B68>VLOOKUP(I68,$C$3:$L$6,8,0)),IF(VLOOKUP(I68,$C$3:$L$6,5,0)=Variables!$B$5,((YEAR(B68)-YEAR($B$12))*12+MONTH(B68)-MONTH($B$12)),((YEAR(B68)-YEAR(VLOOKUP(I68,$C$3:$L$6,8,0)))*12+MONTH(B68)-MONTH(VLOOKUP(I68,$C$3:$L$6,8,0))))*(VLOOKUP(I68,$C$3:$L$6,10,0)*VLOOKUP(I68,$C$3:$L$6,6,0)/12),0)) ->  | K68: =IF(C68<>"",IF(I68<>"",IF(ISERROR(VLOOKUP(I68,$C$3:$L$6,10,0)),"",VLOOKUP(I68,$C$3:$L$6,10,0)+J68+IF(OR(VLOOKUP(I68,$C$3:$L$6,5,0)=Variables!$B$5,B68>VLOOKUP(I68,$C$3:$L$6,8,0)),IF(VLOOKUP(I68,$C$3:$L$6,5,0)=Variables!$B$5,((YEAR(B68)-YEAR($B$12))*12+MONTH(B68)-MONTH($B$12)),((YEAR(B68)-YEAR(VLOOKUP(I68,$C$3:$L$6,8,0)))*12+MONTH(B68)-MONTH(VLOOKUP(I68,$C$3:$L$6,8,0))))*VLOOKUP(I68,$C$3:$L$6,7,0),0)),""),"") -> 
C69: =IF(I68<>Variables!$B$1,IF(H68<>0,C68,I68),"") ->  | F69: =IF(C69<>"",IF(OR(VLOOKUP(C69,$C$3:$L$6,5,0)=Variables!$B$5,B69>VLOOKUP(C69,$C$3:$L$6,8,0)),-D69*VLOOKUP(C69,$C$3:$L$6,6,0)/12,0),"") ->  | G69: =IF(I69<>Variables!$B$1,IF(C69<>"",$I$9-E69-F69,""),-D69) ->  | I69: =IF(C69<>"",IF(D69+$I$9-E69-F69>=0,IF(ISERROR(INDEX($C$3:$C$6,MATCH(C69,$C$3:$C$6,0)+1,0)),Variables!$B$1,INDEX($C$3:$C$6,MATCH(C69,$C$3:$C$6,0)+1,0)),""),"") ->  | J69: =IF(ISERROR(VLOOKUP(I69,$C$3:$L$6,5,0)),"",IF(OR(VLOOKUP(I69,$C$3:$L$6,5,0)=Variables!$B$5,B69>VLOOKUP(I69,$C$3:$L$6,8,0)),IF(VLOOKUP(I69,$C$3:$L$6,5,0)=Variables!$B$5,((YEAR(B69)-YEAR($B$12))*12+MONTH(B69)-MONTH($B$12)),((YEAR(B69)-YEAR(VLOOKUP(I69,$C$3:$L$6,8,0)))*12+MONTH(B69)-MONTH(VLOOKUP(I69,$C$3:$L$6,8,0))))*(VLOOKUP(I69,$C$3:$L$6,10,0)*VLOOKUP(I69,$C$3:$L$6,6,0)/12),0)) ->  | K69: =IF(C69<>"",IF(I69<>"",IF(ISERROR(VLOOKUP(I69,$C$3:$L$6,10,0)),"",VLOOKUP(I69,$C$3:$L$6,10,0)+J69+IF(OR(VLOOKUP(I69,$C$3:$L$6,5,0)=Variables!$B$5,B69>VLOOKUP(I69,$C$3:$L$6,8,0)),IF(VLOOKUP(I69,$C$3:$L$6,5,0)=Variables!$B$5,((YEAR(B69)-YEAR($B$12))*12+MONTH(B69)-MONTH($B$12)),((YEAR(B69)-YEAR(VLOOKUP(I69,$C$3:$L$6,8,0)))*12+MONTH(B69)-MONTH(VLOOKUP(I69,$C$3:$L$6,8,0))))*VLOOKUP(I69,$C$3:$L$6,7,0),0)),""),"") -> 
C70: =IF(I69<>Variables!$B$1,IF(H69<>0,C69,I69),"") ->  | F70: =IF(C70<>"",IF(OR(VLOOKUP(C70,$C$3:$L$6,5,0)=Variables!$B$5,B70>VLOOKUP(C70,$C$3:$L$6,8,0)),-D70*VLOOKUP(C70,$C$3:$L$6,6,0)/12,0),"") ->  | G70: =IF(I70<>Variables!$B$1,IF(C70<>"",$I$9-E70-F70,""),-D70) ->  | I70: =IF(C70<>"",IF(D70+$I$9-E70-F70>=0,IF(ISERROR(INDEX($C$3:$C$6,MATCH(C70,$C$3:$C$6,0)+1,0)),Variables!$B$1,INDEX($C$3:$C$6,MATCH(C70,$C$3:$C$6,0)+1,0)),""),"") ->  | J70: =IF(ISERROR(VLOOKUP(I70,$C$3:$L$6,5,0)),"",IF(OR(VLOOKUP(I70,$C$3:$L$6,5,0)=Variables!$B$5,B70>VLOOKUP(I70,$C$3:$L$6,8,0)),IF(VLOOKUP(I70,$C$3:$L$6,5,0)=Variables!$B$5,((YEAR(B70)-YEAR($B$12))*12+MONTH(B70)-MONTH($B$12)),((YEAR(B70)-YEAR(VLOOKUP(I70,$C$3:$L$6,8,0)))*12+MONTH(B70)-MONTH(VLOOKUP(I70,$C$3:$L$6,8,0))))*(VLOOKUP(I70,$C$3:$L$6,10,0)*VLOOKUP(I70,$C$3:$L$6,6,0)/12),0)) ->  | K70: =IF(C70<>"",IF(I70<>"",IF(ISERROR(VLOOKUP(I70,$C$3:$L$6,10,0)),"",VLOOKUP(I70,$C$3:$L$6,10,0)+J70+IF(OR(VLOOKUP(I70,$C$3:$L$6,5,0)=Variables!$B$5,B70>VLOOKUP(I70,$C$3:$L$6,8,0)),IF(VLOOKUP(I70,$C$3:$L$6,5,0)=Variables!$B$5,((YEAR(B70)-YEAR($B$12))*12+MONTH(B70)-MONTH($B$12)),((YEAR(B70)-YEAR(VLOOKUP(I70,$C$3:$L$6,8,0)))*12+MONTH(B70)-MONTH(VLOOKUP(I70,$C$3:$L$6,8,0))))*VLOOKUP(I70,$C$3:$L$6,7,0),0)),""),"") -> 
C71: =IF(I70<>Variables!$B$1,IF(H70<>0,C70,I70),"") ->  | F71: =IF(C71<>"",IF(OR(VLOOKUP(C71,$C$3:$L$6,5,0)=Variables!$B$5,B71>VLOOKUP(C71,$C$3:$L$6,8,0)),-D71*VLOOKUP(C71,$C$3:$L$6,6,0)/12,0),"") ->  | G71: =IF(I71<>Variables!$B$1,IF(C71<>"",$I$9-E71-F71,""),-D71) ->  | I71: =IF(C71<>"",IF(D71+$I$9-E71-F71>=0,IF(ISERROR(INDEX($C$3:$C$6,MATCH(C71,$C$3:$C$6,0)+1,0)),Variables!$B$1,INDEX($C$3:$C$6,MATCH(C71,$C$3:$C$6,0)+1,0)),""),"") ->  | J71: =IF(ISERROR(VLOOKUP(I71,$C$3:$L$6,5,0)),"",IF(OR(VLOOKUP(I71,$C$3:$L$6,5,0)=Variables!$B$5,B71>VLOOKUP(I71,$C$3:$L$6,8,0)),IF(VLOOKUP(I71,$C$3:$L$6,5,0)=Variables!$B$5,((YEAR(B71)-YEAR($B$12))*12+MONTH(B71)-MONTH($B$12)),((YEAR(B71)-YEAR(VLOOKUP(I71,$C$3:$L$6,8,0)))*12+MONTH(B71)-MONTH(VLOOKUP(I71,$C$3:$L$6,8,0))))*(VLOOKUP(I71,$C$3:$L$6,10,0)*VLOOKUP(I71,$C$3:$L$6,6,0)/12),0)) ->  | K71: =IF(C71<>"",IF(I71<>"",IF(ISERROR(VLOOKUP(I71,$C$3:$L$6,10,0)),"",VLOOKUP(I71,$C$3:$L$6,10,0)+J71+IF(OR(VLOOKUP(I71,$C$3:$L$6,5,0)=Variables!$B$5,B71>VLOOKUP(I71,$C$3:$L$6,8,0)),IF(VLOOKUP(I71,$C$3:$L$6,5,0)=Variables!$B$5,((YEAR(B71)-YEAR($B$12))*12+MONTH(B71)-MONTH($B$12)),((YEAR(B71)-YEAR(VLOOKUP(I71,$C$3:$L$6,8,0)))*12+MONTH(B71)-MONTH(VLOOKUP(I71,$C$3:$L$6,8,0))))*VLOOKUP(I71,$C$3:$L$6,7,0),0)),""),"") -> 
C72: =IF(I71<>Variables!$B$1,IF(H71<>0,C71,I71),"") ->  | F72: =IF(C72<>"",IF(OR(VLOOKUP(C72,$C$3:$L$6,5,0)=Variables!$B$5,B72>VLOOKUP(C72,$C$3:$L$6,8,0)),-D72*VLOOKUP(C72,$C$3:$L$6,6,0)/12,0),"") ->  | G72: =IF(I72<>Variables!$B$1,IF(C72<>"",$I$9-E72-F72,""),-D72) ->  | I72: =IF(C72<>"",IF(D72+$I$9-E72-F72>=0,IF(ISERROR(INDEX($C$3:$C$6,MATCH(C72,$C$3:$C$6,0)+1,0)),Variables!$B$1,INDEX($C$3:$C$6,MATCH(C72,$C$3:$C$6,0)+1,0)),""),"") ->  | J72: =IF(ISERROR(VLOOKUP(I72,$C$3:$L$6,5,0)),"",IF(OR(VLOOKUP(I72,$C$3:$L$6,5,0)=Variables!$B$5,B72>VLOOKUP(I72,$C$3:$L$6,8,0)),IF(VLOOKUP(I72,$C$3:$L$6,5,0)=Variables!$B$5,((YEAR(B72)-YEAR($B$12))*12+MONTH(B72)-MONTH($B$12)),((YEAR(B72)-YEAR(VLOOKUP(I72,$C$3:$L$6,8,0)))*12+MONTH(B72)-MONTH(VLOOKUP(I72,$C$3:$L$6,8,0))))*(VLOOKUP(I72,$C$3:$L$6,10,0)*VLOOKUP(I72,$C$3:$L$6,6,0)/12),0)) ->  | K72: =IF(C72<>"",IF(I72<>"",IF(ISERROR(VLOOKUP(I72,$C$3:$L$6,10,0)),"",VLOOKUP(I72,$C$3:$L$6,10,0)+J72+IF(OR(VLOOKUP(I72,$C$3:$L$6,5,0)=Variables!$B$5,B72>VLOOKUP(I72,$C$3:$L$6,8,0)),IF(VLOOKUP(I72,$C$3:$L$6,5,0)=Variables!$B$5,((YEAR(B72)-YEAR($B$12))*12+MONTH(B72)-MONTH($B$12)),((YEAR(B72)-YEAR(VLOOKUP(I72,$C$3:$L$6,8,0)))*12+MONTH(B72)-MONTH(VLOOKUP(I72,$C$3:$L$6,8,0))))*VLOOKUP(I72,$C$3:$L$6,7,0),0)),""),"") -> 
C73: =IF(I72<>Variables!$B$1,IF(H72<>0,C72,I72),"") ->  | F73: =IF(C73<>"",IF(OR(VLOOKUP(C73,$C$3:$L$6,5,0)=Variables!$B$5,B73>VLOOKUP(C73,$C$3:$L$6,8,0)),-D73*VLOOKUP(C73,$C$3:$L$6,6,0)/12,0),"") ->  | G73: =IF(I73<>Variables!$B$1,IF(C73<>"",$I$9-E73-F73,""),-D73) ->  | I73: =IF(C73<>"",IF(D73+$I$9-E73-F73>=0,IF(ISERROR(INDEX($C$3:$C$6,MATCH(C73,$C$3:$C$6,0)+1,0)),Variables!$B$1,INDEX($C$3:$C$6,MATCH(C73,$C$3:$C$6,0)+1,0)),""),"") ->  | J73: =IF(ISERROR(VLOOKUP(I73,$C$3:$L$6,5,0)),"",IF(OR(VLOOKUP(I73,$C$3:$L$6,5,0)=Variables!$B$5,B73>VLOOKUP(I73,$C$3:$L$6,8,0)),IF(VLOOKUP(I73,$C$3:$L$6,5,0)=Variables!$B$5,((YEAR(B73)-YEAR($B$12))*12+MONTH(B73)-MONTH($B$12)),((YEAR(B73)-YEAR(VLOOKUP(I73,$C$3:$L$6,8,0)))*12+MONTH(B73)-MONTH(VLOOKUP(I73,$C$3:$L$6,8,0))))*(VLOOKUP(I73,$C$3:$L$6,10,0)*VLOOKUP(I73,$C$3:$L$6,6,0)/12),0)) ->  | K73: =IF(C73<>"",IF(I73<>"",IF(ISERROR(VLOOKUP(I73,$C$3:$L$6,10,0)),"",VLOOKUP(I73,$C$3:$L$6,10,0)+J73+IF(OR(VLOOKUP(I73,$C$3:$L$6,5,0)=Variables!$B$5,B73>VLOOKUP(I73,$C$3:$L$6,8,0)),IF(VLOOKUP(I73,$C$3:$L$6,5,0)=Variables!$B$5,((YEAR(B73)-YEAR($B$12))*12+MONTH(B73)-MONTH($B$12)),((YEAR(B73)-YEAR(VLOOKUP(I73,$C$3:$L$6,8,0)))*12+MONTH(B73)-MONTH(VLOOKUP(I73,$C$3:$L$6,8,0))))*VLOOKUP(I73,$C$3:$L$6,7,0),0)),""),"") -> 
C74: =IF(I73<>Variables!$B$1,IF(H73<>0,C73,I73),"") ->  | F74: =IF(C74<>"",IF(OR(VLOOKUP(C74,$C$3:$L$6,5,0)=Variables!$B$5,B74>VLOOKUP(C74,$C$3:$L$6,8,0)),-D74*VLOOKUP(C74,$C$3:$L$6,6,0)/12,0),"") ->  | G74: =IF(I74<>Variables!$B$1,IF(C74<>"",$I$9-E74-F74,""),-D74) ->  | I74: =IF(C74<>"",IF(D74+$I$9-E74-F74>=0,IF(ISERROR(INDEX($C$3:$C$6,MATCH(C74,$C$3:$C$6,0)+1,0)),Variables!$B$1,INDEX($C$3:$C$6,MATCH(C74,$C$3:$C$6,0)+1,0)),""),"") ->  | J74: =IF(ISERROR(VLOOKUP(I74,$C$3:$L$6,5,0)),"",IF(OR(VLOOKUP(I74,$C$3:$L$6,5,0)=Variables!$B$5,B74>VLOOKUP(I74,$C$3:$L$6,8,0)),IF(VLOOKUP(I74,$C$3:$L$6,5,0)=Variables!$B$5,((YEAR(B74)-YEAR($B$12))*12+MONTH(B74)-MONTH($B$12)),((YEAR(B74)-YEAR(VLOOKUP(I74,$C$3:$L$6,8,0)))*12+MONTH(B74)-MONTH(VLOOKUP(I74,$C$3:$L$6,8,0))))*(VLOOKUP(I74,$C$3:$L$6,10,0)*VLOOKUP(I74,$C$3:$L$6,6,0)/12),0)) ->  | K74: =IF(C74<>"",IF(I74<>"",IF(ISERROR(VLOOKUP(I74,$C$3:$L$6,10,0)),"",VLOOKUP(I74,$C$3:$L$6,10,0)+J74+IF(OR(VLOOKUP(I74,$C$3:$L$6,5,0)=Variables!$B$5,B74>VLOOKUP(I74,$C$3:$L$6,8,0)),IF(VLOOKUP(I74,$C$3:$L$6,5,0)=Variables!$B$5,((YEAR(B74)-YEAR($B$12))*12+MONTH(B74)-MONTH($B$12)),((YEAR(B74)-YEAR(VLOOKUP(I74,$C$3:$L$6,8,0)))*12+MONTH(B74)-MONTH(VLOOKUP(I74,$C$3:$L$6,8,0))))*VLOOKUP(I74,$C$3:$L$6,7,0),0)),""),"") -> 
C75: =IF(I74<>Variables!$B$1,IF(H74<>0,C74,I74),"") ->  | F75: =IF(C75<>"",IF(OR(VLOOKUP(C75,$C$3:$L$6,5,0)=Variables!$B$5,B75>VLOOKUP(C75,$C$3:$L$6,8,0)),-D75*VLOOKUP(C75,$C$3:$L$6,6,0)/12,0),"") ->  | G75: =IF(I75<>Variables!$B$1,IF(C75<>"",$I$9-E75-F75,""),-D75) ->  | I75: =IF(C75<>"",IF(D75+$I$9-E75-F75>=0,IF(ISERROR(INDEX($C$3:$C$6,MATCH(C75,$C$3:$C$6,0)+1,0)),Variables!$B$1,INDEX($C$3:$C$6,MATCH(C75,$C$3:$C$6,0)+1,0)),""),"") ->  | J75: =IF(ISERROR(VLOOKUP(I75,$C$3:$L$6,5,0)),"",IF(OR(VLOOKUP(I75,$C$3:$L$6,5,0)=Variables!$B$5,B75>VLOOKUP(I75,$C$3:$L$6,8,0)),IF(VLOOKUP(I75,$C$3:$L$6,5,0)=Variables!$B$5,((YEAR(B75)-YEAR($B$12))*12+MONTH(B75)-MONTH($B$12)),((YEAR(B75)-YEAR(VLOOKUP(I75,$C$3:$L$6,8,0)))*12+MONTH(B75)-MONTH(VLOOKUP(I75,$C$3:$L$6,8,0))))*(VLOOKUP(I75,$C$3:$L$6,10,0)*VLOOKUP(I75,$C$3:$L$6,6,0)/12),0)) ->  | K75: =IF(C75<>"",IF(I75<>"",IF(ISERROR(VLOOKUP(I75,$C$3:$L$6,10,0)),"",VLOOKUP(I75,$C$3:$L$6,10,0)+J75+IF(OR(VLOOKUP(I75,$C$3:$L$6,5,0)=Variables!$B$5,B75>VLOOKUP(I75,$C$3:$L$6,8,0)),IF(VLOOKUP(I75,$C$3:$L$6,5,0)=Variables!$B$5,((YEAR(B75)-YEAR($B$12))*12+MONTH(B75)-MONTH($B$12)),((YEAR(B75)-YEAR(VLOOKUP(I75,$C$3:$L$6,8,0)))*12+MONTH(B75)-MONTH(VLOOKUP(I75,$C$3:$L$6,8,0))))*VLOOKUP(I75,$C$3:$L$6,7,0),0)),""),"") -> 
C76: =IF(I75<>Variables!$B$1,IF(H75<>0,C75,I75),"") ->  | F76: =IF(C76<>"",IF(OR(VLOOKUP(C76,$C$3:$L$6,5,0)=Variables!$B$5,B76>VLOOKUP(C76,$C$3:$L$6,8,0)),-D76*VLOOKUP(C76,$C$3:$L$6,6,0)/12,0),"") ->  | G76: =IF(I76<>Variables!$B$1,IF(C76<>"",$I$9-E76-F76,""),-D76) ->  | I76: =IF(C76<>"",IF(D76+$I$9-E76-F76>=0,IF(ISERROR(INDEX($C$3:$C$6,MATCH(C76,$C$3:$C$6,0)+1,0)),Variables!$B$1,INDEX($C$3:$C$6,MATCH(C76,$C$3:$C$6,0)+1,0)),""),"") ->  | J76: =IF(ISERROR(VLOOKUP(I76,$C$3:$L$6,5,0)),"",IF(OR(VLOOKUP(I76,$C$3:$L$6,5,0)=Variables!$B$5,B76>VLOOKUP(I76,$C$3:$L$6,8,0)),IF(VLOOKUP(I76,$C$3:$L$6,5,0)=Variables!$B$5,((YEAR(B76)-YEAR($B$12))*12+MONTH(B76)-MONTH($B$12)),((YEAR(B76)-YEAR(VLOOKUP(I76,$C$3:$L$6,8,0)))*12+MONTH(B76)-MONTH(VLOOKUP(I76,$C$3:$L$6,8,0))))*(VLOOKUP(I76,$C$3:$L$6,10,0)*VLOOKUP(I76,$C$3:$L$6,6,0)/12),0)) ->  | K76: =IF(C76<>"",IF(I76<>"",IF(ISERROR(VLOOKUP(I76,$C$3:$L$6,10,0)),"",VLOOKUP(I76,$C$3:$L$6,10,0)+J76+IF(OR(VLOOKUP(I76,$C$3:$L$6,5,0)=Variables!$B$5,B76>VLOOKUP(I76,$C$3:$L$6,8,0)),IF(VLOOKUP(I76,$C$3:$L$6,5,0)=Variables!$B$5,((YEAR(B76)-YEAR($B$12))*12+MONTH(B76)-MONTH($B$12)),((YEAR(B76)-YEAR(VLOOKUP(I76,$C$3:$L$6,8,0)))*12+MONTH(B76)-MONTH(VLOOKUP(I76,$C$3:$L$6,8,0))))*VLOOKUP(I76,$C$3:$L$6,7,0),0)),""),"") -> 
C77: =IF(I76<>Variables!$B$1,IF(H76<>0,C76,I76),"") ->  | F77: =IF(C77<>"",IF(OR(VLOOKUP(C77,$C$3:$L$6,5,0)=Variables!$B$5,B77>VLOOKUP(C77,$C$3:$L$6,8,0)),-D77*VLOOKUP(C77,$C$3:$L$6,6,0)/12,0),"") ->  | G77: =IF(I77<>Variables!$B$1,IF(C77<>"",$I$9-E77-F77,""),-D77) ->  | I77: =IF(C77<>"",IF(D77+$I$9-E77-F77>=0,IF(ISERROR(INDEX($C$3:$C$6,MATCH(C77,$C$3:$C$6,0)+1,0)),Variables!$B$1,INDEX($C$3:$C$6,MATCH(C77,$C$3:$C$6,0)+1,0)),""),"") ->  | J77: =IF(ISERROR(VLOOKUP(I77,$C$3:$L$6,5,0)),"",IF(OR(VLOOKUP(I77,$C$3:$L$6,5,0)=Variables!$B$5,B77>VLOOKUP(I77,$C$3:$L$6,8,0)),IF(VLOOKUP(I77,$C$3:$L$6,5,0)=Variables!$B$5,((YEAR(B77)-YEAR($B$12))*12+MONTH(B77)-MONTH($B$12)),((YEAR(B77)-YEAR(VLOOKUP(I77,$C$3:$L$6,8,0)))*12+MONTH(B77)-MONTH(VLOOKUP(I77,$C$3:$L$6,8,0))))*(VLOOKUP(I77,$C$3:$L$6,10,0)*VLOOKUP(I77,$C$3:$L$6,6,0)/12),0)) ->  | K77: =IF(C77<>"",IF(I77<>"",IF(ISERROR(VLOOKUP(I77,$C$3:$L$6,10,0)),"",VLOOKUP(I77,$C$3:$L$6,10,0)+J77+IF(OR(VLOOKUP(I77,$C$3:$L$6,5,0)=Variables!$B$5,B77>VLOOKUP(I77,$C$3:$L$6,8,0)),IF(VLOOKUP(I77,$C$3:$L$6,5,0)=Variables!$B$5,((YEAR(B77)-YEAR($B$12))*12+MONTH(B77)-MONTH($B$12)),((YEAR(B77)-YEAR(VLOOKUP(I77,$C$3:$L$6,8,0)))*12+MONTH(B77)-MONTH(VLOOKUP(I77,$C$3:$L$6,8,0))))*VLOOKUP(I77,$C$3:$L$6,7,0),0)),""),"") -> 
C78: =IF(I77<>Variables!$B$1,IF(H77<>0,C77,I77),"") ->  | F78: =IF(C78<>"",IF(OR(VLOOKUP(C78,$C$3:$L$6,5,0)=Variables!$B$5,B78>VLOOKUP(C78,$C$3:$L$6,8,0)),-D78*VLOOKUP(C78,$C$3:$L$6,6,0)/12,0),"") ->  | G78: =IF(I78<>Variables!$B$1,IF(C78<>"",$I$9-E78-F78,""),-D78) ->  | I78: =IF(C78<>"",IF(D78+$I$9-E78-F78>=0,IF(ISERROR(INDEX($C$3:$C$6,MATCH(C78,$C$3:$C$6,0)+1,0)),Variables!$B$1,INDEX($C$3:$C$6,MATCH(C78,$C$3:$C$6,0)+1,0)),""),"") ->  | J78: =IF(ISERROR(VLOOKUP(I78,$C$3:$L$6,5,0)),"",IF(OR(VLOOKUP(I78,$C$3:$L$6,5,0)=Variables!$B$5,B78>VLOOKUP(I78,$C$3:$L$6,8,0)),IF(VLOOKUP(I78,$C$3:$L$6,5,0)=Variables!$B$5,((YEAR(B78)-YEAR($B$12))*12+MONTH(B78)-MONTH($B$12)),((YEAR(B78)-YEAR(VLOOKUP(I78,$C$3:$L$6,8,0)))*12+MONTH(B78)-MONTH(VLOOKUP(I78,$C$3:$L$6,8,0))))*(VLOOKUP(I78,$C$3:$L$6,10,0)*VLOOKUP(I78,$C$3:$L$6,6,0)/12),0)) ->  | K78: =IF(C78<>"",IF(I78<>"",IF(ISERROR(VLOOKUP(I78,$C$3:$L$6,10,0)),"",VLOOKUP(I78,$C$3:$L$6,10,0)+J78+IF(OR(VLOOKUP(I78,$C$3:$L$6,5,0)=Variables!$B$5,B78>VLOOKUP(I78,$C$3:$L$6,8,0)),IF(VLOOKUP(I78,$C$3:$L$6,5,0)=Variables!$B$5,((YEAR(B78)-YEAR($B$12))*12+MONTH(B78)-MONTH($B$12)),((YEAR(B78)-YEAR(VLOOKUP(I78,$C$3:$L$6,8,0)))*12+MONTH(B78)-MONTH(VLOOKUP(I78,$C$3:$L$6,8,0))))*VLOOKUP(I78,$C$3:$L$6,7,0),0)),""),"") -> 
C79: =IF(I78<>Variables!$B$1,IF(H78<>0,C78,I78),"") ->  | F79: =IF(C79<>"",IF(OR(VLOOKUP(C79,$C$3:$L$6,5,0)=Variables!$B$5,B79>VLOOKUP(C79,$C$3:$L$6,8,0)),-D79*VLOOKUP(C79,$C$3:$L$6,6,0)/12,0),"") ->  | G79: =IF(I79<>Variables!$B$1,IF(C79<>"",$I$9-E79-F79,""),-D79) ->  | I79: =IF(C79<>"",IF(D79+$I$9-E79-F79>=0,IF(ISERROR(INDEX($C$3:$C$6,MATCH(C79,$C$3:$C$6,0)+1,0)),Variables!$B$1,INDEX($C$3:$C$6,MATCH(C79,$C$3:$C$6,0)+1,0)),""),"") ->  | J79: =IF(ISERROR(VLOOKUP(I79,$C$3:$L$6,5,0)),"",IF(OR(VLOOKUP(I79,$C$3:$L$6,5,0)=Variables!$B$5,B79>VLOOKUP(I79,$C$3:$L$6,8,0)),IF(VLOOKUP(I79,$C$3:$L$6,5,0)=Variables!$B$5,((YEAR(B79)-YEAR($B$12))*12+MONTH(B79)-MONTH($B$12)),((YEAR(B79)-YEAR(VLOOKUP(I79,$C$3:$L$6,8,0)))*12+MONTH(B79)-MONTH(VLOOKUP(I79,$C$3:$L$6,8,0))))*(VLOOKUP(I79,$C$3:$L$6,10,0)*VLOOKUP(I79,$C$3:$L$6,6,0)/12),0)) ->  | K79: =IF(C79<>"",IF(I79<>"",IF(ISERROR(VLOOKUP(I79,$C$3:$L$6,10,0)),"",VLOOKUP(I79,$C$3:$L$6,10,0)+J79+IF(OR(VLOOKUP(I79,$C$3:$L$6,5,0)=Variables!$B$5,B79>VLOOKUP(I79,$C$3:$L$6,8,0)),IF(VLOOKUP(I79,$C$3:$L$6,5,0)=Variables!$B$5,((YEAR(B79)-YEAR($B$12))*12+MONTH(B79)-MONTH($B$12)),((YEAR(B79)-YEAR(VLOOKUP(I79,$C$3:$L$6,8,0)))*12+MONTH(B79)-MONTH(VLOOKUP(I79,$C$3:$L$6,8,0))))*VLOOKUP(I79,$C$3:$L$6,7,0),0)),""),"") -> 
C80: =IF(I79<>Variables!$B$1,IF(H79<>0,C79,I79),"") ->  | F80: =IF(C80<>"",IF(OR(VLOOKUP(C80,$C$3:$L$6,5,0)=Variables!$B$5,B80>VLOOKUP(C80,$C$3:$L$6,8,0)),-D80*VLOOKUP(C80,$C$3:$L$6,6,0)/12,0),"") ->  | G80: =IF(I80<>Variables!$B$1,IF(C80<>"",$I$9-E80-F80,""),-D80) ->  | I80: =IF(C80<>"",IF(D80+$I$9-E80-F80>=0,IF(ISERROR(INDEX($C$3:$C$6,MATCH(C80,$C$3:$C$6,0)+1,0)),Variables!$B$1,INDEX($C$3:$C$6,MATCH(C80,$C$3:$C$6,0)+1,0)),""),"") ->  | J80: =IF(ISERROR(VLOOKUP(I80,$C$3:$L$6,5,0)),"",IF(OR(VLOOKUP(I80,$C$3:$L$6,5,0)=Variables!$B$5,B80>VLOOKUP(I80,$C$3:$L$6,8,0)),IF(VLOOKUP(I80,$C$3:$L$6,5,0)=Variables!$B$5,((YEAR(B80)-YEAR($B$12))*12+MONTH(B80)-MONTH($B$12)),((YEAR(B80)-YEAR(VLOOKUP(I80,$C$3:$L$6,8,0)))*12+MONTH(B80)-MONTH(VLOOKUP(I80,$C$3:$L$6,8,0))))*(VLOOKUP(I80,$C$3:$L$6,10,0)*VLOOKUP(I80,$C$3:$L$6,6,0)/12),0)) ->  | K80: =IF(C80<>"",IF(I80<>"",IF(ISERROR(VLOOKUP(I80,$C$3:$L$6,10,0)),"",VLOOKUP(I80,$C$3:$L$6,10,0)+J80+IF(OR(VLOOKUP(I80,$C$3:$L$6,5,0)=Variables!$B$5,B80>VLOOKUP(I80,$C$3:$L$6,8,0)),IF(VLOOKUP(I80,$C$3:$L$6,5,0)=Variables!$B$5,((YEAR(B80)-YEAR($B$12))*12+MONTH(B80)-MONTH($B$12)),((YEAR(B80)-YEAR(VLOOKUP(I80,$C$3:$L$6,8,0)))*12+MONTH(B80)-MONTH(VLOOKUP(I80,$C$3:$L$6,8,0))))*VLOOKUP(I80,$C$3:$L$6,7,0),0)),""),"") -> 
C81: =IF(I80<>Variables!$B$1,IF(H80<>0,C80,I80),"") ->  | F81: =IF(C81<>"",IF(OR(VLOOKUP(C81,$C$3:$L$6,5,0)=Variables!$B$5,B81>VLOOKUP(C81,$C$3:$L$6,8,0)),-D81*VLOOKUP(C81,$C$3:$L$6,6,0)/12,0),"") ->  | G81: =IF(I81<>Variables!$B$1,IF(C81<>"",$I$9-E81-F81,""),-D81) ->  | I81: =IF(C81<>"",IF(D81+$I$9-E81-F81>=0,IF(ISERROR(INDEX($C$3:$C$6,MATCH(C81,$C$3:$C$6,0)+1,0)),Variables!$B$1,INDEX($C$3:$C$6,MATCH(C81,$C$3:$C$6,0)+1,0)),""),"") ->  | J81: =IF(ISERROR(VLOOKUP(I81,$C$3:$L$6,5,0)),"",IF(OR(VLOOKUP(I81,$C$3:$L$6,5,0)=Variables!$B$5,B81>VLOOKUP(I81,$C$3:$L$6,8,0)),IF(VLOOKUP(I81,$C$3:$L$6,5,0)=Variables!$B$5,((YEAR(B81)-YEAR($B$12))*12+MONTH(B81)-MONTH($B$12)),((YEAR(B81)-YEAR(VLOOKUP(I81,$C$3:$L$6,8,0)))*12+MONTH(B81)-MONTH(VLOOKUP(I81,$C$3:$L$6,8,0))))*(VLOOKUP(I81,$C$3:$L$6,10,0)*VLOOKUP(I81,$C$3:$L$6,6,0)/12),0)) ->  | K81: =IF(C81<>"",IF(I81<>"",IF(ISERROR(VLOOKUP(I81,$C$3:$L$6,10,0)),"",VLOOKUP(I81,$C$3:$L$6,10,0)+J81+IF(OR(VLOOKUP(I81,$C$3:$L$6,5,0)=Variables!$B$5,B81>VLOOKUP(I81,$C$3:$L$6,8,0)),IF(VLOOKUP(I81,$C$3:$L$6,5,0)=Variables!$B$5,((YEAR(B81)-YEAR($B$12))*12+MONTH(B81)-MONTH($B$12)),((YEAR(B81)-YEAR(VLOOKUP(I81,$C$3:$L$6,8,0)))*12+MONTH(B81)-MONTH(VLOOKUP(I81,$C$3:$L$6,8,0))))*VLOOKUP(I81,$C$3:$L$6,7,0),0)),""),"") -> 
C82: =IF(I81<>Variables!$B$1,IF(H81<>0,C81,I81),"") ->  | F82: =IF(C82<>"",IF(OR(VLOOKUP(C82,$C$3:$L$6,5,0)=Variables!$B$5,B82>VLOOKUP(C82,$C$3:$L$6,8,0)),-D82*VLOOKUP(C82,$C$3:$L$6,6,0)/12,0),"") ->  | G82: =IF(I82<>Variables!$B$1,IF(C82<>"",$I$9-E82-F82,""),-D82) ->  | I82: =IF(C82<>"",IF(D82+$I$9-E82-F82>=0,IF(ISERROR(INDEX($C$3:$C$6,MATCH(C82,$C$3:$C$6,0)+1,0)),Variables!$B$1,INDEX($C$3:$C$6,MATCH(C82,$C$3:$C$6,0)+1,0)),""),"") ->  | J82: =IF(ISERROR(VLOOKUP(I82,$C$3:$L$6,5,0)),"",IF(OR(VLOOKUP(I82,$C$3:$L$6,5,0)=Variables!$B$5,B82>VLOOKUP(I82,$C$3:$L$6,8,0)),IF(VLOOKUP(I82,$C$3:$L$6,5,0)=Variables!$B$5,((YEAR(B82)-YEAR($B$12))*12+MONTH(B82)-MONTH($B$12)),((YEAR(B82)-YEAR(VLOOKUP(I82,$C$3:$L$6,8,0)))*12+MONTH(B82)-MONTH(VLOOKUP(I82,$C$3:$L$6,8,0))))*(VLOOKUP(I82,$C$3:$L$6,10,0)*VLOOKUP(I82,$C$3:$L$6,6,0)/12),0)) ->  | K82: =IF(C82<>"",IF(I82<>"",IF(ISERROR(VLOOKUP(I82,$C$3:$L$6,10,0)),"",VLOOKUP(I82,$C$3:$L$6,10,0)+J82+IF(OR(VLOOKUP(I82,$C$3:$L$6,5,0)=Variables!$B$5,B82>VLOOKUP(I82,$C$3:$L$6,8,0)),IF(VLOOKUP(I82,$C$3:$L$6,5,0)=Variables!$B$5,((YEAR(B82)-YEAR($B$12))*12+MONTH(B82)-MONTH($B$12)),((YEAR(B82)-YEAR(VLOOKUP(I82,$C$3:$L$6,8,0)))*12+MONTH(B82)-MONTH(VLOOKUP(I82,$C$3:$L$6,8,0))))*VLOOKUP(I82,$C$3:$L$6,7,0),0)),""),"") -> 
C83: =IF(I82<>Variables!$B$1,IF(H82<>0,C82,I82),"") ->  | F83: =IF(C83<>"",IF(OR(VLOOKUP(C83,$C$3:$L$6,5,0)=Variables!$B$5,B83>VLOOKUP(C83,$C$3:$L$6,8,0)),-D83*VLOOKUP(C83,$C$3:$L$6,6,0)/12,0),"") ->  | G83: =IF(I83<>Variables!$B$1,IF(C83<>"",$I$9-E83-F83,""),-D83) ->  | I83: =IF(C83<>"",IF(D83+$I$9-E83-F83>=0,IF(ISERROR(INDEX($C$3:$C$6,MATCH(C83,$C$3:$C$6,0)+1,0)),Variables!$B$1,INDEX($C$3:$C$6,MATCH(C83,$C$3:$C$6,0)+1,0)),""),"") ->  | J83: =IF(ISERROR(VLOOKUP(I83,$C$3:$L$6,5,0)),"",IF(OR(VLOOKUP(I83,$C$3:$L$6,5,0)=Variables!$B$5,B83>VLOOKUP(I83,$C$3:$L$6,8,0)),IF(VLOOKUP(I83,$C$3:$L$6,5,0)=Variables!$B$5,((YEAR(B83)-YEAR($B$12))*12+MONTH(B83)-MONTH($B$12)),((YEAR(B83)-YEAR(VLOOKUP(I83,$C$3:$L$6,8,0)))*12+MONTH(B83)-MONTH(VLOOKUP(I83,$C$3:$L$6,8,0))))*(VLOOKUP(I83,$C$3:$L$6,10,0)*VLOOKUP(I83,$C$3:$L$6,6,0)/12),0)) ->  | K83: =IF(C83<>"",IF(I83<>"",IF(ISERROR(VLOOKUP(I83,$C$3:$L$6,10,0)),"",VLOOKUP(I83,$C$3:$L$6,10,0)+J83+IF(OR(VLOOKUP(I83,$C$3:$L$6,5,0)=Variables!$B$5,B83>VLOOKUP(I83,$C$3:$L$6,8,0)),IF(VLOOKUP(I83,$C$3:$L$6,5,0)=Variables!$B$5,((YEAR(B83)-YEAR($B$12))*12+MONTH(B83)-MONTH($B$12)),((YEAR(B83)-YEAR(VLOOKUP(I83,$C$3:$L$6,8,0)))*12+MONTH(B83)-MONTH(VLOOKUP(I83,$C$3:$L$6,8,0))))*VLOOKUP(I83,$C$3:$L$6,7,0),0)),""),"") -> 
C84: =IF(I83<>Variables!$B$1,IF(H83<>0,C83,I83),"") ->  | F84: =IF(C84<>"",IF(OR(VLOOKUP(C84,$C$3:$L$6,5,0)=Variables!$B$5,B84>VLOOKUP(C84,$C$3:$L$6,8,0)),-D84*VLOOKUP(C84,$C$3:$L$6,6,0)/12,0),"") ->  | G84: =IF(I84<>Variables!$B$1,IF(C84<>"",$I$9-E84-F84,""),-D84) ->  | I84: =IF(C84<>"",IF(D84+$I$9-E84-F84>=0,IF(ISERROR(INDEX($C$3:$C$6,MATCH(C84,$C$3:$C$6,0)+1,0)),Variables!$B$1,INDEX($C$3:$C$6,MATCH(C84,$C$3:$C$6,0)+1,0)),""),"") ->  | J84: =IF(ISERROR(VLOOKUP(I84,$C$3:$L$6,5,0)),"",IF(OR(VLOOKUP(I84,$C$3:$L$6,5,0)=Variables!$B$5,B84>VLOOKUP(I84,$C$3:$L$6,8,0)),IF(VLOOKUP(I84,$C$3:$L$6,5,0)=Variables!$B$5,((YEAR(B84)-YEAR($B$12))*12+MONTH(B84)-MONTH($B$12)),((YEAR(B84)-YEAR(VLOOKUP(I84,$C$3:$L$6,8,0)))*12+MONTH(B84)-MONTH(VLOOKUP(I84,$C$3:$L$6,8,0))))*(VLOOKUP(I84,$C$3:$L$6,10,0)*VLOOKUP(I84,$C$3:$L$6,6,0)/12),0)) ->  | K84: =IF(C84<>"",IF(I84<>"",IF(ISERROR(VLOOKUP(I84,$C$3:$L$6,10,0)),"",VLOOKUP(I84,$C$3:$L$6,10,0)+J84+IF(OR(VLOOKUP(I84,$C$3:$L$6,5,0)=Variables!$B$5,B84>VLOOKUP(I84,$C$3:$L$6,8,0)),IF(VLOOKUP(I84,$C$3:$L$6,5,0)=Variables!$B$5,((YEAR(B84)-YEAR($B$12))*12+MONTH(B84)-MONTH($B$12)),((YEAR(B84)-YEAR(VLOOKUP(I84,$C$3:$L$6,8,0)))*12+MONTH(B84)-MONTH(VLOOKUP(I84,$C$3:$L$6,8,0))))*VLOOKUP(I84,$C$3:$L$6,7,0),0)),""),"") -> 
C85: =IF(I84<>Variables!$B$1,IF(H84<>0,C84,I84),"") ->  | F85: =IF(C85<>"",IF(OR(VLOOKUP(C85,$C$3:$L$6,5,0)=Variables!$B$5,B85>VLOOKUP(C85,$C$3:$L$6,8,0)),-D85*VLOOKUP(C85,$C$3:$L$6,6,0)/12,0),"") ->  | G85: =IF(I85<>Variables!$B$1,IF(C85<>"",$I$9-E85-F85,""),-D85) ->  | I85: =IF(C85<>"",IF(D85+$I$9-E85-F85>=0,IF(ISERROR(INDEX($C$3:$C$6,MATCH(C85,$C$3:$C$6,0)+1,0)),Variables!$B$1,INDEX($C$3:$C$6,MATCH(C85,$C$3:$C$6,0)+1,0)),""),"") ->  | J85: =IF(ISERROR(VLOOKUP(I85,$C$3:$L$6,5,0)),"",IF(OR(VLOOKUP(I85,$C$3:$L$6,5,0)=Variables!$B$5,B85>VLOOKUP(I85,$C$3:$L$6,8,0)),IF(VLOOKUP(I85,$C$3:$L$6,5,0)=Variables!$B$5,((YEAR(B85)-YEAR($B$12))*12+MONTH(B85)-MONTH($B$12)),((YEAR(B85)-YEAR(VLOOKUP(I85,$C$3:$L$6,8,0)))*12+MONTH(B85)-MONTH(VLOOKUP(I85,$C$3:$L$6,8,0))))*(VLOOKUP(I85,$C$3:$L$6,10,0)*VLOOKUP(I85,$C$3:$L$6,6,0)/12),0)) ->  | K85: =IF(C85<>"",IF(I85<>"",IF(ISERROR(VLOOKUP(I85,$C$3:$L$6,10,0)),"",VLOOKUP(I85,$C$3:$L$6,10,0)+J85+IF(OR(VLOOKUP(I85,$C$3:$L$6,5,0)=Variables!$B$5,B85>VLOOKUP(I85,$C$3:$L$6,8,0)),IF(VLOOKUP(I85,$C$3:$L$6,5,0)=Variables!$B$5,((YEAR(B85)-YEAR($B$12))*12+MONTH(B85)-MONTH($B$12)),((YEAR(B85)-YEAR(VLOOKUP(I85,$C$3:$L$6,8,0)))*12+MONTH(B85)-MONTH(VLOOKUP(I85,$C$3:$L$6,8,0))))*VLOOKUP(I85,$C$3:$L$6,7,0),0)),""),"") -> 
C86: =IF(I85<>Variables!$B$1,IF(H85<>0,C85,I85),"") ->  | F86: =IF(C86<>"",IF(OR(VLOOKUP(C86,$C$3:$L$6,5,0)=Variables!$B$5,B86>VLOOKUP(C86,$C$3:$L$6,8,0)),-D86*VLOOKUP(C86,$C$3:$L$6,6,0)/12,0),"") ->  | G86: =IF(I86<>Variables!$B$1,IF(C86<>"",$I$9-E86-F86,""),-D86) ->  | I86: =IF(C86<>"",IF(D86+$I$9-E86-F86>=0,IF(ISERROR(INDEX($C$3:$C$6,MATCH(C86,$C$3:$C$6,0)+1,0)),Variables!$B$1,INDEX($C$3:$C$6,MATCH(C86,$C$3:$C$6,0)+1,0)),""),"") ->  | J86: =IF(ISERROR(VLOOKUP(I86,$C$3:$L$6,5,0)),"",IF(OR(VLOOKUP(I86,$C$3:$L$6,5,0)=Variables!$B$5,B86>VLOOKUP(I86,$C$3:$L$6,8,0)),IF(VLOOKUP(I86,$C$3:$L$6,5,0)=Variables!$B$5,((YEAR(B86)-YEAR($B$12))*12+MONTH(B86)-MONTH($B$12)),((YEAR(B86)-YEAR(VLOOKUP(I86,$C$3:$L$6,8,0)))*12+MONTH(B86)-MONTH(VLOOKUP(I86,$C$3:$L$6,8,0))))*(VLOOKUP(I86,$C$3:$L$6,10,0)*VLOOKUP(I86,$C$3:$L$6,6,0)/12),0)) ->  | K86: =IF(C86<>"",IF(I86<>"",IF(ISERROR(VLOOKUP(I86,$C$3:$L$6,10,0)),"",VLOOKUP(I86,$C$3:$L$6,10,0)+J86+IF(OR(VLOOKUP(I86,$C$3:$L$6,5,0)=Variables!$B$5,B86>VLOOKUP(I86,$C$3:$L$6,8,0)),IF(VLOOKUP(I86,$C$3:$L$6,5,0)=Variables!$B$5,((YEAR(B86)-YEAR($B$12))*12+MONTH(B86)-MONTH($B$12)),((YEAR(B86)-YEAR(VLOOKUP(I86,$C$3:$L$6,8,0)))*12+MONTH(B86)-MONTH(VLOOKUP(I86,$C$3:$L$6,8,0))))*VLOOKUP(I86,$C$3:$L$6,7,0),0)),""),"") -> 
C87: =IF(I86<>Variables!$B$1,IF(H86<>0,C86,I86),"") ->  | F87: =IF(C87<>"",IF(OR(VLOOKUP(C87,$C$3:$L$6,5,0)=Variables!$B$5,B87>VLOOKUP(C87,$C$3:$L$6,8,0)),-D87*VLOOKUP(C87,$C$3:$L$6,6,0)/12,0),"") ->  | G87: =IF(I87<>Variables!$B$1,IF(C87<>"",$I$9-E87-F87,""),-D87) ->  | I87: =IF(C87<>"",IF(D87+$I$9-E87-F87>=0,IF(ISERROR(INDEX($C$3:$C$6,MATCH(C87,$C$3:$C$6,0)+1,0)),Variables!$B$1,INDEX($C$3:$C$6,MATCH(C87,$C$3:$C$6,0)+1,0)),""),"") ->  | J87: =IF(ISERROR(VLOOKUP(I87,$C$3:$L$6,5,0)),"",IF(OR(VLOOKUP(I87,$C$3:$L$6,5,0)=Variables!$B$5,B87>VLOOKUP(I87,$C$3:$L$6,8,0)),IF(VLOOKUP(I87,$C$3:$L$6,5,0)=Variables!$B$5,((YEAR(B87)-YEAR($B$12))*12+MONTH(B87)-MONTH($B$12)),((YEAR(B87)-YEAR(VLOOKUP(I87,$C$3:$L$6,8,0)))*12+MONTH(B87)-MONTH(VLOOKUP(I87,$C$3:$L$6,8,0))))*(VLOOKUP(I87,$C$3:$L$6,10,0)*VLOOKUP(I87,$C$3:$L$6,6,0)/12),0)) ->  | K87: =IF(C87<>"",IF(I87<>"",IF(ISERROR(VLOOKUP(I87,$C$3:$L$6,10,0)),"",VLOOKUP(I87,$C$3:$L$6,10,0)+J87+IF(OR(VLOOKUP(I87,$C$3:$L$6,5,0)=Variables!$B$5,B87>VLOOKUP(I87,$C$3:$L$6,8,0)),IF(VLOOKUP(I87,$C$3:$L$6,5,0)=Variables!$B$5,((YEAR(B87)-YEAR($B$12))*12+MONTH(B87)-MONTH($B$12)),((YEAR(B87)-YEAR(VLOOKUP(I87,$C$3:$L$6,8,0)))*12+MONTH(B87)-MONTH(VLOOKUP(I87,$C$3:$L$6,8,0))))*VLOOKUP(I87,$C$3:$L$6,7,0),0)),""),"") -> 
C88: =IF(I87<>Variables!$B$1,IF(H87<>0,C87,I87),"") ->  | F88: =IF(C88<>"",IF(OR(VLOOKUP(C88,$C$3:$L$6,5,0)=Variables!$B$5,B88>VLOOKUP(C88,$C$3:$L$6,8,0)),-D88*VLOOKUP(C88,$C$3:$L$6,6,0)/12,0),"") ->  | G88: =IF(I88<>Variables!$B$1,IF(C88<>"",$I$9-E88-F88,""),-D88) ->  | I88: =IF(C88<>"",IF(D88+$I$9-E88-F88>=0,IF(ISERROR(INDEX($C$3:$C$6,MATCH(C88,$C$3:$C$6,0)+1,0)),Variables!$B$1,INDEX($C$3:$C$6,MATCH(C88,$C$3:$C$6,0)+1,0)),""),"") ->  | J88: =IF(ISERROR(VLOOKUP(I88,$C$3:$L$6,5,0)),"",IF(OR(VLOOKUP(I88,$C$3:$L$6,5,0)=Variables!$B$5,B88>VLOOKUP(I88,$C$3:$L$6,8,0)),IF(VLOOKUP(I88,$C$3:$L$6,5,0)=Variables!$B$5,((YEAR(B88)-YEAR($B$12))*12+MONTH(B88)-MONTH($B$12)),((YEAR(B88)-YEAR(VLOOKUP(I88,$C$3:$L$6,8,0)))*12+MONTH(B88)-MONTH(VLOOKUP(I88,$C$3:$L$6,8,0))))*(VLOOKUP(I88,$C$3:$L$6,10,0)*VLOOKUP(I88,$C$3:$L$6,6,0)/12),0)) ->  | K88: =IF(C88<>"",IF(I88<>"",IF(ISERROR(VLOOKUP(I88,$C$3:$L$6,10,0)),"",VLOOKUP(I88,$C$3:$L$6,10,0)+J88+IF(OR(VLOOKUP(I88,$C$3:$L$6,5,0)=Variables!$B$5,B88>VLOOKUP(I88,$C$3:$L$6,8,0)),IF(VLOOKUP(I88,$C$3:$L$6,5,0)=Variables!$B$5,((YEAR(B88)-YEAR($B$12))*12+MONTH(B88)-MONTH($B$12)),((YEAR(B88)-YEAR(VLOOKUP(I88,$C$3:$L$6,8,0)))*12+MONTH(B88)-MONTH(VLOOKUP(I88,$C$3:$L$6,8,0))))*VLOOKUP(I88,$C$3:$L$6,7,0),0)),""),"") -> 
C89: =IF(I88<>Variables!$B$1,IF(H88<>0,C88,I88),"") ->  | F89: =IF(C89<>"",IF(OR(VLOOKUP(C89,$C$3:$L$6,5,0)=Variables!$B$5,B89>VLOOKUP(C89,$C$3:$L$6,8,0)),-D89*VLOOKUP(C89,$C$3:$L$6,6,0)/12,0),"") ->  | G89: =IF(I89<>Variables!$B$1,IF(C89<>"",$I$9-E89-F89,""),-D89) ->  | I89: =IF(C89<>"",IF(D89+$I$9-E89-F89>=0,IF(ISERROR(INDEX($C$3:$C$6,MATCH(C89,$C$3:$C$6,0)+1,0)),Variables!$B$1,INDEX($C$3:$C$6,MATCH(C89,$C$3:$C$6,0)+1,0)),""),"") ->  | J89: =IF(ISERROR(VLOOKUP(I89,$C$3:$L$6,5,0)),"",IF(OR(VLOOKUP(I89,$C$3:$L$6,5,0)=Variables!$B$5,B89>VLOOKUP(I89,$C$3:$L$6,8,0)),IF(VLOOKUP(I89,$C$3:$L$6,5,0)=Variables!$B$5,((YEAR(B89)-YEAR($B$12))*12+MONTH(B89)-MONTH($B$12)),((YEAR(B89)-YEAR(VLOOKUP(I89,$C$3:$L$6,8,0)))*12+MONTH(B89)-MONTH(VLOOKUP(I89,$C$3:$L$6,8,0))))*(VLOOKUP(I89,$C$3:$L$6,10,0)*VLOOKUP(I89,$C$3:$L$6,6,0)/12),0)) ->  | K89: =IF(C89<>"",IF(I89<>"",IF(ISERROR(VLOOKUP(I89,$C$3:$L$6,10,0)),"",VLOOKUP(I89,$C$3:$L$6,10,0)+J89+IF(OR(VLOOKUP(I89,$C$3:$L$6,5,0)=Variables!$B$5,B89>VLOOKUP(I89,$C$3:$L$6,8,0)),IF(VLOOKUP(I89,$C$3:$L$6,5,0)=Variables!$B$5,((YEAR(B89)-YEAR($B$12))*12+MONTH(B89)-MONTH($B$12)),((YEAR(B89)-YEAR(VLOOKUP(I89,$C$3:$L$6,8,0)))*12+MONTH(B89)-MONTH(VLOOKUP(I89,$C$3:$L$6,8,0))))*VLOOKUP(I89,$C$3:$L$6,7,0),0)),""),"") -> 
C90: =IF(I89<>Variables!$B$1,IF(H89<>0,C89,I89),"") ->  | F90: =IF(C90<>"",IF(OR(VLOOKUP(C90,$C$3:$L$6,5,0)=Variables!$B$5,B90>VLOOKUP(C90,$C$3:$L$6,8,0)),-D90*VLOOKUP(C90,$C$3:$L$6,6,0)/12,0),"") ->  | G90: =IF(I90<>Variables!$B$1,IF(C90<>"",$I$9-E90-F90,""),-D90) ->  | I90: =IF(C90<>"",IF(D90+$I$9-E90-F90>=0,IF(ISERROR(INDEX($C$3:$C$6,MATCH(C90,$C$3:$C$6,0)+1,0)),Variables!$B$1,INDEX($C$3:$C$6,MATCH(C90,$C$3:$C$6,0)+1,0)),""),"") ->  | J90: =IF(ISERROR(VLOOKUP(I90,$C$3:$L$6,5,0)),"",IF(OR(VLOOKUP(I90,$C$3:$L$6,5,0)=Variables!$B$5,B90>VLOOKUP(I90,$C$3:$L$6,8,0)),IF(VLOOKUP(I90,$C$3:$L$6,5,0)=Variables!$B$5,((YEAR(B90)-YEAR($B$12))*12+MONTH(B90)-MONTH($B$12)),((YEAR(B90)-YEAR(VLOOKUP(I90,$C$3:$L$6,8,0)))*12+MONTH(B90)-MONTH(VLOOKUP(I90,$C$3:$L$6,8,0))))*(VLOOKUP(I90,$C$3:$L$6,10,0)*VLOOKUP(I90,$C$3:$L$6,6,0)/12),0)) ->  | K90: =IF(C90<>"",IF(I90<>"",IF(ISERROR(VLOOKUP(I90,$C$3:$L$6,10,0)),"",VLOOKUP(I90,$C$3:$L$6,10,0)+J90+IF(OR(VLOOKUP(I90,$C$3:$L$6,5,0)=Variables!$B$5,B90>VLOOKUP(I90,$C$3:$L$6,8,0)),IF(VLOOKUP(I90,$C$3:$L$6,5,0)=Variables!$B$5,((YEAR(B90)-YEAR($B$12))*12+MONTH(B90)-MONTH($B$12)),((YEAR(B90)-YEAR(VLOOKUP(I90,$C$3:$L$6,8,0)))*12+MONTH(B90)-MONTH(VLOOKUP(I90,$C$3:$L$6,8,0))))*VLOOKUP(I90,$C$3:$L$6,7,0),0)),""),"") -> 
C91: =IF(I90<>Variables!$B$1,IF(H90<>0,C90,I90),"") ->  | F91: =IF(C91<>"",IF(OR(VLOOKUP(C91,$C$3:$L$6,5,0)=Variables!$B$5,B91>VLOOKUP(C91,$C$3:$L$6,8,0)),-D91*VLOOKUP(C91,$C$3:$L$6,6,0)/12,0),"") ->  | G91: =IF(I91<>Variables!$B$1,IF(C91<>"",$I$9-E91-F91,""),-D91) ->  | I91: =IF(C91<>"",IF(D91+$I$9-E91-F91>=0,IF(ISERROR(INDEX($C$3:$C$6,MATCH(C91,$C$3:$C$6,0)+1,0)),Variables!$B$1,INDEX($C$3:$C$6,MATCH(C91,$C$3:$C$6,0)+1,0)),""),"") ->  | J91: =IF(ISERROR(VLOOKUP(I91,$C$3:$L$6,5,0)),"",IF(OR(VLOOKUP(I91,$C$3:$L$6,5,0)=Variables!$B$5,B91>VLOOKUP(I91,$C$3:$L$6,8,0)),IF(VLOOKUP(I91,$C$3:$L$6,5,0)=Variables!$B$5,((YEAR(B91)-YEAR($B$12))*12+MONTH(B91)-MONTH($B$12)),((YEAR(B91)-YEAR(VLOOKUP(I91,$C$3:$L$6,8,0)))*12+MONTH(B91)-MONTH(VLOOKUP(I91,$C$3:$L$6,8,0))))*(VLOOKUP(I91,$C$3:$L$6,10,0)*VLOOKUP(I91,$C$3:$L$6,6,0)/12),0)) ->  | K91: =IF(C91<>"",IF(I91<>"",IF(ISERROR(VLOOKUP(I91,$C$3:$L$6,10,0)),"",VLOOKUP(I91,$C$3:$L$6,10,0)+J91+IF(OR(VLOOKUP(I91,$C$3:$L$6,5,0)=Variables!$B$5,B91>VLOOKUP(I91,$C$3:$L$6,8,0)),IF(VLOOKUP(I91,$C$3:$L$6,5,0)=Variables!$B$5,((YEAR(B91)-YEAR($B$12))*12+MONTH(B91)-MONTH($B$12)),((YEAR(B91)-YEAR(VLOOKUP(I91,$C$3:$L$6,8,0)))*12+MONTH(B91)-MONTH(VLOOKUP(I91,$C$3:$L$6,8,0))))*VLOOKUP(I91,$C$3:$L$6,7,0),0)),""),"") -> 
C92: =IF(I91<>Variables!$B$1,IF(H91<>0,C91,I91),"") ->  | D92: =IF(C92<>"",IF(H91<>0,H91,L91),"") ->  | E92: =IF(C92<>"",MINPAYMENT(C92,ROW(B92),COLUMN(B92)),"") ->  | F92: =IF(C92<>"",IF(OR(VLOOKUP(C92,$C$3:$L$6,5,0)=Variables!$B$5,B92>VLOOKUP(C92,$C$3:$L$6,8,0)),-D92*VLOOKUP(C92,$C$3:$L$6,6,0)/12,0),"") ->  | G92: =IF(I92<>Variables!$B$1,IF(C92<>"",$I$9-E92-F92,""),-D92) ->  | I92: =IF(C92<>"",IF(D92+$I$9-E92-F92>=0,IF(ISERROR(INDEX($C$3:$C$6,MATCH(C92,$C$3:$C$6,0)+1,0)),Variables!$B$1,INDEX($C$3:$C$6,MATCH(C92,$C$3:$C$6,0)+1,0)),""),"") ->  | J92: =IF(ISERROR(VLOOKUP(I92,$C$3:$L$6,5,0)),"",IF(OR(VLOOKUP(I92,$C$3:$L$6,5,0)=Variables!$B$5,B92>VLOOKUP(I92,$C$3:$L$6,8,0)),IF(VLOOKUP(I92,$C$3:$L$6,5,0)=Variables!$B$5,((YEAR(B92)-YEAR($B$12))*12+MONTH(B92)-MONTH($B$12)),((YEAR(B92)-YEAR(VLOOKUP(I92,$C$3:$L$6,8,0)))*12+MONTH(B92)-MONTH(VLOOKUP(I92,$C$3:$L$6,8,0))))*(VLOOKUP(I92,$C$3:$L$6,10,0)*VLOOKUP(I92,$C$3:$L$6,6,0)/12),0)) ->  | K92: =IF(C92<>"",IF(I92<>"",IF(ISERROR(VLOOKUP(I92,$C$3:$L$6,10,0)),"",VLOOKUP(I92,$C$3:$L$6,10,0)+J92+IF(OR(VLOOKUP(I92,$C$3:$L$6,5,0)=Variables!$B$5,B92>VLOOKUP(I92,$C$3:$L$6,8,0)),IF(VLOOKUP(I92,$C$3:$L$6,5,0)=Variables!$B$5,((YEAR(B92)-YEAR($B$12))*12+MONTH(B92)-MONTH($B$12)),((YEAR(B92)-YEAR(VLOOKUP(I92,$C$3:$L$6,8,0)))*12+MONTH(B92)-MONTH(VLOOKUP(I92,$C$3:$L$6,8,0))))*VLOOKUP(I92,$C$3:$L$6,7,0),0)),""),"") ->  | L92: =IF(C92<>"",IF(ISERROR(IF(D92+G92>=0,K92+D92+G92,"")),"",IF(D92+G92>=0,K92+D92+G92,"")),"") -> 
B93: =IF(C93<>"",DATE(YEAR(B92),MONTH(B92)+1,DAY(B92)),"") ->  | C93: =IF(I92<>Variables!$B$1,IF(H92<>0,C92,I92),"") ->  | F93: =IF(C93<>"",IF(OR(VLOOKUP(C93,$C$3:$L$6,5,0)=Variables!$B$5,B93>VLOOKUP(C93,$C$3:$L$6,8,0)),-D93*VLOOKUP(C93,$C$3:$L$6,6,0)/12,0),"") ->  | G93: =IF(I93<>Variables!$B$1,IF(C93<>"",$I$9-E93-F93,""),-D93) ->  | H93: =IF(C93<>"",IF(D93+G93<0,D93+G93,0),"") ->  | I93: =IF(C93<>"",IF(D93+$I$9-E93-F93>=0,IF(ISERROR(INDEX($C$3:$C$6,MATCH(C93,$C$3:$C$6,0)+1,0)),Variables!$B$1,INDEX($C$3:$C$6,MATCH(C93,$C$3:$C$6,0)+1,0)),""),"") ->  | J93: =IF(ISERROR(VLOOKUP(I93,$C$3:$L$6,5,0)),"",IF(OR(VLOOKUP(I93,$C$3:$L$6,5,0)=Variables!$B$5,B93>VLOOKUP(I93,$C$3:$L$6,8,0)),IF(VLOOKUP(I93,$C$3:$L$6,5,0)=Variables!$B$5,((YEAR(B93)-YEAR($B$12))*12+MONTH(B93)-MONTH($B$12)),((YEAR(B93)-YEAR(VLOOKUP(I93,$C$3:$L$6,8,0)))*12+MONTH(B93)-MONTH(VLOOKUP(I93,$C$3:$L$6,8,0))))*(VLOOKUP(I93,$C$3:$L$6,10,0)*VLOOKUP(I93,$C$3:$L$6,6,0)/12),0)) ->  | K93: =IF(C93<>"",IF(I93<>"",IF(ISERROR(VLOOKUP(I93,$C$3:$L$6,10,0)),"",VLOOKUP(I93,$C$3:$L$6,10,0)+J93+IF(OR(VLOOKUP(I93,$C$3:$L$6,5,0)=Variables!$B$5,B93>VLOOKUP(I93,$C$3:$L$6,8,0)),IF(VLOOKUP(I93,$C$3:$L$6,5,0)=Variables!$B$5,((YEAR(B93)-YEAR($B$12))*12+MONTH(B93)-MONTH($B$12)),((YEAR(B93)-YEAR(VLOOKUP(I93,$C$3:$L$6,8,0)))*12+MONTH(B93)-MONTH(VLOOKUP(I93,$C$3:$L$6,8,0))))*VLOOKUP(I93,$C$3:$L$6,7,0),0)),""),"") -> 
C94: =IF(I93<>Variables!$B$1,IF(H93<>0,C93,I93),"") ->  | F94: =IF(C94<>"",IF(OR(VLOOKUP(C94,$C$3:$L$6,5,0)=Variables!$B$5,B94>VLOOKUP(C94,$C$3:$L$6,8,0)),-D94*VLOOKUP(C94,$C$3:$L$6,6,0)/12,0),"") ->  | G94: =IF(I94<>Variables!$B$1,IF(C94<>"",$I$9-E94-F94,""),-D94) ->  | I94: =IF(C94<>"",IF(D94+$I$9-E94-F94>=0,IF(ISERROR(INDEX($C$3:$C$6,MATCH(C94,$C$3:$C$6,0)+1,0)),Variables!$B$1,INDEX($C$3:$C$6,MATCH(C94,$C$3:$C$6,0)+1,0)),""),"") ->  | J94: =IF(ISERROR(VLOOKUP(I94,$C$3:$L$6,5,0)),"",IF(OR(VLOOKUP(I94,$C$3:$L$6,5,0)=Variables!$B$5,B94>VLOOKUP(I94,$C$3:$L$6,8,0)),IF(VLOOKUP(I94,$C$3:$L$6,5,0)=Variables!$B$5,((YEAR(B94)-YEAR($B$12))*12+MONTH(B94)-MONTH($B$12)),((YEAR(B94)-YEAR(VLOOKUP(I94,$C$3:$L$6,8,0)))*12+MONTH(B94)-MONTH(VLOOKUP(I94,$C$3:$L$6,8,0))))*(VLOOKUP(I94,$C$3:$L$6,10,0)*VLOOKUP(I94,$C$3:$L$6,6,0)/12),0)) ->  | K94: =IF(C94<>"",IF(I94<>"",IF(ISERROR(VLOOKUP(I94,$C$3:$L$6,10,0)),"",VLOOKUP(I94,$C$3:$L$6,10,0)+J94+IF(OR(VLOOKUP(I94,$C$3:$L$6,5,0)=Variables!$B$5,B94>VLOOKUP(I94,$C$3:$L$6,8,0)),IF(VLOOKUP(I94,$C$3:$L$6,5,0)=Variables!$B$5,((YEAR(B94)-YEAR($B$12))*12+MONTH(B94)-MONTH($B$12)),((YEAR(B94)-YEAR(VLOOKUP(I94,$C$3:$L$6,8,0)))*12+MONTH(B94)-MONTH(VLOOKUP(I94,$C$3:$L$6,8,0))))*VLOOKUP(I94,$C$3:$L$6,7,0),0)),""),"") -> 
C95: =IF(I94<>Variables!$B$1,IF(H94<>0,C94,I94),"") ->  | F95: =IF(C95<>"",IF(OR(VLOOKUP(C95,$C$3:$L$6,5,0)=Variables!$B$5,B95>VLOOKUP(C95,$C$3:$L$6,8,0)),-D95*VLOOKUP(C95,$C$3:$L$6,6,0)/12,0),"") ->  | G95: =IF(I95<>Variables!$B$1,IF(C95<>"",$I$9-E95-F95,""),-D95) ->  | I95: =IF(C95<>"",IF(D95+$I$9-E95-F95>=0,IF(ISERROR(INDEX($C$3:$C$6,MATCH(C95,$C$3:$C$6,0)+1,0)),Variables!$B$1,INDEX($C$3:$C$6,MATCH(C95,$C$3:$C$6,0)+1,0)),""),"") ->  | J95: =IF(ISERROR(VLOOKUP(I95,$C$3:$L$6,5,0)),"",IF(OR(VLOOKUP(I95,$C$3:$L$6,5,0)=Variables!$B$5,B95>VLOOKUP(I95,$C$3:$L$6,8,0)),IF(VLOOKUP(I95,$C$3:$L$6,5,0)=Variables!$B$5,((YEAR(B95)-YEAR($B$12))*12+MONTH(B95)-MONTH($B$12)),((YEAR(B95)-YEAR(VLOOKUP(I95,$C$3:$L$6,8,0)))*12+MONTH(B95)-MONTH(VLOOKUP(I95,$C$3:$L$6,8,0))))*(VLOOKUP(I95,$C$3:$L$6,10,0)*VLOOKUP(I95,$C$3:$L$6,6,0)/12),0)) ->  | K95: =IF(C95<>"",IF(I95<>"",IF(ISERROR(VLOOKUP(I95,$C$3:$L$6,10,0)),"",VLOOKUP(I95,$C$3:$L$6,10,0)+J95+IF(OR(VLOOKUP(I95,$C$3:$L$6,5,0)=Variables!$B$5,B95>VLOOKUP(I95,$C$3:$L$6,8,0)),IF(VLOOKUP(I95,$C$3:$L$6,5,0)=Variables!$B$5,((YEAR(B95)-YEAR($B$12))*12+MONTH(B95)-MONTH($B$12)),((YEAR(B95)-YEAR(VLOOKUP(I95,$C$3:$L$6,8,0)))*12+MONTH(B95)-MONTH(VLOOKUP(I95,$C$3:$L$6,8,0))))*VLOOKUP(I95,$C$3:$L$6,7,0),0)),""),"") -> 
C96: =IF(I95<>Variables!$B$1,IF(H95<>0,C95,I95),"") ->  | F96: =IF(C96<>"",IF(OR(VLOOKUP(C96,$C$3:$L$6,5,0)=Variables!$B$5,B96>VLOOKUP(C96,$C$3:$L$6,8,0)),-D96*VLOOKUP(C96,$C$3:$L$6,6,0)/12,0),"") ->  | G96: =IF(I96<>Variables!$B$1,IF(C96<>"",$I$9-E96-F96,""),-D96) ->  | I96: =IF(C96<>"",IF(D96+$I$9-E96-F96>=0,IF(ISERROR(INDEX($C$3:$C$6,MATCH(C96,$C$3:$C$6,0)+1,0)),Variables!$B$1,INDEX($C$3:$C$6,MATCH(C96,$C$3:$C$6,0)+1,0)),""),"") ->  | J96: =IF(ISERROR(VLOOKUP(I96,$C$3:$L$6,5,0)),"",IF(OR(VLOOKUP(I96,$C$3:$L$6,5,0)=Variables!$B$5,B96>VLOOKUP(I96,$C$3:$L$6,8,0)),IF(VLOOKUP(I96,$C$3:$L$6,5,0)=Variables!$B$5,((YEAR(B96)-YEAR($B$12))*12+MONTH(B96)-MONTH($B$12)),((YEAR(B96)-YEAR(VLOOKUP(I96,$C$3:$L$6,8,0)))*12+MONTH(B96)-MONTH(VLOOKUP(I96,$C$3:$L$6,8,0))))*(VLOOKUP(I96,$C$3:$L$6,10,0)*VLOOKUP(I96,$C$3:$L$6,6,0)/12),0)) ->  | K96: =IF(C96<>"",IF(I96<>"",IF(ISERROR(VLOOKUP(I96,$C$3:$L$6,10,0)),"",VLOOKUP(I96,$C$3:$L$6,10,0)+J96+IF(OR(VLOOKUP(I96,$C$3:$L$6,5,0)=Variables!$B$5,B96>VLOOKUP(I96,$C$3:$L$6,8,0)),IF(VLOOKUP(I96,$C$3:$L$6,5,0)=Variables!$B$5,((YEAR(B96)-YEAR($B$12))*12+MONTH(B96)-MONTH($B$12)),((YEAR(B96)-YEAR(VLOOKUP(I96,$C$3:$L$6,8,0)))*12+MONTH(B96)-MONTH(VLOOKUP(I96,$C$3:$L$6,8,0))))*VLOOKUP(I96,$C$3:$L$6,7,0),0)),""),"") -> 
C97: =IF(I96<>Variables!$B$1,IF(H96<>0,C96,I96),"") ->  | F97: =IF(C97<>"",IF(OR(VLOOKUP(C97,$C$3:$L$6,5,0)=Variables!$B$5,B97>VLOOKUP(C97,$C$3:$L$6,8,0)),-D97*VLOOKUP(C97,$C$3:$L$6,6,0)/12,0),"") ->  | G97: =IF(I97<>Variables!$B$1,IF(C97<>"",$I$9-E97-F97,""),-D97) ->  | I97: =IF(C97<>"",IF(D97+$I$9-E97-F97>=0,IF(ISERROR(INDEX($C$3:$C$6,MATCH(C97,$C$3:$C$6,0)+1,0)),Variables!$B$1,INDEX($C$3:$C$6,MATCH(C97,$C$3:$C$6,0)+1,0)),""),"") ->  | J97: =IF(ISERROR(VLOOKUP(I97,$C$3:$L$6,5,0)),"",IF(OR(VLOOKUP(I97,$C$3:$L$6,5,0)=Variables!$B$5,B97>VLOOKUP(I97,$C$3:$L$6,8,0)),IF(VLOOKUP(I97,$C$3:$L$6,5,0)=Variables!$B$5,((YEAR(B97)-YEAR($B$12))*12+MONTH(B97)-MONTH($B$12)),((YEAR(B97)-YEAR(VLOOKUP(I97,$C$3:$L$6,8,0)))*12+MONTH(B97)-MONTH(VLOOKUP(I97,$C$3:$L$6,8,0))))*(VLOOKUP(I97,$C$3:$L$6,10,0)*VLOOKUP(I97,$C$3:$L$6,6,0)/12),0)) ->  | K97: =IF(C97<>"",IF(I97<>"",IF(ISERROR(VLOOKUP(I97,$C$3:$L$6,10,0)),"",VLOOKUP(I97,$C$3:$L$6,10,0)+J97+IF(OR(VLOOKUP(I97,$C$3:$L$6,5,0)=Variables!$B$5,B97>VLOOKUP(I97,$C$3:$L$6,8,0)),IF(VLOOKUP(I97,$C$3:$L$6,5,0)=Variables!$B$5,((YEAR(B97)-YEAR($B$12))*12+MONTH(B97)-MONTH($B$12)),((YEAR(B97)-YEAR(VLOOKUP(I97,$C$3:$L$6,8,0)))*12+MONTH(B97)-MONTH(VLOOKUP(I97,$C$3:$L$6,8,0))))*VLOOKUP(I97,$C$3:$L$6,7,0),0)),""),"") -> 
C98: =IF(I97<>Variables!$B$1,IF(H97<>0,C97,I97),"") ->  | F98: =IF(C98<>"",IF(OR(VLOOKUP(C98,$C$3:$L$6,5,0)=Variables!$B$5,B98>VLOOKUP(C98,$C$3:$L$6,8,0)),-D98*VLOOKUP(C98,$C$3:$L$6,6,0)/12,0),"") ->  | G98: =IF(I98<>Variables!$B$1,IF(C98<>"",$I$9-E98-F98,""),-D98) ->  | I98: =IF(C98<>"",IF(D98+$I$9-E98-F98>=0,IF(ISERROR(INDEX($C$3:$C$6,MATCH(C98,$C$3:$C$6,0)+1,0)),Variables!$B$1,INDEX($C$3:$C$6,MATCH(C98,$C$3:$C$6,0)+1,0)),""),"") ->  | J98: =IF(ISERROR(VLOOKUP(I98,$C$3:$L$6,5,0)),"",IF(OR(VLOOKUP(I98,$C$3:$L$6,5,0)=Variables!$B$5,B98>VLOOKUP(I98,$C$3:$L$6,8,0)),IF(VLOOKUP(I98,$C$3:$L$6,5,0)=Variables!$B$5,((YEAR(B98)-YEAR($B$12))*12+MONTH(B98)-MONTH($B$12)),((YEAR(B98)-YEAR(VLOOKUP(I98,$C$3:$L$6,8,0)))*12+MONTH(B98)-MONTH(VLOOKUP(I98,$C$3:$L$6,8,0))))*(VLOOKUP(I98,$C$3:$L$6,10,0)*VLOOKUP(I98,$C$3:$L$6,6,0)/12),0)) ->  | K98: =IF(C98<>"",IF(I98<>"",IF(ISERROR(VLOOKUP(I98,$C$3:$L$6,10,0)),"",VLOOKUP(I98,$C$3:$L$6,10,0)+J98+IF(OR(VLOOKUP(I98,$C$3:$L$6,5,0)=Variables!$B$5,B98>VLOOKUP(I98,$C$3:$L$6,8,0)),IF(VLOOKUP(I98,$C$3:$L$6,5,0)=Variables!$B$5,((YEAR(B98)-YEAR($B$12))*12+MONTH(B98)-MONTH($B$12)),((YEAR(B98)-YEAR(VLOOKUP(I98,$C$3:$L$6,8,0)))*12+MONTH(B98)-MONTH(VLOOKUP(I98,$C$3:$L$6,8,0))))*VLOOKUP(I98,$C$3:$L$6,7,0),0)),""),"") -> 
C99: =IF(I98<>Variables!$B$1,IF(H98<>0,C98,I98),"") ->  | F99: =IF(C99<>"",IF(OR(VLOOKUP(C99,$C$3:$L$6,5,0)=Variables!$B$5,B99>VLOOKUP(C99,$C$3:$L$6,8,0)),-D99*VLOOKUP(C99,$C$3:$L$6,6,0)/12,0),"") ->  | G99: =IF(I99<>Variables!$B$1,IF(C99<>"",$I$9-E99-F99,""),-D99) ->  | I99: =IF(C99<>"",IF(D99+$I$9-E99-F99>=0,IF(ISERROR(INDEX($C$3:$C$6,MATCH(C99,$C$3:$C$6,0)+1,0)),Variables!$B$1,INDEX($C$3:$C$6,MATCH(C99,$C$3:$C$6,0)+1,0)),""),"") ->  | J99: =IF(ISERROR(VLOOKUP(I99,$C$3:$L$6,5,0)),"",IF(OR(VLOOKUP(I99,$C$3:$L$6,5,0)=Variables!$B$5,B99>VLOOKUP(I99,$C$3:$L$6,8,0)),IF(VLOOKUP(I99,$C$3:$L$6,5,0)=Variables!$B$5,((YEAR(B99)-YEAR($B$12))*12+MONTH(B99)-MONTH($B$12)),((YEAR(B99)-YEAR(VLOOKUP(I99,$C$3:$L$6,8,0)))*12+MONTH(B99)-MONTH(VLOOKUP(I99,$C$3:$L$6,8,0))))*(VLOOKUP(I99,$C$3:$L$6,10,0)*VLOOKUP(I99,$C$3:$L$6,6,0)/12),0)) ->  | K99: =IF(C99<>"",IF(I99<>"",IF(ISERROR(VLOOKUP(I99,$C$3:$L$6,10,0)),"",VLOOKUP(I99,$C$3:$L$6,10,0)+J99+IF(OR(VLOOKUP(I99,$C$3:$L$6,5,0)=Variables!$B$5,B99>VLOOKUP(I99,$C$3:$L$6,8,0)),IF(VLOOKUP(I99,$C$3:$L$6,5,0)=Variables!$B$5,((YEAR(B99)-YEAR($B$12))*12+MONTH(B99)-MONTH($B$12)),((YEAR(B99)-YEAR(VLOOKUP(I99,$C$3:$L$6,8,0)))*12+MONTH(B99)-MONTH(VLOOKUP(I99,$C$3:$L$6,8,0))))*VLOOKUP(I99,$C$3:$L$6,7,0),0)),""),"") -> 
C100: =IF(I99<>Variables!$B$1,IF(H99<>0,C99,I99),"") ->  | F100: =IF(C100<>"",IF(OR(VLOOKUP(C100,$C$3:$L$6,5,0)=Variables!$B$5,B100>VLOOKUP(C100,$C$3:$L$6,8,0)),-D100*VLOOKUP(C100,$C$3:$L$6,6,0)/12,0),"") ->  | G100: =IF(I100<>Variables!$B$1,IF(C100<>"",$I$9-E100-F100,""),-D100) ->  | I100: =IF(C100<>"",IF(D100+$I$9-E100-F100>=0,IF(ISERROR(INDEX($C$3:$C$6,MATCH(C100,$C$3:$C$6,0)+1,0)),Variables!$B$1,INDEX($C$3:$C$6,MATCH(C100,$C$3:$C$6,0)+1,0)),""),"") ->  | J100: =IF(ISERROR(VLOOKUP(I100,$C$3:$L$6,5,0)),"",IF(OR(VLOOKUP(I100,$C$3:$L$6,5,0)=Variables!$B$5,B100>VLOOKUP(I100,$C$3:$L$6,8,0)),IF(VLOOKUP(I100,$C$3:$L$6,5,0)=Variables!$B$5,((YEAR(B100)-YEAR($B$12))*12+MONTH(B100)-MONTH($B$12)),((YEAR(B100)-YEAR(VLOOKUP(I100,$C$3:$L$6,8,0)))*12+MONTH(B100)-MONTH(VLOOKUP(I100,$C$3:$L$6,8,0))))*(VLOOKUP(I100,$C$3:$L$6,10,0)*VLOOKUP(I100,$C$3:$L$6,6,0)/12),0)) ->  | K100: =IF(C100<>"",IF(I100<>"",IF(ISERROR(VLOOKUP(I100,$C$3:$L$6,10,0)),"",VLOOKUP(I100,$C$3:$L$6,10,0)+J100+IF(OR(VLOOKUP(I100,$C$3:$L$6,5,0)=Variables!$B$5,B100>VLOOKUP(I100,$C$3:$L$6,8,0)),IF(VLOOKUP(I100,$C$3:$L$6,5,0)=Variables!$B$5,((YEAR(B100)-YEAR($B$12))*12+MONTH(B100)-MONTH($B$12)),((YEAR(B100)-YEAR(VLOOKUP(I100,$C$3:$L$6,8,0)))*12+MONTH(B100)-MONTH(VLOOKUP(I100,$C$3:$L$6,8,0))))*VLOOKUP(I100,$C$3:$L$6,7,0),0)),""),"") -> 
C101: =IF(I100<>Variables!$B$1,IF(H100<>0,C100,I100),"") ->  | F101: =IF(C101<>"",IF(OR(VLOOKUP(C101,$C$3:$L$6,5,0)=Variables!$B$5,B101>VLOOKUP(C101,$C$3:$L$6,8,0)),-D101*VLOOKUP(C101,$C$3:$L$6,6,0)/12,0),"") ->  | G101: =IF(I101<>Variables!$B$1,IF(C101<>"",$I$9-E101-F101,""),-D101) ->  | I101: =IF(C101<>"",IF(D101+$I$9-E101-F101>=0,IF(ISERROR(INDEX($C$3:$C$6,MATCH(C101,$C$3:$C$6,0)+1,0)),Variables!$B$1,INDEX($C$3:$C$6,MATCH(C101,$C$3:$C$6,0)+1,0)),""),"") ->  | J101: =IF(ISERROR(VLOOKUP(I101,$C$3:$L$6,5,0)),"",IF(OR(VLOOKUP(I101,$C$3:$L$6,5,0)=Variables!$B$5,B101>VLOOKUP(I101,$C$3:$L$6,8,0)),IF(VLOOKUP(I101,$C$3:$L$6,5,0)=Variables!$B$5,((YEAR(B101)-YEAR($B$12))*12+MONTH(B101)-MONTH($B$12)),((YEAR(B101)-YEAR(VLOOKUP(I101,$C$3:$L$6,8,0)))*12+MONTH(B101)-MONTH(VLOOKUP(I101,$C$3:$L$6,8,0))))*(VLOOKUP(I101,$C$3:$L$6,10,0)*VLOOKUP(I101,$C$3:$L$6,6,0)/12),0)) ->  | K101: =IF(C101<>"",IF(I101<>"",IF(ISERROR(VLOOKUP(I101,$C$3:$L$6,10,0)),"",VLOOKUP(I101,$C$3:$L$6,10,0)+J101+IF(OR(VLOOKUP(I101,$C$3:$L$6,5,0)=Variables!$B$5,B101>VLOOKUP(I101,$C$3:$L$6,8,0)),IF(VLOOKUP(I101,$C$3:$L$6,5,0)=Variables!$B$5,((YEAR(B101)-YEAR($B$12))*12+MONTH(B101)-MONTH($B$12)),((YEAR(B101)-YEAR(VLOOKUP(I101,$C$3:$L$6,8,0)))*12+MONTH(B101)-MONTH(VLOOKUP(I101,$C$3:$L$6,8,0))))*VLOOKUP(I101,$C$3:$L$6,7,0),0)),""),"") -> 
C102: =IF(I101<>Variables!$B$1,IF(H101<>0,C101,I101),"") ->  | F102: =IF(C102<>"",IF(OR(VLOOKUP(C102,$C$3:$L$6,5,0)=Variables!$B$5,B102>VLOOKUP(C102,$C$3:$L$6,8,0)),-D102*VLOOKUP(C102,$C$3:$L$6,6,0)/12,0),"") ->  | G102: =IF(I102<>Variables!$B$1,IF(C102<>"",$I$9-E102-F102,""),-D102) ->  | I102: =IF(C102<>"",IF(D102+$I$9-E102-F102>=0,IF(ISERROR(INDEX($C$3:$C$6,MATCH(C102,$C$3:$C$6,0)+1,0)),Variables!$B$1,INDEX($C$3:$C$6,MATCH(C102,$C$3:$C$6,0)+1,0)),""),"") ->  | J102: =IF(ISERROR(VLOOKUP(I102,$C$3:$L$6,5,0)),"",IF(OR(VLOOKUP(I102,$C$3:$L$6,5,0)=Variables!$B$5,B102>VLOOKUP(I102,$C$3:$L$6,8,0)),IF(VLOOKUP(I102,$C$3:$L$6,5,0)=Variables!$B$5,((YEAR(B102)-YEAR($B$12))*12+MONTH(B102)-MONTH($B$12)),((YEAR(B102)-YEAR(VLOOKUP(I102,$C$3:$L$6,8,0)))*12+MONTH(B102)-MONTH(VLOOKUP(I102,$C$3:$L$6,8,0))))*(VLOOKUP(I102,$C$3:$L$6,10,0)*VLOOKUP(I102,$C$3:$L$6,6,0)/12),0)) ->  | K102: =IF(C102<>"",IF(I102<>"",IF(ISERROR(VLOOKUP(I102,$C$3:$L$6,10,0)),"",VLOOKUP(I102,$C$3:$L$6,10,0)+J102+IF(OR(VLOOKUP(I102,$C$3:$L$6,5,0)=Variables!$B$5,B102>VLOOKUP(I102,$C$3:$L$6,8,0)),IF(VLOOKUP(I102,$C$3:$L$6,5,0)=Variables!$B$5,((YEAR(B102)-YEAR($B$12))*12+MONTH(B102)-MONTH($B$12)),((YEAR(B102)-YEAR(VLOOKUP(I102,$C$3:$L$6,8,0)))*12+MONTH(B102)-MONTH(VLOOKUP(I102,$C$3:$L$6,8,0))))*VLOOKUP(I102,$C$3:$L$6,7,0),0)),""),"") -> 
C103: =IF(I102<>Variables!$B$1,IF(H102<>0,C102,I102),"") ->  | F103: =IF(C103<>"",IF(OR(VLOOKUP(C103,$C$3:$L$6,5,0)=Variables!$B$5,B103>VLOOKUP(C103,$C$3:$L$6,8,0)),-D103*VLOOKUP(C103,$C$3:$L$6,6,0)/12,0),"") ->  | G103: =IF(I103<>Variables!$B$1,IF(C103<>"",$I$9-E103-F103,""),-D103) ->  | I103: =IF(C103<>"",IF(D103+$I$9-E103-F103>=0,IF(ISERROR(INDEX($C$3:$C$6,MATCH(C103,$C$3:$C$6,0)+1,0)),Variables!$B$1,INDEX($C$3:$C$6,MATCH(C103,$C$3:$C$6,0)+1,0)),""),"") ->  | J103: =IF(ISERROR(VLOOKUP(I103,$C$3:$L$6,5,0)),"",IF(OR(VLOOKUP(I103,$C$3:$L$6,5,0)=Variables!$B$5,B103>VLOOKUP(I103,$C$3:$L$6,8,0)),IF(VLOOKUP(I103,$C$3:$L$6,5,0)=Variables!$B$5,((YEAR(B103)-YEAR($B$12))*12+MONTH(B103)-MONTH($B$12)),((YEAR(B103)-YEAR(VLOOKUP(I103,$C$3:$L$6,8,0)))*12+MONTH(B103)-MONTH(VLOOKUP(I103,$C$3:$L$6,8,0))))*(VLOOKUP(I103,$C$3:$L$6,10,0)*VLOOKUP(I103,$C$3:$L$6,6,0)/12),0)) ->  | K103: =IF(C103<>"",IF(I103<>"",IF(ISERROR(VLOOKUP(I103,$C$3:$L$6,10,0)),"",VLOOKUP(I103,$C$3:$L$6,10,0)+J103+IF(OR(VLOOKUP(I103,$C$3:$L$6,5,0)=Variables!$B$5,B103>VLOOKUP(I103,$C$3:$L$6,8,0)),IF(VLOOKUP(I103,$C$3:$L$6,5,0)=Variables!$B$5,((YEAR(B103)-YEAR($B$12))*12+MONTH(B103)-MONTH($B$12)),((YEAR(B103)-YEAR(VLOOKUP(I103,$C$3:$L$6,8,0)))*12+MONTH(B103)-MONTH(VLOOKUP(I103,$C$3:$L$6,8,0))))*VLOOKUP(I103,$C$3:$L$6,7,0),0)),""),"") -> 
C104: =IF(I103<>Variables!$B$1,IF(H103<>0,C103,I103),"") ->  | F104: =IF(C104<>"",IF(OR(VLOOKUP(C104,$C$3:$L$6,5,0)=Variables!$B$5,B104>VLOOKUP(C104,$C$3:$L$6,8,0)),-D104*VLOOKUP(C104,$C$3:$L$6,6,0)/12,0),"") ->  | G104: =IF(I104<>Variables!$B$1,IF(C104<>"",$I$9-E104-F104,""),-D104) ->  | I104: =IF(C104<>"",IF(D104+$I$9-E104-F104>=0,IF(ISERROR(INDEX($C$3:$C$6,MATCH(C104,$C$3:$C$6,0)+1,0)),Variables!$B$1,INDEX($C$3:$C$6,MATCH(C104,$C$3:$C$6,0)+1,0)),""),"") ->  | J104: =IF(ISERROR(VLOOKUP(I104,$C$3:$L$6,5,0)),"",IF(OR(VLOOKUP(I104,$C$3:$L$6,5,0)=Variables!$B$5,B104>VLOOKUP(I104,$C$3:$L$6,8,0)),IF(VLOOKUP(I104,$C$3:$L$6,5,0)=Variables!$B$5,((YEAR(B104)-YEAR($B$12))*12+MONTH(B104)-MONTH($B$12)),((YEAR(B104)-YEAR(VLOOKUP(I104,$C$3:$L$6,8,0)))*12+MONTH(B104)-MONTH(VLOOKUP(I104,$C$3:$L$6,8,0))))*(VLOOKUP(I104,$C$3:$L$6,10,0)*VLOOKUP(I104,$C$3:$L$6,6,0)/12),0)) ->  | K104: =IF(C104<>"",IF(I104<>"",IF(ISERROR(VLOOKUP(I104,$C$3:$L$6,10,0)),"",VLOOKUP(I104,$C$3:$L$6,10,0)+J104+IF(OR(VLOOKUP(I104,$C$3:$L$6,5,0)=Variables!$B$5,B104>VLOOKUP(I104,$C$3:$L$6,8,0)),IF(VLOOKUP(I104,$C$3:$L$6,5,0)=Variables!$B$5,((YEAR(B104)-YEAR($B$12))*12+MONTH(B104)-MONTH($B$12)),((YEAR(B104)-YEAR(VLOOKUP(I104,$C$3:$L$6,8,0)))*12+MONTH(B104)-MONTH(VLOOKUP(I104,$C$3:$L$6,8,0))))*VLOOKUP(I104,$C$3:$L$6,7,0),0)),""),"") -> 
C105: =IF(I104<>Variables!$B$1,IF(H104<>0,C104,I104),"") ->  | F105: =IF(C105<>"",IF(OR(VLOOKUP(C105,$C$3:$L$6,5,0)=Variables!$B$5,B105>VLOOKUP(C105,$C$3:$L$6,8,0)),-D105*VLOOKUP(C105,$C$3:$L$6,6,0)/12,0),"") ->  | G105: =IF(I105<>Variables!$B$1,IF(C105<>"",$I$9-E105-F105,""),-D105) ->  | I105: =IF(C105<>"",IF(D105+$I$9-E105-F105>=0,IF(ISERROR(INDEX($C$3:$C$6,MATCH(C105,$C$3:$C$6,0)+1,0)),Variables!$B$1,INDEX($C$3:$C$6,MATCH(C105,$C$3:$C$6,0)+1,0)),""),"") ->  | J105: =IF(ISERROR(VLOOKUP(I105,$C$3:$L$6,5,0)),"",IF(OR(VLOOKUP(I105,$C$3:$L$6,5,0)=Variables!$B$5,B105>VLOOKUP(I105,$C$3:$L$6,8,0)),IF(VLOOKUP(I105,$C$3:$L$6,5,0)=Variables!$B$5,((YEAR(B105)-YEAR($B$12))*12+MONTH(B105)-MONTH($B$12)),((YEAR(B105)-YEAR(VLOOKUP(I105,$C$3:$L$6,8,0)))*12+MONTH(B105)-MONTH(VLOOKUP(I105,$C$3:$L$6,8,0))))*(VLOOKUP(I105,$C$3:$L$6,10,0)*VLOOKUP(I105,$C$3:$L$6,6,0)/12),0)) ->  | K105: =IF(C105<>"",IF(I105<>"",IF(ISERROR(VLOOKUP(I105,$C$3:$L$6,10,0)),"",VLOOKUP(I105,$C$3:$L$6,10,0)+J105+IF(OR(VLOOKUP(I105,$C$3:$L$6,5,0)=Variables!$B$5,B105>VLOOKUP(I105,$C$3:$L$6,8,0)),IF(VLOOKUP(I105,$C$3:$L$6,5,0)=Variables!$B$5,((YEAR(B105)-YEAR($B$12))*12+MONTH(B105)-MONTH($B$12)),((YEAR(B105)-YEAR(VLOOKUP(I105,$C$3:$L$6,8,0)))*12+MONTH(B105)-MONTH(VLOOKUP(I105,$C$3:$L$6,8,0))))*VLOOKUP(I105,$C$3:$L$6,7,0),0)),""),"") -> 
C106: =IF(I105<>Variables!$B$1,IF(H105<>0,C105,I105),"") ->  | F106: =IF(C106<>"",IF(OR(VLOOKUP(C106,$C$3:$L$6,5,0)=Variables!$B$5,B106>VLOOKUP(C106,$C$3:$L$6,8,0)),-D106*VLOOKUP(C106,$C$3:$L$6,6,0)/12,0),"") ->  | G106: =IF(I106<>Variables!$B$1,IF(C106<>"",$I$9-E106-F106,""),-D106) ->  | I106: =IF(C106<>"",IF(D106+$I$9-E106-F106>=0,IF(ISERROR(INDEX($C$3:$C$6,MATCH(C106,$C$3:$C$6,0)+1,0)),Variables!$B$1,INDEX($C$3:$C$6,MATCH(C106,$C$3:$C$6,0)+1,0)),""),"") ->  | J106: =IF(ISERROR(VLOOKUP(I106,$C$3:$L$6,5,0)),"",IF(OR(VLOOKUP(I106,$C$3:$L$6,5,0)=Variables!$B$5,B106>VLOOKUP(I106,$C$3:$L$6,8,0)),IF(VLOOKUP(I106,$C$3:$L$6,5,0)=Variables!$B$5,((YEAR(B106)-YEAR($B$12))*12+MONTH(B106)-MONTH($B$12)),((YEAR(B106)-YEAR(VLOOKUP(I106,$C$3:$L$6,8,0)))*12+MONTH(B106)-MONTH(VLOOKUP(I106,$C$3:$L$6,8,0))))*(VLOOKUP(I106,$C$3:$L$6,10,0)*VLOOKUP(I106,$C$3:$L$6,6,0)/12),0)) ->  | K106: =IF(C106<>"",IF(I106<>"",IF(ISERROR(VLOOKUP(I106,$C$3:$L$6,10,0)),"",VLOOKUP(I106,$C$3:$L$6,10,0)+J106+IF(OR(VLOOKUP(I106,$C$3:$L$6,5,0)=Variables!$B$5,B106>VLOOKUP(I106,$C$3:$L$6,8,0)),IF(VLOOKUP(I106,$C$3:$L$6,5,0)=Variables!$B$5,((YEAR(B106)-YEAR($B$12))*12+MONTH(B106)-MONTH($B$12)),((YEAR(B106)-YEAR(VLOOKUP(I106,$C$3:$L$6,8,0)))*12+MONTH(B106)-MONTH(VLOOKUP(I106,$C$3:$L$6,8,0))))*VLOOKUP(I106,$C$3:$L$6,7,0),0)),""),"") -> 
C107: =IF(I106<>Variables!$B$1,IF(H106<>0,C106,I106),"") ->  | F107: =IF(C107<>"",IF(OR(VLOOKUP(C107,$C$3:$L$6,5,0)=Variables!$B$5,B107>VLOOKUP(C107,$C$3:$L$6,8,0)),-D107*VLOOKUP(C107,$C$3:$L$6,6,0)/12,0),"") ->  | G107: =IF(I107<>Variables!$B$1,IF(C107<>"",$I$9-E107-F107,""),-D107) ->  | I107: =IF(C107<>"",IF(D107+$I$9-E107-F107>=0,IF(ISERROR(INDEX($C$3:$C$6,MATCH(C107,$C$3:$C$6,0)+1,0)),Variables!$B$1,INDEX($C$3:$C$6,MATCH(C107,$C$3:$C$6,0)+1,0)),""),"") ->  | J107: =IF(ISERROR(VLOOKUP(I107,$C$3:$L$6,5,0)),"",IF(OR(VLOOKUP(I107,$C$3:$L$6,5,0)=Variables!$B$5,B107>VLOOKUP(I107,$C$3:$L$6,8,0)),IF(VLOOKUP(I107,$C$3:$L$6,5,0)=Variables!$B$5,((YEAR(B107)-YEAR($B$12))*12+MONTH(B107)-MONTH($B$12)),((YEAR(B107)-YEAR(VLOOKUP(I107,$C$3:$L$6,8,0)))*12+MONTH(B107)-MONTH(VLOOKUP(I107,$C$3:$L$6,8,0))))*(VLOOKUP(I107,$C$3:$L$6,10,0)*VLOOKUP(I107,$C$3:$L$6,6,0)/12),0)) ->  | K107: =IF(C107<>"",IF(I107<>"",IF(ISERROR(VLOOKUP(I107,$C$3:$L$6,10,0)),"",VLOOKUP(I107,$C$3:$L$6,10,0)+J107+IF(OR(VLOOKUP(I107,$C$3:$L$6,5,0)=Variables!$B$5,B107>VLOOKUP(I107,$C$3:$L$6,8,0)),IF(VLOOKUP(I107,$C$3:$L$6,5,0)=Variables!$B$5,((YEAR(B107)-YEAR($B$12))*12+MONTH(B107)-MONTH($B$12)),((YEAR(B107)-YEAR(VLOOKUP(I107,$C$3:$L$6,8,0)))*12+MONTH(B107)-MONTH(VLOOKUP(I107,$C$3:$L$6,8,0))))*VLOOKUP(I107,$C$3:$L$6,7,0),0)),""),"") -> 
C108: =IF(I107<>Variables!$B$1,IF(H107<>0,C107,I107),"") ->  | F108: =IF(C108<>"",IF(OR(VLOOKUP(C108,$C$3:$L$6,5,0)=Variables!$B$5,B108>VLOOKUP(C108,$C$3:$L$6,8,0)),-D108*VLOOKUP(C108,$C$3:$L$6,6,0)/12,0),"") ->  | G108: =IF(I108<>Variables!$B$1,IF(C108<>"",$I$9-E108-F108,""),-D108) ->  | I108: =IF(C108<>"",IF(D108+$I$9-E108-F108>=0,IF(ISERROR(INDEX($C$3:$C$6,MATCH(C108,$C$3:$C$6,0)+1,0)),Variables!$B$1,INDEX($C$3:$C$6,MATCH(C108,$C$3:$C$6,0)+1,0)),""),"") ->  | J108: =IF(ISERROR(VLOOKUP(I108,$C$3:$L$6,5,0)),"",IF(OR(VLOOKUP(I108,$C$3:$L$6,5,0)=Variables!$B$5,B108>VLOOKUP(I108,$C$3:$L$6,8,0)),IF(VLOOKUP(I108,$C$3:$L$6,5,0)=Variables!$B$5,((YEAR(B108)-YEAR($B$12))*12+MONTH(B108)-MONTH($B$12)),((YEAR(B108)-YEAR(VLOOKUP(I108,$C$3:$L$6,8,0)))*12+MONTH(B108)-MONTH(VLOOKUP(I108,$C$3:$L$6,8,0))))*(VLOOKUP(I108,$C$3:$L$6,10,0)*VLOOKUP(I108,$C$3:$L$6,6,0)/12),0)) ->  | K108: =IF(C108<>"",IF(I108<>"",IF(ISERROR(VLOOKUP(I108,$C$3:$L$6,10,0)),"",VLOOKUP(I108,$C$3:$L$6,10,0)+J108+IF(OR(VLOOKUP(I108,$C$3:$L$6,5,0)=Variables!$B$5,B108>VLOOKUP(I108,$C$3:$L$6,8,0)),IF(VLOOKUP(I108,$C$3:$L$6,5,0)=Variables!$B$5,((YEAR(B108)-YEAR($B$12))*12+MONTH(B108)-MONTH($B$12)),((YEAR(B108)-YEAR(VLOOKUP(I108,$C$3:$L$6,8,0)))*12+MONTH(B108)-MONTH(VLOOKUP(I108,$C$3:$L$6,8,0))))*VLOOKUP(I108,$C$3:$L$6,7,0),0)),""),"") -> 
C109: =IF(I108<>Variables!$B$1,IF(H108<>0,C108,I108),"") ->  | F109: =IF(C109<>"",IF(OR(VLOOKUP(C109,$C$3:$L$6,5,0)=Variables!$B$5,B109>VLOOKUP(C109,$C$3:$L$6,8,0)),-D109*VLOOKUP(C109,$C$3:$L$6,6,0)/12,0),"") ->  | G109: =IF(I109<>Variables!$B$1,IF(C109<>"",$I$9-E109-F109,""),-D109) ->  | I109: =IF(C109<>"",IF(D109+$I$9-E109-F109>=0,IF(ISERROR(INDEX($C$3:$C$6,MATCH(C109,$C$3:$C$6,0)+1,0)),Variables!$B$1,INDEX($C$3:$C$6,MATCH(C109,$C$3:$C$6,0)+1,0)),""),"") ->  | J109: =IF(ISERROR(VLOOKUP(I109,$C$3:$L$6,5,0)),"",IF(OR(VLOOKUP(I109,$C$3:$L$6,5,0)=Variables!$B$5,B109>VLOOKUP(I109,$C$3:$L$6,8,0)),IF(VLOOKUP(I109,$C$3:$L$6,5,0)=Variables!$B$5,((YEAR(B109)-YEAR($B$12))*12+MONTH(B109)-MONTH($B$12)),((YEAR(B109)-YEAR(VLOOKUP(I109,$C$3:$L$6,8,0)))*12+MONTH(B109)-MONTH(VLOOKUP(I109,$C$3:$L$6,8,0))))*(VLOOKUP(I109,$C$3:$L$6,10,0)*VLOOKUP(I109,$C$3:$L$6,6,0)/12),0)) ->  | K109: =IF(C109<>"",IF(I109<>"",IF(ISERROR(VLOOKUP(I109,$C$3:$L$6,10,0)),"",VLOOKUP(I109,$C$3:$L$6,10,0)+J109+IF(OR(VLOOKUP(I109,$C$3:$L$6,5,0)=Variables!$B$5,B109>VLOOKUP(I109,$C$3:$L$6,8,0)),IF(VLOOKUP(I109,$C$3:$L$6,5,0)=Variables!$B$5,((YEAR(B109)-YEAR($B$12))*12+MONTH(B109)-MONTH($B$12)),((YEAR(B109)-YEAR(VLOOKUP(I109,$C$3:$L$6,8,0)))*12+MONTH(B109)-MONTH(VLOOKUP(I109,$C$3:$L$6,8,0))))*VLOOKUP(I109,$C$3:$L$6,7,0),0)),""),"") -> 
C110: =IF(I109<>Variables!$B$1,IF(H109<>0,C109,I109),"") ->  | F110: =IF(C110<>"",IF(OR(VLOOKUP(C110,$C$3:$L$6,5,0)=Variables!$B$5,B110>VLOOKUP(C110,$C$3:$L$6,8,0)),-D110*VLOOKUP(C110,$C$3:$L$6,6,0)/12,0),"") ->  | G110: =IF(I110<>Variables!$B$1,IF(C110<>"",$I$9-E110-F110,""),-D110) ->  | I110: =IF(C110<>"",IF(D110+$I$9-E110-F110>=0,IF(ISERROR(INDEX($C$3:$C$6,MATCH(C110,$C$3:$C$6,0)+1,0)),Variables!$B$1,INDEX($C$3:$C$6,MATCH(C110,$C$3:$C$6,0)+1,0)),""),"") ->  | J110: =IF(ISERROR(VLOOKUP(I110,$C$3:$L$6,5,0)),"",IF(OR(VLOOKUP(I110,$C$3:$L$6,5,0)=Variables!$B$5,B110>VLOOKUP(I110,$C$3:$L$6,8,0)),IF(VLOOKUP(I110,$C$3:$L$6,5,0)=Variables!$B$5,((YEAR(B110)-YEAR($B$12))*12+MONTH(B110)-MONTH($B$12)),((YEAR(B110)-YEAR(VLOOKUP(I110,$C$3:$L$6,8,0)))*12+MONTH(B110)-MONTH(VLOOKUP(I110,$C$3:$L$6,8,0))))*(VLOOKUP(I110,$C$3:$L$6,10,0)*VLOOKUP(I110,$C$3:$L$6,6,0)/12),0)) ->  | K110: =IF(C110<>"",IF(I110<>"",IF(ISERROR(VLOOKUP(I110,$C$3:$L$6,10,0)),"",VLOOKUP(I110,$C$3:$L$6,10,0)+J110+IF(OR(VLOOKUP(I110,$C$3:$L$6,5,0)=Variables!$B$5,B110>VLOOKUP(I110,$C$3:$L$6,8,0)),IF(VLOOKUP(I110,$C$3:$L$6,5,0)=Variables!$B$5,((YEAR(B110)-YEAR($B$12))*12+MONTH(B110)-MONTH($B$12)),((YEAR(B110)-YEAR(VLOOKUP(I110,$C$3:$L$6,8,0)))*12+MONTH(B110)-MONTH(VLOOKUP(I110,$C$3:$L$6,8,0))))*VLOOKUP(I110,$C$3:$L$6,7,0),0)),""),"") -> 
C111: =IF(I110<>Variables!$B$1,IF(H110<>0,C110,I110),"") ->  | F111: =IF(C111<>"",IF(OR(VLOOKUP(C111,$C$3:$L$6,5,0)=Variables!$B$5,B111>VLOOKUP(C111,$C$3:$L$6,8,0)),-D111*VLOOKUP(C111,$C$3:$L$6,6,0)/12,0),"") ->  | G111: =IF(I111<>Variables!$B$1,IF(C111<>"",$I$9-E111-F111,""),-D111) ->  | I111: =IF(C111<>"",IF(D111+$I$9-E111-F111>=0,IF(ISERROR(INDEX($C$3:$C$6,MATCH(C111,$C$3:$C$6,0)+1,0)),Variables!$B$1,INDEX($C$3:$C$6,MATCH(C111,$C$3:$C$6,0)+1,0)),""),"") ->  | J111: =IF(ISERROR(VLOOKUP(I111,$C$3:$L$6,5,0)),"",IF(OR(VLOOKUP(I111,$C$3:$L$6,5,0)=Variables!$B$5,B111>VLOOKUP(I111,$C$3:$L$6,8,0)),IF(VLOOKUP(I111,$C$3:$L$6,5,0)=Variables!$B$5,((YEAR(B111)-YEAR($B$12))*12+MONTH(B111)-MONTH($B$12)),((YEAR(B111)-YEAR(VLOOKUP(I111,$C$3:$L$6,8,0)))*12+MONTH(B111)-MONTH(VLOOKUP(I111,$C$3:$L$6,8,0))))*(VLOOKUP(I111,$C$3:$L$6,10,0)*VLOOKUP(I111,$C$3:$L$6,6,0)/12),0)) ->  | K111: =IF(C111<>"",IF(I111<>"",IF(ISERROR(VLOOKUP(I111,$C$3:$L$6,10,0)),"",VLOOKUP(I111,$C$3:$L$6,10,0)+J111+IF(OR(VLOOKUP(I111,$C$3:$L$6,5,0)=Variables!$B$5,B111>VLOOKUP(I111,$C$3:$L$6,8,0)),IF(VLOOKUP(I111,$C$3:$L$6,5,0)=Variables!$B$5,((YEAR(B111)-YEAR($B$12))*12+MONTH(B111)-MONTH($B$12)),((YEAR(B111)-YEAR(VLOOKUP(I111,$C$3:$L$6,8,0)))*12+MONTH(B111)-MONTH(VLOOKUP(I111,$C$3:$L$6,8,0))))*VLOOKUP(I111,$C$3:$L$6,7,0),0)),""),"") -> 
C112: =IF(I111<>Variables!$B$1,IF(H111<>0,C111,I111),"") ->  | F112: =IF(C112<>"",IF(OR(VLOOKUP(C112,$C$3:$L$6,5,0)=Variables!$B$5,B112>VLOOKUP(C112,$C$3:$L$6,8,0)),-D112*VLOOKUP(C112,$C$3:$L$6,6,0)/12,0),"") ->  | G112: =IF(I112<>Variables!$B$1,IF(C112<>"",$I$9-E112-F112,""),-D112) ->  | I112: =IF(C112<>"",IF(D112+$I$9-E112-F112>=0,IF(ISERROR(INDEX($C$3:$C$6,MATCH(C112,$C$3:$C$6,0)+1,0)),Variables!$B$1,INDEX($C$3:$C$6,MATCH(C112,$C$3:$C$6,0)+1,0)),""),"") ->  | J112: =IF(ISERROR(VLOOKUP(I112,$C$3:$L$6,5,0)),"",IF(OR(VLOOKUP(I112,$C$3:$L$6,5,0)=Variables!$B$5,B112>VLOOKUP(I112,$C$3:$L$6,8,0)),IF(VLOOKUP(I112,$C$3:$L$6,5,0)=Variables!$B$5,((YEAR(B112)-YEAR($B$12))*12+MONTH(B112)-MONTH($B$12)),((YEAR(B112)-YEAR(VLOOKUP(I112,$C$3:$L$6,8,0)))*12+MONTH(B112)-MONTH(VLOOKUP(I112,$C$3:$L$6,8,0))))*(VLOOKUP(I112,$C$3:$L$6,10,0)*VLOOKUP(I112,$C$3:$L$6,6,0)/12),0)) ->  | K112: =IF(C112<>"",IF(I112<>"",IF(ISERROR(VLOOKUP(I112,$C$3:$L$6,10,0)),"",VLOOKUP(I112,$C$3:$L$6,10,0)+J112+IF(OR(VLOOKUP(I112,$C$3:$L$6,5,0)=Variables!$B$5,B112>VLOOKUP(I112,$C$3:$L$6,8,0)),IF(VLOOKUP(I112,$C$3:$L$6,5,0)=Variables!$B$5,((YEAR(B112)-YEAR($B$12))*12+MONTH(B112)-MONTH($B$12)),((YEAR(B112)-YEAR(VLOOKUP(I112,$C$3:$L$6,8,0)))*12+MONTH(B112)-MONTH(VLOOKUP(I112,$C$3:$L$6,8,0))))*VLOOKUP(I112,$C$3:$L$6,7,0),0)),""),"") -> 
C113: =IF(I112<>Variables!$B$1,IF(H112<>0,C112,I112),"") ->  | F113: =IF(C113<>"",IF(OR(VLOOKUP(C113,$C$3:$L$6,5,0)=Variables!$B$5,B113>VLOOKUP(C113,$C$3:$L$6,8,0)),-D113*VLOOKUP(C113,$C$3:$L$6,6,0)/12,0),"") ->  | G113: =IF(I113<>Variables!$B$1,IF(C113<>"",$I$9-E113-F113,""),-D113) ->  | I113: =IF(C113<>"",IF(D113+$I$9-E113-F113>=0,IF(ISERROR(INDEX($C$3:$C$6,MATCH(C113,$C$3:$C$6,0)+1,0)),Variables!$B$1,INDEX($C$3:$C$6,MATCH(C113,$C$3:$C$6,0)+1,0)),""),"") ->  | J113: =IF(ISERROR(VLOOKUP(I113,$C$3:$L$6,5,0)),"",IF(OR(VLOOKUP(I113,$C$3:$L$6,5,0)=Variables!$B$5,B113>VLOOKUP(I113,$C$3:$L$6,8,0)),IF(VLOOKUP(I113,$C$3:$L$6,5,0)=Variables!$B$5,((YEAR(B113)-YEAR($B$12))*12+MONTH(B113)-MONTH($B$12)),((YEAR(B113)-YEAR(VLOOKUP(I113,$C$3:$L$6,8,0)))*12+MONTH(B113)-MONTH(VLOOKUP(I113,$C$3:$L$6,8,0))))*(VLOOKUP(I113,$C$3:$L$6,10,0)*VLOOKUP(I113,$C$3:$L$6,6,0)/12),0)) ->  | K113: =IF(C113<>"",IF(I113<>"",IF(ISERROR(VLOOKUP(I113,$C$3:$L$6,10,0)),"",VLOOKUP(I113,$C$3:$L$6,10,0)+J113+IF(OR(VLOOKUP(I113,$C$3:$L$6,5,0)=Variables!$B$5,B113>VLOOKUP(I113,$C$3:$L$6,8,0)),IF(VLOOKUP(I113,$C$3:$L$6,5,0)=Variables!$B$5,((YEAR(B113)-YEAR($B$12))*12+MONTH(B113)-MONTH($B$12)),((YEAR(B113)-YEAR(VLOOKUP(I113,$C$3:$L$6,8,0)))*12+MONTH(B113)-MONTH(VLOOKUP(I113,$C$3:$L$6,8,0))))*VLOOKUP(I113,$C$3:$L$6,7,0),0)),""),"") -> 
C114: =IF(I113<>Variables!$B$1,IF(H113<>0,C113,I113),"") ->  | F114: =IF(C114<>"",IF(OR(VLOOKUP(C114,$C$3:$L$6,5,0)=Variables!$B$5,B114>VLOOKUP(C114,$C$3:$L$6,8,0)),-D114*VLOOKUP(C114,$C$3:$L$6,6,0)/12,0),"") ->  | G114: =IF(I114<>Variables!$B$1,IF(C114<>"",$I$9-E114-F114,""),-D114) ->  | I114: =IF(C114<>"",IF(D114+$I$9-E114-F114>=0,IF(ISERROR(INDEX($C$3:$C$6,MATCH(C114,$C$3:$C$6,0)+1,0)),Variables!$B$1,INDEX($C$3:$C$6,MATCH(C114,$C$3:$C$6,0)+1,0)),""),"") ->  | J114: =IF(ISERROR(VLOOKUP(I114,$C$3:$L$6,5,0)),"",IF(OR(VLOOKUP(I114,$C$3:$L$6,5,0)=Variables!$B$5,B114>VLOOKUP(I114,$C$3:$L$6,8,0)),IF(VLOOKUP(I114,$C$3:$L$6,5,0)=Variables!$B$5,((YEAR(B114)-YEAR($B$12))*12+MONTH(B114)-MONTH($B$12)),((YEAR(B114)-YEAR(VLOOKUP(I114,$C$3:$L$6,8,0)))*12+MONTH(B114)-MONTH(VLOOKUP(I114,$C$3:$L$6,8,0))))*(VLOOKUP(I114,$C$3:$L$6,10,0)*VLOOKUP(I114,$C$3:$L$6,6,0)/12),0)) ->  | K114: =IF(C114<>"",IF(I114<>"",IF(ISERROR(VLOOKUP(I114,$C$3:$L$6,10,0)),"",VLOOKUP(I114,$C$3:$L$6,10,0)+J114+IF(OR(VLOOKUP(I114,$C$3:$L$6,5,0)=Variables!$B$5,B114>VLOOKUP(I114,$C$3:$L$6,8,0)),IF(VLOOKUP(I114,$C$3:$L$6,5,0)=Variables!$B$5,((YEAR(B114)-YEAR($B$12))*12+MONTH(B114)-MONTH($B$12)),((YEAR(B114)-YEAR(VLOOKUP(I114,$C$3:$L$6,8,0)))*12+MONTH(B114)-MONTH(VLOOKUP(I114,$C$3:$L$6,8,0))))*VLOOKUP(I114,$C$3:$L$6,7,0),0)),""),"") -> 
C115: =IF(I114<>Variables!$B$1,IF(H114<>0,C114,I114),"") ->  | F115: =IF(C115<>"",IF(OR(VLOOKUP(C115,$C$3:$L$6,5,0)=Variables!$B$5,B115>VLOOKUP(C115,$C$3:$L$6,8,0)),-D115*VLOOKUP(C115,$C$3:$L$6,6,0)/12,0),"") ->  | G115: =IF(I115<>Variables!$B$1,IF(C115<>"",$I$9-E115-F115,""),-D115) ->  | I115: =IF(C115<>"",IF(D115+$I$9-E115-F115>=0,IF(ISERROR(INDEX($C$3:$C$6,MATCH(C115,$C$3:$C$6,0)+1,0)),Variables!$B$1,INDEX($C$3:$C$6,MATCH(C115,$C$3:$C$6,0)+1,0)),""),"") ->  | J115: =IF(ISERROR(VLOOKUP(I115,$C$3:$L$6,5,0)),"",IF(OR(VLOOKUP(I115,$C$3:$L$6,5,0)=Variables!$B$5,B115>VLOOKUP(I115,$C$3:$L$6,8,0)),IF(VLOOKUP(I115,$C$3:$L$6,5,0)=Variables!$B$5,((YEAR(B115)-YEAR($B$12))*12+MONTH(B115)-MONTH($B$12)),((YEAR(B115)-YEAR(VLOOKUP(I115,$C$3:$L$6,8,0)))*12+MONTH(B115)-MONTH(VLOOKUP(I115,$C$3:$L$6,8,0))))*(VLOOKUP(I115,$C$3:$L$6,10,0)*VLOOKUP(I115,$C$3:$L$6,6,0)/12),0)) ->  | K115: =IF(C115<>"",IF(I115<>"",IF(ISERROR(VLOOKUP(I115,$C$3:$L$6,10,0)),"",VLOOKUP(I115,$C$3:$L$6,10,0)+J115+IF(OR(VLOOKUP(I115,$C$3:$L$6,5,0)=Variables!$B$5,B115>VLOOKUP(I115,$C$3:$L$6,8,0)),IF(VLOOKUP(I115,$C$3:$L$6,5,0)=Variables!$B$5,((YEAR(B115)-YEAR($B$12))*12+MONTH(B115)-MONTH($B$12)),((YEAR(B115)-YEAR(VLOOKUP(I115,$C$3:$L$6,8,0)))*12+MONTH(B115)-MONTH(VLOOKUP(I115,$C$3:$L$6,8,0))))*VLOOKUP(I115,$C$3:$L$6,7,0),0)),""),"") -> 
C116: =IF(I115<>Variables!$B$1,IF(H115<>0,C115,I115),"") ->  | F116: =IF(C116<>"",IF(OR(VLOOKUP(C116,$C$3:$L$6,5,0)=Variables!$B$5,B116>VLOOKUP(C116,$C$3:$L$6,8,0)),-D116*VLOOKUP(C116,$C$3:$L$6,6,0)/12,0),"") ->  | G116: =IF(I116<>Variables!$B$1,IF(C116<>"",$I$9-E116-F116,""),-D116) ->  | I116: =IF(C116<>"",IF(D116+$I$9-E116-F116>=0,IF(ISERROR(INDEX($C$3:$C$6,MATCH(C116,$C$3:$C$6,0)+1,0)),Variables!$B$1,INDEX($C$3:$C$6,MATCH(C116,$C$3:$C$6,0)+1,0)),""),"") ->  | J116: =IF(ISERROR(VLOOKUP(I116,$C$3:$L$6,5,0)),"",IF(OR(VLOOKUP(I116,$C$3:$L$6,5,0)=Variables!$B$5,B116>VLOOKUP(I116,$C$3:$L$6,8,0)),IF(VLOOKUP(I116,$C$3:$L$6,5,0)=Variables!$B$5,((YEAR(B116)-YEAR($B$12))*12+MONTH(B116)-MONTH($B$12)),((YEAR(B116)-YEAR(VLOOKUP(I116,$C$3:$L$6,8,0)))*12+MONTH(B116)-MONTH(VLOOKUP(I116,$C$3:$L$6,8,0))))*(VLOOKUP(I116,$C$3:$L$6,10,0)*VLOOKUP(I116,$C$3:$L$6,6,0)/12),0)) ->  | K116: =IF(C116<>"",IF(I116<>"",IF(ISERROR(VLOOKUP(I116,$C$3:$L$6,10,0)),"",VLOOKUP(I116,$C$3:$L$6,10,0)+J116+IF(OR(VLOOKUP(I116,$C$3:$L$6,5,0)=Variables!$B$5,B116>VLOOKUP(I116,$C$3:$L$6,8,0)),IF(VLOOKUP(I116,$C$3:$L$6,5,0)=Variables!$B$5,((YEAR(B116)-YEAR($B$12))*12+MONTH(B116)-MONTH($B$12)),((YEAR(B116)-YEAR(VLOOKUP(I116,$C$3:$L$6,8,0)))*12+MONTH(B116)-MONTH(VLOOKUP(I116,$C$3:$L$6,8,0))))*VLOOKUP(I116,$C$3:$L$6,7,0),0)),""),"") -> 
C117: =IF(I116<>Variables!$B$1,IF(H116<>0,C116,I116),"") ->  | F117: =IF(C117<>"",IF(OR(VLOOKUP(C117,$C$3:$L$6,5,0)=Variables!$B$5,B117>VLOOKUP(C117,$C$3:$L$6,8,0)),-D117*VLOOKUP(C117,$C$3:$L$6,6,0)/12,0),"") ->  | G117: =IF(I117<>Variables!$B$1,IF(C117<>"",$I$9-E117-F117,""),-D117) ->  | I117: =IF(C117<>"",IF(D117+$I$9-E117-F117>=0,IF(ISERROR(INDEX($C$3:$C$6,MATCH(C117,$C$3:$C$6,0)+1,0)),Variables!$B$1,INDEX($C$3:$C$6,MATCH(C117,$C$3:$C$6,0)+1,0)),""),"") ->  | J117: =IF(ISERROR(VLOOKUP(I117,$C$3:$L$6,5,0)),"",IF(OR(VLOOKUP(I117,$C$3:$L$6,5,0)=Variables!$B$5,B117>VLOOKUP(I117,$C$3:$L$6,8,0)),IF(VLOOKUP(I117,$C$3:$L$6,5,0)=Variables!$B$5,((YEAR(B117)-YEAR($B$12))*12+MONTH(B117)-MONTH($B$12)),((YEAR(B117)-YEAR(VLOOKUP(I117,$C$3:$L$6,8,0)))*12+MONTH(B117)-MONTH(VLOOKUP(I117,$C$3:$L$6,8,0))))*(VLOOKUP(I117,$C$3:$L$6,10,0)*VLOOKUP(I117,$C$3:$L$6,6,0)/12),0)) ->  | K117: =IF(C117<>"",IF(I117<>"",IF(ISERROR(VLOOKUP(I117,$C$3:$L$6,10,0)),"",VLOOKUP(I117,$C$3:$L$6,10,0)+J117+IF(OR(VLOOKUP(I117,$C$3:$L$6,5,0)=Variables!$B$5,B117>VLOOKUP(I117,$C$3:$L$6,8,0)),IF(VLOOKUP(I117,$C$3:$L$6,5,0)=Variables!$B$5,((YEAR(B117)-YEAR($B$12))*12+MONTH(B117)-MONTH($B$12)),((YEAR(B117)-YEAR(VLOOKUP(I117,$C$3:$L$6,8,0)))*12+MONTH(B117)-MONTH(VLOOKUP(I117,$C$3:$L$6,8,0))))*VLOOKUP(I117,$C$3:$L$6,7,0),0)),""),"") -> 
C118: =IF(I117<>Variables!$B$1,IF(H117<>0,C117,I117),"") ->  | F118: =IF(C118<>"",IF(OR(VLOOKUP(C118,$C$3:$L$6,5,0)=Variables!$B$5,B118>VLOOKUP(C118,$C$3:$L$6,8,0)),-D118*VLOOKUP(C118,$C$3:$L$6,6,0)/12,0),"") ->  | G118: =IF(I118<>Variables!$B$1,IF(C118<>"",$I$9-E118-F118,""),-D118) ->  | I118: =IF(C118<>"",IF(D118+$I$9-E118-F118>=0,IF(ISERROR(INDEX($C$3:$C$6,MATCH(C118,$C$3:$C$6,0)+1,0)),Variables!$B$1,INDEX($C$3:$C$6,MATCH(C118,$C$3:$C$6,0)+1,0)),""),"") ->  | J118: =IF(ISERROR(VLOOKUP(I118,$C$3:$L$6,5,0)),"",IF(OR(VLOOKUP(I118,$C$3:$L$6,5,0)=Variables!$B$5,B118>VLOOKUP(I118,$C$3:$L$6,8,0)),IF(VLOOKUP(I118,$C$3:$L$6,5,0)=Variables!$B$5,((YEAR(B118)-YEAR($B$12))*12+MONTH(B118)-MONTH($B$12)),((YEAR(B118)-YEAR(VLOOKUP(I118,$C$3:$L$6,8,0)))*12+MONTH(B118)-MONTH(VLOOKUP(I118,$C$3:$L$6,8,0))))*(VLOOKUP(I118,$C$3:$L$6,10,0)*VLOOKUP(I118,$C$3:$L$6,6,0)/12),0)) ->  | K118: =IF(C118<>"",IF(I118<>"",IF(ISERROR(VLOOKUP(I118,$C$3:$L$6,10,0)),"",VLOOKUP(I118,$C$3:$L$6,10,0)+J118+IF(OR(VLOOKUP(I118,$C$3:$L$6,5,0)=Variables!$B$5,B118>VLOOKUP(I118,$C$3:$L$6,8,0)),IF(VLOOKUP(I118,$C$3:$L$6,5,0)=Variables!$B$5,((YEAR(B118)-YEAR($B$12))*12+MONTH(B118)-MONTH($B$12)),((YEAR(B118)-YEAR(VLOOKUP(I118,$C$3:$L$6,8,0)))*12+MONTH(B118)-MONTH(VLOOKUP(I118,$C$3:$L$6,8,0))))*VLOOKUP(I118,$C$3:$L$6,7,0),0)),""),"") -> 
C119: =IF(I118<>Variables!$B$1,IF(H118<>0,C118,I118),"") ->  | F119: =IF(C119<>"",IF(OR(VLOOKUP(C119,$C$3:$L$6,5,0)=Variables!$B$5,B119>VLOOKUP(C119,$C$3:$L$6,8,0)),-D119*VLOOKUP(C119,$C$3:$L$6,6,0)/12,0),"") ->  | G119: =IF(I119<>Variables!$B$1,IF(C119<>"",$I$9-E119-F119,""),-D119) ->  | I119: =IF(C119<>"",IF(D119+$I$9-E119-F119>=0,IF(ISERROR(INDEX($C$3:$C$6,MATCH(C119,$C$3:$C$6,0)+1,0)),Variables!$B$1,INDEX($C$3:$C$6,MATCH(C119,$C$3:$C$6,0)+1,0)),""),"") ->  | J119: =IF(ISERROR(VLOOKUP(I119,$C$3:$L$6,5,0)),"",IF(OR(VLOOKUP(I119,$C$3:$L$6,5,0)=Variables!$B$5,B119>VLOOKUP(I119,$C$3:$L$6,8,0)),IF(VLOOKUP(I119,$C$3:$L$6,5,0)=Variables!$B$5,((YEAR(B119)-YEAR($B$12))*12+MONTH(B119)-MONTH($B$12)),((YEAR(B119)-YEAR(VLOOKUP(I119,$C$3:$L$6,8,0)))*12+MONTH(B119)-MONTH(VLOOKUP(I119,$C$3:$L$6,8,0))))*(VLOOKUP(I119,$C$3:$L$6,10,0)*VLOOKUP(I119,$C$3:$L$6,6,0)/12),0)) ->  | K119: =IF(C119<>"",IF(I119<>"",IF(ISERROR(VLOOKUP(I119,$C$3:$L$6,10,0)),"",VLOOKUP(I119,$C$3:$L$6,10,0)+J119+IF(OR(VLOOKUP(I119,$C$3:$L$6,5,0)=Variables!$B$5,B119>VLOOKUP(I119,$C$3:$L$6,8,0)),IF(VLOOKUP(I119,$C$3:$L$6,5,0)=Variables!$B$5,((YEAR(B119)-YEAR($B$12))*12+MONTH(B119)-MONTH($B$12)),((YEAR(B119)-YEAR(VLOOKUP(I119,$C$3:$L$6,8,0)))*12+MONTH(B119)-MONTH(VLOOKUP(I119,$C$3:$L$6,8,0))))*VLOOKUP(I119,$C$3:$L$6,7,0),0)),""),"") -> 
C120: =IF(I119<>Variables!$B$1,IF(H119<>0,C119,I119),"") ->  | F120: =IF(C120<>"",IF(OR(VLOOKUP(C120,$C$3:$L$6,5,0)=Variables!$B$5,B120>VLOOKUP(C120,$C$3:$L$6,8,0)),-D120*VLOOKUP(C120,$C$3:$L$6,6,0)/12,0),"") ->  | G120: =IF(I120<>Variables!$B$1,IF(C120<>"",$I$9-E120-F120,""),-D120) ->  | I120: =IF(C120<>"",IF(D120+$I$9-E120-F120>=0,IF(ISERROR(INDEX($C$3:$C$6,MATCH(C120,$C$3:$C$6,0)+1,0)),Variables!$B$1,INDEX($C$3:$C$6,MATCH(C120,$C$3:$C$6,0)+1,0)),""),"") ->  | J120: =IF(ISERROR(VLOOKUP(I120,$C$3:$L$6,5,0)),"",IF(OR(VLOOKUP(I120,$C$3:$L$6,5,0)=Variables!$B$5,B120>VLOOKUP(I120,$C$3:$L$6,8,0)),IF(VLOOKUP(I120,$C$3:$L$6,5,0)=Variables!$B$5,((YEAR(B120)-YEAR($B$12))*12+MONTH(B120)-MONTH($B$12)),((YEAR(B120)-YEAR(VLOOKUP(I120,$C$3:$L$6,8,0)))*12+MONTH(B120)-MONTH(VLOOKUP(I120,$C$3:$L$6,8,0))))*(VLOOKUP(I120,$C$3:$L$6,10,0)*VLOOKUP(I120,$C$3:$L$6,6,0)/12),0)) ->  | K120: =IF(C120<>"",IF(I120<>"",IF(ISERROR(VLOOKUP(I120,$C$3:$L$6,10,0)),"",VLOOKUP(I120,$C$3:$L$6,10,0)+J120+IF(OR(VLOOKUP(I120,$C$3:$L$6,5,0)=Variables!$B$5,B120>VLOOKUP(I120,$C$3:$L$6,8,0)),IF(VLOOKUP(I120,$C$3:$L$6,5,0)=Variables!$B$5,((YEAR(B120)-YEAR($B$12))*12+MONTH(B120)-MONTH($B$12)),((YEAR(B120)-YEAR(VLOOKUP(I120,$C$3:$L$6,8,0)))*12+MONTH(B120)-MONTH(VLOOKUP(I120,$C$3:$L$6,8,0))))*VLOOKUP(I120,$C$3:$L$6,7,0),0)),""),"") -> 
C121: =IF(I120<>Variables!$B$1,IF(H120<>0,C120,I120),"") ->  | F121: =IF(C121<>"",IF(OR(VLOOKUP(C121,$C$3:$L$6,5,0)=Variables!$B$5,B121>VLOOKUP(C121,$C$3:$L$6,8,0)),-D121*VLOOKUP(C121,$C$3:$L$6,6,0)/12,0),"") ->  | G121: =IF(I121<>Variables!$B$1,IF(C121<>"",$I$9-E121-F121,""),-D121) ->  | I121: =IF(C121<>"",IF(D121+$I$9-E121-F121>=0,IF(ISERROR(INDEX($C$3:$C$6,MATCH(C121,$C$3:$C$6,0)+1,0)),Variables!$B$1,INDEX($C$3:$C$6,MATCH(C121,$C$3:$C$6,0)+1,0)),""),"") ->  | J121: =IF(ISERROR(VLOOKUP(I121,$C$3:$L$6,5,0)),"",IF(OR(VLOOKUP(I121,$C$3:$L$6,5,0)=Variables!$B$5,B121>VLOOKUP(I121,$C$3:$L$6,8,0)),IF(VLOOKUP(I121,$C$3:$L$6,5,0)=Variables!$B$5,((YEAR(B121)-YEAR($B$12))*12+MONTH(B121)-MONTH($B$12)),((YEAR(B121)-YEAR(VLOOKUP(I121,$C$3:$L$6,8,0)))*12+MONTH(B121)-MONTH(VLOOKUP(I121,$C$3:$L$6,8,0))))*(VLOOKUP(I121,$C$3:$L$6,10,0)*VLOOKUP(I121,$C$3:$L$6,6,0)/12),0)) ->  | K121: =IF(C121<>"",IF(I121<>"",IF(ISERROR(VLOOKUP(I121,$C$3:$L$6,10,0)),"",VLOOKUP(I121,$C$3:$L$6,10,0)+J121+IF(OR(VLOOKUP(I121,$C$3:$L$6,5,0)=Variables!$B$5,B121>VLOOKUP(I121,$C$3:$L$6,8,0)),IF(VLOOKUP(I121,$C$3:$L$6,5,0)=Variables!$B$5,((YEAR(B121)-YEAR($B$12))*12+MONTH(B121)-MONTH($B$12)),((YEAR(B121)-YEAR(VLOOKUP(I121,$C$3:$L$6,8,0)))*12+MONTH(B121)-MONTH(VLOOKUP(I121,$C$3:$L$6,8,0))))*VLOOKUP(I121,$C$3:$L$6,7,0),0)),""),"") -> 
C122: =IF(I121<>Variables!$B$1,IF(H121<>0,C121,I121),"") ->  | F122: =IF(C122<>"",IF(OR(VLOOKUP(C122,$C$3:$L$6,5,0)=Variables!$B$5,B122>VLOOKUP(C122,$C$3:$L$6,8,0)),-D122*VLOOKUP(C122,$C$3:$L$6,6,0)/12,0),"") ->  | G122: =IF(I122<>Variables!$B$1,IF(C122<>"",$I$9-E122-F122,""),-D122) ->  | I122: =IF(C122<>"",IF(D122+$I$9-E122-F122>=0,IF(ISERROR(INDEX($C$3:$C$6,MATCH(C122,$C$3:$C$6,0)+1,0)),Variables!$B$1,INDEX($C$3:$C$6,MATCH(C122,$C$3:$C$6,0)+1,0)),""),"") ->  | J122: =IF(ISERROR(VLOOKUP(I122,$C$3:$L$6,5,0)),"",IF(OR(VLOOKUP(I122,$C$3:$L$6,5,0)=Variables!$B$5,B122>VLOOKUP(I122,$C$3:$L$6,8,0)),IF(VLOOKUP(I122,$C$3:$L$6,5,0)=Variables!$B$5,((YEAR(B122)-YEAR($B$12))*12+MONTH(B122)-MONTH($B$12)),((YEAR(B122)-YEAR(VLOOKUP(I122,$C$3:$L$6,8,0)))*12+MONTH(B122)-MONTH(VLOOKUP(I122,$C$3:$L$6,8,0))))*(VLOOKUP(I122,$C$3:$L$6,10,0)*VLOOKUP(I122,$C$3:$L$6,6,0)/12),0)) ->  | K122: =IF(C122<>"",IF(I122<>"",IF(ISERROR(VLOOKUP(I122,$C$3:$L$6,10,0)),"",VLOOKUP(I122,$C$3:$L$6,10,0)+J122+IF(OR(VLOOKUP(I122,$C$3:$L$6,5,0)=Variables!$B$5,B122>VLOOKUP(I122,$C$3:$L$6,8,0)),IF(VLOOKUP(I122,$C$3:$L$6,5,0)=Variables!$B$5,((YEAR(B122)-YEAR($B$12))*12+MONTH(B122)-MONTH($B$12)),((YEAR(B122)-YEAR(VLOOKUP(I122,$C$3:$L$6,8,0)))*12+MONTH(B122)-MONTH(VLOOKUP(I122,$C$3:$L$6,8,0))))*VLOOKUP(I122,$C$3:$L$6,7,0),0)),""),"") -> 
C123: =IF(I122<>Variables!$B$1,IF(H122<>0,C122,I122),"") ->  | F123: =IF(C123<>"",IF(OR(VLOOKUP(C123,$C$3:$L$6,5,0)=Variables!$B$5,B123>VLOOKUP(C123,$C$3:$L$6,8,0)),-D123*VLOOKUP(C123,$C$3:$L$6,6,0)/12,0),"") ->  | G123: =IF(I123<>Variables!$B$1,IF(C123<>"",$I$9-E123-F123,""),-D123) ->  | I123: =IF(C123<>"",IF(D123+$I$9-E123-F123>=0,IF(ISERROR(INDEX($C$3:$C$6,MATCH(C123,$C$3:$C$6,0)+1,0)),Variables!$B$1,INDEX($C$3:$C$6,MATCH(C123,$C$3:$C$6,0)+1,0)),""),"") ->  | J123: =IF(ISERROR(VLOOKUP(I123,$C$3:$L$6,5,0)),"",IF(OR(VLOOKUP(I123,$C$3:$L$6,5,0)=Variables!$B$5,B123>VLOOKUP(I123,$C$3:$L$6,8,0)),IF(VLOOKUP(I123,$C$3:$L$6,5,0)=Variables!$B$5,((YEAR(B123)-YEAR($B$12))*12+MONTH(B123)-MONTH($B$12)),((YEAR(B123)-YEAR(VLOOKUP(I123,$C$3:$L$6,8,0)))*12+MONTH(B123)-MONTH(VLOOKUP(I123,$C$3:$L$6,8,0))))*(VLOOKUP(I123,$C$3:$L$6,10,0)*VLOOKUP(I123,$C$3:$L$6,6,0)/12),0)) ->  | K123: =IF(C123<>"",IF(I123<>"",IF(ISERROR(VLOOKUP(I123,$C$3:$L$6,10,0)),"",VLOOKUP(I123,$C$3:$L$6,10,0)+J123+IF(OR(VLOOKUP(I123,$C$3:$L$6,5,0)=Variables!$B$5,B123>VLOOKUP(I123,$C$3:$L$6,8,0)),IF(VLOOKUP(I123,$C$3:$L$6,5,0)=Variables!$B$5,((YEAR(B123)-YEAR($B$12))*12+MONTH(B123)-MONTH($B$12)),((YEAR(B123)-YEAR(VLOOKUP(I123,$C$3:$L$6,8,0)))*12+MONTH(B123)-MONTH(VLOOKUP(I123,$C$3:$L$6,8,0))))*VLOOKUP(I123,$C$3:$L$6,7,0),0)),""),"") -> 
C124: =IF(I123<>Variables!$B$1,IF(H123<>0,C123,I123),"") ->  | F124: =IF(C124<>"",IF(OR(VLOOKUP(C124,$C$3:$L$6,5,0)=Variables!$B$5,B124>VLOOKUP(C124,$C$3:$L$6,8,0)),-D124*VLOOKUP(C124,$C$3:$L$6,6,0)/12,0),"") ->  | G124: =IF(I124<>Variables!$B$1,IF(C124<>"",$I$9-E124-F124,""),-D124) ->  | I124: =IF(C124<>"",IF(D124+$I$9-E124-F124>=0,IF(ISERROR(INDEX($C$3:$C$6,MATCH(C124,$C$3:$C$6,0)+1,0)),Variables!$B$1,INDEX($C$3:$C$6,MATCH(C124,$C$3:$C$6,0)+1,0)),""),"") ->  | J124: =IF(ISERROR(VLOOKUP(I124,$C$3:$L$6,5,0)),"",IF(OR(VLOOKUP(I124,$C$3:$L$6,5,0)=Variables!$B$5,B124>VLOOKUP(I124,$C$3:$L$6,8,0)),IF(VLOOKUP(I124,$C$3:$L$6,5,0)=Variables!$B$5,((YEAR(B124)-YEAR($B$12))*12+MONTH(B124)-MONTH($B$12)),((YEAR(B124)-YEAR(VLOOKUP(I124,$C$3:$L$6,8,0)))*12+MONTH(B124)-MONTH(VLOOKUP(I124,$C$3:$L$6,8,0))))*(VLOOKUP(I124,$C$3:$L$6,10,0)*VLOOKUP(I124,$C$3:$L$6,6,0)/12),0)) ->  | K124: =IF(C124<>"",IF(I124<>"",IF(ISERROR(VLOOKUP(I124,$C$3:$L$6,10,0)),"",VLOOKUP(I124,$C$3:$L$6,10,0)+J124+IF(OR(VLOOKUP(I124,$C$3:$L$6,5,0)=Variables!$B$5,B124>VLOOKUP(I124,$C$3:$L$6,8,0)),IF(VLOOKUP(I124,$C$3:$L$6,5,0)=Variables!$B$5,((YEAR(B124)-YEAR($B$12))*12+MONTH(B124)-MONTH($B$12)),((YEAR(B124)-YEAR(VLOOKUP(I124,$C$3:$L$6,8,0)))*12+MONTH(B124)-MONTH(VLOOKUP(I124,$C$3:$L$6,8,0))))*VLOOKUP(I124,$C$3:$L$6,7,0),0)),""),"") -> 
C125: =IF(I124<>Variables!$B$1,IF(H124<>0,C124,I124),"") ->  | F125: =IF(C125<>"",IF(OR(VLOOKUP(C125,$C$3:$L$6,5,0)=Variables!$B$5,B125>VLOOKUP(C125,$C$3:$L$6,8,0)),-D125*VLOOKUP(C125,$C$3:$L$6,6,0)/12,0),"") ->  | G125: =IF(I125<>Variables!$B$1,IF(C125<>"",$I$9-E125-F125,""),-D125) ->  | I125: =IF(C125<>"",IF(D125+$I$9-E125-F125>=0,IF(ISERROR(INDEX($C$3:$C$6,MATCH(C125,$C$3:$C$6,0)+1,0)),Variables!$B$1,INDEX($C$3:$C$6,MATCH(C125,$C$3:$C$6,0)+1,0)),""),"") ->  | J125: =IF(ISERROR(VLOOKUP(I125,$C$3:$L$6,5,0)),"",IF(OR(VLOOKUP(I125,$C$3:$L$6,5,0)=Variables!$B$5,B125>VLOOKUP(I125,$C$3:$L$6,8,0)),IF(VLOOKUP(I125,$C$3:$L$6,5,0)=Variables!$B$5,((YEAR(B125)-YEAR($B$12))*12+MONTH(B125)-MONTH($B$12)),((YEAR(B125)-YEAR(VLOOKUP(I125,$C$3:$L$6,8,0)))*12+MONTH(B125)-MONTH(VLOOKUP(I125,$C$3:$L$6,8,0))))*(VLOOKUP(I125,$C$3:$L$6,10,0)*VLOOKUP(I125,$C$3:$L$6,6,0)/12),0)) ->  | K125: =IF(C125<>"",IF(I125<>"",IF(ISERROR(VLOOKUP(I125,$C$3:$L$6,10,0)),"",VLOOKUP(I125,$C$3:$L$6,10,0)+J125+IF(OR(VLOOKUP(I125,$C$3:$L$6,5,0)=Variables!$B$5,B125>VLOOKUP(I125,$C$3:$L$6,8,0)),IF(VLOOKUP(I125,$C$3:$L$6,5,0)=Variables!$B$5,((YEAR(B125)-YEAR($B$12))*12+MONTH(B125)-MONTH($B$12)),((YEAR(B125)-YEAR(VLOOKUP(I125,$C$3:$L$6,8,0)))*12+MONTH(B125)-MONTH(VLOOKUP(I125,$C$3:$L$6,8,0))))*VLOOKUP(I125,$C$3:$L$6,7,0),0)),""),"") -> 
C126: =IF(I125<>Variables!$B$1,IF(H125<>0,C125,I125),"") ->  | F126: =IF(C126<>"",IF(OR(VLOOKUP(C126,$C$3:$L$6,5,0)=Variables!$B$5,B126>VLOOKUP(C126,$C$3:$L$6,8,0)),-D126*VLOOKUP(C126,$C$3:$L$6,6,0)/12,0),"") ->  | G126: =IF(I126<>Variables!$B$1,IF(C126<>"",$I$9-E126-F126,""),-D126) ->  | I126: =IF(C126<>"",IF(D126+$I$9-E126-F126>=0,IF(ISERROR(INDEX($C$3:$C$6,MATCH(C126,$C$3:$C$6,0)+1,0)),Variables!$B$1,INDEX($C$3:$C$6,MATCH(C126,$C$3:$C$6,0)+1,0)),""),"") ->  | J126: =IF(ISERROR(VLOOKUP(I126,$C$3:$L$6,5,0)),"",IF(OR(VLOOKUP(I126,$C$3:$L$6,5,0)=Variables!$B$5,B126>VLOOKUP(I126,$C$3:$L$6,8,0)),IF(VLOOKUP(I126,$C$3:$L$6,5,0)=Variables!$B$5,((YEAR(B126)-YEAR($B$12))*12+MONTH(B126)-MONTH($B$12)),((YEAR(B126)-YEAR(VLOOKUP(I126,$C$3:$L$6,8,0)))*12+MONTH(B126)-MONTH(VLOOKUP(I126,$C$3:$L$6,8,0))))*(VLOOKUP(I126,$C$3:$L$6,10,0)*VLOOKUP(I126,$C$3:$L$6,6,0)/12),0)) ->  | K126: =IF(C126<>"",IF(I126<>"",IF(ISERROR(VLOOKUP(I126,$C$3:$L$6,10,0)),"",VLOOKUP(I126,$C$3:$L$6,10,0)+J126+IF(OR(VLOOKUP(I126,$C$3:$L$6,5,0)=Variables!$B$5,B126>VLOOKUP(I126,$C$3:$L$6,8,0)),IF(VLOOKUP(I126,$C$3:$L$6,5,0)=Variables!$B$5,((YEAR(B126)-YEAR($B$12))*12+MONTH(B126)-MONTH($B$12)),((YEAR(B126)-YEAR(VLOOKUP(I126,$C$3:$L$6,8,0)))*12+MONTH(B126)-MONTH(VLOOKUP(I126,$C$3:$L$6,8,0))))*VLOOKUP(I126,$C$3:$L$6,7,0),0)),""),"") -> 
C127: =IF(I126<>Variables!$B$1,IF(H126<>0,C126,I126),"") ->  | F127: =IF(C127<>"",IF(OR(VLOOKUP(C127,$C$3:$L$6,5,0)=Variables!$B$5,B127>VLOOKUP(C127,$C$3:$L$6,8,0)),-D127*VLOOKUP(C127,$C$3:$L$6,6,0)/12,0),"") ->  | G127: =IF(I127<>Variables!$B$1,IF(C127<>"",$I$9-E127-F127,""),-D127) ->  | I127: =IF(C127<>"",IF(D127+$I$9-E127-F127>=0,IF(ISERROR(INDEX($C$3:$C$6,MATCH(C127,$C$3:$C$6,0)+1,0)),Variables!$B$1,INDEX($C$3:$C$6,MATCH(C127,$C$3:$C$6,0)+1,0)),""),"") ->  | J127: =IF(ISERROR(VLOOKUP(I127,$C$3:$L$6,5,0)),"",IF(OR(VLOOKUP(I127,$C$3:$L$6,5,0)=Variables!$B$5,B127>VLOOKUP(I127,$C$3:$L$6,8,0)),IF(VLOOKUP(I127,$C$3:$L$6,5,0)=Variables!$B$5,((YEAR(B127)-YEAR($B$12))*12+MONTH(B127)-MONTH($B$12)),((YEAR(B127)-YEAR(VLOOKUP(I127,$C$3:$L$6,8,0)))*12+MONTH(B127)-MONTH(VLOOKUP(I127,$C$3:$L$6,8,0))))*(VLOOKUP(I127,$C$3:$L$6,10,0)*VLOOKUP(I127,$C$3:$L$6,6,0)/12),0)) ->  | K127: =IF(C127<>"",IF(I127<>"",IF(ISERROR(VLOOKUP(I127,$C$3:$L$6,10,0)),"",VLOOKUP(I127,$C$3:$L$6,10,0)+J127+IF(OR(VLOOKUP(I127,$C$3:$L$6,5,0)=Variables!$B$5,B127>VLOOKUP(I127,$C$3:$L$6,8,0)),IF(VLOOKUP(I127,$C$3:$L$6,5,0)=Variables!$B$5,((YEAR(B127)-YEAR($B$12))*12+MONTH(B127)-MONTH($B$12)),((YEAR(B127)-YEAR(VLOOKUP(I127,$C$3:$L$6,8,0)))*12+MONTH(B127)-MONTH(VLOOKUP(I127,$C$3:$L$6,8,0))))*VLOOKUP(I127,$C$3:$L$6,7,0),0)),""),"") -> 
C128: =IF(I127<>Variables!$B$1,IF(H127<>0,C127,I127),"") ->  | F128: =IF(C128<>"",IF(OR(VLOOKUP(C128,$C$3:$L$6,5,0)=Variables!$B$5,B128>VLOOKUP(C128,$C$3:$L$6,8,0)),-D128*VLOOKUP(C128,$C$3:$L$6,6,0)/12,0),"") ->  | G128: =IF(I128<>Variables!$B$1,IF(C128<>"",$I$9-E128-F128,""),-D128) ->  | I128: =IF(C128<>"",IF(D128+$I$9-E128-F128>=0,IF(ISERROR(INDEX($C$3:$C$6,MATCH(C128,$C$3:$C$6,0)+1,0)),Variables!$B$1,INDEX($C$3:$C$6,MATCH(C128,$C$3:$C$6,0)+1,0)),""),"") ->  | J128: =IF(ISERROR(VLOOKUP(I128,$C$3:$L$6,5,0)),"",IF(OR(VLOOKUP(I128,$C$3:$L$6,5,0)=Variables!$B$5,B128>VLOOKUP(I128,$C$3:$L$6,8,0)),IF(VLOOKUP(I128,$C$3:$L$6,5,0)=Variables!$B$5,((YEAR(B128)-YEAR($B$12))*12+MONTH(B128)-MONTH($B$12)),((YEAR(B128)-YEAR(VLOOKUP(I128,$C$3:$L$6,8,0)))*12+MONTH(B128)-MONTH(VLOOKUP(I128,$C$3:$L$6,8,0))))*(VLOOKUP(I128,$C$3:$L$6,10,0)*VLOOKUP(I128,$C$3:$L$6,6,0)/12),0)) ->  | K128: =IF(C128<>"",IF(I128<>"",IF(ISERROR(VLOOKUP(I128,$C$3:$L$6,10,0)),"",VLOOKUP(I128,$C$3:$L$6,10,0)+J128+IF(OR(VLOOKUP(I128,$C$3:$L$6,5,0)=Variables!$B$5,B128>VLOOKUP(I128,$C$3:$L$6,8,0)),IF(VLOOKUP(I128,$C$3:$L$6,5,0)=Variables!$B$5,((YEAR(B128)-YEAR($B$12))*12+MONTH(B128)-MONTH($B$12)),((YEAR(B128)-YEAR(VLOOKUP(I128,$C$3:$L$6,8,0)))*12+MONTH(B128)-MONTH(VLOOKUP(I128,$C$3:$L$6,8,0))))*VLOOKUP(I128,$C$3:$L$6,7,0),0)),""),"") -> 
C129: =IF(I128<>Variables!$B$1,IF(H128<>0,C128,I128),"") ->  | F129: =IF(C129<>"",IF(OR(VLOOKUP(C129,$C$3:$L$6,5,0)=Variables!$B$5,B129>VLOOKUP(C129,$C$3:$L$6,8,0)),-D129*VLOOKUP(C129,$C$3:$L$6,6,0)/12,0),"") ->  | G129: =IF(I129<>Variables!$B$1,IF(C129<>"",$I$9-E129-F129,""),-D129) ->  | I129: =IF(C129<>"",IF(D129+$I$9-E129-F129>=0,IF(ISERROR(INDEX($C$3:$C$6,MATCH(C129,$C$3:$C$6,0)+1,0)),Variables!$B$1,INDEX($C$3:$C$6,MATCH(C129,$C$3:$C$6,0)+1,0)),""),"") ->  | J129: =IF(ISERROR(VLOOKUP(I129,$C$3:$L$6,5,0)),"",IF(OR(VLOOKUP(I129,$C$3:$L$6,5,0)=Variables!$B$5,B129>VLOOKUP(I129,$C$3:$L$6,8,0)),IF(VLOOKUP(I129,$C$3:$L$6,5,0)=Variables!$B$5,((YEAR(B129)-YEAR($B$12))*12+MONTH(B129)-MONTH($B$12)),((YEAR(B129)-YEAR(VLOOKUP(I129,$C$3:$L$6,8,0)))*12+MONTH(B129)-MONTH(VLOOKUP(I129,$C$3:$L$6,8,0))))*(VLOOKUP(I129,$C$3:$L$6,10,0)*VLOOKUP(I129,$C$3:$L$6,6,0)/12),0)) ->  | K129: =IF(C129<>"",IF(I129<>"",IF(ISERROR(VLOOKUP(I129,$C$3:$L$6,10,0)),"",VLOOKUP(I129,$C$3:$L$6,10,0)+J129+IF(OR(VLOOKUP(I129,$C$3:$L$6,5,0)=Variables!$B$5,B129>VLOOKUP(I129,$C$3:$L$6,8,0)),IF(VLOOKUP(I129,$C$3:$L$6,5,0)=Variables!$B$5,((YEAR(B129)-YEAR($B$12))*12+MONTH(B129)-MONTH($B$12)),((YEAR(B129)-YEAR(VLOOKUP(I129,$C$3:$L$6,8,0)))*12+MONTH(B129)-MONTH(VLOOKUP(I129,$C$3:$L$6,8,0))))*VLOOKUP(I129,$C$3:$L$6,7,0),0)),""),"") -> 
C130: =IF(I129<>Variables!$B$1,IF(H129<>0,C129,I129),"") ->  | F130: =IF(C130<>"",IF(OR(VLOOKUP(C130,$C$3:$L$6,5,0)=Variables!$B$5,B130>VLOOKUP(C130,$C$3:$L$6,8,0)),-D130*VLOOKUP(C130,$C$3:$L$6,6,0)/12,0),"") ->  | G130: =IF(I130<>Variables!$B$1,IF(C130<>"",$I$9-E130-F130,""),-D130) ->  | I130: =IF(C130<>"",IF(D130+$I$9-E130-F130>=0,IF(ISERROR(INDEX($C$3:$C$6,MATCH(C130,$C$3:$C$6,0)+1,0)),Variables!$B$1,INDEX($C$3:$C$6,MATCH(C130,$C$3:$C$6,0)+1,0)),""),"") ->  | J130: =IF(ISERROR(VLOOKUP(I130,$C$3:$L$6,5,0)),"",IF(OR(VLOOKUP(I130,$C$3:$L$6,5,0)=Variables!$B$5,B130>VLOOKUP(I130,$C$3:$L$6,8,0)),IF(VLOOKUP(I130,$C$3:$L$6,5,0)=Variables!$B$5,((YEAR(B130)-YEAR($B$12))*12+MONTH(B130)-MONTH($B$12)),((YEAR(B130)-YEAR(VLOOKUP(I130,$C$3:$L$6,8,0)))*12+MONTH(B130)-MONTH(VLOOKUP(I130,$C$3:$L$6,8,0))))*(VLOOKUP(I130,$C$3:$L$6,10,0)*VLOOKUP(I130,$C$3:$L$6,6,0)/12),0)) ->  | K130: =IF(C130<>"",IF(I130<>"",IF(ISERROR(VLOOKUP(I130,$C$3:$L$6,10,0)),"",VLOOKUP(I130,$C$3:$L$6,10,0)+J130+IF(OR(VLOOKUP(I130,$C$3:$L$6,5,0)=Variables!$B$5,B130>VLOOKUP(I130,$C$3:$L$6,8,0)),IF(VLOOKUP(I130,$C$3:$L$6,5,0)=Variables!$B$5,((YEAR(B130)-YEAR($B$12))*12+MONTH(B130)-MONTH($B$12)),((YEAR(B130)-YEAR(VLOOKUP(I130,$C$3:$L$6,8,0)))*12+MONTH(B130)-MONTH(VLOOKUP(I130,$C$3:$L$6,8,0))))*VLOOKUP(I130,$C$3:$L$6,7,0),0)),""),"") -> 
C131: =IF(I130<>Variables!$B$1,IF(H130<>0,C130,I130),"") ->  | F131: =IF(C131<>"",IF(OR(VLOOKUP(C131,$C$3:$L$6,5,0)=Variables!$B$5,B131>VLOOKUP(C131,$C$3:$L$6,8,0)),-D131*VLOOKUP(C131,$C$3:$L$6,6,0)/12,0),"") ->  | G131: =IF(I131<>Variables!$B$1,IF(C131<>"",$I$9-E131-F131,""),-D131) ->  | I131: =IF(C131<>"",IF(D131+$I$9-E131-F131>=0,IF(ISERROR(INDEX($C$3:$C$6,MATCH(C131,$C$3:$C$6,0)+1,0)),Variables!$B$1,INDEX($C$3:$C$6,MATCH(C131,$C$3:$C$6,0)+1,0)),""),"") ->  | J131: =IF(ISERROR(VLOOKUP(I131,$C$3:$L$6,5,0)),"",IF(OR(VLOOKUP(I131,$C$3:$L$6,5,0)=Variables!$B$5,B131>VLOOKUP(I131,$C$3:$L$6,8,0)),IF(VLOOKUP(I131,$C$3:$L$6,5,0)=Variables!$B$5,((YEAR(B131)-YEAR($B$12))*12+MONTH(B131)-MONTH($B$12)),((YEAR(B131)-YEAR(VLOOKUP(I131,$C$3:$L$6,8,0)))*12+MONTH(B131)-MONTH(VLOOKUP(I131,$C$3:$L$6,8,0))))*(VLOOKUP(I131,$C$3:$L$6,10,0)*VLOOKUP(I131,$C$3:$L$6,6,0)/12),0)) ->  | K131: =IF(C131<>"",IF(I131<>"",IF(ISERROR(VLOOKUP(I131,$C$3:$L$6,10,0)),"",VLOOKUP(I131,$C$3:$L$6,10,0)+J131+IF(OR(VLOOKUP(I131,$C$3:$L$6,5,0)=Variables!$B$5,B131>VLOOKUP(I131,$C$3:$L$6,8,0)),IF(VLOOKUP(I131,$C$3:$L$6,5,0)=Variables!$B$5,((YEAR(B131)-YEAR($B$12))*12+MONTH(B131)-MONTH($B$12)),((YEAR(B131)-YEAR(VLOOKUP(I131,$C$3:$L$6,8,0)))*12+MONTH(B131)-MONTH(VLOOKUP(I131,$C$3:$L$6,8,0))))*VLOOKUP(I131,$C$3:$L$6,7,0),0)),""),"") -> 
C132: =IF(I131<>Variables!$B$1,IF(H131<>0,C131,I131),"") ->  | F132: =IF(C132<>"",IF(OR(VLOOKUP(C132,$C$3:$L$6,5,0)=Variables!$B$5,B132>VLOOKUP(C132,$C$3:$L$6,8,0)),-D132*VLOOKUP(C132,$C$3:$L$6,6,0)/12,0),"") ->  | G132: =IF(I132<>Variables!$B$1,IF(C132<>"",$I$9-E132-F132,""),-D132) ->  | I132: =IF(C132<>"",IF(D132+$I$9-E132-F132>=0,IF(ISERROR(INDEX($C$3:$C$6,MATCH(C132,$C$3:$C$6,0)+1,0)),Variables!$B$1,INDEX($C$3:$C$6,MATCH(C132,$C$3:$C$6,0)+1,0)),""),"") ->  | J132: =IF(ISERROR(VLOOKUP(I132,$C$3:$L$6,5,0)),"",IF(OR(VLOOKUP(I132,$C$3:$L$6,5,0)=Variables!$B$5,B132>VLOOKUP(I132,$C$3:$L$6,8,0)),IF(VLOOKUP(I132,$C$3:$L$6,5,0)=Variables!$B$5,((YEAR(B132)-YEAR($B$12))*12+MONTH(B132)-MONTH($B$12)),((YEAR(B132)-YEAR(VLOOKUP(I132,$C$3:$L$6,8,0)))*12+MONTH(B132)-MONTH(VLOOKUP(I132,$C$3:$L$6,8,0))))*(VLOOKUP(I132,$C$3:$L$6,10,0)*VLOOKUP(I132,$C$3:$L$6,6,0)/12),0)) ->  | K132: =IF(C132<>"",IF(I132<>"",IF(ISERROR(VLOOKUP(I132,$C$3:$L$6,10,0)),"",VLOOKUP(I132,$C$3:$L$6,10,0)+J132+IF(OR(VLOOKUP(I132,$C$3:$L$6,5,0)=Variables!$B$5,B132>VLOOKUP(I132,$C$3:$L$6,8,0)),IF(VLOOKUP(I132,$C$3:$L$6,5,0)=Variables!$B$5,((YEAR(B132)-YEAR($B$12))*12+MONTH(B132)-MONTH($B$12)),((YEAR(B132)-YEAR(VLOOKUP(I132,$C$3:$L$6,8,0)))*12+MONTH(B132)-MONTH(VLOOKUP(I132,$C$3:$L$6,8,0))))*VLOOKUP(I132,$C$3:$L$6,7,0),0)),""),"") -> 
C133: =IF(I132<>Variables!$B$1,IF(H132<>0,C132,I132),"") ->  | F133: =IF(C133<>"",IF(OR(VLOOKUP(C133,$C$3:$L$6,5,0)=Variables!$B$5,B133>VLOOKUP(C133,$C$3:$L$6,8,0)),-D133*VLOOKUP(C133,$C$3:$L$6,6,0)/12,0),"") ->  | G133: =IF(I133<>Variables!$B$1,IF(C133<>"",$I$9-E133-F133,""),-D133) ->  | I133: =IF(C133<>"",IF(D133+$I$9-E133-F133>=0,IF(ISERROR(INDEX($C$3:$C$6,MATCH(C133,$C$3:$C$6,0)+1,0)),Variables!$B$1,INDEX($C$3:$C$6,MATCH(C133,$C$3:$C$6,0)+1,0)),""),"") ->  | J133: =IF(ISERROR(VLOOKUP(I133,$C$3:$L$6,5,0)),"",IF(OR(VLOOKUP(I133,$C$3:$L$6,5,0)=Variables!$B$5,B133>VLOOKUP(I133,$C$3:$L$6,8,0)),IF(VLOOKUP(I133,$C$3:$L$6,5,0)=Variables!$B$5,((YEAR(B133)-YEAR($B$12))*12+MONTH(B133)-MONTH($B$12)),((YEAR(B133)-YEAR(VLOOKUP(I133,$C$3:$L$6,8,0)))*12+MONTH(B133)-MONTH(VLOOKUP(I133,$C$3:$L$6,8,0))))*(VLOOKUP(I133,$C$3:$L$6,10,0)*VLOOKUP(I133,$C$3:$L$6,6,0)/12),0)) ->  | K133: =IF(C133<>"",IF(I133<>"",IF(ISERROR(VLOOKUP(I133,$C$3:$L$6,10,0)),"",VLOOKUP(I133,$C$3:$L$6,10,0)+J133+IF(OR(VLOOKUP(I133,$C$3:$L$6,5,0)=Variables!$B$5,B133>VLOOKUP(I133,$C$3:$L$6,8,0)),IF(VLOOKUP(I133,$C$3:$L$6,5,0)=Variables!$B$5,((YEAR(B133)-YEAR($B$12))*12+MONTH(B133)-MONTH($B$12)),((YEAR(B133)-YEAR(VLOOKUP(I133,$C$3:$L$6,8,0)))*12+MONTH(B133)-MONTH(VLOOKUP(I133,$C$3:$L$6,8,0))))*VLOOKUP(I133,$C$3:$L$6,7,0),0)),""),"") -> 
C134: =IF(I133<>Variables!$B$1,IF(H133<>0,C133,I133),"") ->  | F134: =IF(C134<>"",IF(OR(VLOOKUP(C134,$C$3:$L$6,5,0)=Variables!$B$5,B134>VLOOKUP(C134,$C$3:$L$6,8,0)),-D134*VLOOKUP(C134,$C$3:$L$6,6,0)/12,0),"") ->  | G134: =IF(I134<>Variables!$B$1,IF(C134<>"",$I$9-E134-F134,""),-D134) ->  | I134: =IF(C134<>"",IF(D134+$I$9-E134-F134>=0,IF(ISERROR(INDEX($C$3:$C$6,MATCH(C134,$C$3:$C$6,0)+1,0)),Variables!$B$1,INDEX($C$3:$C$6,MATCH(C134,$C$3:$C$6,0)+1,0)),""),"") ->  | J134: =IF(ISERROR(VLOOKUP(I134,$C$3:$L$6,5,0)),"",IF(OR(VLOOKUP(I134,$C$3:$L$6,5,0)=Variables!$B$5,B134>VLOOKUP(I134,$C$3:$L$6,8,0)),IF(VLOOKUP(I134,$C$3:$L$6,5,0)=Variables!$B$5,((YEAR(B134)-YEAR($B$12))*12+MONTH(B134)-MONTH($B$12)),((YEAR(B134)-YEAR(VLOOKUP(I134,$C$3:$L$6,8,0)))*12+MONTH(B134)-MONTH(VLOOKUP(I134,$C$3:$L$6,8,0))))*(VLOOKUP(I134,$C$3:$L$6,10,0)*VLOOKUP(I134,$C$3:$L$6,6,0)/12),0)) ->  | K134: =IF(C134<>"",IF(I134<>"",IF(ISERROR(VLOOKUP(I134,$C$3:$L$6,10,0)),"",VLOOKUP(I134,$C$3:$L$6,10,0)+J134+IF(OR(VLOOKUP(I134,$C$3:$L$6,5,0)=Variables!$B$5,B134>VLOOKUP(I134,$C$3:$L$6,8,0)),IF(VLOOKUP(I134,$C$3:$L$6,5,0)=Variables!$B$5,((YEAR(B134)-YEAR($B$12))*12+MONTH(B134)-MONTH($B$12)),((YEAR(B134)-YEAR(VLOOKUP(I134,$C$3:$L$6,8,0)))*12+MONTH(B134)-MONTH(VLOOKUP(I134,$C$3:$L$6,8,0))))*VLOOKUP(I134,$C$3:$L$6,7,0),0)),""),"") -> 
C135: =IF(I134<>Variables!$B$1,IF(H134<>0,C134,I134),"") ->  | F135: =IF(C135<>"",IF(OR(VLOOKUP(C135,$C$3:$L$6,5,0)=Variables!$B$5,B135>VLOOKUP(C135,$C$3:$L$6,8,0)),-D135*VLOOKUP(C135,$C$3:$L$6,6,0)/12,0),"") ->  | G135: =IF(I135<>Variables!$B$1,IF(C135<>"",$I$9-E135-F135,""),-D135) ->  | I135: =IF(C135<>"",IF(D135+$I$9-E135-F135>=0,IF(ISERROR(INDEX($C$3:$C$6,MATCH(C135,$C$3:$C$6,0)+1,0)),Variables!$B$1,INDEX($C$3:$C$6,MATCH(C135,$C$3:$C$6,0)+1,0)),""),"") ->  | J135: =IF(ISERROR(VLOOKUP(I135,$C$3:$L$6,5,0)),"",IF(OR(VLOOKUP(I135,$C$3:$L$6,5,0)=Variables!$B$5,B135>VLOOKUP(I135,$C$3:$L$6,8,0)),IF(VLOOKUP(I135,$C$3:$L$6,5,0)=Variables!$B$5,((YEAR(B135)-YEAR($B$12))*12+MONTH(B135)-MONTH($B$12)),((YEAR(B135)-YEAR(VLOOKUP(I135,$C$3:$L$6,8,0)))*12+MONTH(B135)-MONTH(VLOOKUP(I135,$C$3:$L$6,8,0))))*(VLOOKUP(I135,$C$3:$L$6,10,0)*VLOOKUP(I135,$C$3:$L$6,6,0)/12),0)) ->  | K135: =IF(C135<>"",IF(I135<>"",IF(ISERROR(VLOOKUP(I135,$C$3:$L$6,10,0)),"",VLOOKUP(I135,$C$3:$L$6,10,0)+J135+IF(OR(VLOOKUP(I135,$C$3:$L$6,5,0)=Variables!$B$5,B135>VLOOKUP(I135,$C$3:$L$6,8,0)),IF(VLOOKUP(I135,$C$3:$L$6,5,0)=Variables!$B$5,((YEAR(B135)-YEAR($B$12))*12+MONTH(B135)-MONTH($B$12)),((YEAR(B135)-YEAR(VLOOKUP(I135,$C$3:$L$6,8,0)))*12+MONTH(B135)-MONTH(VLOOKUP(I135,$C$3:$L$6,8,0))))*VLOOKUP(I135,$C$3:$L$6,7,0),0)),""),"") -> 
C136: =IF(I135<>Variables!$B$1,IF(H135<>0,C135,I135),"") ->  | F136: =IF(C136<>"",IF(OR(VLOOKUP(C136,$C$3:$L$6,5,0)=Variables!$B$5,B136>VLOOKUP(C136,$C$3:$L$6,8,0)),-D136*VLOOKUP(C136,$C$3:$L$6,6,0)/12,0),"") ->  | G136: =IF(I136<>Variables!$B$1,IF(C136<>"",$I$9-E136-F136,""),-D136) ->  | I136: =IF(C136<>"",IF(D136+$I$9-E136-F136>=0,IF(ISERROR(INDEX($C$3:$C$6,MATCH(C136,$C$3:$C$6,0)+1,0)),Variables!$B$1,INDEX($C$3:$C$6,MATCH(C136,$C$3:$C$6,0)+1,0)),""),"") ->  | J136: =IF(ISERROR(VLOOKUP(I136,$C$3:$L$6,5,0)),"",IF(OR(VLOOKUP(I136,$C$3:$L$6,5,0)=Variables!$B$5,B136>VLOOKUP(I136,$C$3:$L$6,8,0)),IF(VLOOKUP(I136,$C$3:$L$6,5,0)=Variables!$B$5,((YEAR(B136)-YEAR($B$12))*12+MONTH(B136)-MONTH($B$12)),((YEAR(B136)-YEAR(VLOOKUP(I136,$C$3:$L$6,8,0)))*12+MONTH(B136)-MONTH(VLOOKUP(I136,$C$3:$L$6,8,0))))*(VLOOKUP(I136,$C$3:$L$6,10,0)*VLOOKUP(I136,$C$3:$L$6,6,0)/12),0)) ->  | K136: =IF(C136<>"",IF(I136<>"",IF(ISERROR(VLOOKUP(I136,$C$3:$L$6,10,0)),"",VLOOKUP(I136,$C$3:$L$6,10,0)+J136+IF(OR(VLOOKUP(I136,$C$3:$L$6,5,0)=Variables!$B$5,B136>VLOOKUP(I136,$C$3:$L$6,8,0)),IF(VLOOKUP(I136,$C$3:$L$6,5,0)=Variables!$B$5,((YEAR(B136)-YEAR($B$12))*12+MONTH(B136)-MONTH($B$12)),((YEAR(B136)-YEAR(VLOOKUP(I136,$C$3:$L$6,8,0)))*12+MONTH(B136)-MONTH(VLOOKUP(I136,$C$3:$L$6,8,0))))*VLOOKUP(I136,$C$3:$L$6,7,0),0)),""),"") -> 
C137: =IF(I136<>Variables!$B$1,IF(H136<>0,C136,I136),"") ->  | F137: =IF(C137<>"",IF(OR(VLOOKUP(C137,$C$3:$L$6,5,0)=Variables!$B$5,B137>VLOOKUP(C137,$C$3:$L$6,8,0)),-D137*VLOOKUP(C137,$C$3:$L$6,6,0)/12,0),"") ->  | G137: =IF(I137<>Variables!$B$1,IF(C137<>"",$I$9-E137-F137,""),-D137) ->  | I137: =IF(C137<>"",IF(D137+$I$9-E137-F137>=0,IF(ISERROR(INDEX($C$3:$C$6,MATCH(C137,$C$3:$C$6,0)+1,0)),Variables!$B$1,INDEX($C$3:$C$6,MATCH(C137,$C$3:$C$6,0)+1,0)),""),"") ->  | J137: =IF(ISERROR(VLOOKUP(I137,$C$3:$L$6,5,0)),"",IF(OR(VLOOKUP(I137,$C$3:$L$6,5,0)=Variables!$B$5,B137>VLOOKUP(I137,$C$3:$L$6,8,0)),IF(VLOOKUP(I137,$C$3:$L$6,5,0)=Variables!$B$5,((YEAR(B137)-YEAR($B$12))*12+MONTH(B137)-MONTH($B$12)),((YEAR(B137)-YEAR(VLOOKUP(I137,$C$3:$L$6,8,0)))*12+MONTH(B137)-MONTH(VLOOKUP(I137,$C$3:$L$6,8,0))))*(VLOOKUP(I137,$C$3:$L$6,10,0)*VLOOKUP(I137,$C$3:$L$6,6,0)/12),0)) ->  | K137: =IF(C137<>"",IF(I137<>"",IF(ISERROR(VLOOKUP(I137,$C$3:$L$6,10,0)),"",VLOOKUP(I137,$C$3:$L$6,10,0)+J137+IF(OR(VLOOKUP(I137,$C$3:$L$6,5,0)=Variables!$B$5,B137>VLOOKUP(I137,$C$3:$L$6,8,0)),IF(VLOOKUP(I137,$C$3:$L$6,5,0)=Variables!$B$5,((YEAR(B137)-YEAR($B$12))*12+MONTH(B137)-MONTH($B$12)),((YEAR(B137)-YEAR(VLOOKUP(I137,$C$3:$L$6,8,0)))*12+MONTH(B137)-MONTH(VLOOKUP(I137,$C$3:$L$6,8,0))))*VLOOKUP(I137,$C$3:$L$6,7,0),0)),""),"") -> 
C138: =IF(I137<>Variables!$B$1,IF(H137<>0,C137,I137),"") ->  | F138: =IF(C138<>"",IF(OR(VLOOKUP(C138,$C$3:$L$6,5,0)=Variables!$B$5,B138>VLOOKUP(C138,$C$3:$L$6,8,0)),-D138*VLOOKUP(C138,$C$3:$L$6,6,0)/12,0),"") ->  | G138: =IF(I138<>Variables!$B$1,IF(C138<>"",$I$9-E138-F138,""),-D138) ->  | I138: =IF(C138<>"",IF(D138+$I$9-E138-F138>=0,IF(ISERROR(INDEX($C$3:$C$6,MATCH(C138,$C$3:$C$6,0)+1,0)),Variables!$B$1,INDEX($C$3:$C$6,MATCH(C138,$C$3:$C$6,0)+1,0)),""),"") ->  | J138: =IF(ISERROR(VLOOKUP(I138,$C$3:$L$6,5,0)),"",IF(OR(VLOOKUP(I138,$C$3:$L$6,5,0)=Variables!$B$5,B138>VLOOKUP(I138,$C$3:$L$6,8,0)),IF(VLOOKUP(I138,$C$3:$L$6,5,0)=Variables!$B$5,((YEAR(B138)-YEAR($B$12))*12+MONTH(B138)-MONTH($B$12)),((YEAR(B138)-YEAR(VLOOKUP(I138,$C$3:$L$6,8,0)))*12+MONTH(B138)-MONTH(VLOOKUP(I138,$C$3:$L$6,8,0))))*(VLOOKUP(I138,$C$3:$L$6,10,0)*VLOOKUP(I138,$C$3:$L$6,6,0)/12),0)) ->  | K138: =IF(C138<>"",IF(I138<>"",IF(ISERROR(VLOOKUP(I138,$C$3:$L$6,10,0)),"",VLOOKUP(I138,$C$3:$L$6,10,0)+J138+IF(OR(VLOOKUP(I138,$C$3:$L$6,5,0)=Variables!$B$5,B138>VLOOKUP(I138,$C$3:$L$6,8,0)),IF(VLOOKUP(I138,$C$3:$L$6,5,0)=Variables!$B$5,((YEAR(B138)-YEAR($B$12))*12+MONTH(B138)-MONTH($B$12)),((YEAR(B138)-YEAR(VLOOKUP(I138,$C$3:$L$6,8,0)))*12+MONTH(B138)-MONTH(VLOOKUP(I138,$C$3:$L$6,8,0))))*VLOOKUP(I138,$C$3:$L$6,7,0),0)),""),"") -> 
C139: =IF(I138<>Variables!$B$1,IF(H138<>0,C138,I138),"") ->  | F139: =IF(C139<>"",IF(OR(VLOOKUP(C139,$C$3:$L$6,5,0)=Variables!$B$5,B139>VLOOKUP(C139,$C$3:$L$6,8,0)),-D139*VLOOKUP(C139,$C$3:$L$6,6,0)/12,0),"") ->  | G139: =IF(I139<>Variables!$B$1,IF(C139<>"",$I$9-E139-F139,""),-D139) ->  | I139: =IF(C139<>"",IF(D139+$I$9-E139-F139>=0,IF(ISERROR(INDEX($C$3:$C$6,MATCH(C139,$C$3:$C$6,0)+1,0)),Variables!$B$1,INDEX($C$3:$C$6,MATCH(C139,$C$3:$C$6,0)+1,0)),""),"") ->  | J139: =IF(ISERROR(VLOOKUP(I139,$C$3:$L$6,5,0)),"",IF(OR(VLOOKUP(I139,$C$3:$L$6,5,0)=Variables!$B$5,B139>VLOOKUP(I139,$C$3:$L$6,8,0)),IF(VLOOKUP(I139,$C$3:$L$6,5,0)=Variables!$B$5,((YEAR(B139)-YEAR($B$12))*12+MONTH(B139)-MONTH($B$12)),((YEAR(B139)-YEAR(VLOOKUP(I139,$C$3:$L$6,8,0)))*12+MONTH(B139)-MONTH(VLOOKUP(I139,$C$3:$L$6,8,0))))*(VLOOKUP(I139,$C$3:$L$6,10,0)*VLOOKUP(I139,$C$3:$L$6,6,0)/12),0)) ->  | K139: =IF(C139<>"",IF(I139<>"",IF(ISERROR(VLOOKUP(I139,$C$3:$L$6,10,0)),"",VLOOKUP(I139,$C$3:$L$6,10,0)+J139+IF(OR(VLOOKUP(I139,$C$3:$L$6,5,0)=Variables!$B$5,B139>VLOOKUP(I139,$C$3:$L$6,8,0)),IF(VLOOKUP(I139,$C$3:$L$6,5,0)=Variables!$B$5,((YEAR(B139)-YEAR($B$12))*12+MONTH(B139)-MONTH($B$12)),((YEAR(B139)-YEAR(VLOOKUP(I139,$C$3:$L$6,8,0)))*12+MONTH(B139)-MONTH(VLOOKUP(I139,$C$3:$L$6,8,0))))*VLOOKUP(I139,$C$3:$L$6,7,0),0)),""),"") -> 
C140: =IF(I139<>Variables!$B$1,IF(H139<>0,C139,I139),"") ->  | F140: =IF(C140<>"",IF(OR(VLOOKUP(C140,$C$3:$L$6,5,0)=Variables!$B$5,B140>VLOOKUP(C140,$C$3:$L$6,8,0)),-D140*VLOOKUP(C140,$C$3:$L$6,6,0)/12,0),"") ->  | G140: =IF(I140<>Variables!$B$1,IF(C140<>"",$I$9-E140-F140,""),-D140) ->  | I140: =IF(C140<>"",IF(D140+$I$9-E140-F140>=0,IF(ISERROR(INDEX($C$3:$C$6,MATCH(C140,$C$3:$C$6,0)+1,0)),Variables!$B$1,INDEX($C$3:$C$6,MATCH(C140,$C$3:$C$6,0)+1,0)),""),"") ->  | J140: =IF(ISERROR(VLOOKUP(I140,$C$3:$L$6,5,0)),"",IF(OR(VLOOKUP(I140,$C$3:$L$6,5,0)=Variables!$B$5,B140>VLOOKUP(I140,$C$3:$L$6,8,0)),IF(VLOOKUP(I140,$C$3:$L$6,5,0)=Variables!$B$5,((YEAR(B140)-YEAR($B$12))*12+MONTH(B140)-MONTH($B$12)),((YEAR(B140)-YEAR(VLOOKUP(I140,$C$3:$L$6,8,0)))*12+MONTH(B140)-MONTH(VLOOKUP(I140,$C$3:$L$6,8,0))))*(VLOOKUP(I140,$C$3:$L$6,10,0)*VLOOKUP(I140,$C$3:$L$6,6,0)/12),0)) ->  | K140: =IF(C140<>"",IF(I140<>"",IF(ISERROR(VLOOKUP(I140,$C$3:$L$6,10,0)),"",VLOOKUP(I140,$C$3:$L$6,10,0)+J140+IF(OR(VLOOKUP(I140,$C$3:$L$6,5,0)=Variables!$B$5,B140>VLOOKUP(I140,$C$3:$L$6,8,0)),IF(VLOOKUP(I140,$C$3:$L$6,5,0)=Variables!$B$5,((YEAR(B140)-YEAR($B$12))*12+MONTH(B140)-MONTH($B$12)),((YEAR(B140)-YEAR(VLOOKUP(I140,$C$3:$L$6,8,0)))*12+MONTH(B140)-MONTH(VLOOKUP(I140,$C$3:$L$6,8,0))))*VLOOKUP(I140,$C$3:$L$6,7,0),0)),""),"") -> 
C141: =IF(I140<>Variables!$B$1,IF(H140<>0,C140,I140),"") ->  | F141: =IF(C141<>"",IF(OR(VLOOKUP(C141,$C$3:$L$6,5,0)=Variables!$B$5,B141>VLOOKUP(C141,$C$3:$L$6,8,0)),-D141*VLOOKUP(C141,$C$3:$L$6,6,0)/12,0),"") ->  | G141: =IF(I141<>Variables!$B$1,IF(C141<>"",$I$9-E141-F141,""),-D141) ->  | I141: =IF(C141<>"",IF(D141+$I$9-E141-F141>=0,IF(ISERROR(INDEX($C$3:$C$6,MATCH(C141,$C$3:$C$6,0)+1,0)),Variables!$B$1,INDEX($C$3:$C$6,MATCH(C141,$C$3:$C$6,0)+1,0)),""),"") ->  | J141: =IF(ISERROR(VLOOKUP(I141,$C$3:$L$6,5,0)),"",IF(OR(VLOOKUP(I141,$C$3:$L$6,5,0)=Variables!$B$5,B141>VLOOKUP(I141,$C$3:$L$6,8,0)),IF(VLOOKUP(I141,$C$3:$L$6,5,0)=Variables!$B$5,((YEAR(B141)-YEAR($B$12))*12+MONTH(B141)-MONTH($B$12)),((YEAR(B141)-YEAR(VLOOKUP(I141,$C$3:$L$6,8,0)))*12+MONTH(B141)-MONTH(VLOOKUP(I141,$C$3:$L$6,8,0))))*(VLOOKUP(I141,$C$3:$L$6,10,0)*VLOOKUP(I141,$C$3:$L$6,6,0)/12),0)) ->  | K141: =IF(C141<>"",IF(I141<>"",IF(ISERROR(VLOOKUP(I141,$C$3:$L$6,10,0)),"",VLOOKUP(I141,$C$3:$L$6,10,0)+J141+IF(OR(VLOOKUP(I141,$C$3:$L$6,5,0)=Variables!$B$5,B141>VLOOKUP(I141,$C$3:$L$6,8,0)),IF(VLOOKUP(I141,$C$3:$L$6,5,0)=Variables!$B$5,((YEAR(B141)-YEAR($B$12))*12+MONTH(B141)-MONTH($B$12)),((YEAR(B141)-YEAR(VLOOKUP(I141,$C$3:$L$6,8,0)))*12+MONTH(B141)-MONTH(VLOOKUP(I141,$C$3:$L$6,8,0))))*VLOOKUP(I141,$C$3:$L$6,7,0),0)),""),"") -> 
C142: =IF(I141<>Variables!$B$1,IF(H141<>0,C141,I141),"") ->  | F142: =IF(C142<>"",IF(OR(VLOOKUP(C142,$C$3:$L$6,5,0)=Variables!$B$5,B142>VLOOKUP(C142,$C$3:$L$6,8,0)),-D142*VLOOKUP(C142,$C$3:$L$6,6,0)/12,0),"") ->  | G142: =IF(I142<>Variables!$B$1,IF(C142<>"",$I$9-E142-F142,""),-D142) ->  | I142: =IF(C142<>"",IF(D142+$I$9-E142-F142>=0,IF(ISERROR(INDEX($C$3:$C$6,MATCH(C142,$C$3:$C$6,0)+1,0)),Variables!$B$1,INDEX($C$3:$C$6,MATCH(C142,$C$3:$C$6,0)+1,0)),""),"") ->  | J142: =IF(ISERROR(VLOOKUP(I142,$C$3:$L$6,5,0)),"",IF(OR(VLOOKUP(I142,$C$3:$L$6,5,0)=Variables!$B$5,B142>VLOOKUP(I142,$C$3:$L$6,8,0)),IF(VLOOKUP(I142,$C$3:$L$6,5,0)=Variables!$B$5,((YEAR(B142)-YEAR($B$12))*12+MONTH(B142)-MONTH($B$12)),((YEAR(B142)-YEAR(VLOOKUP(I142,$C$3:$L$6,8,0)))*12+MONTH(B142)-MONTH(VLOOKUP(I142,$C$3:$L$6,8,0))))*(VLOOKUP(I142,$C$3:$L$6,10,0)*VLOOKUP(I142,$C$3:$L$6,6,0)/12),0)) ->  | K142: =IF(C142<>"",IF(I142<>"",IF(ISERROR(VLOOKUP(I142,$C$3:$L$6,10,0)),"",VLOOKUP(I142,$C$3:$L$6,10,0)+J142+IF(OR(VLOOKUP(I142,$C$3:$L$6,5,0)=Variables!$B$5,B142>VLOOKUP(I142,$C$3:$L$6,8,0)),IF(VLOOKUP(I142,$C$3:$L$6,5,0)=Variables!$B$5,((YEAR(B142)-YEAR($B$12))*12+MONTH(B142)-MONTH($B$12)),((YEAR(B142)-YEAR(VLOOKUP(I142,$C$3:$L$6,8,0)))*12+MONTH(B142)-MONTH(VLOOKUP(I142,$C$3:$L$6,8,0))))*VLOOKUP(I142,$C$3:$L$6,7,0),0)),""),"") -> 
C143: =IF(I142<>Variables!$B$1,IF(H142<>0,C142,I142),"") ->  | F143: =IF(C143<>"",IF(OR(VLOOKUP(C143,$C$3:$L$6,5,0)=Variables!$B$5,B143>VLOOKUP(C143,$C$3:$L$6,8,0)),-D143*VLOOKUP(C143,$C$3:$L$6,6,0)/12,0),"") ->  | G143: =IF(I143<>Variables!$B$1,IF(C143<>"",$I$9-E143-F143,""),-D143) ->  | I143: =IF(C143<>"",IF(D143+$I$9-E143-F143>=0,IF(ISERROR(INDEX($C$3:$C$6,MATCH(C143,$C$3:$C$6,0)+1,0)),Variables!$B$1,INDEX($C$3:$C$6,MATCH(C143,$C$3:$C$6,0)+1,0)),""),"") ->  | J143: =IF(ISERROR(VLOOKUP(I143,$C$3:$L$6,5,0)),"",IF(OR(VLOOKUP(I143,$C$3:$L$6,5,0)=Variables!$B$5,B143>VLOOKUP(I143,$C$3:$L$6,8,0)),IF(VLOOKUP(I143,$C$3:$L$6,5,0)=Variables!$B$5,((YEAR(B143)-YEAR($B$12))*12+MONTH(B143)-MONTH($B$12)),((YEAR(B143)-YEAR(VLOOKUP(I143,$C$3:$L$6,8,0)))*12+MONTH(B143)-MONTH(VLOOKUP(I143,$C$3:$L$6,8,0))))*(VLOOKUP(I143,$C$3:$L$6,10,0)*VLOOKUP(I143,$C$3:$L$6,6,0)/12),0)) ->  | K143: =IF(C143<>"",IF(I143<>"",IF(ISERROR(VLOOKUP(I143,$C$3:$L$6,10,0)),"",VLOOKUP(I143,$C$3:$L$6,10,0)+J143+IF(OR(VLOOKUP(I143,$C$3:$L$6,5,0)=Variables!$B$5,B143>VLOOKUP(I143,$C$3:$L$6,8,0)),IF(VLOOKUP(I143,$C$3:$L$6,5,0)=Variables!$B$5,((YEAR(B143)-YEAR($B$12))*12+MONTH(B143)-MONTH($B$12)),((YEAR(B143)-YEAR(VLOOKUP(I143,$C$3:$L$6,8,0)))*12+MONTH(B143)-MONTH(VLOOKUP(I143,$C$3:$L$6,8,0))))*VLOOKUP(I143,$C$3:$L$6,7,0),0)),""),"") -> 
C144: =IF(I143<>Variables!$B$1,IF(H143<>0,C143,I143),"") ->  | F144: =IF(C144<>"",IF(OR(VLOOKUP(C144,$C$3:$L$6,5,0)=Variables!$B$5,B144>VLOOKUP(C144,$C$3:$L$6,8,0)),-D144*VLOOKUP(C144,$C$3:$L$6,6,0)/12,0),"") ->  | G144: =IF(I144<>Variables!$B$1,IF(C144<>"",$I$9-E144-F144,""),-D144) ->  | I144: =IF(C144<>"",IF(D144+$I$9-E144-F144>=0,IF(ISERROR(INDEX($C$3:$C$6,MATCH(C144,$C$3:$C$6,0)+1,0)),Variables!$B$1,INDEX($C$3:$C$6,MATCH(C144,$C$3:$C$6,0)+1,0)),""),"") ->  | J144: =IF(ISERROR(VLOOKUP(I144,$C$3:$L$6,5,0)),"",IF(OR(VLOOKUP(I144,$C$3:$L$6,5,0)=Variables!$B$5,B144>VLOOKUP(I144,$C$3:$L$6,8,0)),IF(VLOOKUP(I144,$C$3:$L$6,5,0)=Variables!$B$5,((YEAR(B144)-YEAR($B$12))*12+MONTH(B144)-MONTH($B$12)),((YEAR(B144)-YEAR(VLOOKUP(I144,$C$3:$L$6,8,0)))*12+MONTH(B144)-MONTH(VLOOKUP(I144,$C$3:$L$6,8,0))))*(VLOOKUP(I144,$C$3:$L$6,10,0)*VLOOKUP(I144,$C$3:$L$6,6,0)/12),0)) ->  | K144: =IF(C144<>"",IF(I144<>"",IF(ISERROR(VLOOKUP(I144,$C$3:$L$6,10,0)),"",VLOOKUP(I144,$C$3:$L$6,10,0)+J144+IF(OR(VLOOKUP(I144,$C$3:$L$6,5,0)=Variables!$B$5,B144>VLOOKUP(I144,$C$3:$L$6,8,0)),IF(VLOOKUP(I144,$C$3:$L$6,5,0)=Variables!$B$5,((YEAR(B144)-YEAR($B$12))*12+MONTH(B144)-MONTH($B$12)),((YEAR(B144)-YEAR(VLOOKUP(I144,$C$3:$L$6,8,0)))*12+MONTH(B144)-MONTH(VLOOKUP(I144,$C$3:$L$6,8,0))))*VLOOKUP(I144,$C$3:$L$6,7,0),0)),""),"") -> 
C145: =IF(I144<>Variables!$B$1,IF(H144<>0,C144,I144),"") ->  | F145: =IF(C145<>"",IF(OR(VLOOKUP(C145,$C$3:$L$6,5,0)=Variables!$B$5,B145>VLOOKUP(C145,$C$3:$L$6,8,0)),-D145*VLOOKUP(C145,$C$3:$L$6,6,0)/12,0),"") ->  | G145: =IF(I145<>Variables!$B$1,IF(C145<>"",$I$9-E145-F145,""),-D145) ->  | I145: =IF(C145<>"",IF(D145+$I$9-E145-F145>=0,IF(ISERROR(INDEX($C$3:$C$6,MATCH(C145,$C$3:$C$6,0)+1,0)),Variables!$B$1,INDEX($C$3:$C$6,MATCH(C145,$C$3:$C$6,0)+1,0)),""),"") ->  | J145: =IF(ISERROR(VLOOKUP(I145,$C$3:$L$6,5,0)),"",IF(OR(VLOOKUP(I145,$C$3:$L$6,5,0)=Variables!$B$5,B145>VLOOKUP(I145,$C$3:$L$6,8,0)),IF(VLOOKUP(I145,$C$3:$L$6,5,0)=Variables!$B$5,((YEAR(B145)-YEAR($B$12))*12+MONTH(B145)-MONTH($B$12)),((YEAR(B145)-YEAR(VLOOKUP(I145,$C$3:$L$6,8,0)))*12+MONTH(B145)-MONTH(VLOOKUP(I145,$C$3:$L$6,8,0))))*(VLOOKUP(I145,$C$3:$L$6,10,0)*VLOOKUP(I145,$C$3:$L$6,6,0)/12),0)) ->  | K145: =IF(C145<>"",IF(I145<>"",IF(ISERROR(VLOOKUP(I145,$C$3:$L$6,10,0)),"",VLOOKUP(I145,$C$3:$L$6,10,0)+J145+IF(OR(VLOOKUP(I145,$C$3:$L$6,5,0)=Variables!$B$5,B145>VLOOKUP(I145,$C$3:$L$6,8,0)),IF(VLOOKUP(I145,$C$3:$L$6,5,0)=Variables!$B$5,((YEAR(B145)-YEAR($B$12))*12+MONTH(B145)-MONTH($B$12)),((YEAR(B145)-YEAR(VLOOKUP(I145,$C$3:$L$6,8,0)))*12+MONTH(B145)-MONTH(VLOOKUP(I145,$C$3:$L$6,8,0))))*VLOOKUP(I145,$C$3:$L$6,7,0),0)),""),"") -> 
C146: =IF(I145<>Variables!$B$1,IF(H145<>0,C145,I145),"") ->  | F146: =IF(C146<>"",IF(OR(VLOOKUP(C146,$C$3:$L$6,5,0)=Variables!$B$5,B146>VLOOKUP(C146,$C$3:$L$6,8,0)),-D146*VLOOKUP(C146,$C$3:$L$6,6,0)/12,0),"") ->  | G146: =IF(I146<>Variables!$B$1,IF(C146<>"",$I$9-E146-F146,""),-D146) ->  | I146: =IF(C146<>"",IF(D146+$I$9-E146-F146>=0,IF(ISERROR(INDEX($C$3:$C$6,MATCH(C146,$C$3:$C$6,0)+1,0)),Variables!$B$1,INDEX($C$3:$C$6,MATCH(C146,$C$3:$C$6,0)+1,0)),""),"") ->  | J146: =IF(ISERROR(VLOOKUP(I146,$C$3:$L$6,5,0)),"",IF(OR(VLOOKUP(I146,$C$3:$L$6,5,0)=Variables!$B$5,B146>VLOOKUP(I146,$C$3:$L$6,8,0)),IF(VLOOKUP(I146,$C$3:$L$6,5,0)=Variables!$B$5,((YEAR(B146)-YEAR($B$12))*12+MONTH(B146)-MONTH($B$12)),((YEAR(B146)-YEAR(VLOOKUP(I146,$C$3:$L$6,8,0)))*12+MONTH(B146)-MONTH(VLOOKUP(I146,$C$3:$L$6,8,0))))*(VLOOKUP(I146,$C$3:$L$6,10,0)*VLOOKUP(I146,$C$3:$L$6,6,0)/12),0)) ->  | K146: =IF(C146<>"",IF(I146<>"",IF(ISERROR(VLOOKUP(I146,$C$3:$L$6,10,0)),"",VLOOKUP(I146,$C$3:$L$6,10,0)+J146+IF(OR(VLOOKUP(I146,$C$3:$L$6,5,0)=Variables!$B$5,B146>VLOOKUP(I146,$C$3:$L$6,8,0)),IF(VLOOKUP(I146,$C$3:$L$6,5,0)=Variables!$B$5,((YEAR(B146)-YEAR($B$12))*12+MONTH(B146)-MONTH($B$12)),((YEAR(B146)-YEAR(VLOOKUP(I146,$C$3:$L$6,8,0)))*12+MONTH(B146)-MONTH(VLOOKUP(I146,$C$3:$L$6,8,0))))*VLOOKUP(I146,$C$3:$L$6,7,0),0)),""),"") -> 
C147: =IF(I146<>Variables!$B$1,IF(H146<>0,C146,I146),"") ->  | F147: =IF(C147<>"",IF(OR(VLOOKUP(C147,$C$3:$L$6,5,0)=Variables!$B$5,B147>VLOOKUP(C147,$C$3:$L$6,8,0)),-D147*VLOOKUP(C147,$C$3:$L$6,6,0)/12,0),"") ->  | G147: =IF(I147<>Variables!$B$1,IF(C147<>"",$I$9-E147-F147,""),-D147) ->  | I147: =IF(C147<>"",IF(D147+$I$9-E147-F147>=0,IF(ISERROR(INDEX($C$3:$C$6,MATCH(C147,$C$3:$C$6,0)+1,0)),Variables!$B$1,INDEX($C$3:$C$6,MATCH(C147,$C$3:$C$6,0)+1,0)),""),"") ->  | J147: =IF(ISERROR(VLOOKUP(I147,$C$3:$L$6,5,0)),"",IF(OR(VLOOKUP(I147,$C$3:$L$6,5,0)=Variables!$B$5,B147>VLOOKUP(I147,$C$3:$L$6,8,0)),IF(VLOOKUP(I147,$C$3:$L$6,5,0)=Variables!$B$5,((YEAR(B147)-YEAR($B$12))*12+MONTH(B147)-MONTH($B$12)),((YEAR(B147)-YEAR(VLOOKUP(I147,$C$3:$L$6,8,0)))*12+MONTH(B147)-MONTH(VLOOKUP(I147,$C$3:$L$6,8,0))))*(VLOOKUP(I147,$C$3:$L$6,10,0)*VLOOKUP(I147,$C$3:$L$6,6,0)/12),0)) ->  | K147: =IF(C147<>"",IF(I147<>"",IF(ISERROR(VLOOKUP(I147,$C$3:$L$6,10,0)),"",VLOOKUP(I147,$C$3:$L$6,10,0)+J147+IF(OR(VLOOKUP(I147,$C$3:$L$6,5,0)=Variables!$B$5,B147>VLOOKUP(I147,$C$3:$L$6,8,0)),IF(VLOOKUP(I147,$C$3:$L$6,5,0)=Variables!$B$5,((YEAR(B147)-YEAR($B$12))*12+MONTH(B147)-MONTH($B$12)),((YEAR(B147)-YEAR(VLOOKUP(I147,$C$3:$L$6,8,0)))*12+MONTH(B147)-MONTH(VLOOKUP(I147,$C$3:$L$6,8,0))))*VLOOKUP(I147,$C$3:$L$6,7,0),0)),""),"") -> 
C148: =IF(I147<>Variables!$B$1,IF(H147<>0,C147,I147),"") ->  | F148: =IF(C148<>"",IF(OR(VLOOKUP(C148,$C$3:$L$6,5,0)=Variables!$B$5,B148>VLOOKUP(C148,$C$3:$L$6,8,0)),-D148*VLOOKUP(C148,$C$3:$L$6,6,0)/12,0),"") ->  | G148: =IF(I148<>Variables!$B$1,IF(C148<>"",$I$9-E148-F148,""),-D148) ->  | I148: =IF(C148<>"",IF(D148+$I$9-E148-F148>=0,IF(ISERROR(INDEX($C$3:$C$6,MATCH(C148,$C$3:$C$6,0)+1,0)),Variables!$B$1,INDEX($C$3:$C$6,MATCH(C148,$C$3:$C$6,0)+1,0)),""),"") ->  | J148: =IF(ISERROR(VLOOKUP(I148,$C$3:$L$6,5,0)),"",IF(OR(VLOOKUP(I148,$C$3:$L$6,5,0)=Variables!$B$5,B148>VLOOKUP(I148,$C$3:$L$6,8,0)),IF(VLOOKUP(I148,$C$3:$L$6,5,0)=Variables!$B$5,((YEAR(B148)-YEAR($B$12))*12+MONTH(B148)-MONTH($B$12)),((YEAR(B148)-YEAR(VLOOKUP(I148,$C$3:$L$6,8,0)))*12+MONTH(B148)-MONTH(VLOOKUP(I148,$C$3:$L$6,8,0))))*(VLOOKUP(I148,$C$3:$L$6,10,0)*VLOOKUP(I148,$C$3:$L$6,6,0)/12),0)) ->  | K148: =IF(C148<>"",IF(I148<>"",IF(ISERROR(VLOOKUP(I148,$C$3:$L$6,10,0)),"",VLOOKUP(I148,$C$3:$L$6,10,0)+J148+IF(OR(VLOOKUP(I148,$C$3:$L$6,5,0)=Variables!$B$5,B148>VLOOKUP(I148,$C$3:$L$6,8,0)),IF(VLOOKUP(I148,$C$3:$L$6,5,0)=Variables!$B$5,((YEAR(B148)-YEAR($B$12))*12+MONTH(B148)-MONTH($B$12)),((YEAR(B148)-YEAR(VLOOKUP(I148,$C$3:$L$6,8,0)))*12+MONTH(B148)-MONTH(VLOOKUP(I148,$C$3:$L$6,8,0))))*VLOOKUP(I148,$C$3:$L$6,7,0),0)),""),"") -> 
C149: =IF(I148<>Variables!$B$1,IF(H148<>0,C148,I148),"") ->  | F149: =IF(C149<>"",IF(OR(VLOOKUP(C149,$C$3:$L$6,5,0)=Variables!$B$5,B149>VLOOKUP(C149,$C$3:$L$6,8,0)),-D149*VLOOKUP(C149,$C$3:$L$6,6,0)/12,0),"") ->  | G149: =IF(I149<>Variables!$B$1,IF(C149<>"",$I$9-E149-F149,""),-D149) ->  | I149: =IF(C149<>"",IF(D149+$I$9-E149-F149>=0,IF(ISERROR(INDEX($C$3:$C$6,MATCH(C149,$C$3:$C$6,0)+1,0)),Variables!$B$1,INDEX($C$3:$C$6,MATCH(C149,$C$3:$C$6,0)+1,0)),""),"") ->  | J149: =IF(ISERROR(VLOOKUP(I149,$C$3:$L$6,5,0)),"",IF(OR(VLOOKUP(I149,$C$3:$L$6,5,0)=Variables!$B$5,B149>VLOOKUP(I149,$C$3:$L$6,8,0)),IF(VLOOKUP(I149,$C$3:$L$6,5,0)=Variables!$B$5,((YEAR(B149)-YEAR($B$12))*12+MONTH(B149)-MONTH($B$12)),((YEAR(B149)-YEAR(VLOOKUP(I149,$C$3:$L$6,8,0)))*12+MONTH(B149)-MONTH(VLOOKUP(I149,$C$3:$L$6,8,0))))*(VLOOKUP(I149,$C$3:$L$6,10,0)*VLOOKUP(I149,$C$3:$L$6,6,0)/12),0)) ->  | K149: =IF(C149<>"",IF(I149<>"",IF(ISERROR(VLOOKUP(I149,$C$3:$L$6,10,0)),"",VLOOKUP(I149,$C$3:$L$6,10,0)+J149+IF(OR(VLOOKUP(I149,$C$3:$L$6,5,0)=Variables!$B$5,B149>VLOOKUP(I149,$C$3:$L$6,8,0)),IF(VLOOKUP(I149,$C$3:$L$6,5,0)=Variables!$B$5,((YEAR(B149)-YEAR($B$12))*12+MONTH(B149)-MONTH($B$12)),((YEAR(B149)-YEAR(VLOOKUP(I149,$C$3:$L$6,8,0)))*12+MONTH(B149)-MONTH(VLOOKUP(I149,$C$3:$L$6,8,0))))*VLOOKUP(I149,$C$3:$L$6,7,0),0)),""),"") -> 
C150: =IF(I149<>Variables!$B$1,IF(H149<>0,C149,I149),"") ->  | F150: =IF(C150<>"",IF(OR(VLOOKUP(C150,$C$3:$L$6,5,0)=Variables!$B$5,B150>VLOOKUP(C150,$C$3:$L$6,8,0)),-D150*VLOOKUP(C150,$C$3:$L$6,6,0)/12,0),"") ->  | G150: =IF(I150<>Variables!$B$1,IF(C150<>"",$I$9-E150-F150,""),-D150) ->  | I150: =IF(C150<>"",IF(D150+$I$9-E150-F150>=0,IF(ISERROR(INDEX($C$3:$C$6,MATCH(C150,$C$3:$C$6,0)+1,0)),Variables!$B$1,INDEX($C$3:$C$6,MATCH(C150,$C$3:$C$6,0)+1,0)),""),"") ->  | J150: =IF(ISERROR(VLOOKUP(I150,$C$3:$L$6,5,0)),"",IF(OR(VLOOKUP(I150,$C$3:$L$6,5,0)=Variables!$B$5,B150>VLOOKUP(I150,$C$3:$L$6,8,0)),IF(VLOOKUP(I150,$C$3:$L$6,5,0)=Variables!$B$5,((YEAR(B150)-YEAR($B$12))*12+MONTH(B150)-MONTH($B$12)),((YEAR(B150)-YEAR(VLOOKUP(I150,$C$3:$L$6,8,0)))*12+MONTH(B150)-MONTH(VLOOKUP(I150,$C$3:$L$6,8,0))))*(VLOOKUP(I150,$C$3:$L$6,10,0)*VLOOKUP(I150,$C$3:$L$6,6,0)/12),0)) ->  | K150: =IF(C150<>"",IF(I150<>"",IF(ISERROR(VLOOKUP(I150,$C$3:$L$6,10,0)),"",VLOOKUP(I150,$C$3:$L$6,10,0)+J150+IF(OR(VLOOKUP(I150,$C$3:$L$6,5,0)=Variables!$B$5,B150>VLOOKUP(I150,$C$3:$L$6,8,0)),IF(VLOOKUP(I150,$C$3:$L$6,5,0)=Variables!$B$5,((YEAR(B150)-YEAR($B$12))*12+MONTH(B150)-MONTH($B$12)),((YEAR(B150)-YEAR(VLOOKUP(I150,$C$3:$L$6,8,0)))*12+MONTH(B150)-MONTH(VLOOKUP(I150,$C$3:$L$6,8,0))))*VLOOKUP(I150,$C$3:$L$6,7,0),0)),""),"") -> 
C151: =IF(I150<>Variables!$B$1,IF(H150<>0,C150,I150),"") ->  | F151: =IF(C151<>"",IF(OR(VLOOKUP(C151,$C$3:$L$6,5,0)=Variables!$B$5,B151>VLOOKUP(C151,$C$3:$L$6,8,0)),-D151*VLOOKUP(C151,$C$3:$L$6,6,0)/12,0),"") ->  | G151: =IF(I151<>Variables!$B$1,IF(C151<>"",$I$9-E151-F151,""),-D151) ->  | I151: =IF(C151<>"",IF(D151+$I$9-E151-F151>=0,IF(ISERROR(INDEX($C$3:$C$6,MATCH(C151,$C$3:$C$6,0)+1,0)),Variables!$B$1,INDEX($C$3:$C$6,MATCH(C151,$C$3:$C$6,0)+1,0)),""),"") ->  | J151: =IF(ISERROR(VLOOKUP(I151,$C$3:$L$6,5,0)),"",IF(OR(VLOOKUP(I151,$C$3:$L$6,5,0)=Variables!$B$5,B151>VLOOKUP(I151,$C$3:$L$6,8,0)),IF(VLOOKUP(I151,$C$3:$L$6,5,0)=Variables!$B$5,((YEAR(B151)-YEAR($B$12))*12+MONTH(B151)-MONTH($B$12)),((YEAR(B151)-YEAR(VLOOKUP(I151,$C$3:$L$6,8,0)))*12+MONTH(B151)-MONTH(VLOOKUP(I151,$C$3:$L$6,8,0))))*(VLOOKUP(I151,$C$3:$L$6,10,0)*VLOOKUP(I151,$C$3:$L$6,6,0)/12),0)) ->  | K151: =IF(C151<>"",IF(I151<>"",IF(ISERROR(VLOOKUP(I151,$C$3:$L$6,10,0)),"",VLOOKUP(I151,$C$3:$L$6,10,0)+J151+IF(OR(VLOOKUP(I151,$C$3:$L$6,5,0)=Variables!$B$5,B151>VLOOKUP(I151,$C$3:$L$6,8,0)),IF(VLOOKUP(I151,$C$3:$L$6,5,0)=Variables!$B$5,((YEAR(B151)-YEAR($B$12))*12+MONTH(B151)-MONTH($B$12)),((YEAR(B151)-YEAR(VLOOKUP(I151,$C$3:$L$6,8,0)))*12+MONTH(B151)-MONTH(VLOOKUP(I151,$C$3:$L$6,8,0))))*VLOOKUP(I151,$C$3:$L$6,7,0),0)),""),"") -> 
C152: =IF(I151<>Variables!$B$1,IF(H151<>0,C151,I151),"") ->  | F152: =IF(C152<>"",IF(OR(VLOOKUP(C152,$C$3:$L$6,5,0)=Variables!$B$5,B152>VLOOKUP(C152,$C$3:$L$6,8,0)),-D152*VLOOKUP(C152,$C$3:$L$6,6,0)/12,0),"") ->  | G152: =IF(I152<>Variables!$B$1,IF(C152<>"",$I$9-E152-F152,""),-D152) ->  | I152: =IF(C152<>"",IF(D152+$I$9-E152-F152>=0,IF(ISERROR(INDEX($C$3:$C$6,MATCH(C152,$C$3:$C$6,0)+1,0)),Variables!$B$1,INDEX($C$3:$C$6,MATCH(C152,$C$3:$C$6,0)+1,0)),""),"") ->  | J152: =IF(ISERROR(VLOOKUP(I152,$C$3:$L$6,5,0)),"",IF(OR(VLOOKUP(I152,$C$3:$L$6,5,0)=Variables!$B$5,B152>VLOOKUP(I152,$C$3:$L$6,8,0)),IF(VLOOKUP(I152,$C$3:$L$6,5,0)=Variables!$B$5,((YEAR(B152)-YEAR($B$12))*12+MONTH(B152)-MONTH($B$12)),((YEAR(B152)-YEAR(VLOOKUP(I152,$C$3:$L$6,8,0)))*12+MONTH(B152)-MONTH(VLOOKUP(I152,$C$3:$L$6,8,0))))*(VLOOKUP(I152,$C$3:$L$6,10,0)*VLOOKUP(I152,$C$3:$L$6,6,0)/12),0)) ->  | K152: =IF(C152<>"",IF(I152<>"",IF(ISERROR(VLOOKUP(I152,$C$3:$L$6,10,0)),"",VLOOKUP(I152,$C$3:$L$6,10,0)+J152+IF(OR(VLOOKUP(I152,$C$3:$L$6,5,0)=Variables!$B$5,B152>VLOOKUP(I152,$C$3:$L$6,8,0)),IF(VLOOKUP(I152,$C$3:$L$6,5,0)=Variables!$B$5,((YEAR(B152)-YEAR($B$12))*12+MONTH(B152)-MONTH($B$12)),((YEAR(B152)-YEAR(VLOOKUP(I152,$C$3:$L$6,8,0)))*12+MONTH(B152)-MONTH(VLOOKUP(I152,$C$3:$L$6,8,0))))*VLOOKUP(I152,$C$3:$L$6,7,0),0)),""),"") -> 
C153: =IF(I152<>Variables!$B$1,IF(H152<>0,C152,I152),"") ->  | F153: =IF(C153<>"",IF(OR(VLOOKUP(C153,$C$3:$L$6,5,0)=Variables!$B$5,B153>VLOOKUP(C153,$C$3:$L$6,8,0)),-D153*VLOOKUP(C153,$C$3:$L$6,6,0)/12,0),"") ->  | G153: =IF(I153<>Variables!$B$1,IF(C153<>"",$I$9-E153-F153,""),-D153) ->  | I153: =IF(C153<>"",IF(D153+$I$9-E153-F153>=0,IF(ISERROR(INDEX($C$3:$C$6,MATCH(C153,$C$3:$C$6,0)+1,0)),Variables!$B$1,INDEX($C$3:$C$6,MATCH(C153,$C$3:$C$6,0)+1,0)),""),"") ->  | J153: =IF(ISERROR(VLOOKUP(I153,$C$3:$L$6,5,0)),"",IF(OR(VLOOKUP(I153,$C$3:$L$6,5,0)=Variables!$B$5,B153>VLOOKUP(I153,$C$3:$L$6,8,0)),IF(VLOOKUP(I153,$C$3:$L$6,5,0)=Variables!$B$5,((YEAR(B153)-YEAR($B$12))*12+MONTH(B153)-MONTH($B$12)),((YEAR(B153)-YEAR(VLOOKUP(I153,$C$3:$L$6,8,0)))*12+MONTH(B153)-MONTH(VLOOKUP(I153,$C$3:$L$6,8,0))))*(VLOOKUP(I153,$C$3:$L$6,10,0)*VLOOKUP(I153,$C$3:$L$6,6,0)/12),0)) ->  | K153: =IF(C153<>"",IF(I153<>"",IF(ISERROR(VLOOKUP(I153,$C$3:$L$6,10,0)),"",VLOOKUP(I153,$C$3:$L$6,10,0)+J153+IF(OR(VLOOKUP(I153,$C$3:$L$6,5,0)=Variables!$B$5,B153>VLOOKUP(I153,$C$3:$L$6,8,0)),IF(VLOOKUP(I153,$C$3:$L$6,5,0)=Variables!$B$5,((YEAR(B153)-YEAR($B$12))*12+MONTH(B153)-MONTH($B$12)),((YEAR(B153)-YEAR(VLOOKUP(I153,$C$3:$L$6,8,0)))*12+MONTH(B153)-MONTH(VLOOKUP(I153,$C$3:$L$6,8,0))))*VLOOKUP(I153,$C$3:$L$6,7,0),0)),""),"") -> 
C154: =IF(I153<>Variables!$B$1,IF(H153<>0,C153,I153),"") ->  | F154: =IF(C154<>"",IF(OR(VLOOKUP(C154,$C$3:$L$6,5,0)=Variables!$B$5,B154>VLOOKUP(C154,$C$3:$L$6,8,0)),-D154*VLOOKUP(C154,$C$3:$L$6,6,0)/12,0),"") ->  | G154: =IF(I154<>Variables!$B$1,IF(C154<>"",$I$9-E154-F154,""),-D154) ->  | I154: =IF(C154<>"",IF(D154+$I$9-E154-F154>=0,IF(ISERROR(INDEX($C$3:$C$6,MATCH(C154,$C$3:$C$6,0)+1,0)),Variables!$B$1,INDEX($C$3:$C$6,MATCH(C154,$C$3:$C$6,0)+1,0)),""),"") ->  | J154: =IF(ISERROR(VLOOKUP(I154,$C$3:$L$6,5,0)),"",IF(OR(VLOOKUP(I154,$C$3:$L$6,5,0)=Variables!$B$5,B154>VLOOKUP(I154,$C$3:$L$6,8,0)),IF(VLOOKUP(I154,$C$3:$L$6,5,0)=Variables!$B$5,((YEAR(B154)-YEAR($B$12))*12+MONTH(B154)-MONTH($B$12)),((YEAR(B154)-YEAR(VLOOKUP(I154,$C$3:$L$6,8,0)))*12+MONTH(B154)-MONTH(VLOOKUP(I154,$C$3:$L$6,8,0))))*(VLOOKUP(I154,$C$3:$L$6,10,0)*VLOOKUP(I154,$C$3:$L$6,6,0)/12),0)) ->  | K154: =IF(C154<>"",IF(I154<>"",IF(ISERROR(VLOOKUP(I154,$C$3:$L$6,10,0)),"",VLOOKUP(I154,$C$3:$L$6,10,0)+J154+IF(OR(VLOOKUP(I154,$C$3:$L$6,5,0)=Variables!$B$5,B154>VLOOKUP(I154,$C$3:$L$6,8,0)),IF(VLOOKUP(I154,$C$3:$L$6,5,0)=Variables!$B$5,((YEAR(B154)-YEAR($B$12))*12+MONTH(B154)-MONTH($B$12)),((YEAR(B154)-YEAR(VLOOKUP(I154,$C$3:$L$6,8,0)))*12+MONTH(B154)-MONTH(VLOOKUP(I154,$C$3:$L$6,8,0))))*VLOOKUP(I154,$C$3:$L$6,7,0),0)),""),"") -> 
C155: =IF(I154<>Variables!$B$1,IF(H154<>0,C154,I154),"") ->  | F155: =IF(C155<>"",IF(OR(VLOOKUP(C155,$C$3:$L$6,5,0)=Variables!$B$5,B155>VLOOKUP(C155,$C$3:$L$6,8,0)),-D155*VLOOKUP(C155,$C$3:$L$6,6,0)/12,0),"") ->  | G155: =IF(I155<>Variables!$B$1,IF(C155<>"",$I$9-E155-F155,""),-D155) ->  | I155: =IF(C155<>"",IF(D155+$I$9-E155-F155>=0,IF(ISERROR(INDEX($C$3:$C$6,MATCH(C155,$C$3:$C$6,0)+1,0)),Variables!$B$1,INDEX($C$3:$C$6,MATCH(C155,$C$3:$C$6,0)+1,0)),""),"") ->  | J155: =IF(ISERROR(VLOOKUP(I155,$C$3:$L$6,5,0)),"",IF(OR(VLOOKUP(I155,$C$3:$L$6,5,0)=Variables!$B$5,B155>VLOOKUP(I155,$C$3:$L$6,8,0)),IF(VLOOKUP(I155,$C$3:$L$6,5,0)=Variables!$B$5,((YEAR(B155)-YEAR($B$12))*12+MONTH(B155)-MONTH($B$12)),((YEAR(B155)-YEAR(VLOOKUP(I155,$C$3:$L$6,8,0)))*12+MONTH(B155)-MONTH(VLOOKUP(I155,$C$3:$L$6,8,0))))*(VLOOKUP(I155,$C$3:$L$6,10,0)*VLOOKUP(I155,$C$3:$L$6,6,0)/12),0)) ->  | K155: =IF(C155<>"",IF(I155<>"",IF(ISERROR(VLOOKUP(I155,$C$3:$L$6,10,0)),"",VLOOKUP(I155,$C$3:$L$6,10,0)+J155+IF(OR(VLOOKUP(I155,$C$3:$L$6,5,0)=Variables!$B$5,B155>VLOOKUP(I155,$C$3:$L$6,8,0)),IF(VLOOKUP(I155,$C$3:$L$6,5,0)=Variables!$B$5,((YEAR(B155)-YEAR($B$12))*12+MONTH(B155)-MONTH($B$12)),((YEAR(B155)-YEAR(VLOOKUP(I155,$C$3:$L$6,8,0)))*12+MONTH(B155)-MONTH(VLOOKUP(I155,$C$3:$L$6,8,0))))*VLOOKUP(I155,$C$3:$L$6,7,0),0)),""),"") -> 
C156: =IF(I155<>Variables!$B$1,IF(H155<>0,C155,I155),"") ->  | D156: =IF(C156<>"",IF(H155<>0,H155,L155),"") ->  | E156: =IF(C156<>"",MINPAYMENT(C156,ROW(B156),COLUMN(B156)),"") ->  | F156: =IF(C156<>"",IF(OR(VLOOKUP(C156,$C$3:$L$6,5,0)=Variables!$B$5,B156>VLOOKUP(C156,$C$3:$L$6,8,0)),-D156*VLOOKUP(C156,$C$3:$L$6,6,0)/12,0),"") ->  | G156: =IF(I156<>Variables!$B$1,IF(C156<>"",$I$9-E156-F156,""),-D156) ->  | I156: =IF(C156<>"",IF(D156+$I$9-E156-F156>=0,IF(ISERROR(INDEX($C$3:$C$6,MATCH(C156,$C$3:$C$6,0)+1,0)),Variables!$B$1,INDEX($C$3:$C$6,MATCH(C156,$C$3:$C$6,0)+1,0)),""),"") ->  | J156: =IF(ISERROR(VLOOKUP(I156,$C$3:$L$6,5,0)),"",IF(OR(VLOOKUP(I156,$C$3:$L$6,5,0)=Variables!$B$5,B156>VLOOKUP(I156,$C$3:$L$6,8,0)),IF(VLOOKUP(I156,$C$3:$L$6,5,0)=Variables!$B$5,((YEAR(B156)-YEAR($B$12))*12+MONTH(B156)-MONTH($B$12)),((YEAR(B156)-YEAR(VLOOKUP(I156,$C$3:$L$6,8,0)))*12+MONTH(B156)-MONTH(VLOOKUP(I156,$C$3:$L$6,8,0))))*(VLOOKUP(I156,$C$3:$L$6,10,0)*VLOOKUP(I156,$C$3:$L$6,6,0)/12),0)) ->  | K156: =IF(C156<>"",IF(I156<>"",IF(ISERROR(VLOOKUP(I156,$C$3:$L$6,10,0)),"",VLOOKUP(I156,$C$3:$L$6,10,0)+J156+IF(OR(VLOOKUP(I156,$C$3:$L$6,5,0)=Variables!$B$5,B156>VLOOKUP(I156,$C$3:$L$6,8,0)),IF(VLOOKUP(I156,$C$3:$L$6,5,0)=Variables!$B$5,((YEAR(B156)-YEAR($B$12))*12+MONTH(B156)-MONTH($B$12)),((YEAR(B156)-YEAR(VLOOKUP(I156,$C$3:$L$6,8,0)))*12+MONTH(B156)-MONTH(VLOOKUP(I156,$C$3:$L$6,8,0))))*VLOOKUP(I156,$C$3:$L$6,7,0),0)),""),"") ->  | L156: =IF(C156<>"",IF(ISERROR(IF(D156+G156>=0,K156+D156+G156,"")),"",IF(D156+G156>=0,K156+D156+G156,"")),"") -> 
B157: =IF(C157<>"",DATE(YEAR(B156),MONTH(B156)+1,DAY(B156)),"") ->  | C157: =IF(I156<>Variables!$B$1,IF(H156<>0,C156,I156),"") ->  | F157: =IF(C157<>"",IF(OR(VLOOKUP(C157,$C$3:$L$6,5,0)=Variables!$B$5,B157>VLOOKUP(C157,$C$3:$L$6,8,0)),-D157*VLOOKUP(C157,$C$3:$L$6,6,0)/12,0),"") ->  | G157: =IF(I157<>Variables!$B$1,IF(C157<>"",$I$9-E157-F157,""),-D157) ->  | H157: =IF(C157<>"",IF(D157+G157<0,D157+G157,0),"") ->  | I157: =IF(C157<>"",IF(D157+$I$9-E157-F157>=0,IF(ISERROR(INDEX($C$3:$C$6,MATCH(C157,$C$3:$C$6,0)+1,0)),Variables!$B$1,INDEX($C$3:$C$6,MATCH(C157,$C$3:$C$6,0)+1,0)),""),"") ->  | J157: =IF(ISERROR(VLOOKUP(I157,$C$3:$L$6,5,0)),"",IF(OR(VLOOKUP(I157,$C$3:$L$6,5,0)=Variables!$B$5,B157>VLOOKUP(I157,$C$3:$L$6,8,0)),IF(VLOOKUP(I157,$C$3:$L$6,5,0)=Variables!$B$5,((YEAR(B157)-YEAR($B$12))*12+MONTH(B157)-MONTH($B$12)),((YEAR(B157)-YEAR(VLOOKUP(I157,$C$3:$L$6,8,0)))*12+MONTH(B157)-MONTH(VLOOKUP(I157,$C$3:$L$6,8,0))))*(VLOOKUP(I157,$C$3:$L$6,10,0)*VLOOKUP(I157,$C$3:$L$6,6,0)/12),0)) ->  | K157: =IF(C157<>"",IF(I157<>"",IF(ISERROR(VLOOKUP(I157,$C$3:$L$6,10,0)),"",VLOOKUP(I157,$C$3:$L$6,10,0)+J157+IF(OR(VLOOKUP(I157,$C$3:$L$6,5,0)=Variables!$B$5,B157>VLOOKUP(I157,$C$3:$L$6,8,0)),IF(VLOOKUP(I157,$C$3:$L$6,5,0)=Variables!$B$5,((YEAR(B157)-YEAR($B$12))*12+MONTH(B157)-MONTH($B$12)),((YEAR(B157)-YEAR(VLOOKUP(I157,$C$3:$L$6,8,0)))*12+MONTH(B157)-MONTH(VLOOKUP(I157,$C$3:$L$6,8,0))))*VLOOKUP(I157,$C$3:$L$6,7,0),0)),""),"") -> 
C158: =IF(I157<>Variables!$B$1,IF(H157<>0,C157,I157),"") ->  | F158: =IF(C158<>"",IF(OR(VLOOKUP(C158,$C$3:$L$6,5,0)=Variables!$B$5,B158>VLOOKUP(C158,$C$3:$L$6,8,0)),-D158*VLOOKUP(C158,$C$3:$L$6,6,0)/12,0),"") ->  | G158: =IF(I158<>Variables!$B$1,IF(C158<>"",$I$9-E158-F158,""),-D158) ->  | I158: =IF(C158<>"",IF(D158+$I$9-E158-F158>=0,IF(ISERROR(INDEX($C$3:$C$6,MATCH(C158,$C$3:$C$6,0)+1,0)),Variables!$B$1,INDEX($C$3:$C$6,MATCH(C158,$C$3:$C$6,0)+1,0)),""),"") ->  | J158: =IF(ISERROR(VLOOKUP(I158,$C$3:$L$6,5,0)),"",IF(OR(VLOOKUP(I158,$C$3:$L$6,5,0)=Variables!$B$5,B158>VLOOKUP(I158,$C$3:$L$6,8,0)),IF(VLOOKUP(I158,$C$3:$L$6,5,0)=Variables!$B$5,((YEAR(B158)-YEAR($B$12))*12+MONTH(B158)-MONTH($B$12)),((YEAR(B158)-YEAR(VLOOKUP(I158,$C$3:$L$6,8,0)))*12+MONTH(B158)-MONTH(VLOOKUP(I158,$C$3:$L$6,8,0))))*(VLOOKUP(I158,$C$3:$L$6,10,0)*VLOOKUP(I158,$C$3:$L$6,6,0)/12),0)) ->  | K158: =IF(C158<>"",IF(I158<>"",IF(ISERROR(VLOOKUP(I158,$C$3:$L$6,10,0)),"",VLOOKUP(I158,$C$3:$L$6,10,0)+J158+IF(OR(VLOOKUP(I158,$C$3:$L$6,5,0)=Variables!$B$5,B158>VLOOKUP(I158,$C$3:$L$6,8,0)),IF(VLOOKUP(I158,$C$3:$L$6,5,0)=Variables!$B$5,((YEAR(B158)-YEAR($B$12))*12+MONTH(B158)-MONTH($B$12)),((YEAR(B158)-YEAR(VLOOKUP(I158,$C$3:$L$6,8,0)))*12+MONTH(B158)-MONTH(VLOOKUP(I158,$C$3:$L$6,8,0))))*VLOOKUP(I158,$C$3:$L$6,7,0),0)),""),"") -> 
C159: =IF(I158<>Variables!$B$1,IF(H158<>0,C158,I158),"") ->  | F159: =IF(C159<>"",IF(OR(VLOOKUP(C159,$C$3:$L$6,5,0)=Variables!$B$5,B159>VLOOKUP(C159,$C$3:$L$6,8,0)),-D159*VLOOKUP(C159,$C$3:$L$6,6,0)/12,0),"") ->  | G159: =IF(I159<>Variables!$B$1,IF(C159<>"",$I$9-E159-F159,""),-D159) ->  | I159: =IF(C159<>"",IF(D159+$I$9-E159-F159>=0,IF(ISERROR(INDEX($C$3:$C$6,MATCH(C159,$C$3:$C$6,0)+1,0)),Variables!$B$1,INDEX($C$3:$C$6,MATCH(C159,$C$3:$C$6,0)+1,0)),""),"") ->  | J159: =IF(ISERROR(VLOOKUP(I159,$C$3:$L$6,5,0)),"",IF(OR(VLOOKUP(I159,$C$3:$L$6,5,0)=Variables!$B$5,B159>VLOOKUP(I159,$C$3:$L$6,8,0)),IF(VLOOKUP(I159,$C$3:$L$6,5,0)=Variables!$B$5,((YEAR(B159)-YEAR($B$12))*12+MONTH(B159)-MONTH($B$12)),((YEAR(B159)-YEAR(VLOOKUP(I159,$C$3:$L$6,8,0)))*12+MONTH(B159)-MONTH(VLOOKUP(I159,$C$3:$L$6,8,0))))*(VLOOKUP(I159,$C$3:$L$6,10,0)*VLOOKUP(I159,$C$3:$L$6,6,0)/12),0)) ->  | K159: =IF(C159<>"",IF(I159<>"",IF(ISERROR(VLOOKUP(I159,$C$3:$L$6,10,0)),"",VLOOKUP(I159,$C$3:$L$6,10,0)+J159+IF(OR(VLOOKUP(I159,$C$3:$L$6,5,0)=Variables!$B$5,B159>VLOOKUP(I159,$C$3:$L$6,8,0)),IF(VLOOKUP(I159,$C$3:$L$6,5,0)=Variables!$B$5,((YEAR(B159)-YEAR($B$12))*12+MONTH(B159)-MONTH($B$12)),((YEAR(B159)-YEAR(VLOOKUP(I159,$C$3:$L$6,8,0)))*12+MONTH(B159)-MONTH(VLOOKUP(I159,$C$3:$L$6,8,0))))*VLOOKUP(I159,$C$3:$L$6,7,0),0)),""),"") -> 
C160: =IF(I159<>Variables!$B$1,IF(H159<>0,C159,I159),"") ->  | F160: =IF(C160<>"",IF(OR(VLOOKUP(C160,$C$3:$L$6,5,0)=Variables!$B$5,B160>VLOOKUP(C160,$C$3:$L$6,8,0)),-D160*VLOOKUP(C160,$C$3:$L$6,6,0)/12,0),"") ->  | G160: =IF(I160<>Variables!$B$1,IF(C160<>"",$I$9-E160-F160,""),-D160) ->  | I160: =IF(C160<>"",IF(D160+$I$9-E160-F160>=0,IF(ISERROR(INDEX($C$3:$C$6,MATCH(C160,$C$3:$C$6,0)+1,0)),Variables!$B$1,INDEX($C$3:$C$6,MATCH(C160,$C$3:$C$6,0)+1,0)),""),"") ->  | J160: =IF(ISERROR(VLOOKUP(I160,$C$3:$L$6,5,0)),"",IF(OR(VLOOKUP(I160,$C$3:$L$6,5,0)=Variables!$B$5,B160>VLOOKUP(I160,$C$3:$L$6,8,0)),IF(VLOOKUP(I160,$C$3:$L$6,5,0)=Variables!$B$5,((YEAR(B160)-YEAR($B$12))*12+MONTH(B160)-MONTH($B$12)),((YEAR(B160)-YEAR(VLOOKUP(I160,$C$3:$L$6,8,0)))*12+MONTH(B160)-MONTH(VLOOKUP(I160,$C$3:$L$6,8,0))))*(VLOOKUP(I160,$C$3:$L$6,10,0)*VLOOKUP(I160,$C$3:$L$6,6,0)/12),0)) ->  | K160: =IF(C160<>"",IF(I160<>"",IF(ISERROR(VLOOKUP(I160,$C$3:$L$6,10,0)),"",VLOOKUP(I160,$C$3:$L$6,10,0)+J160+IF(OR(VLOOKUP(I160,$C$3:$L$6,5,0)=Variables!$B$5,B160>VLOOKUP(I160,$C$3:$L$6,8,0)),IF(VLOOKUP(I160,$C$3:$L$6,5,0)=Variables!$B$5,((YEAR(B160)-YEAR($B$12))*12+MONTH(B160)-MONTH($B$12)),((YEAR(B160)-YEAR(VLOOKUP(I160,$C$3:$L$6,8,0)))*12+MONTH(B160)-MONTH(VLOOKUP(I160,$C$3:$L$6,8,0))))*VLOOKUP(I160,$C$3:$L$6,7,0),0)),""),"") -> 
C161: =IF(I160<>Variables!$B$1,IF(H160<>0,C160,I160),"") ->  | F161: =IF(C161<>"",IF(OR(VLOOKUP(C161,$C$3:$L$6,5,0)=Variables!$B$5,B161>VLOOKUP(C161,$C$3:$L$6,8,0)),-D161*VLOOKUP(C161,$C$3:$L$6,6,0)/12,0),"") ->  | G161: =IF(I161<>Variables!$B$1,IF(C161<>"",$I$9-E161-F161,""),-D161) ->  | I161: =IF(C161<>"",IF(D161+$I$9-E161-F161>=0,IF(ISERROR(INDEX($C$3:$C$6,MATCH(C161,$C$3:$C$6,0)+1,0)),Variables!$B$1,INDEX($C$3:$C$6,MATCH(C161,$C$3:$C$6,0)+1,0)),""),"") ->  | J161: =IF(ISERROR(VLOOKUP(I161,$C$3:$L$6,5,0)),"",IF(OR(VLOOKUP(I161,$C$3:$L$6,5,0)=Variables!$B$5,B161>VLOOKUP(I161,$C$3:$L$6,8,0)),IF(VLOOKUP(I161,$C$3:$L$6,5,0)=Variables!$B$5,((YEAR(B161)-YEAR($B$12))*12+MONTH(B161)-MONTH($B$12)),((YEAR(B161)-YEAR(VLOOKUP(I161,$C$3:$L$6,8,0)))*12+MONTH(B161)-MONTH(VLOOKUP(I161,$C$3:$L$6,8,0))))*(VLOOKUP(I161,$C$3:$L$6,10,0)*VLOOKUP(I161,$C$3:$L$6,6,0)/12),0)) ->  | K161: =IF(C161<>"",IF(I161<>"",IF(ISERROR(VLOOKUP(I161,$C$3:$L$6,10,0)),"",VLOOKUP(I161,$C$3:$L$6,10,0)+J161+IF(OR(VLOOKUP(I161,$C$3:$L$6,5,0)=Variables!$B$5,B161>VLOOKUP(I161,$C$3:$L$6,8,0)),IF(VLOOKUP(I161,$C$3:$L$6,5,0)=Variables!$B$5,((YEAR(B161)-YEAR($B$12))*12+MONTH(B161)-MONTH($B$12)),((YEAR(B161)-YEAR(VLOOKUP(I161,$C$3:$L$6,8,0)))*12+MONTH(B161)-MONTH(VLOOKUP(I161,$C$3:$L$6,8,0))))*VLOOKUP(I161,$C$3:$L$6,7,0),0)),""),"") -> 
C162: =IF(I161<>Variables!$B$1,IF(H161<>0,C161,I161),"") ->  | F162: =IF(C162<>"",IF(OR(VLOOKUP(C162,$C$3:$L$6,5,0)=Variables!$B$5,B162>VLOOKUP(C162,$C$3:$L$6,8,0)),-D162*VLOOKUP(C162,$C$3:$L$6,6,0)/12,0),"") ->  | G162: =IF(I162<>Variables!$B$1,IF(C162<>"",$I$9-E162-F162,""),-D162) ->  | I162: =IF(C162<>"",IF(D162+$I$9-E162-F162>=0,IF(ISERROR(INDEX($C$3:$C$6,MATCH(C162,$C$3:$C$6,0)+1,0)),Variables!$B$1,INDEX($C$3:$C$6,MATCH(C162,$C$3:$C$6,0)+1,0)),""),"") ->  | J162: =IF(ISERROR(VLOOKUP(I162,$C$3:$L$6,5,0)),"",IF(OR(VLOOKUP(I162,$C$3:$L$6,5,0)=Variables!$B$5,B162>VLOOKUP(I162,$C$3:$L$6,8,0)),IF(VLOOKUP(I162,$C$3:$L$6,5,0)=Variables!$B$5,((YEAR(B162)-YEAR($B$12))*12+MONTH(B162)-MONTH($B$12)),((YEAR(B162)-YEAR(VLOOKUP(I162,$C$3:$L$6,8,0)))*12+MONTH(B162)-MONTH(VLOOKUP(I162,$C$3:$L$6,8,0))))*(VLOOKUP(I162,$C$3:$L$6,10,0)*VLOOKUP(I162,$C$3:$L$6,6,0)/12),0)) ->  | K162: =IF(C162<>"",IF(I162<>"",IF(ISERROR(VLOOKUP(I162,$C$3:$L$6,10,0)),"",VLOOKUP(I162,$C$3:$L$6,10,0)+J162+IF(OR(VLOOKUP(I162,$C$3:$L$6,5,0)=Variables!$B$5,B162>VLOOKUP(I162,$C$3:$L$6,8,0)),IF(VLOOKUP(I162,$C$3:$L$6,5,0)=Variables!$B$5,((YEAR(B162)-YEAR($B$12))*12+MONTH(B162)-MONTH($B$12)),((YEAR(B162)-YEAR(VLOOKUP(I162,$C$3:$L$6,8,0)))*12+MONTH(B162)-MONTH(VLOOKUP(I162,$C$3:$L$6,8,0))))*VLOOKUP(I162,$C$3:$L$6,7,0),0)),""),"") -> 
C163: =IF(I162<>Variables!$B$1,IF(H162<>0,C162,I162),"") ->  | F163: =IF(C163<>"",IF(OR(VLOOKUP(C163,$C$3:$L$6,5,0)=Variables!$B$5,B163>VLOOKUP(C163,$C$3:$L$6,8,0)),-D163*VLOOKUP(C163,$C$3:$L$6,6,0)/12,0),"") ->  | G163: =IF(I163<>Variables!$B$1,IF(C163<>"",$I$9-E163-F163,""),-D163) ->  | I163: =IF(C163<>"",IF(D163+$I$9-E163-F163>=0,IF(ISERROR(INDEX($C$3:$C$6,MATCH(C163,$C$3:$C$6,0)+1,0)),Variables!$B$1,INDEX($C$3:$C$6,MATCH(C163,$C$3:$C$6,0)+1,0)),""),"") ->  | J163: =IF(ISERROR(VLOOKUP(I163,$C$3:$L$6,5,0)),"",IF(OR(VLOOKUP(I163,$C$3:$L$6,5,0)=Variables!$B$5,B163>VLOOKUP(I163,$C$3:$L$6,8,0)),IF(VLOOKUP(I163,$C$3:$L$6,5,0)=Variables!$B$5,((YEAR(B163)-YEAR($B$12))*12+MONTH(B163)-MONTH($B$12)),((YEAR(B163)-YEAR(VLOOKUP(I163,$C$3:$L$6,8,0)))*12+MONTH(B163)-MONTH(VLOOKUP(I163,$C$3:$L$6,8,0))))*(VLOOKUP(I163,$C$3:$L$6,10,0)*VLOOKUP(I163,$C$3:$L$6,6,0)/12),0)) ->  | K163: =IF(C163<>"",IF(I163<>"",IF(ISERROR(VLOOKUP(I163,$C$3:$L$6,10,0)),"",VLOOKUP(I163,$C$3:$L$6,10,0)+J163+IF(OR(VLOOKUP(I163,$C$3:$L$6,5,0)=Variables!$B$5,B163>VLOOKUP(I163,$C$3:$L$6,8,0)),IF(VLOOKUP(I163,$C$3:$L$6,5,0)=Variables!$B$5,((YEAR(B163)-YEAR($B$12))*12+MONTH(B163)-MONTH($B$12)),((YEAR(B163)-YEAR(VLOOKUP(I163,$C$3:$L$6,8,0)))*12+MONTH(B163)-MONTH(VLOOKUP(I163,$C$3:$L$6,8,0))))*VLOOKUP(I163,$C$3:$L$6,7,0),0)),""),"") -> 
C164: =IF(I163<>Variables!$B$1,IF(H163<>0,C163,I163),"") ->  | F164: =IF(C164<>"",IF(OR(VLOOKUP(C164,$C$3:$L$6,5,0)=Variables!$B$5,B164>VLOOKUP(C164,$C$3:$L$6,8,0)),-D164*VLOOKUP(C164,$C$3:$L$6,6,0)/12,0),"") ->  | G164: =IF(I164<>Variables!$B$1,IF(C164<>"",$I$9-E164-F164,""),-D164) ->  | I164: =IF(C164<>"",IF(D164+$I$9-E164-F164>=0,IF(ISERROR(INDEX($C$3:$C$6,MATCH(C164,$C$3:$C$6,0)+1,0)),Variables!$B$1,INDEX($C$3:$C$6,MATCH(C164,$C$3:$C$6,0)+1,0)),""),"") ->  | J164: =IF(ISERROR(VLOOKUP(I164,$C$3:$L$6,5,0)),"",IF(OR(VLOOKUP(I164,$C$3:$L$6,5,0)=Variables!$B$5,B164>VLOOKUP(I164,$C$3:$L$6,8,0)),IF(VLOOKUP(I164,$C$3:$L$6,5,0)=Variables!$B$5,((YEAR(B164)-YEAR($B$12))*12+MONTH(B164)-MONTH($B$12)),((YEAR(B164)-YEAR(VLOOKUP(I164,$C$3:$L$6,8,0)))*12+MONTH(B164)-MONTH(VLOOKUP(I164,$C$3:$L$6,8,0))))*(VLOOKUP(I164,$C$3:$L$6,10,0)*VLOOKUP(I164,$C$3:$L$6,6,0)/12),0)) ->  | K164: =IF(C164<>"",IF(I164<>"",IF(ISERROR(VLOOKUP(I164,$C$3:$L$6,10,0)),"",VLOOKUP(I164,$C$3:$L$6,10,0)+J164+IF(OR(VLOOKUP(I164,$C$3:$L$6,5,0)=Variables!$B$5,B164>VLOOKUP(I164,$C$3:$L$6,8,0)),IF(VLOOKUP(I164,$C$3:$L$6,5,0)=Variables!$B$5,((YEAR(B164)-YEAR($B$12))*12+MONTH(B164)-MONTH($B$12)),((YEAR(B164)-YEAR(VLOOKUP(I164,$C$3:$L$6,8,0)))*12+MONTH(B164)-MONTH(VLOOKUP(I164,$C$3:$L$6,8,0))))*VLOOKUP(I164,$C$3:$L$6,7,0),0)),""),"") -> 
C165: =IF(I164<>Variables!$B$1,IF(H164<>0,C164,I164),"") ->  | F165: =IF(C165<>"",IF(OR(VLOOKUP(C165,$C$3:$L$6,5,0)=Variables!$B$5,B165>VLOOKUP(C165,$C$3:$L$6,8,0)),-D165*VLOOKUP(C165,$C$3:$L$6,6,0)/12,0),"") ->  | G165: =IF(I165<>Variables!$B$1,IF(C165<>"",$I$9-E165-F165,""),-D165) ->  | I165: =IF(C165<>"",IF(D165+$I$9-E165-F165>=0,IF(ISERROR(INDEX($C$3:$C$6,MATCH(C165,$C$3:$C$6,0)+1,0)),Variables!$B$1,INDEX($C$3:$C$6,MATCH(C165,$C$3:$C$6,0)+1,0)),""),"") ->  | J165: =IF(ISERROR(VLOOKUP(I165,$C$3:$L$6,5,0)),"",IF(OR(VLOOKUP(I165,$C$3:$L$6,5,0)=Variables!$B$5,B165>VLOOKUP(I165,$C$3:$L$6,8,0)),IF(VLOOKUP(I165,$C$3:$L$6,5,0)=Variables!$B$5,((YEAR(B165)-YEAR($B$12))*12+MONTH(B165)-MONTH($B$12)),((YEAR(B165)-YEAR(VLOOKUP(I165,$C$3:$L$6,8,0)))*12+MONTH(B165)-MONTH(VLOOKUP(I165,$C$3:$L$6,8,0))))*(VLOOKUP(I165,$C$3:$L$6,10,0)*VLOOKUP(I165,$C$3:$L$6,6,0)/12),0)) ->  | K165: =IF(C165<>"",IF(I165<>"",IF(ISERROR(VLOOKUP(I165,$C$3:$L$6,10,0)),"",VLOOKUP(I165,$C$3:$L$6,10,0)+J165+IF(OR(VLOOKUP(I165,$C$3:$L$6,5,0)=Variables!$B$5,B165>VLOOKUP(I165,$C$3:$L$6,8,0)),IF(VLOOKUP(I165,$C$3:$L$6,5,0)=Variables!$B$5,((YEAR(B165)-YEAR($B$12))*12+MONTH(B165)-MONTH($B$12)),((YEAR(B165)-YEAR(VLOOKUP(I165,$C$3:$L$6,8,0)))*12+MONTH(B165)-MONTH(VLOOKUP(I165,$C$3:$L$6,8,0))))*VLOOKUP(I165,$C$3:$L$6,7,0),0)),""),"") -> 
C166: =IF(I165<>Variables!$B$1,IF(H165<>0,C165,I165),"") ->  | F166: =IF(C166<>"",IF(OR(VLOOKUP(C166,$C$3:$L$6,5,0)=Variables!$B$5,B166>VLOOKUP(C166,$C$3:$L$6,8,0)),-D166*VLOOKUP(C166,$C$3:$L$6,6,0)/12,0),"") ->  | G166: =IF(I166<>Variables!$B$1,IF(C166<>"",$I$9-E166-F166,""),-D166) ->  | I166: =IF(C166<>"",IF(D166+$I$9-E166-F166>=0,IF(ISERROR(INDEX($C$3:$C$6,MATCH(C166,$C$3:$C$6,0)+1,0)),Variables!$B$1,INDEX($C$3:$C$6,MATCH(C166,$C$3:$C$6,0)+1,0)),""),"") ->  | J166: =IF(ISERROR(VLOOKUP(I166,$C$3:$L$6,5,0)),"",IF(OR(VLOOKUP(I166,$C$3:$L$6,5,0)=Variables!$B$5,B166>VLOOKUP(I166,$C$3:$L$6,8,0)),IF(VLOOKUP(I166,$C$3:$L$6,5,0)=Variables!$B$5,((YEAR(B166)-YEAR($B$12))*12+MONTH(B166)-MONTH($B$12)),((YEAR(B166)-YEAR(VLOOKUP(I166,$C$3:$L$6,8,0)))*12+MONTH(B166)-MONTH(VLOOKUP(I166,$C$3:$L$6,8,0))))*(VLOOKUP(I166,$C$3:$L$6,10,0)*VLOOKUP(I166,$C$3:$L$6,6,0)/12),0)) ->  | K166: =IF(C166<>"",IF(I166<>"",IF(ISERROR(VLOOKUP(I166,$C$3:$L$6,10,0)),"",VLOOKUP(I166,$C$3:$L$6,10,0)+J166+IF(OR(VLOOKUP(I166,$C$3:$L$6,5,0)=Variables!$B$5,B166>VLOOKUP(I166,$C$3:$L$6,8,0)),IF(VLOOKUP(I166,$C$3:$L$6,5,0)=Variables!$B$5,((YEAR(B166)-YEAR($B$12))*12+MONTH(B166)-MONTH($B$12)),((YEAR(B166)-YEAR(VLOOKUP(I166,$C$3:$L$6,8,0)))*12+MONTH(B166)-MONTH(VLOOKUP(I166,$C$3:$L$6,8,0))))*VLOOKUP(I166,$C$3:$L$6,7,0),0)),""),"") -> 
C167: =IF(I166<>Variables!$B$1,IF(H166<>0,C166,I166),"") ->  | F167: =IF(C167<>"",IF(OR(VLOOKUP(C167,$C$3:$L$6,5,0)=Variables!$B$5,B167>VLOOKUP(C167,$C$3:$L$6,8,0)),-D167*VLOOKUP(C167,$C$3:$L$6,6,0)/12,0),"") ->  | G167: =IF(I167<>Variables!$B$1,IF(C167<>"",$I$9-E167-F167,""),-D167) ->  | I167: =IF(C167<>"",IF(D167+$I$9-E167-F167>=0,IF(ISERROR(INDEX($C$3:$C$6,MATCH(C167,$C$3:$C$6,0)+1,0)),Variables!$B$1,INDEX($C$3:$C$6,MATCH(C167,$C$3:$C$6,0)+1,0)),""),"") ->  | J167: =IF(ISERROR(VLOOKUP(I167,$C$3:$L$6,5,0)),"",IF(OR(VLOOKUP(I167,$C$3:$L$6,5,0)=Variables!$B$5,B167>VLOOKUP(I167,$C$3:$L$6,8,0)),IF(VLOOKUP(I167,$C$3:$L$6,5,0)=Variables!$B$5,((YEAR(B167)-YEAR($B$12))*12+MONTH(B167)-MONTH($B$12)),((YEAR(B167)-YEAR(VLOOKUP(I167,$C$3:$L$6,8,0)))*12+MONTH(B167)-MONTH(VLOOKUP(I167,$C$3:$L$6,8,0))))*(VLOOKUP(I167,$C$3:$L$6,10,0)*VLOOKUP(I167,$C$3:$L$6,6,0)/12),0)) ->  | K167: =IF(C167<>"",IF(I167<>"",IF(ISERROR(VLOOKUP(I167,$C$3:$L$6,10,0)),"",VLOOKUP(I167,$C$3:$L$6,10,0)+J167+IF(OR(VLOOKUP(I167,$C$3:$L$6,5,0)=Variables!$B$5,B167>VLOOKUP(I167,$C$3:$L$6,8,0)),IF(VLOOKUP(I167,$C$3:$L$6,5,0)=Variables!$B$5,((YEAR(B167)-YEAR($B$12))*12+MONTH(B167)-MONTH($B$12)),((YEAR(B167)-YEAR(VLOOKUP(I167,$C$3:$L$6,8,0)))*12+MONTH(B167)-MONTH(VLOOKUP(I167,$C$3:$L$6,8,0))))*VLOOKUP(I167,$C$3:$L$6,7,0),0)),""),"") -> 
C168: =IF(I167<>Variables!$B$1,IF(H167<>0,C167,I167),"") ->  | F168: =IF(C168<>"",IF(OR(VLOOKUP(C168,$C$3:$L$6,5,0)=Variables!$B$5,B168>VLOOKUP(C168,$C$3:$L$6,8,0)),-D168*VLOOKUP(C168,$C$3:$L$6,6,0)/12,0),"") ->  | G168: =IF(I168<>Variables!$B$1,IF(C168<>"",$I$9-E168-F168,""),-D168) ->  | I168: =IF(C168<>"",IF(D168+$I$9-E168-F168>=0,IF(ISERROR(INDEX($C$3:$C$6,MATCH(C168,$C$3:$C$6,0)+1,0)),Variables!$B$1,INDEX($C$3:$C$6,MATCH(C168,$C$3:$C$6,0)+1,0)),""),"") ->  | J168: =IF(ISERROR(VLOOKUP(I168,$C$3:$L$6,5,0)),"",IF(OR(VLOOKUP(I168,$C$3:$L$6,5,0)=Variables!$B$5,B168>VLOOKUP(I168,$C$3:$L$6,8,0)),IF(VLOOKUP(I168,$C$3:$L$6,5,0)=Variables!$B$5,((YEAR(B168)-YEAR($B$12))*12+MONTH(B168)-MONTH($B$12)),((YEAR(B168)-YEAR(VLOOKUP(I168,$C$3:$L$6,8,0)))*12+MONTH(B168)-MONTH(VLOOKUP(I168,$C$3:$L$6,8,0))))*(VLOOKUP(I168,$C$3:$L$6,10,0)*VLOOKUP(I168,$C$3:$L$6,6,0)/12),0)) ->  | K168: =IF(C168<>"",IF(I168<>"",IF(ISERROR(VLOOKUP(I168,$C$3:$L$6,10,0)),"",VLOOKUP(I168,$C$3:$L$6,10,0)+J168+IF(OR(VLOOKUP(I168,$C$3:$L$6,5,0)=Variables!$B$5,B168>VLOOKUP(I168,$C$3:$L$6,8,0)),IF(VLOOKUP(I168,$C$3:$L$6,5,0)=Variables!$B$5,((YEAR(B168)-YEAR($B$12))*12+MONTH(B168)-MONTH($B$12)),((YEAR(B168)-YEAR(VLOOKUP(I168,$C$3:$L$6,8,0)))*12+MONTH(B168)-MONTH(VLOOKUP(I168,$C$3:$L$6,8,0))))*VLOOKUP(I168,$C$3:$L$6,7,0),0)),""),"") -> 
C169: =IF(I168<>Variables!$B$1,IF(H168<>0,C168,I168),"") ->  | F169: =IF(C169<>"",IF(OR(VLOOKUP(C169,$C$3:$L$6,5,0)=Variables!$B$5,B169>VLOOKUP(C169,$C$3:$L$6,8,0)),-D169*VLOOKUP(C169,$C$3:$L$6,6,0)/12,0),"") ->  | G169: =IF(I169<>Variables!$B$1,IF(C169<>"",$I$9-E169-F169,""),-D169) ->  | I169: =IF(C169<>"",IF(D169+$I$9-E169-F169>=0,IF(ISERROR(INDEX($C$3:$C$6,MATCH(C169,$C$3:$C$6,0)+1,0)),Variables!$B$1,INDEX($C$3:$C$6,MATCH(C169,$C$3:$C$6,0)+1,0)),""),"") ->  | J169: =IF(ISERROR(VLOOKUP(I169,$C$3:$L$6,5,0)),"",IF(OR(VLOOKUP(I169,$C$3:$L$6,5,0)=Variables!$B$5,B169>VLOOKUP(I169,$C$3:$L$6,8,0)),IF(VLOOKUP(I169,$C$3:$L$6,5,0)=Variables!$B$5,((YEAR(B169)-YEAR($B$12))*12+MONTH(B169)-MONTH($B$12)),((YEAR(B169)-YEAR(VLOOKUP(I169,$C$3:$L$6,8,0)))*12+MONTH(B169)-MONTH(VLOOKUP(I169,$C$3:$L$6,8,0))))*(VLOOKUP(I169,$C$3:$L$6,10,0)*VLOOKUP(I169,$C$3:$L$6,6,0)/12),0)) ->  | K169: =IF(C169<>"",IF(I169<>"",IF(ISERROR(VLOOKUP(I169,$C$3:$L$6,10,0)),"",VLOOKUP(I169,$C$3:$L$6,10,0)+J169+IF(OR(VLOOKUP(I169,$C$3:$L$6,5,0)=Variables!$B$5,B169>VLOOKUP(I169,$C$3:$L$6,8,0)),IF(VLOOKUP(I169,$C$3:$L$6,5,0)=Variables!$B$5,((YEAR(B169)-YEAR($B$12))*12+MONTH(B169)-MONTH($B$12)),((YEAR(B169)-YEAR(VLOOKUP(I169,$C$3:$L$6,8,0)))*12+MONTH(B169)-MONTH(VLOOKUP(I169,$C$3:$L$6,8,0))))*VLOOKUP(I169,$C$3:$L$6,7,0),0)),""),"") -> 
C170: =IF(I169<>Variables!$B$1,IF(H169<>0,C169,I169),"") ->  | F170: =IF(C170<>"",IF(OR(VLOOKUP(C170,$C$3:$L$6,5,0)=Variables!$B$5,B170>VLOOKUP(C170,$C$3:$L$6,8,0)),-D170*VLOOKUP(C170,$C$3:$L$6,6,0)/12,0),"") ->  | G170: =IF(I170<>Variables!$B$1,IF(C170<>"",$I$9-E170-F170,""),-D170) ->  | I170: =IF(C170<>"",IF(D170+$I$9-E170-F170>=0,IF(ISERROR(INDEX($C$3:$C$6,MATCH(C170,$C$3:$C$6,0)+1,0)),Variables!$B$1,INDEX($C$3:$C$6,MATCH(C170,$C$3:$C$6,0)+1,0)),""),"") ->  | J170: =IF(ISERROR(VLOOKUP(I170,$C$3:$L$6,5,0)),"",IF(OR(VLOOKUP(I170,$C$3:$L$6,5,0)=Variables!$B$5,B170>VLOOKUP(I170,$C$3:$L$6,8,0)),IF(VLOOKUP(I170,$C$3:$L$6,5,0)=Variables!$B$5,((YEAR(B170)-YEAR($B$12))*12+MONTH(B170)-MONTH($B$12)),((YEAR(B170)-YEAR(VLOOKUP(I170,$C$3:$L$6,8,0)))*12+MONTH(B170)-MONTH(VLOOKUP(I170,$C$3:$L$6,8,0))))*(VLOOKUP(I170,$C$3:$L$6,10,0)*VLOOKUP(I170,$C$3:$L$6,6,0)/12),0)) ->  | K170: =IF(C170<>"",IF(I170<>"",IF(ISERROR(VLOOKUP(I170,$C$3:$L$6,10,0)),"",VLOOKUP(I170,$C$3:$L$6,10,0)+J170+IF(OR(VLOOKUP(I170,$C$3:$L$6,5,0)=Variables!$B$5,B170>VLOOKUP(I170,$C$3:$L$6,8,0)),IF(VLOOKUP(I170,$C$3:$L$6,5,0)=Variables!$B$5,((YEAR(B170)-YEAR($B$12))*12+MONTH(B170)-MONTH($B$12)),((YEAR(B170)-YEAR(VLOOKUP(I170,$C$3:$L$6,8,0)))*12+MONTH(B170)-MONTH(VLOOKUP(I170,$C$3:$L$6,8,0))))*VLOOKUP(I170,$C$3:$L$6,7,0),0)),""),"") -> 
C171: =IF(I170<>Variables!$B$1,IF(H170<>0,C170,I170),"") ->  | F171: =IF(C171<>"",IF(OR(VLOOKUP(C171,$C$3:$L$6,5,0)=Variables!$B$5,B171>VLOOKUP(C171,$C$3:$L$6,8,0)),-D171*VLOOKUP(C171,$C$3:$L$6,6,0)/12,0),"") ->  | G171: =IF(I171<>Variables!$B$1,IF(C171<>"",$I$9-E171-F171,""),-D171) ->  | I171: =IF(C171<>"",IF(D171+$I$9-E171-F171>=0,IF(ISERROR(INDEX($C$3:$C$6,MATCH(C171,$C$3:$C$6,0)+1,0)),Variables!$B$1,INDEX($C$3:$C$6,MATCH(C171,$C$3:$C$6,0)+1,0)),""),"") ->  | J171: =IF(ISERROR(VLOOKUP(I171,$C$3:$L$6,5,0)),"",IF(OR(VLOOKUP(I171,$C$3:$L$6,5,0)=Variables!$B$5,B171>VLOOKUP(I171,$C$3:$L$6,8,0)),IF(VLOOKUP(I171,$C$3:$L$6,5,0)=Variables!$B$5,((YEAR(B171)-YEAR($B$12))*12+MONTH(B171)-MONTH($B$12)),((YEAR(B171)-YEAR(VLOOKUP(I171,$C$3:$L$6,8,0)))*12+MONTH(B171)-MONTH(VLOOKUP(I171,$C$3:$L$6,8,0))))*(VLOOKUP(I171,$C$3:$L$6,10,0)*VLOOKUP(I171,$C$3:$L$6,6,0)/12),0)) ->  | K171: =IF(C171<>"",IF(I171<>"",IF(ISERROR(VLOOKUP(I171,$C$3:$L$6,10,0)),"",VLOOKUP(I171,$C$3:$L$6,10,0)+J171+IF(OR(VLOOKUP(I171,$C$3:$L$6,5,0)=Variables!$B$5,B171>VLOOKUP(I171,$C$3:$L$6,8,0)),IF(VLOOKUP(I171,$C$3:$L$6,5,0)=Variables!$B$5,((YEAR(B171)-YEAR($B$12))*12+MONTH(B171)-MONTH($B$12)),((YEAR(B171)-YEAR(VLOOKUP(I171,$C$3:$L$6,8,0)))*12+MONTH(B171)-MONTH(VLOOKUP(I171,$C$3:$L$6,8,0))))*VLOOKUP(I171,$C$3:$L$6,7,0),0)),""),"") -> 
C172: =IF(I171<>Variables!$B$1,IF(H171<>0,C171,I171),"") ->  | F172: =IF(C172<>"",IF(OR(VLOOKUP(C172,$C$3:$L$6,5,0)=Variables!$B$5,B172>VLOOKUP(C172,$C$3:$L$6,8,0)),-D172*VLOOKUP(C172,$C$3:$L$6,6,0)/12,0),"") ->  | G172: =IF(I172<>Variables!$B$1,IF(C172<>"",$I$9-E172-F172,""),-D172) ->  | I172: =IF(C172<>"",IF(D172+$I$9-E172-F172>=0,IF(ISERROR(INDEX($C$3:$C$6,MATCH(C172,$C$3:$C$6,0)+1,0)),Variables!$B$1,INDEX($C$3:$C$6,MATCH(C172,$C$3:$C$6,0)+1,0)),""),"") ->  | J172: =IF(ISERROR(VLOOKUP(I172,$C$3:$L$6,5,0)),"",IF(OR(VLOOKUP(I172,$C$3:$L$6,5,0)=Variables!$B$5,B172>VLOOKUP(I172,$C$3:$L$6,8,0)),IF(VLOOKUP(I172,$C$3:$L$6,5,0)=Variables!$B$5,((YEAR(B172)-YEAR($B$12))*12+MONTH(B172)-MONTH($B$12)),((YEAR(B172)-YEAR(VLOOKUP(I172,$C$3:$L$6,8,0)))*12+MONTH(B172)-MONTH(VLOOKUP(I172,$C$3:$L$6,8,0))))*(VLOOKUP(I172,$C$3:$L$6,10,0)*VLOOKUP(I172,$C$3:$L$6,6,0)/12),0)) ->  | K172: =IF(C172<>"",IF(I172<>"",IF(ISERROR(VLOOKUP(I172,$C$3:$L$6,10,0)),"",VLOOKUP(I172,$C$3:$L$6,10,0)+J172+IF(OR(VLOOKUP(I172,$C$3:$L$6,5,0)=Variables!$B$5,B172>VLOOKUP(I172,$C$3:$L$6,8,0)),IF(VLOOKUP(I172,$C$3:$L$6,5,0)=Variables!$B$5,((YEAR(B172)-YEAR($B$12))*12+MONTH(B172)-MONTH($B$12)),((YEAR(B172)-YEAR(VLOOKUP(I172,$C$3:$L$6,8,0)))*12+MONTH(B172)-MONTH(VLOOKUP(I172,$C$3:$L$6,8,0))))*VLOOKUP(I172,$C$3:$L$6,7,0),0)),""),"") -> 
C173: =IF(I172<>Variables!$B$1,IF(H172<>0,C172,I172),"") ->  | F173: =IF(C173<>"",IF(OR(VLOOKUP(C173,$C$3:$L$6,5,0)=Variables!$B$5,B173>VLOOKUP(C173,$C$3:$L$6,8,0)),-D173*VLOOKUP(C173,$C$3:$L$6,6,0)/12,0),"") ->  | G173: =IF(I173<>Variables!$B$1,IF(C173<>"",$I$9-E173-F173,""),-D173) ->  | I173: =IF(C173<>"",IF(D173+$I$9-E173-F173>=0,IF(ISERROR(INDEX($C$3:$C$6,MATCH(C173,$C$3:$C$6,0)+1,0)),Variables!$B$1,INDEX($C$3:$C$6,MATCH(C173,$C$3:$C$6,0)+1,0)),""),"") ->  | J173: =IF(ISERROR(VLOOKUP(I173,$C$3:$L$6,5,0)),"",IF(OR(VLOOKUP(I173,$C$3:$L$6,5,0)=Variables!$B$5,B173>VLOOKUP(I173,$C$3:$L$6,8,0)),IF(VLOOKUP(I173,$C$3:$L$6,5,0)=Variables!$B$5,((YEAR(B173)-YEAR($B$12))*12+MONTH(B173)-MONTH($B$12)),((YEAR(B173)-YEAR(VLOOKUP(I173,$C$3:$L$6,8,0)))*12+MONTH(B173)-MONTH(VLOOKUP(I173,$C$3:$L$6,8,0))))*(VLOOKUP(I173,$C$3:$L$6,10,0)*VLOOKUP(I173,$C$3:$L$6,6,0)/12),0)) ->  | K173: =IF(C173<>"",IF(I173<>"",IF(ISERROR(VLOOKUP(I173,$C$3:$L$6,10,0)),"",VLOOKUP(I173,$C$3:$L$6,10,0)+J173+IF(OR(VLOOKUP(I173,$C$3:$L$6,5,0)=Variables!$B$5,B173>VLOOKUP(I173,$C$3:$L$6,8,0)),IF(VLOOKUP(I173,$C$3:$L$6,5,0)=Variables!$B$5,((YEAR(B173)-YEAR($B$12))*12+MONTH(B173)-MONTH($B$12)),((YEAR(B173)-YEAR(VLOOKUP(I173,$C$3:$L$6,8,0)))*12+MONTH(B173)-MONTH(VLOOKUP(I173,$C$3:$L$6,8,0))))*VLOOKUP(I173,$C$3:$L$6,7,0),0)),""),"") -> 
C174: =IF(I173<>Variables!$B$1,IF(H173<>0,C173,I173),"") ->  | F174: =IF(C174<>"",IF(OR(VLOOKUP(C174,$C$3:$L$6,5,0)=Variables!$B$5,B174>VLOOKUP(C174,$C$3:$L$6,8,0)),-D174*VLOOKUP(C174,$C$3:$L$6,6,0)/12,0),"") ->  | G174: =IF(I174<>Variables!$B$1,IF(C174<>"",$I$9-E174-F174,""),-D174) ->  | I174: =IF(C174<>"",IF(D174+$I$9-E174-F174>=0,IF(ISERROR(INDEX($C$3:$C$6,MATCH(C174,$C$3:$C$6,0)+1,0)),Variables!$B$1,INDEX($C$3:$C$6,MATCH(C174,$C$3:$C$6,0)+1,0)),""),"") ->  | J174: =IF(ISERROR(VLOOKUP(I174,$C$3:$L$6,5,0)),"",IF(OR(VLOOKUP(I174,$C$3:$L$6,5,0)=Variables!$B$5,B174>VLOOKUP(I174,$C$3:$L$6,8,0)),IF(VLOOKUP(I174,$C$3:$L$6,5,0)=Variables!$B$5,((YEAR(B174)-YEAR($B$12))*12+MONTH(B174)-MONTH($B$12)),((YEAR(B174)-YEAR(VLOOKUP(I174,$C$3:$L$6,8,0)))*12+MONTH(B174)-MONTH(VLOOKUP(I174,$C$3:$L$6,8,0))))*(VLOOKUP(I174,$C$3:$L$6,10,0)*VLOOKUP(I174,$C$3:$L$6,6,0)/12),0)) ->  | K174: =IF(C174<>"",IF(I174<>"",IF(ISERROR(VLOOKUP(I174,$C$3:$L$6,10,0)),"",VLOOKUP(I174,$C$3:$L$6,10,0)+J174+IF(OR(VLOOKUP(I174,$C$3:$L$6,5,0)=Variables!$B$5,B174>VLOOKUP(I174,$C$3:$L$6,8,0)),IF(VLOOKUP(I174,$C$3:$L$6,5,0)=Variables!$B$5,((YEAR(B174)-YEAR($B$12))*12+MONTH(B174)-MONTH($B$12)),((YEAR(B174)-YEAR(VLOOKUP(I174,$C$3:$L$6,8,0)))*12+MONTH(B174)-MONTH(VLOOKUP(I174,$C$3:$L$6,8,0))))*VLOOKUP(I174,$C$3:$L$6,7,0),0)),""),"") -> 
C175: =IF(I174<>Variables!$B$1,IF(H174<>0,C174,I174),"") ->  | F175: =IF(C175<>"",IF(OR(VLOOKUP(C175,$C$3:$L$6,5,0)=Variables!$B$5,B175>VLOOKUP(C175,$C$3:$L$6,8,0)),-D175*VLOOKUP(C175,$C$3:$L$6,6,0)/12,0),"") ->  | G175: =IF(I175<>Variables!$B$1,IF(C175<>"",$I$9-E175-F175,""),-D175) ->  | I175: =IF(C175<>"",IF(D175+$I$9-E175-F175>=0,IF(ISERROR(INDEX($C$3:$C$6,MATCH(C175,$C$3:$C$6,0)+1,0)),Variables!$B$1,INDEX($C$3:$C$6,MATCH(C175,$C$3:$C$6,0)+1,0)),""),"") ->  | J175: =IF(ISERROR(VLOOKUP(I175,$C$3:$L$6,5,0)),"",IF(OR(VLOOKUP(I175,$C$3:$L$6,5,0)=Variables!$B$5,B175>VLOOKUP(I175,$C$3:$L$6,8,0)),IF(VLOOKUP(I175,$C$3:$L$6,5,0)=Variables!$B$5,((YEAR(B175)-YEAR($B$12))*12+MONTH(B175)-MONTH($B$12)),((YEAR(B175)-YEAR(VLOOKUP(I175,$C$3:$L$6,8,0)))*12+MONTH(B175)-MONTH(VLOOKUP(I175,$C$3:$L$6,8,0))))*(VLOOKUP(I175,$C$3:$L$6,10,0)*VLOOKUP(I175,$C$3:$L$6,6,0)/12),0)) ->  | K175: =IF(C175<>"",IF(I175<>"",IF(ISERROR(VLOOKUP(I175,$C$3:$L$6,10,0)),"",VLOOKUP(I175,$C$3:$L$6,10,0)+J175+IF(OR(VLOOKUP(I175,$C$3:$L$6,5,0)=Variables!$B$5,B175>VLOOKUP(I175,$C$3:$L$6,8,0)),IF(VLOOKUP(I175,$C$3:$L$6,5,0)=Variables!$B$5,((YEAR(B175)-YEAR($B$12))*12+MONTH(B175)-MONTH($B$12)),((YEAR(B175)-YEAR(VLOOKUP(I175,$C$3:$L$6,8,0)))*12+MONTH(B175)-MONTH(VLOOKUP(I175,$C$3:$L$6,8,0))))*VLOOKUP(I175,$C$3:$L$6,7,0),0)),""),"") -> 
C176: =IF(I175<>Variables!$B$1,IF(H175<>0,C175,I175),"") ->  | F176: =IF(C176<>"",IF(OR(VLOOKUP(C176,$C$3:$L$6,5,0)=Variables!$B$5,B176>VLOOKUP(C176,$C$3:$L$6,8,0)),-D176*VLOOKUP(C176,$C$3:$L$6,6,0)/12,0),"") ->  | G176: =IF(I176<>Variables!$B$1,IF(C176<>"",$I$9-E176-F176,""),-D176) ->  | I176: =IF(C176<>"",IF(D176+$I$9-E176-F176>=0,IF(ISERROR(INDEX($C$3:$C$6,MATCH(C176,$C$3:$C$6,0)+1,0)),Variables!$B$1,INDEX($C$3:$C$6,MATCH(C176,$C$3:$C$6,0)+1,0)),""),"") ->  | J176: =IF(ISERROR(VLOOKUP(I176,$C$3:$L$6,5,0)),"",IF(OR(VLOOKUP(I176,$C$3:$L$6,5,0)=Variables!$B$5,B176>VLOOKUP(I176,$C$3:$L$6,8,0)),IF(VLOOKUP(I176,$C$3:$L$6,5,0)=Variables!$B$5,((YEAR(B176)-YEAR($B$12))*12+MONTH(B176)-MONTH($B$12)),((YEAR(B176)-YEAR(VLOOKUP(I176,$C$3:$L$6,8,0)))*12+MONTH(B176)-MONTH(VLOOKUP(I176,$C$3:$L$6,8,0))))*(VLOOKUP(I176,$C$3:$L$6,10,0)*VLOOKUP(I176,$C$3:$L$6,6,0)/12),0)) ->  | K176: =IF(C176<>"",IF(I176<>"",IF(ISERROR(VLOOKUP(I176,$C$3:$L$6,10,0)),"",VLOOKUP(I176,$C$3:$L$6,10,0)+J176+IF(OR(VLOOKUP(I176,$C$3:$L$6,5,0)=Variables!$B$5,B176>VLOOKUP(I176,$C$3:$L$6,8,0)),IF(VLOOKUP(I176,$C$3:$L$6,5,0)=Variables!$B$5,((YEAR(B176)-YEAR($B$12))*12+MONTH(B176)-MONTH($B$12)),((YEAR(B176)-YEAR(VLOOKUP(I176,$C$3:$L$6,8,0)))*12+MONTH(B176)-MONTH(VLOOKUP(I176,$C$3:$L$6,8,0))))*VLOOKUP(I176,$C$3:$L$6,7,0),0)),""),"") -> 
C177: =IF(I176<>Variables!$B$1,IF(H176<>0,C176,I176),"") ->  | F177: =IF(C177<>"",IF(OR(VLOOKUP(C177,$C$3:$L$6,5,0)=Variables!$B$5,B177>VLOOKUP(C177,$C$3:$L$6,8,0)),-D177*VLOOKUP(C177,$C$3:$L$6,6,0)/12,0),"") ->  | G177: =IF(I177<>Variables!$B$1,IF(C177<>"",$I$9-E177-F177,""),-D177) ->  | I177: =IF(C177<>"",IF(D177+$I$9-E177-F177>=0,IF(ISERROR(INDEX($C$3:$C$6,MATCH(C177,$C$3:$C$6,0)+1,0)),Variables!$B$1,INDEX($C$3:$C$6,MATCH(C177,$C$3:$C$6,0)+1,0)),""),"") ->  | J177: =IF(ISERROR(VLOOKUP(I177,$C$3:$L$6,5,0)),"",IF(OR(VLOOKUP(I177,$C$3:$L$6,5,0)=Variables!$B$5,B177>VLOOKUP(I177,$C$3:$L$6,8,0)),IF(VLOOKUP(I177,$C$3:$L$6,5,0)=Variables!$B$5,((YEAR(B177)-YEAR($B$12))*12+MONTH(B177)-MONTH($B$12)),((YEAR(B177)-YEAR(VLOOKUP(I177,$C$3:$L$6,8,0)))*12+MONTH(B177)-MONTH(VLOOKUP(I177,$C$3:$L$6,8,0))))*(VLOOKUP(I177,$C$3:$L$6,10,0)*VLOOKUP(I177,$C$3:$L$6,6,0)/12),0)) ->  | K177: =IF(C177<>"",IF(I177<>"",IF(ISERROR(VLOOKUP(I177,$C$3:$L$6,10,0)),"",VLOOKUP(I177,$C$3:$L$6,10,0)+J177+IF(OR(VLOOKUP(I177,$C$3:$L$6,5,0)=Variables!$B$5,B177>VLOOKUP(I177,$C$3:$L$6,8,0)),IF(VLOOKUP(I177,$C$3:$L$6,5,0)=Variables!$B$5,((YEAR(B177)-YEAR($B$12))*12+MONTH(B177)-MONTH($B$12)),((YEAR(B177)-YEAR(VLOOKUP(I177,$C$3:$L$6,8,0)))*12+MONTH(B177)-MONTH(VLOOKUP(I177,$C$3:$L$6,8,0))))*VLOOKUP(I177,$C$3:$L$6,7,0),0)),""),"") -> 
C178: =IF(I177<>Variables!$B$1,IF(H177<>0,C177,I177),"") ->  | F178: =IF(C178<>"",IF(OR(VLOOKUP(C178,$C$3:$L$6,5,0)=Variables!$B$5,B178>VLOOKUP(C178,$C$3:$L$6,8,0)),-D178*VLOOKUP(C178,$C$3:$L$6,6,0)/12,0),"") ->  | G178: =IF(I178<>Variables!$B$1,IF(C178<>"",$I$9-E178-F178,""),-D178) ->  | I178: =IF(C178<>"",IF(D178+$I$9-E178-F178>=0,IF(ISERROR(INDEX($C$3:$C$6,MATCH(C178,$C$3:$C$6,0)+1,0)),Variables!$B$1,INDEX($C$3:$C$6,MATCH(C178,$C$3:$C$6,0)+1,0)),""),"") ->  | J178: =IF(ISERROR(VLOOKUP(I178,$C$3:$L$6,5,0)),"",IF(OR(VLOOKUP(I178,$C$3:$L$6,5,0)=Variables!$B$5,B178>VLOOKUP(I178,$C$3:$L$6,8,0)),IF(VLOOKUP(I178,$C$3:$L$6,5,0)=Variables!$B$5,((YEAR(B178)-YEAR($B$12))*12+MONTH(B178)-MONTH($B$12)),((YEAR(B178)-YEAR(VLOOKUP(I178,$C$3:$L$6,8,0)))*12+MONTH(B178)-MONTH(VLOOKUP(I178,$C$3:$L$6,8,0))))*(VLOOKUP(I178,$C$3:$L$6,10,0)*VLOOKUP(I178,$C$3:$L$6,6,0)/12),0)) ->  | K178: =IF(C178<>"",IF(I178<>"",IF(ISERROR(VLOOKUP(I178,$C$3:$L$6,10,0)),"",VLOOKUP(I178,$C$3:$L$6,10,0)+J178+IF(OR(VLOOKUP(I178,$C$3:$L$6,5,0)=Variables!$B$5,B178>VLOOKUP(I178,$C$3:$L$6,8,0)),IF(VLOOKUP(I178,$C$3:$L$6,5,0)=Variables!$B$5,((YEAR(B178)-YEAR($B$12))*12+MONTH(B178)-MONTH($B$12)),((YEAR(B178)-YEAR(VLOOKUP(I178,$C$3:$L$6,8,0)))*12+MONTH(B178)-MONTH(VLOOKUP(I178,$C$3:$L$6,8,0))))*VLOOKUP(I178,$C$3:$L$6,7,0),0)),""),"") -> 
C179: =IF(I178<>Variables!$B$1,IF(H178<>0,C178,I178),"") ->  | F179: =IF(C179<>"",IF(OR(VLOOKUP(C179,$C$3:$L$6,5,0)=Variables!$B$5,B179>VLOOKUP(C179,$C$3:$L$6,8,0)),-D179*VLOOKUP(C179,$C$3:$L$6,6,0)/12,0),"") ->  | G179: =IF(I179<>Variables!$B$1,IF(C179<>"",$I$9-E179-F179,""),-D179) ->  | I179: =IF(C179<>"",IF(D179+$I$9-E179-F179>=0,IF(ISERROR(INDEX($C$3:$C$6,MATCH(C179,$C$3:$C$6,0)+1,0)),Variables!$B$1,INDEX($C$3:$C$6,MATCH(C179,$C$3:$C$6,0)+1,0)),""),"") ->  | J179: =IF(ISERROR(VLOOKUP(I179,$C$3:$L$6,5,0)),"",IF(OR(VLOOKUP(I179,$C$3:$L$6,5,0)=Variables!$B$5,B179>VLOOKUP(I179,$C$3:$L$6,8,0)),IF(VLOOKUP(I179,$C$3:$L$6,5,0)=Variables!$B$5,((YEAR(B179)-YEAR($B$12))*12+MONTH(B179)-MONTH($B$12)),((YEAR(B179)-YEAR(VLOOKUP(I179,$C$3:$L$6,8,0)))*12+MONTH(B179)-MONTH(VLOOKUP(I179,$C$3:$L$6,8,0))))*(VLOOKUP(I179,$C$3:$L$6,10,0)*VLOOKUP(I179,$C$3:$L$6,6,0)/12),0)) ->  | K179: =IF(C179<>"",IF(I179<>"",IF(ISERROR(VLOOKUP(I179,$C$3:$L$6,10,0)),"",VLOOKUP(I179,$C$3:$L$6,10,0)+J179+IF(OR(VLOOKUP(I179,$C$3:$L$6,5,0)=Variables!$B$5,B179>VLOOKUP(I179,$C$3:$L$6,8,0)),IF(VLOOKUP(I179,$C$3:$L$6,5,0)=Variables!$B$5,((YEAR(B179)-YEAR($B$12))*12+MONTH(B179)-MONTH($B$12)),((YEAR(B179)-YEAR(VLOOKUP(I179,$C$3:$L$6,8,0)))*12+MONTH(B179)-MONTH(VLOOKUP(I179,$C$3:$L$6,8,0))))*VLOOKUP(I179,$C$3:$L$6,7,0),0)),""),"") -> 
C180: =IF(I179<>Variables!$B$1,IF(H179<>0,C179,I179),"") ->  | F180: =IF(C180<>"",IF(OR(VLOOKUP(C180,$C$3:$L$6,5,0)=Variables!$B$5,B180>VLOOKUP(C180,$C$3:$L$6,8,0)),-D180*VLOOKUP(C180,$C$3:$L$6,6,0)/12,0),"") ->  | G180: =IF(I180<>Variables!$B$1,IF(C180<>"",$I$9-E180-F180,""),-D180) ->  | I180: =IF(C180<>"",IF(D180+$I$9-E180-F180>=0,IF(ISERROR(INDEX($C$3:$C$6,MATCH(C180,$C$3:$C$6,0)+1,0)),Variables!$B$1,INDEX($C$3:$C$6,MATCH(C180,$C$3:$C$6,0)+1,0)),""),"") ->  | J180: =IF(ISERROR(VLOOKUP(I180,$C$3:$L$6,5,0)),"",IF(OR(VLOOKUP(I180,$C$3:$L$6,5,0)=Variables!$B$5,B180>VLOOKUP(I180,$C$3:$L$6,8,0)),IF(VLOOKUP(I180,$C$3:$L$6,5,0)=Variables!$B$5,((YEAR(B180)-YEAR($B$12))*12+MONTH(B180)-MONTH($B$12)),((YEAR(B180)-YEAR(VLOOKUP(I180,$C$3:$L$6,8,0)))*12+MONTH(B180)-MONTH(VLOOKUP(I180,$C$3:$L$6,8,0))))*(VLOOKUP(I180,$C$3:$L$6,10,0)*VLOOKUP(I180,$C$3:$L$6,6,0)/12),0)) ->  | K180: =IF(C180<>"",IF(I180<>"",IF(ISERROR(VLOOKUP(I180,$C$3:$L$6,10,0)),"",VLOOKUP(I180,$C$3:$L$6,10,0)+J180+IF(OR(VLOOKUP(I180,$C$3:$L$6,5,0)=Variables!$B$5,B180>VLOOKUP(I180,$C$3:$L$6,8,0)),IF(VLOOKUP(I180,$C$3:$L$6,5,0)=Variables!$B$5,((YEAR(B180)-YEAR($B$12))*12+MONTH(B180)-MONTH($B$12)),((YEAR(B180)-YEAR(VLOOKUP(I180,$C$3:$L$6,8,0)))*12+MONTH(B180)-MONTH(VLOOKUP(I180,$C$3:$L$6,8,0))))*VLOOKUP(I180,$C$3:$L$6,7,0),0)),""),"") -> 
C181: =IF(I180<>Variables!$B$1,IF(H180<>0,C180,I180),"") ->  | F181: =IF(C181<>"",IF(OR(VLOOKUP(C181,$C$3:$L$6,5,0)=Variables!$B$5,B181>VLOOKUP(C181,$C$3:$L$6,8,0)),-D181*VLOOKUP(C181,$C$3:$L$6,6,0)/12,0),"") ->  | G181: =IF(I181<>Variables!$B$1,IF(C181<>"",$I$9-E181-F181,""),-D181) ->  | I181: =IF(C181<>"",IF(D181+$I$9-E181-F181>=0,IF(ISERROR(INDEX($C$3:$C$6,MATCH(C181,$C$3:$C$6,0)+1,0)),Variables!$B$1,INDEX($C$3:$C$6,MATCH(C181,$C$3:$C$6,0)+1,0)),""),"") ->  | J181: =IF(ISERROR(VLOOKUP(I181,$C$3:$L$6,5,0)),"",IF(OR(VLOOKUP(I181,$C$3:$L$6,5,0)=Variables!$B$5,B181>VLOOKUP(I181,$C$3:$L$6,8,0)),IF(VLOOKUP(I181,$C$3:$L$6,5,0)=Variables!$B$5,((YEAR(B181)-YEAR($B$12))*12+MONTH(B181)-MONTH($B$12)),((YEAR(B181)-YEAR(VLOOKUP(I181,$C$3:$L$6,8,0)))*12+MONTH(B181)-MONTH(VLOOKUP(I181,$C$3:$L$6,8,0))))*(VLOOKUP(I181,$C$3:$L$6,10,0)*VLOOKUP(I181,$C$3:$L$6,6,0)/12),0)) ->  | K181: =IF(C181<>"",IF(I181<>"",IF(ISERROR(VLOOKUP(I181,$C$3:$L$6,10,0)),"",VLOOKUP(I181,$C$3:$L$6,10,0)+J181+IF(OR(VLOOKUP(I181,$C$3:$L$6,5,0)=Variables!$B$5,B181>VLOOKUP(I181,$C$3:$L$6,8,0)),IF(VLOOKUP(I181,$C$3:$L$6,5,0)=Variables!$B$5,((YEAR(B181)-YEAR($B$12))*12+MONTH(B181)-MONTH($B$12)),((YEAR(B181)-YEAR(VLOOKUP(I181,$C$3:$L$6,8,0)))*12+MONTH(B181)-MONTH(VLOOKUP(I181,$C$3:$L$6,8,0))))*VLOOKUP(I181,$C$3:$L$6,7,0),0)),""),"") -> 
C182: =IF(I181<>Variables!$B$1,IF(H181<>0,C181,I181),"") ->  | F182: =IF(C182<>"",IF(OR(VLOOKUP(C182,$C$3:$L$6,5,0)=Variables!$B$5,B182>VLOOKUP(C182,$C$3:$L$6,8,0)),-D182*VLOOKUP(C182,$C$3:$L$6,6,0)/12,0),"") ->  | G182: =IF(I182<>Variables!$B$1,IF(C182<>"",$I$9-E182-F182,""),-D182) ->  | I182: =IF(C182<>"",IF(D182+$I$9-E182-F182>=0,IF(ISERROR(INDEX($C$3:$C$6,MATCH(C182,$C$3:$C$6,0)+1,0)),Variables!$B$1,INDEX($C$3:$C$6,MATCH(C182,$C$3:$C$6,0)+1,0)),""),"") ->  | J182: =IF(ISERROR(VLOOKUP(I182,$C$3:$L$6,5,0)),"",IF(OR(VLOOKUP(I182,$C$3:$L$6,5,0)=Variables!$B$5,B182>VLOOKUP(I182,$C$3:$L$6,8,0)),IF(VLOOKUP(I182,$C$3:$L$6,5,0)=Variables!$B$5,((YEAR(B182)-YEAR($B$12))*12+MONTH(B182)-MONTH($B$12)),((YEAR(B182)-YEAR(VLOOKUP(I182,$C$3:$L$6,8,0)))*12+MONTH(B182)-MONTH(VLOOKUP(I182,$C$3:$L$6,8,0))))*(VLOOKUP(I182,$C$3:$L$6,10,0)*VLOOKUP(I182,$C$3:$L$6,6,0)/12),0)) ->  | K182: =IF(C182<>"",IF(I182<>"",IF(ISERROR(VLOOKUP(I182,$C$3:$L$6,10,0)),"",VLOOKUP(I182,$C$3:$L$6,10,0)+J182+IF(OR(VLOOKUP(I182,$C$3:$L$6,5,0)=Variables!$B$5,B182>VLOOKUP(I182,$C$3:$L$6,8,0)),IF(VLOOKUP(I182,$C$3:$L$6,5,0)=Variables!$B$5,((YEAR(B182)-YEAR($B$12))*12+MONTH(B182)-MONTH($B$12)),((YEAR(B182)-YEAR(VLOOKUP(I182,$C$3:$L$6,8,0)))*12+MONTH(B182)-MONTH(VLOOKUP(I182,$C$3:$L$6,8,0))))*VLOOKUP(I182,$C$3:$L$6,7,0),0)),""),"") -> 
C183: =IF(I182<>Variables!$B$1,IF(H182<>0,C182,I182),"") ->  | F183: =IF(C183<>"",IF(OR(VLOOKUP(C183,$C$3:$L$6,5,0)=Variables!$B$5,B183>VLOOKUP(C183,$C$3:$L$6,8,0)),-D183*VLOOKUP(C183,$C$3:$L$6,6,0)/12,0),"") ->  | G183: =IF(I183<>Variables!$B$1,IF(C183<>"",$I$9-E183-F183,""),-D183) ->  | I183: =IF(C183<>"",IF(D183+$I$9-E183-F183>=0,IF(ISERROR(INDEX($C$3:$C$6,MATCH(C183,$C$3:$C$6,0)+1,0)),Variables!$B$1,INDEX($C$3:$C$6,MATCH(C183,$C$3:$C$6,0)+1,0)),""),"") ->  | J183: =IF(ISERROR(VLOOKUP(I183,$C$3:$L$6,5,0)),"",IF(OR(VLOOKUP(I183,$C$3:$L$6,5,0)=Variables!$B$5,B183>VLOOKUP(I183,$C$3:$L$6,8,0)),IF(VLOOKUP(I183,$C$3:$L$6,5,0)=Variables!$B$5,((YEAR(B183)-YEAR($B$12))*12+MONTH(B183)-MONTH($B$12)),((YEAR(B183)-YEAR(VLOOKUP(I183,$C$3:$L$6,8,0)))*12+MONTH(B183)-MONTH(VLOOKUP(I183,$C$3:$L$6,8,0))))*(VLOOKUP(I183,$C$3:$L$6,10,0)*VLOOKUP(I183,$C$3:$L$6,6,0)/12),0)) ->  | K183: =IF(C183<>"",IF(I183<>"",IF(ISERROR(VLOOKUP(I183,$C$3:$L$6,10,0)),"",VLOOKUP(I183,$C$3:$L$6,10,0)+J183+IF(OR(VLOOKUP(I183,$C$3:$L$6,5,0)=Variables!$B$5,B183>VLOOKUP(I183,$C$3:$L$6,8,0)),IF(VLOOKUP(I183,$C$3:$L$6,5,0)=Variables!$B$5,((YEAR(B183)-YEAR($B$12))*12+MONTH(B183)-MONTH($B$12)),((YEAR(B183)-YEAR(VLOOKUP(I183,$C$3:$L$6,8,0)))*12+MONTH(B183)-MONTH(VLOOKUP(I183,$C$3:$L$6,8,0))))*VLOOKUP(I183,$C$3:$L$6,7,0),0)),""),"") -> 
C184: =IF(I183<>Variables!$B$1,IF(H183<>0,C183,I183),"") ->  | F184: =IF(C184<>"",IF(OR(VLOOKUP(C184,$C$3:$L$6,5,0)=Variables!$B$5,B184>VLOOKUP(C184,$C$3:$L$6,8,0)),-D184*VLOOKUP(C184,$C$3:$L$6,6,0)/12,0),"") ->  | G184: =IF(I184<>Variables!$B$1,IF(C184<>"",$I$9-E184-F184,""),-D184) ->  | I184: =IF(C184<>"",IF(D184+$I$9-E184-F184>=0,IF(ISERROR(INDEX($C$3:$C$6,MATCH(C184,$C$3:$C$6,0)+1,0)),Variables!$B$1,INDEX($C$3:$C$6,MATCH(C184,$C$3:$C$6,0)+1,0)),""),"") ->  | J184: =IF(ISERROR(VLOOKUP(I184,$C$3:$L$6,5,0)),"",IF(OR(VLOOKUP(I184,$C$3:$L$6,5,0)=Variables!$B$5,B184>VLOOKUP(I184,$C$3:$L$6,8,0)),IF(VLOOKUP(I184,$C$3:$L$6,5,0)=Variables!$B$5,((YEAR(B184)-YEAR($B$12))*12+MONTH(B184)-MONTH($B$12)),((YEAR(B184)-YEAR(VLOOKUP(I184,$C$3:$L$6,8,0)))*12+MONTH(B184)-MONTH(VLOOKUP(I184,$C$3:$L$6,8,0))))*(VLOOKUP(I184,$C$3:$L$6,10,0)*VLOOKUP(I184,$C$3:$L$6,6,0)/12),0)) ->  | K184: =IF(C184<>"",IF(I184<>"",IF(ISERROR(VLOOKUP(I184,$C$3:$L$6,10,0)),"",VLOOKUP(I184,$C$3:$L$6,10,0)+J184+IF(OR(VLOOKUP(I184,$C$3:$L$6,5,0)=Variables!$B$5,B184>VLOOKUP(I184,$C$3:$L$6,8,0)),IF(VLOOKUP(I184,$C$3:$L$6,5,0)=Variables!$B$5,((YEAR(B184)-YEAR($B$12))*12+MONTH(B184)-MONTH($B$12)),((YEAR(B184)-YEAR(VLOOKUP(I184,$C$3:$L$6,8,0)))*12+MONTH(B184)-MONTH(VLOOKUP(I184,$C$3:$L$6,8,0))))*VLOOKUP(I184,$C$3:$L$6,7,0),0)),""),"") -> 
C185: =IF(I184<>Variables!$B$1,IF(H184<>0,C184,I184),"") ->  | F185: =IF(C185<>"",IF(OR(VLOOKUP(C185,$C$3:$L$6,5,0)=Variables!$B$5,B185>VLOOKUP(C185,$C$3:$L$6,8,0)),-D185*VLOOKUP(C185,$C$3:$L$6,6,0)/12,0),"") ->  | G185: =IF(I185<>Variables!$B$1,IF(C185<>"",$I$9-E185-F185,""),-D185) ->  | I185: =IF(C185<>"",IF(D185+$I$9-E185-F185>=0,IF(ISERROR(INDEX($C$3:$C$6,MATCH(C185,$C$3:$C$6,0)+1,0)),Variables!$B$1,INDEX($C$3:$C$6,MATCH(C185,$C$3:$C$6,0)+1,0)),""),"") ->  | J185: =IF(ISERROR(VLOOKUP(I185,$C$3:$L$6,5,0)),"",IF(OR(VLOOKUP(I185,$C$3:$L$6,5,0)=Variables!$B$5,B185>VLOOKUP(I185,$C$3:$L$6,8,0)),IF(VLOOKUP(I185,$C$3:$L$6,5,0)=Variables!$B$5,((YEAR(B185)-YEAR($B$12))*12+MONTH(B185)-MONTH($B$12)),((YEAR(B185)-YEAR(VLOOKUP(I185,$C$3:$L$6,8,0)))*12+MONTH(B185)-MONTH(VLOOKUP(I185,$C$3:$L$6,8,0))))*(VLOOKUP(I185,$C$3:$L$6,10,0)*VLOOKUP(I185,$C$3:$L$6,6,0)/12),0)) ->  | K185: =IF(C185<>"",IF(I185<>"",IF(ISERROR(VLOOKUP(I185,$C$3:$L$6,10,0)),"",VLOOKUP(I185,$C$3:$L$6,10,0)+J185+IF(OR(VLOOKUP(I185,$C$3:$L$6,5,0)=Variables!$B$5,B185>VLOOKUP(I185,$C$3:$L$6,8,0)),IF(VLOOKUP(I185,$C$3:$L$6,5,0)=Variables!$B$5,((YEAR(B185)-YEAR($B$12))*12+MONTH(B185)-MONTH($B$12)),((YEAR(B185)-YEAR(VLOOKUP(I185,$C$3:$L$6,8,0)))*12+MONTH(B185)-MONTH(VLOOKUP(I185,$C$3:$L$6,8,0))))*VLOOKUP(I185,$C$3:$L$6,7,0),0)),""),"") -> 
C186: =IF(I185<>Variables!$B$1,IF(H185<>0,C185,I185),"") ->  | F186: =IF(C186<>"",IF(OR(VLOOKUP(C186,$C$3:$L$6,5,0)=Variables!$B$5,B186>VLOOKUP(C186,$C$3:$L$6,8,0)),-D186*VLOOKUP(C186,$C$3:$L$6,6,0)/12,0),"") ->  | G186: =IF(I186<>Variables!$B$1,IF(C186<>"",$I$9-E186-F186,""),-D186) ->  | I186: =IF(C186<>"",IF(D186+$I$9-E186-F186>=0,IF(ISERROR(INDEX($C$3:$C$6,MATCH(C186,$C$3:$C$6,0)+1,0)),Variables!$B$1,INDEX($C$3:$C$6,MATCH(C186,$C$3:$C$6,0)+1,0)),""),"") ->  | J186: =IF(ISERROR(VLOOKUP(I186,$C$3:$L$6,5,0)),"",IF(OR(VLOOKUP(I186,$C$3:$L$6,5,0)=Variables!$B$5,B186>VLOOKUP(I186,$C$3:$L$6,8,0)),IF(VLOOKUP(I186,$C$3:$L$6,5,0)=Variables!$B$5,((YEAR(B186)-YEAR($B$12))*12+MONTH(B186)-MONTH($B$12)),((YEAR(B186)-YEAR(VLOOKUP(I186,$C$3:$L$6,8,0)))*12+MONTH(B186)-MONTH(VLOOKUP(I186,$C$3:$L$6,8,0))))*(VLOOKUP(I186,$C$3:$L$6,10,0)*VLOOKUP(I186,$C$3:$L$6,6,0)/12),0)) ->  | K186: =IF(C186<>"",IF(I186<>"",IF(ISERROR(VLOOKUP(I186,$C$3:$L$6,10,0)),"",VLOOKUP(I186,$C$3:$L$6,10,0)+J186+IF(OR(VLOOKUP(I186,$C$3:$L$6,5,0)=Variables!$B$5,B186>VLOOKUP(I186,$C$3:$L$6,8,0)),IF(VLOOKUP(I186,$C$3:$L$6,5,0)=Variables!$B$5,((YEAR(B186)-YEAR($B$12))*12+MONTH(B186)-MONTH($B$12)),((YEAR(B186)-YEAR(VLOOKUP(I186,$C$3:$L$6,8,0)))*12+MONTH(B186)-MONTH(VLOOKUP(I186,$C$3:$L$6,8,0))))*VLOOKUP(I186,$C$3:$L$6,7,0),0)),""),"") -> 
C187: =IF(I186<>Variables!$B$1,IF(H186<>0,C186,I186),"") ->  | F187: =IF(C187<>"",IF(OR(VLOOKUP(C187,$C$3:$L$6,5,0)=Variables!$B$5,B187>VLOOKUP(C187,$C$3:$L$6,8,0)),-D187*VLOOKUP(C187,$C$3:$L$6,6,0)/12,0),"") ->  | G187: =IF(I187<>Variables!$B$1,IF(C187<>"",$I$9-E187-F187,""),-D187) ->  | I187: =IF(C187<>"",IF(D187+$I$9-E187-F187>=0,IF(ISERROR(INDEX($C$3:$C$6,MATCH(C187,$C$3:$C$6,0)+1,0)),Variables!$B$1,INDEX($C$3:$C$6,MATCH(C187,$C$3:$C$6,0)+1,0)),""),"") ->  | J187: =IF(ISERROR(VLOOKUP(I187,$C$3:$L$6,5,0)),"",IF(OR(VLOOKUP(I187,$C$3:$L$6,5,0)=Variables!$B$5,B187>VLOOKUP(I187,$C$3:$L$6,8,0)),IF(VLOOKUP(I187,$C$3:$L$6,5,0)=Variables!$B$5,((YEAR(B187)-YEAR($B$12))*12+MONTH(B187)-MONTH($B$12)),((YEAR(B187)-YEAR(VLOOKUP(I187,$C$3:$L$6,8,0)))*12+MONTH(B187)-MONTH(VLOOKUP(I187,$C$3:$L$6,8,0))))*(VLOOKUP(I187,$C$3:$L$6,10,0)*VLOOKUP(I187,$C$3:$L$6,6,0)/12),0)) ->  | K187: =IF(C187<>"",IF(I187<>"",IF(ISERROR(VLOOKUP(I187,$C$3:$L$6,10,0)),"",VLOOKUP(I187,$C$3:$L$6,10,0)+J187+IF(OR(VLOOKUP(I187,$C$3:$L$6,5,0)=Variables!$B$5,B187>VLOOKUP(I187,$C$3:$L$6,8,0)),IF(VLOOKUP(I187,$C$3:$L$6,5,0)=Variables!$B$5,((YEAR(B187)-YEAR($B$12))*12+MONTH(B187)-MONTH($B$12)),((YEAR(B187)-YEAR(VLOOKUP(I187,$C$3:$L$6,8,0)))*12+MONTH(B187)-MONTH(VLOOKUP(I187,$C$3:$L$6,8,0))))*VLOOKUP(I187,$C$3:$L$6,7,0),0)),""),"") -> 
C188: =IF(I187<>Variables!$B$1,IF(H187<>0,C187,I187),"") ->  | F188: =IF(C188<>"",IF(OR(VLOOKUP(C188,$C$3:$L$6,5,0)=Variables!$B$5,B188>VLOOKUP(C188,$C$3:$L$6,8,0)),-D188*VLOOKUP(C188,$C$3:$L$6,6,0)/12,0),"") ->  | G188: =IF(I188<>Variables!$B$1,IF(C188<>"",$I$9-E188-F188,""),-D188) ->  | I188: =IF(C188<>"",IF(D188+$I$9-E188-F188>=0,IF(ISERROR(INDEX($C$3:$C$6,MATCH(C188,$C$3:$C$6,0)+1,0)),Variables!$B$1,INDEX($C$3:$C$6,MATCH(C188,$C$3:$C$6,0)+1,0)),""),"") ->  | J188: =IF(ISERROR(VLOOKUP(I188,$C$3:$L$6,5,0)),"",IF(OR(VLOOKUP(I188,$C$3:$L$6,5,0)=Variables!$B$5,B188>VLOOKUP(I188,$C$3:$L$6,8,0)),IF(VLOOKUP(I188,$C$3:$L$6,5,0)=Variables!$B$5,((YEAR(B188)-YEAR($B$12))*12+MONTH(B188)-MONTH($B$12)),((YEAR(B188)-YEAR(VLOOKUP(I188,$C$3:$L$6,8,0)))*12+MONTH(B188)-MONTH(VLOOKUP(I188,$C$3:$L$6,8,0))))*(VLOOKUP(I188,$C$3:$L$6,10,0)*VLOOKUP(I188,$C$3:$L$6,6,0)/12),0)) ->  | K188: =IF(C188<>"",IF(I188<>"",IF(ISERROR(VLOOKUP(I188,$C$3:$L$6,10,0)),"",VLOOKUP(I188,$C$3:$L$6,10,0)+J188+IF(OR(VLOOKUP(I188,$C$3:$L$6,5,0)=Variables!$B$5,B188>VLOOKUP(I188,$C$3:$L$6,8,0)),IF(VLOOKUP(I188,$C$3:$L$6,5,0)=Variables!$B$5,((YEAR(B188)-YEAR($B$12))*12+MONTH(B188)-MONTH($B$12)),((YEAR(B188)-YEAR(VLOOKUP(I188,$C$3:$L$6,8,0)))*12+MONTH(B188)-MONTH(VLOOKUP(I188,$C$3:$L$6,8,0))))*VLOOKUP(I188,$C$3:$L$6,7,0),0)),""),"") -> 
C189: =IF(I188<>Variables!$B$1,IF(H188<>0,C188,I188),"") ->  | F189: =IF(C189<>"",IF(OR(VLOOKUP(C189,$C$3:$L$6,5,0)=Variables!$B$5,B189>VLOOKUP(C189,$C$3:$L$6,8,0)),-D189*VLOOKUP(C189,$C$3:$L$6,6,0)/12,0),"") ->  | G189: =IF(I189<>Variables!$B$1,IF(C189<>"",$I$9-E189-F189,""),-D189) ->  | I189: =IF(C189<>"",IF(D189+$I$9-E189-F189>=0,IF(ISERROR(INDEX($C$3:$C$6,MATCH(C189,$C$3:$C$6,0)+1,0)),Variables!$B$1,INDEX($C$3:$C$6,MATCH(C189,$C$3:$C$6,0)+1,0)),""),"") ->  | J189: =IF(ISERROR(VLOOKUP(I189,$C$3:$L$6,5,0)),"",IF(OR(VLOOKUP(I189,$C$3:$L$6,5,0)=Variables!$B$5,B189>VLOOKUP(I189,$C$3:$L$6,8,0)),IF(VLOOKUP(I189,$C$3:$L$6,5,0)=Variables!$B$5,((YEAR(B189)-YEAR($B$12))*12+MONTH(B189)-MONTH($B$12)),((YEAR(B189)-YEAR(VLOOKUP(I189,$C$3:$L$6,8,0)))*12+MONTH(B189)-MONTH(VLOOKUP(I189,$C$3:$L$6,8,0))))*(VLOOKUP(I189,$C$3:$L$6,10,0)*VLOOKUP(I189,$C$3:$L$6,6,0)/12),0)) ->  | K189: =IF(C189<>"",IF(I189<>"",IF(ISERROR(VLOOKUP(I189,$C$3:$L$6,10,0)),"",VLOOKUP(I189,$C$3:$L$6,10,0)+J189+IF(OR(VLOOKUP(I189,$C$3:$L$6,5,0)=Variables!$B$5,B189>VLOOKUP(I189,$C$3:$L$6,8,0)),IF(VLOOKUP(I189,$C$3:$L$6,5,0)=Variables!$B$5,((YEAR(B189)-YEAR($B$12))*12+MONTH(B189)-MONTH($B$12)),((YEAR(B189)-YEAR(VLOOKUP(I189,$C$3:$L$6,8,0)))*12+MONTH(B189)-MONTH(VLOOKUP(I189,$C$3:$L$6,8,0))))*VLOOKUP(I189,$C$3:$L$6,7,0),0)),""),"") -> 
C190: =IF(I189<>Variables!$B$1,IF(H189<>0,C189,I189),"") ->  | F190: =IF(C190<>"",IF(OR(VLOOKUP(C190,$C$3:$L$6,5,0)=Variables!$B$5,B190>VLOOKUP(C190,$C$3:$L$6,8,0)),-D190*VLOOKUP(C190,$C$3:$L$6,6,0)/12,0),"") ->  | G190: =IF(I190<>Variables!$B$1,IF(C190<>"",$I$9-E190-F190,""),-D190) ->  | I190: =IF(C190<>"",IF(D190+$I$9-E190-F190>=0,IF(ISERROR(INDEX($C$3:$C$6,MATCH(C190,$C$3:$C$6,0)+1,0)),Variables!$B$1,INDEX($C$3:$C$6,MATCH(C190,$C$3:$C$6,0)+1,0)),""),"") ->  | J190: =IF(ISERROR(VLOOKUP(I190,$C$3:$L$6,5,0)),"",IF(OR(VLOOKUP(I190,$C$3:$L$6,5,0)=Variables!$B$5,B190>VLOOKUP(I190,$C$3:$L$6,8,0)),IF(VLOOKUP(I190,$C$3:$L$6,5,0)=Variables!$B$5,((YEAR(B190)-YEAR($B$12))*12+MONTH(B190)-MONTH($B$12)),((YEAR(B190)-YEAR(VLOOKUP(I190,$C$3:$L$6,8,0)))*12+MONTH(B190)-MONTH(VLOOKUP(I190,$C$3:$L$6,8,0))))*(VLOOKUP(I190,$C$3:$L$6,10,0)*VLOOKUP(I190,$C$3:$L$6,6,0)/12),0)) ->  | K190: =IF(C190<>"",IF(I190<>"",IF(ISERROR(VLOOKUP(I190,$C$3:$L$6,10,0)),"",VLOOKUP(I190,$C$3:$L$6,10,0)+J190+IF(OR(VLOOKUP(I190,$C$3:$L$6,5,0)=Variables!$B$5,B190>VLOOKUP(I190,$C$3:$L$6,8,0)),IF(VLOOKUP(I190,$C$3:$L$6,5,0)=Variables!$B$5,((YEAR(B190)-YEAR($B$12))*12+MONTH(B190)-MONTH($B$12)),((YEAR(B190)-YEAR(VLOOKUP(I190,$C$3:$L$6,8,0)))*12+MONTH(B190)-MONTH(VLOOKUP(I190,$C$3:$L$6,8,0))))*VLOOKUP(I190,$C$3:$L$6,7,0),0)),""),"") -> 
C191: =IF(I190<>Variables!$B$1,IF(H190<>0,C190,I190),"") ->  | F191: =IF(C191<>"",IF(OR(VLOOKUP(C191,$C$3:$L$6,5,0)=Variables!$B$5,B191>VLOOKUP(C191,$C$3:$L$6,8,0)),-D191*VLOOKUP(C191,$C$3:$L$6,6,0)/12,0),"") ->  | G191: =IF(I191<>Variables!$B$1,IF(C191<>"",$I$9-E191-F191,""),-D191) ->  | I191: =IF(C191<>"",IF(D191+$I$9-E191-F191>=0,IF(ISERROR(INDEX($C$3:$C$6,MATCH(C191,$C$3:$C$6,0)+1,0)),Variables!$B$1,INDEX($C$3:$C$6,MATCH(C191,$C$3:$C$6,0)+1,0)),""),"") ->  | J191: =IF(ISERROR(VLOOKUP(I191,$C$3:$L$6,5,0)),"",IF(OR(VLOOKUP(I191,$C$3:$L$6,5,0)=Variables!$B$5,B191>VLOOKUP(I191,$C$3:$L$6,8,0)),IF(VLOOKUP(I191,$C$3:$L$6,5,0)=Variables!$B$5,((YEAR(B191)-YEAR($B$12))*12+MONTH(B191)-MONTH($B$12)),((YEAR(B191)-YEAR(VLOOKUP(I191,$C$3:$L$6,8,0)))*12+MONTH(B191)-MONTH(VLOOKUP(I191,$C$3:$L$6,8,0))))*(VLOOKUP(I191,$C$3:$L$6,10,0)*VLOOKUP(I191,$C$3:$L$6,6,0)/12),0)) ->  | K191: =IF(C191<>"",IF(I191<>"",IF(ISERROR(VLOOKUP(I191,$C$3:$L$6,10,0)),"",VLOOKUP(I191,$C$3:$L$6,10,0)+J191+IF(OR(VLOOKUP(I191,$C$3:$L$6,5,0)=Variables!$B$5,B191>VLOOKUP(I191,$C$3:$L$6,8,0)),IF(VLOOKUP(I191,$C$3:$L$6,5,0)=Variables!$B$5,((YEAR(B191)-YEAR($B$12))*12+MONTH(B191)-MONTH($B$12)),((YEAR(B191)-YEAR(VLOOKUP(I191,$C$3:$L$6,8,0)))*12+MONTH(B191)-MONTH(VLOOKUP(I191,$C$3:$L$6,8,0))))*VLOOKUP(I191,$C$3:$L$6,7,0),0)),""),"") -> 
C192: =IF(I191<>Variables!$B$1,IF(H191<>0,C191,I191),"") ->  | F192: =IF(C192<>"",IF(OR(VLOOKUP(C192,$C$3:$L$6,5,0)=Variables!$B$5,B192>VLOOKUP(C192,$C$3:$L$6,8,0)),-D192*VLOOKUP(C192,$C$3:$L$6,6,0)/12,0),"") ->  | G192: =IF(I192<>Variables!$B$1,IF(C192<>"",$I$9-E192-F192,""),-D192) ->  | I192: =IF(C192<>"",IF(D192+$I$9-E192-F192>=0,IF(ISERROR(INDEX($C$3:$C$6,MATCH(C192,$C$3:$C$6,0)+1,0)),Variables!$B$1,INDEX($C$3:$C$6,MATCH(C192,$C$3:$C$6,0)+1,0)),""),"") ->  | J192: =IF(ISERROR(VLOOKUP(I192,$C$3:$L$6,5,0)),"",IF(OR(VLOOKUP(I192,$C$3:$L$6,5,0)=Variables!$B$5,B192>VLOOKUP(I192,$C$3:$L$6,8,0)),IF(VLOOKUP(I192,$C$3:$L$6,5,0)=Variables!$B$5,((YEAR(B192)-YEAR($B$12))*12+MONTH(B192)-MONTH($B$12)),((YEAR(B192)-YEAR(VLOOKUP(I192,$C$3:$L$6,8,0)))*12+MONTH(B192)-MONTH(VLOOKUP(I192,$C$3:$L$6,8,0))))*(VLOOKUP(I192,$C$3:$L$6,10,0)*VLOOKUP(I192,$C$3:$L$6,6,0)/12),0)) ->  | K192: =IF(C192<>"",IF(I192<>"",IF(ISERROR(VLOOKUP(I192,$C$3:$L$6,10,0)),"",VLOOKUP(I192,$C$3:$L$6,10,0)+J192+IF(OR(VLOOKUP(I192,$C$3:$L$6,5,0)=Variables!$B$5,B192>VLOOKUP(I192,$C$3:$L$6,8,0)),IF(VLOOKUP(I192,$C$3:$L$6,5,0)=Variables!$B$5,((YEAR(B192)-YEAR($B$12))*12+MONTH(B192)-MONTH($B$12)),((YEAR(B192)-YEAR(VLOOKUP(I192,$C$3:$L$6,8,0)))*12+MONTH(B192)-MONTH(VLOOKUP(I192,$C$3:$L$6,8,0))))*VLOOKUP(I192,$C$3:$L$6,7,0),0)),""),"") -> 
C193: =IF(I192<>Variables!$B$1,IF(H192<>0,C192,I192),"") ->  | F193: =IF(C193<>"",IF(OR(VLOOKUP(C193,$C$3:$L$6,5,0)=Variables!$B$5,B193>VLOOKUP(C193,$C$3:$L$6,8,0)),-D193*VLOOKUP(C193,$C$3:$L$6,6,0)/12,0),"") ->  | G193: =IF(I193<>Variables!$B$1,IF(C193<>"",$I$9-E193-F193,""),-D193) ->  | I193: =IF(C193<>"",IF(D193+$I$9-E193-F193>=0,IF(ISERROR(INDEX($C$3:$C$6,MATCH(C193,$C$3:$C$6,0)+1,0)),Variables!$B$1,INDEX($C$3:$C$6,MATCH(C193,$C$3:$C$6,0)+1,0)),""),"") ->  | J193: =IF(ISERROR(VLOOKUP(I193,$C$3:$L$6,5,0)),"",IF(OR(VLOOKUP(I193,$C$3:$L$6,5,0)=Variables!$B$5,B193>VLOOKUP(I193,$C$3:$L$6,8,0)),IF(VLOOKUP(I193,$C$3:$L$6,5,0)=Variables!$B$5,((YEAR(B193)-YEAR($B$12))*12+MONTH(B193)-MONTH($B$12)),((YEAR(B193)-YEAR(VLOOKUP(I193,$C$3:$L$6,8,0)))*12+MONTH(B193)-MONTH(VLOOKUP(I193,$C$3:$L$6,8,0))))*(VLOOKUP(I193,$C$3:$L$6,10,0)*VLOOKUP(I193,$C$3:$L$6,6,0)/12),0)) ->  | K193: =IF(C193<>"",IF(I193<>"",IF(ISERROR(VLOOKUP(I193,$C$3:$L$6,10,0)),"",VLOOKUP(I193,$C$3:$L$6,10,0)+J193+IF(OR(VLOOKUP(I193,$C$3:$L$6,5,0)=Variables!$B$5,B193>VLOOKUP(I193,$C$3:$L$6,8,0)),IF(VLOOKUP(I193,$C$3:$L$6,5,0)=Variables!$B$5,((YEAR(B193)-YEAR($B$12))*12+MONTH(B193)-MONTH($B$12)),((YEAR(B193)-YEAR(VLOOKUP(I193,$C$3:$L$6,8,0)))*12+MONTH(B193)-MONTH(VLOOKUP(I193,$C$3:$L$6,8,0))))*VLOOKUP(I193,$C$3:$L$6,7,0),0)),""),"") -> 
C194: =IF(I193<>Variables!$B$1,IF(H193<>0,C193,I193),"") ->  | F194: =IF(C194<>"",IF(OR(VLOOKUP(C194,$C$3:$L$6,5,0)=Variables!$B$5,B194>VLOOKUP(C194,$C$3:$L$6,8,0)),-D194*VLOOKUP(C194,$C$3:$L$6,6,0)/12,0),"") ->  | G194: =IF(I194<>Variables!$B$1,IF(C194<>"",$I$9-E194-F194,""),-D194) ->  | I194: =IF(C194<>"",IF(D194+$I$9-E194-F194>=0,IF(ISERROR(INDEX($C$3:$C$6,MATCH(C194,$C$3:$C$6,0)+1,0)),Variables!$B$1,INDEX($C$3:$C$6,MATCH(C194,$C$3:$C$6,0)+1,0)),""),"") ->  | J194: =IF(ISERROR(VLOOKUP(I194,$C$3:$L$6,5,0)),"",IF(OR(VLOOKUP(I194,$C$3:$L$6,5,0)=Variables!$B$5,B194>VLOOKUP(I194,$C$3:$L$6,8,0)),IF(VLOOKUP(I194,$C$3:$L$6,5,0)=Variables!$B$5,((YEAR(B194)-YEAR($B$12))*12+MONTH(B194)-MONTH($B$12)),((YEAR(B194)-YEAR(VLOOKUP(I194,$C$3:$L$6,8,0)))*12+MONTH(B194)-MONTH(VLOOKUP(I194,$C$3:$L$6,8,0))))*(VLOOKUP(I194,$C$3:$L$6,10,0)*VLOOKUP(I194,$C$3:$L$6,6,0)/12),0)) ->  | K194: =IF(C194<>"",IF(I194<>"",IF(ISERROR(VLOOKUP(I194,$C$3:$L$6,10,0)),"",VLOOKUP(I194,$C$3:$L$6,10,0)+J194+IF(OR(VLOOKUP(I194,$C$3:$L$6,5,0)=Variables!$B$5,B194>VLOOKUP(I194,$C$3:$L$6,8,0)),IF(VLOOKUP(I194,$C$3:$L$6,5,0)=Variables!$B$5,((YEAR(B194)-YEAR($B$12))*12+MONTH(B194)-MONTH($B$12)),((YEAR(B194)-YEAR(VLOOKUP(I194,$C$3:$L$6,8,0)))*12+MONTH(B194)-MONTH(VLOOKUP(I194,$C$3:$L$6,8,0))))*VLOOKUP(I194,$C$3:$L$6,7,0),0)),""),"") -> 
C195: =IF(I194<>Variables!$B$1,IF(H194<>0,C194,I194),"") ->  | F195: =IF(C195<>"",IF(OR(VLOOKUP(C195,$C$3:$L$6,5,0)=Variables!$B$5,B195>VLOOKUP(C195,$C$3:$L$6,8,0)),-D195*VLOOKUP(C195,$C$3:$L$6,6,0)/12,0),"") ->  | G195: =IF(I195<>Variables!$B$1,IF(C195<>"",$I$9-E195-F195,""),-D195) ->  | I195: =IF(C195<>"",IF(D195+$I$9-E195-F195>=0,IF(ISERROR(INDEX($C$3:$C$6,MATCH(C195,$C$3:$C$6,0)+1,0)),Variables!$B$1,INDEX($C$3:$C$6,MATCH(C195,$C$3:$C$6,0)+1,0)),""),"") ->  | J195: =IF(ISERROR(VLOOKUP(I195,$C$3:$L$6,5,0)),"",IF(OR(VLOOKUP(I195,$C$3:$L$6,5,0)=Variables!$B$5,B195>VLOOKUP(I195,$C$3:$L$6,8,0)),IF(VLOOKUP(I195,$C$3:$L$6,5,0)=Variables!$B$5,((YEAR(B195)-YEAR($B$12))*12+MONTH(B195)-MONTH($B$12)),((YEAR(B195)-YEAR(VLOOKUP(I195,$C$3:$L$6,8,0)))*12+MONTH(B195)-MONTH(VLOOKUP(I195,$C$3:$L$6,8,0))))*(VLOOKUP(I195,$C$3:$L$6,10,0)*VLOOKUP(I195,$C$3:$L$6,6,0)/12),0)) ->  | K195: =IF(C195<>"",IF(I195<>"",IF(ISERROR(VLOOKUP(I195,$C$3:$L$6,10,0)),"",VLOOKUP(I195,$C$3:$L$6,10,0)+J195+IF(OR(VLOOKUP(I195,$C$3:$L$6,5,0)=Variables!$B$5,B195>VLOOKUP(I195,$C$3:$L$6,8,0)),IF(VLOOKUP(I195,$C$3:$L$6,5,0)=Variables!$B$5,((YEAR(B195)-YEAR($B$12))*12+MONTH(B195)-MONTH($B$12)),((YEAR(B195)-YEAR(VLOOKUP(I195,$C$3:$L$6,8,0)))*12+MONTH(B195)-MONTH(VLOOKUP(I195,$C$3:$L$6,8,0))))*VLOOKUP(I195,$C$3:$L$6,7,0),0)),""),"") -> 
C196: =IF(I195<>Variables!$B$1,IF(H195<>0,C195,I195),"") ->  | F196: =IF(C196<>"",IF(OR(VLOOKUP(C196,$C$3:$L$6,5,0)=Variables!$B$5,B196>VLOOKUP(C196,$C$3:$L$6,8,0)),-D196*VLOOKUP(C196,$C$3:$L$6,6,0)/12,0),"") ->  | G196: =IF(I196<>Variables!$B$1,IF(C196<>"",$I$9-E196-F196,""),-D196) ->  | I196: =IF(C196<>"",IF(D196+$I$9-E196-F196>=0,IF(ISERROR(INDEX($C$3:$C$6,MATCH(C196,$C$3:$C$6,0)+1,0)),Variables!$B$1,INDEX($C$3:$C$6,MATCH(C196,$C$3:$C$6,0)+1,0)),""),"") ->  | J196: =IF(ISERROR(VLOOKUP(I196,$C$3:$L$6,5,0)),"",IF(OR(VLOOKUP(I196,$C$3:$L$6,5,0)=Variables!$B$5,B196>VLOOKUP(I196,$C$3:$L$6,8,0)),IF(VLOOKUP(I196,$C$3:$L$6,5,0)=Variables!$B$5,((YEAR(B196)-YEAR($B$12))*12+MONTH(B196)-MONTH($B$12)),((YEAR(B196)-YEAR(VLOOKUP(I196,$C$3:$L$6,8,0)))*12+MONTH(B196)-MONTH(VLOOKUP(I196,$C$3:$L$6,8,0))))*(VLOOKUP(I196,$C$3:$L$6,10,0)*VLOOKUP(I196,$C$3:$L$6,6,0)/12),0)) ->  | K196: =IF(C196<>"",IF(I196<>"",IF(ISERROR(VLOOKUP(I196,$C$3:$L$6,10,0)),"",VLOOKUP(I196,$C$3:$L$6,10,0)+J196+IF(OR(VLOOKUP(I196,$C$3:$L$6,5,0)=Variables!$B$5,B196>VLOOKUP(I196,$C$3:$L$6,8,0)),IF(VLOOKUP(I196,$C$3:$L$6,5,0)=Variables!$B$5,((YEAR(B196)-YEAR($B$12))*12+MONTH(B196)-MONTH($B$12)),((YEAR(B196)-YEAR(VLOOKUP(I196,$C$3:$L$6,8,0)))*12+MONTH(B196)-MONTH(VLOOKUP(I196,$C$3:$L$6,8,0))))*VLOOKUP(I196,$C$3:$L$6,7,0),0)),""),"") -> 
C197: =IF(I196<>Variables!$B$1,IF(H196<>0,C196,I196),"") ->  | F197: =IF(C197<>"",IF(OR(VLOOKUP(C197,$C$3:$L$6,5,0)=Variables!$B$5,B197>VLOOKUP(C197,$C$3:$L$6,8,0)),-D197*VLOOKUP(C197,$C$3:$L$6,6,0)/12,0),"") ->  | G197: =IF(I197<>Variables!$B$1,IF(C197<>"",$I$9-E197-F197,""),-D197) ->  | I197: =IF(C197<>"",IF(D197+$I$9-E197-F197>=0,IF(ISERROR(INDEX($C$3:$C$6,MATCH(C197,$C$3:$C$6,0)+1,0)),Variables!$B$1,INDEX($C$3:$C$6,MATCH(C197,$C$3:$C$6,0)+1,0)),""),"") ->  | J197: =IF(ISERROR(VLOOKUP(I197,$C$3:$L$6,5,0)),"",IF(OR(VLOOKUP(I197,$C$3:$L$6,5,0)=Variables!$B$5,B197>VLOOKUP(I197,$C$3:$L$6,8,0)),IF(VLOOKUP(I197,$C$3:$L$6,5,0)=Variables!$B$5,((YEAR(B197)-YEAR($B$12))*12+MONTH(B197)-MONTH($B$12)),((YEAR(B197)-YEAR(VLOOKUP(I197,$C$3:$L$6,8,0)))*12+MONTH(B197)-MONTH(VLOOKUP(I197,$C$3:$L$6,8,0))))*(VLOOKUP(I197,$C$3:$L$6,10,0)*VLOOKUP(I197,$C$3:$L$6,6,0)/12),0)) ->  | K197: =IF(C197<>"",IF(I197<>"",IF(ISERROR(VLOOKUP(I197,$C$3:$L$6,10,0)),"",VLOOKUP(I197,$C$3:$L$6,10,0)+J197+IF(OR(VLOOKUP(I197,$C$3:$L$6,5,0)=Variables!$B$5,B197>VLOOKUP(I197,$C$3:$L$6,8,0)),IF(VLOOKUP(I197,$C$3:$L$6,5,0)=Variables!$B$5,((YEAR(B197)-YEAR($B$12))*12+MONTH(B197)-MONTH($B$12)),((YEAR(B197)-YEAR(VLOOKUP(I197,$C$3:$L$6,8,0)))*12+MONTH(B197)-MONTH(VLOOKUP(I197,$C$3:$L$6,8,0))))*VLOOKUP(I197,$C$3:$L$6,7,0),0)),""),"") -> 
C198: =IF(I197<>Variables!$B$1,IF(H197<>0,C197,I197),"") ->  | F198: =IF(C198<>"",IF(OR(VLOOKUP(C198,$C$3:$L$6,5,0)=Variables!$B$5,B198>VLOOKUP(C198,$C$3:$L$6,8,0)),-D198*VLOOKUP(C198,$C$3:$L$6,6,0)/12,0),"") ->  | G198: =IF(I198<>Variables!$B$1,IF(C198<>"",$I$9-E198-F198,""),-D198) ->  | I198: =IF(C198<>"",IF(D198+$I$9-E198-F198>=0,IF(ISERROR(INDEX($C$3:$C$6,MATCH(C198,$C$3:$C$6,0)+1,0)),Variables!$B$1,INDEX($C$3:$C$6,MATCH(C198,$C$3:$C$6,0)+1,0)),""),"") ->  | J198: =IF(ISERROR(VLOOKUP(I198,$C$3:$L$6,5,0)),"",IF(OR(VLOOKUP(I198,$C$3:$L$6,5,0)=Variables!$B$5,B198>VLOOKUP(I198,$C$3:$L$6,8,0)),IF(VLOOKUP(I198,$C$3:$L$6,5,0)=Variables!$B$5,((YEAR(B198)-YEAR($B$12))*12+MONTH(B198)-MONTH($B$12)),((YEAR(B198)-YEAR(VLOOKUP(I198,$C$3:$L$6,8,0)))*12+MONTH(B198)-MONTH(VLOOKUP(I198,$C$3:$L$6,8,0))))*(VLOOKUP(I198,$C$3:$L$6,10,0)*VLOOKUP(I198,$C$3:$L$6,6,0)/12),0)) ->  | K198: =IF(C198<>"",IF(I198<>"",IF(ISERROR(VLOOKUP(I198,$C$3:$L$6,10,0)),"",VLOOKUP(I198,$C$3:$L$6,10,0)+J198+IF(OR(VLOOKUP(I198,$C$3:$L$6,5,0)=Variables!$B$5,B198>VLOOKUP(I198,$C$3:$L$6,8,0)),IF(VLOOKUP(I198,$C$3:$L$6,5,0)=Variables!$B$5,((YEAR(B198)-YEAR($B$12))*12+MONTH(B198)-MONTH($B$12)),((YEAR(B198)-YEAR(VLOOKUP(I198,$C$3:$L$6,8,0)))*12+MONTH(B198)-MONTH(VLOOKUP(I198,$C$3:$L$6,8,0))))*VLOOKUP(I198,$C$3:$L$6,7,0),0)),""),"") -> 
C199: =IF(I198<>Variables!$B$1,IF(H198<>0,C198,I198),"") ->  | F199: =IF(C199<>"",IF(OR(VLOOKUP(C199,$C$3:$L$6,5,0)=Variables!$B$5,B199>VLOOKUP(C199,$C$3:$L$6,8,0)),-D199*VLOOKUP(C199,$C$3:$L$6,6,0)/12,0),"") ->  | G199: =IF(I199<>Variables!$B$1,IF(C199<>"",$I$9-E199-F199,""),-D199) ->  | I199: =IF(C199<>"",IF(D199+$I$9-E199-F199>=0,IF(ISERROR(INDEX($C$3:$C$6,MATCH(C199,$C$3:$C$6,0)+1,0)),Variables!$B$1,INDEX($C$3:$C$6,MATCH(C199,$C$3:$C$6,0)+1,0)),""),"") ->  | J199: =IF(ISERROR(VLOOKUP(I199,$C$3:$L$6,5,0)),"",IF(OR(VLOOKUP(I199,$C$3:$L$6,5,0)=Variables!$B$5,B199>VLOOKUP(I199,$C$3:$L$6,8,0)),IF(VLOOKUP(I199,$C$3:$L$6,5,0)=Variables!$B$5,((YEAR(B199)-YEAR($B$12))*12+MONTH(B199)-MONTH($B$12)),((YEAR(B199)-YEAR(VLOOKUP(I199,$C$3:$L$6,8,0)))*12+MONTH(B199)-MONTH(VLOOKUP(I199,$C$3:$L$6,8,0))))*(VLOOKUP(I199,$C$3:$L$6,10,0)*VLOOKUP(I199,$C$3:$L$6,6,0)/12),0)) ->  | K199: =IF(C199<>"",IF(I199<>"",IF(ISERROR(VLOOKUP(I199,$C$3:$L$6,10,0)),"",VLOOKUP(I199,$C$3:$L$6,10,0)+J199+IF(OR(VLOOKUP(I199,$C$3:$L$6,5,0)=Variables!$B$5,B199>VLOOKUP(I199,$C$3:$L$6,8,0)),IF(VLOOKUP(I199,$C$3:$L$6,5,0)=Variables!$B$5,((YEAR(B199)-YEAR($B$12))*12+MONTH(B199)-MONTH($B$12)),((YEAR(B199)-YEAR(VLOOKUP(I199,$C$3:$L$6,8,0)))*12+MONTH(B199)-MONTH(VLOOKUP(I199,$C$3:$L$6,8,0))))*VLOOKUP(I199,$C$3:$L$6,7,0),0)),""),"") -> 
C200: =IF(I199<>Variables!$B$1,IF(H199<>0,C199,I199),"") ->  | F200: =IF(C200<>"",IF(OR(VLOOKUP(C200,$C$3:$L$6,5,0)=Variables!$B$5,B200>VLOOKUP(C200,$C$3:$L$6,8,0)),-D200*VLOOKUP(C200,$C$3:$L$6,6,0)/12,0),"") ->  | G200: =IF(I200<>Variables!$B$1,IF(C200<>"",$I$9-E200-F200,""),-D200) ->  | I200: =IF(C200<>"",IF(D200+$I$9-E200-F200>=0,IF(ISERROR(INDEX($C$3:$C$6,MATCH(C200,$C$3:$C$6,0)+1,0)),Variables!$B$1,INDEX($C$3:$C$6,MATCH(C200,$C$3:$C$6,0)+1,0)),""),"") ->  | J200: =IF(ISERROR(VLOOKUP(I200,$C$3:$L$6,5,0)),"",IF(OR(VLOOKUP(I200,$C$3:$L$6,5,0)=Variables!$B$5,B200>VLOOKUP(I200,$C$3:$L$6,8,0)),IF(VLOOKUP(I200,$C$3:$L$6,5,0)=Variables!$B$5,((YEAR(B200)-YEAR($B$12))*12+MONTH(B200)-MONTH($B$12)),((YEAR(B200)-YEAR(VLOOKUP(I200,$C$3:$L$6,8,0)))*12+MONTH(B200)-MONTH(VLOOKUP(I200,$C$3:$L$6,8,0))))*(VLOOKUP(I200,$C$3:$L$6,10,0)*VLOOKUP(I200,$C$3:$L$6,6,0)/12),0)) ->  | K200: =IF(C200<>"",IF(I200<>"",IF(ISERROR(VLOOKUP(I200,$C$3:$L$6,10,0)),"",VLOOKUP(I200,$C$3:$L$6,10,0)+J200+IF(OR(VLOOKUP(I200,$C$3:$L$6,5,0)=Variables!$B$5,B200>VLOOKUP(I200,$C$3:$L$6,8,0)),IF(VLOOKUP(I200,$C$3:$L$6,5,0)=Variables!$B$5,((YEAR(B200)-YEAR($B$12))*12+MONTH(B200)-MONTH($B$12)),((YEAR(B200)-YEAR(VLOOKUP(I200,$C$3:$L$6,8,0)))*12+MONTH(B200)-MONTH(VLOOKUP(I200,$C$3:$L$6,8,0))))*VLOOKUP(I200,$C$3:$L$6,7,0),0)),""),"") -> 
C201: =IF(I200<>Variables!$B$1,IF(H200<>0,C200,I200),"") ->  | F201: =IF(C201<>"",IF(OR(VLOOKUP(C201,$C$3:$L$6,5,0)=Variables!$B$5,B201>VLOOKUP(C201,$C$3:$L$6,8,0)),-D201*VLOOKUP(C201,$C$3:$L$6,6,0)/12,0),"") ->  | G201: =IF(I201<>Variables!$B$1,IF(C201<>"",$I$9-E201-F201,""),-D201) ->  | I201: =IF(C201<>"",IF(D201+$I$9-E201-F201>=0,IF(ISERROR(INDEX($C$3:$C$6,MATCH(C201,$C$3:$C$6,0)+1,0)),Variables!$B$1,INDEX($C$3:$C$6,MATCH(C201,$C$3:$C$6,0)+1,0)),""),"") ->  | J201: =IF(ISERROR(VLOOKUP(I201,$C$3:$L$6,5,0)),"",IF(OR(VLOOKUP(I201,$C$3:$L$6,5,0)=Variables!$B$5,B201>VLOOKUP(I201,$C$3:$L$6,8,0)),IF(VLOOKUP(I201,$C$3:$L$6,5,0)=Variables!$B$5,((YEAR(B201)-YEAR($B$12))*12+MONTH(B201)-MONTH($B$12)),((YEAR(B201)-YEAR(VLOOKUP(I201,$C$3:$L$6,8,0)))*12+MONTH(B201)-MONTH(VLOOKUP(I201,$C$3:$L$6,8,0))))*(VLOOKUP(I201,$C$3:$L$6,10,0)*VLOOKUP(I201,$C$3:$L$6,6,0)/12),0)) ->  | K201: =IF(C201<>"",IF(I201<>"",IF(ISERROR(VLOOKUP(I201,$C$3:$L$6,10,0)),"",VLOOKUP(I201,$C$3:$L$6,10,0)+J201+IF(OR(VLOOKUP(I201,$C$3:$L$6,5,0)=Variables!$B$5,B201>VLOOKUP(I201,$C$3:$L$6,8,0)),IF(VLOOKUP(I201,$C$3:$L$6,5,0)=Variables!$B$5,((YEAR(B201)-YEAR($B$12))*12+MONTH(B201)-MONTH($B$12)),((YEAR(B201)-YEAR(VLOOKUP(I201,$C$3:$L$6,8,0)))*12+MONTH(B201)-MONTH(VLOOKUP(I201,$C$3:$L$6,8,0))))*VLOOKUP(I201,$C$3:$L$6,7,0),0)),""),"") -> 
... 1302 more rows

Sheet Variables
A1: Debt Free Constant: | B1: DEBT FREE!
A3: Never Pay Constant: | B3: Increase monthly payment or you will NEVER pay off this loan
A5: Interest Subsidy Types: | B5: Unsubsidized | C5: Subsidized
A7: Sort By Constants: | B7: Ascending | C7: Descending
